Workbook

Sheet Read Me (hidden)

Sheet Eingaben (Inputs)
C2: Eingabe
D4: Erforderliches Eingabefeld | F4: Bitte ausfüllen bzw. eine Option wählen.
D5: Optionales Eingabefeld | F5: Ein Standardwert wird angezeigt und kann bei Bedarf angepasst werden.
D6: Berechnetes Feld | F6: Der Wert wird berechnet und kann nicht bearbeitet werden.
C9: Flottenstruktur
C11: Flotte
C12: Anzahl Segmente | D12: 1 | F12: Flottensegmente werden nach verschiedenen Fahrzeugtypen bzw. Fahr- und Nutzungsprofilen charakterisiert. Es sind maximal 10 Segmente definierbar (A, B, C usw.). Jedes Segment ist unten separat auszufüllen.
C15: Segment A | I15: Energiekosten und Ladeinfrastruktur (betrifft sämtliche Segmente bzw. die gesamte Flotte)
C17: Segmentstruktur | I17: Energiekosten
C18: Anzahl Fahrzeuge | D18: 1 | I18: Durchschnittliche Treibstoffkosten | J18: ='1a. Defaults Segment-Ebene'!J18 -> 1.80 | K18: CHF/l
C19: Einsatzart | D19: Poolfahrzeuge | F19: Poolfahrzeuge werden ausschliesslich beruflich genutzt und verbleiben üblicherweise über Nacht am Firmenstandort. Dienstfahrzeuge werden von einer oder mehreren Personen beruflich und privat genutzt und können typischerweise auch für den Arbeitsweg verwendet werden. | I19: Durchschnittliche Stromkosten Wohnort | J19: ='1a. Defaults Segment-Ebene'!J19 -> 0.24 | K19: CHF/kWh
C20: Einsatzgebiet | D20: regional | I20: Durchschnittliche Stromkosten Firmenstandort | J20: ='1a. Defaults Segment-Ebene'!J20 -> 0.24 | K20: CHF/kWh
C21: Heimlademöglichkeit | D21: ='1a. Defaults Segment-Ebene'!D21 -> Nein | F21: Angabe, ob Fahrzeuge am Wohnort der Nutzenden geladen werden können. Wirkt sich nur auf Dienstfahrzeuge aus. Poolfahrzeuge werden nie am Wohnort geladen. | I21: Durchschnittliche Ladepreise an öffentlichen Ladepunkten | J21: ='1a. Defaults Segment-Ebene'!J21 -> 0.55 | K21: CHF/kWh
C23: Fahrzeugdaten | I23: Ladeinfrastruktur und Netzanschluss
C24: Fahrzeuggrösse | D24: Mittelklasse | I24: Max. Ladeleistung pro Ladepunkt Wohnort | J24: ='1a. Defaults Segment-Ebene'!J24 -> 11 | K24: kW
C25: Treibstoffverbrauch Verbrenner | D25: ='1a. Defaults Segment-Ebene'!D25 -> 5.8 | E25: l/100 km | F25: ='1a. Defaults Segment-Ebene'!F25 -> Standardwert: 5.8 l/100 km | I25: Max. Ladeleistung pro Ladepunkt Firmenstandort AC | J25: ='1a. Defaults Segment-Ebene'!J25 -> 11 | K25: kW
C26: Energieverbrauch E-Fahrzeug | D26: ='1a. Defaults Segment-Ebene'!D26 -> 15.1 | E26: kWh/100 km | F26: ='1a. Defaults Segment-Ebene'!F26 -> Standardwert: 15.1 kWh/100 km | I26: Max. Ladeleistung pro Ladepunkt Firmenstandort DC | J26: ='1a. Defaults Segment-Ebene'!J26 -> 250 | K26: kW
C27: Batteriekapazität (netto) | D27: ='1a. Defaults Segment-Ebene'!D27 -> 58.6 | E27: kWh | F27: ="Effektiv nutzbare Speicherkapazität, berechnet aus Bruttokapazität abzüglich herstellerseitiger Sicherheits- und Gesundheitspuffer. I.d.R. ca. 90-95% der Bruttokapazität. "&'1a. Defaults Segment-Ebene'!F27 -> Effektiv nutzbare Speicherkapazität, berechnet aus Bruttokapazität abzüglich herstellerseitiger Sicherheits- und Gesundheitspuffer. I.d.R. ca. 90-95% der Bruttokapazität. Standardwert: 58.6 kWh | I27: Anschlussleistung Firmenstandort (heute frei verfügbar) | J27: ='1a. Defaults Segment-Ebene'!J27 -> 40 | K27: kVA
I28: Fahrzeuge pro Ladepunkt Wohnort (über Nacht) | J28: ='1a. Defaults Segment-Ebene'!J28 -> 1
C29: Fahr- und Nutzungsprofil (Angabe pro Fahrzeug) | I29: Fahrzeuge pro Ladepunkt Firmenstandort (über Nacht) | J29: ='1a. Defaults Segment-Ebene'!J29 -> 1
C30: Nutzungsmuster | D30: Werktagsbetrieb | F30: Das Nutzungsmuster beschreibt, wie intensiv die Fahrzeuge während der Arbeitszeit eingesetzt werden. Entsprechend werden unten verschiedene Standardwerte angepasst. Die private Nutzung der Dienstfahrzeuge wird im Werkzeug nicht berücksichtigt.
C31: Anzahl Arbeitstage pro Jahr | D31: ='1a. Defaults Segment-Ebene'!D31 -> 260 | F31: ='1a. Defaults Segment-Ebene'!F31 -> Standardwert: 260
C32: Fahrdistanz während der Arbeitszeit | D32: ='1a. Defaults Segment-Ebene'!D32 -> 100 | E32: km/Tag | F32: ="Durchschnittliche Fahrdistanz pro Fahrzeug an einem typischen Arbeitstag exkl. Pendlerdistanz. "&'1a. Defaults Segment-Ebene'!F32 -> Durchschnittliche Fahrdistanz pro Fahrzeug an einem typischen Arbeitstag exkl. Pendlerdistanz. Standardwert: 100 km/Tag
C33: Pendeldistanz (Hin- und Rückfahrt) | D33: ='1a. Defaults Segment-Ebene'!D33 -> 0 | E33: km/Tag | F33: ="Pendlerdistanz pro Fahrzeug an einem typischen Arbeitstag. "&'1a. Defaults Segment-Ebene'!F33 -> Pendlerdistanz pro Fahrzeug an einem typischen Arbeitstag. Standardwert: 0 km/Tag
C34: Anzahl Einsätze pro Tag | D34: ='1a. Defaults Segment-Ebene'!D34 -> 1 | F34: ="Alle Einsätze an einem typischen Arbeitstag. Ein Einsatz wird definiert als Fahrt ab Firmenstandort bis und mit Rückkehr zurück an den Firmenstandort. "&'1a. Defaults Segment-Ebene'!F34 -> Alle Einsätze an einem typischen Arbeitstag. Ein Einsatz wird definiert als Fahrt ab Firmenstandort bis und mit Rückkehr zurück an den Firmenstandort. Standardwert: 1
C35: Anzahl Pausen pro Tag | D35: =D34 -> 1
C36: Standzeit pro Pause am Firmenstandort | D36: ='1a. Defaults Segment-Ebene'!D36 -> 1 | E36: Stunden | F36: ='1a. Defaults Segment-Ebene'!F36 -> Standardwert: 1 Stunde
C37: Standzeit über Nacht | D37: ='1a. Defaults Segment-Ebene'!D37 -> 8 | E37: Stunden | F37: ="Verfügbare Ladezeit am Wohnort oder Firmenstandort über Nacht. "&'1a. Defaults Segment-Ebene'!F37 -> Verfügbare Ladezeit am Wohnort oder Firmenstandort über Nacht. Standardwert: 8 Stunden
C38: Fahrzeuge pro Ladepunkt, Firmenstandort (tagsüber) | D38: ='1a. Defaults Segment-Ebene'!D38 -> 1 | F38: ="Typischerweise kann bei Schichtbetrieb ein Ladepunkt am Firmenstandort für mehrere Fahrzeuge verwendet werden. "&'1a. Defaults Segment-Ebene'!F38 -> Typischerweise kann bei Schichtbetrieb ein Ladepunkt am Firmenstandort für mehrere Fahrzeuge verwendet werden. Standardwert: 1
C40: Kosten (Angabe pro Fahrzeug)
C41: Laufzeit | D41: 48 | E41: Monate
C42: Leasing-Zinssatz | D42: ='1a. Defaults Segment-Ebene'!D42 -> 3.0% | F42: ='1a. Defaults Segment-Ebene'!F42 -> Standardwert: 3.0%
C43: Anschaffungspreis inkl. Flottenrabatt Verbrenner | D43: ='1a. Defaults Segment-Ebene'!D43 -> 27,219 | E43: CHF | F43: ='1a. Defaults Segment-Ebene'!F43 -> Standardwert: 27’219 CHF
C44: Service- und Reparaturkosten Verbrenner | D44: ='1a. Defaults Segment-Ebene'!D44 -> 0.050 | E44: CHF/km | F44: ='1a. Defaults Segment-Ebene'!F44 -> Standardwert: 0.050 CHF/km
C45: Restwert Verbrenner | D45: ='1a. Defaults Segment-Ebene'!D45 -> 31.6% | F45: ="Angestrebter Restwert beim Verkauf/Rückgabe des Fahrzeugs in % der Anschaffungskosten. "&'1a. Defaults Segment-Ebene'!F45 -> Angestrebter Restwert beim Verkauf/Rückgabe des Fahrzeugs in % der Anschaffungskosten. Standardwert: 31.6%
C46: Anschaffungspreis inkl. Flottenrabatt E-Fahrzeug | D46: ='1a. Defaults Segment-Ebene'!D46 -> 28,811 | E46: CHF | F46: ='1a. Defaults Segment-Ebene'!F46 -> Standardwert: 28’811 CHF
C47: Service- und Reparaturkosten E-Fahrzeug | D47: ='1a. Defaults Segment-Ebene'!D47 -> 0.025 | E47: CHF/km | F47: ='1a. Defaults Segment-Ebene'!F47 -> Standardwert: 0.025 CHF/km
C48: Restwert E-Fahrzeug | D48: ='1a. Defaults Segment-Ebene'!D48 -> 30.7% | F48: ="Angestrebter Restwert beim Verkauf/Rückgabe des Fahrzeugs in % der Anschaffungskosten. "&'1a. Defaults Segment-Ebene'!F48 -> Angestrebter Restwert beim Verkauf/Rückgabe des Fahrzeugs in % der Anschaffungskosten. Standardwert: 30.7%
C51: Segment B
C53: =IF(C17<>"",C17,"") -> Segmentstruktur | E53: =IF(E17<>"",E17,"") -> 
C54: Anzahl Fahrzeuge | D54: 1
C55: Einsatzart | D55: Poolfahrzeuge | F55: Poolfahrzeuge werden ausschliesslich beruflich genutzt und verbleiben üblicherweise über Nacht am Firmenstandort. Dienstfahrzeuge werden von einer oder mehreren Personen beruflich und privat genutzt und können typischerweise auch für den Arbeitsweg verwendet werden.
C56: Einsatzgebiet | D56: regional
C57: Heimlademöglichkeit | D57: ='1a. Defaults Segment-Ebene'!D57 -> Nein | F57: Angabe, ob Fahrzeuge am Wohnort der Nutzenden geladen werden können. Wirkt sich nur auf Dienstfahrzeuge aus. Poolfahrzeuge werden nie am Wohnort geladen.
C59: Fahrzeugdaten
C60: Fahrzeuggrösse | D60: Mittelklasse
C61: Treibstoffverbrauch Verbrenner | D61: ='1a. Defaults Segment-Ebene'!D61 -> 5.8 | E61: l/100 km | F61: ='1a. Defaults Segment-Ebene'!F61 -> Standardwert: 5.8 l/100 km
C62: Energieverbrauch E-Fahrzeug | D62: ='1a. Defaults Segment-Ebene'!D62 -> 15.1 | E62: kWh/100 km | F62: ='1a. Defaults Segment-Ebene'!F62 -> Standardwert: 15.1 kWh/100 km
C63: Batteriekapazität (netto) | D63: ='1a. Defaults Segment-Ebene'!D63 -> 58.625 | E63: kWh | F63: ="Effektiv nutzbare Speicherkapazität, berechnet aus Bruttokapazität abzüglich herstellerseitiger Sicherheits- und Gesundheitspuffer. I.d.R. ca. 90-95% der Bruttokapazität. "&'1a. Defaults Segment-Ebene'!F63 -> Effektiv nutzbare Speicherkapazität, berechnet aus Bruttokapazität abzüglich herstellerseitiger Sicherheits- und Gesundheitspuffer. I.d.R. ca. 90-95% der Bruttokapazität. Standardwert: 58.6 kWh
C65: Fahr- und Nutzungsprofil (Angabe pro Fahrzeug)
C66: Nutzungsmuster | D66: Werktagsbetrieb | F66: Das Nutzungsmuster beschreibt, wie intensiv die Fahrzeuge während der Arbeitszeit eingesetzt werden. Entsprechend werden unten verschiedene Standardwerte angepasst. Die private Nutzung der Dienstfahrzeuge wird im Werkzeug nicht berücksichtigt.
C67: Anzahl Arbeitstage pro Jahr | D67: ='1a. Defaults Segment-Ebene'!D67 -> 260 | F67: ='1a. Defaults Segment-Ebene'!F67 -> Standardwert: 260
C68: Fahrdistanz während der Arbeitszeit | D68: ='1a. Defaults Segment-Ebene'!D68 -> 100 | E68: km/Tag | F68: ="Durchschnittliche Fahrdistanz pro Fahrzeug an einem typischen Arbeitstag exkl. Pendlerdistanz. "&'1a. Defaults Segment-Ebene'!F68 -> Durchschnittliche Fahrdistanz pro Fahrzeug an einem typischen Arbeitstag exkl. Pendlerdistanz. Standardwert: 100 km/Tag
C69: Pendeldistanz (Hin- und Rückfahrt) | D69: ='1a. Defaults Segment-Ebene'!D69 -> 0 | E69: km/Tag | F69: ="Pendlerdistanz pro Fahrzeug an einem typischen Arbeitstag. "&'1a. Defaults Segment-Ebene'!F69 -> Pendlerdistanz pro Fahrzeug an einem typischen Arbeitstag. Standardwert: 0 km/Tag
C70: Anzahl Einsätze pro Tag | D70: ='1a. Defaults Segment-Ebene'!D70 -> 1 | F70: ="Alle Einsätze an einem typischen Arbeitstag. Ein Einsatz wird definiert als Fahrt ab Firmenstandort bis und mit Rückkehr zurück an den Firmenstandort. "&'1a. Defaults Segment-Ebene'!F70 -> Alle Einsätze an einem typischen Arbeitstag. Ein Einsatz wird definiert als Fahrt ab Firmenstandort bis und mit Rückkehr zurück an den Firmenstandort. Standardwert: 1
C71: Anzahl Pausen pro Tag | D71: =D70 -> 1
C72: Standzeit pro Pause am Firmenstandort | D72: ='1a. Defaults Segment-Ebene'!D72 -> 1 | E72: Stunden | F72: ='1a. Defaults Segment-Ebene'!F72 -> Standardwert: 1 Stunde
C73: Standzeit über Nacht | D73: ='1a. Defaults Segment-Ebene'!D73 -> 8 | E73: Stunden | F73: ="Verfügbare Ladezeit am Wohnort oder Firmenstandort über Nacht. "&'1a. Defaults Segment-Ebene'!F73 -> Verfügbare Ladezeit am Wohnort oder Firmenstandort über Nacht. Standardwert: 8 Stunden
C74: Fahrzeuge pro Ladepunkt, Firmenstandort (tagsüber) | D74: ='1a. Defaults Segment-Ebene'!D74 -> 1 | F74: ="Typischerweise kann bei Schichtbetrieb ein Ladepunkt am Firmenstandort für mehrere Fahrzeuge verwendet werden. "&'1a. Defaults Segment-Ebene'!F74 -> Typischerweise kann bei Schichtbetrieb ein Ladepunkt am Firmenstandort für mehrere Fahrzeuge verwendet werden. Standardwert: 1
C76: Kosten (Angabe pro Fahrzeug)
C77: Laufzeit | D77: 48 | E77: Monate
C78: Leasing-Zinssatz | D78: ='1a. Defaults Segment-Ebene'!D78 -> 3.0% | F78: ='1a. Defaults Segment-Ebene'!F78 -> Standardwert: 3.0%
C79: Anschaffungspreis inkl. Flottenrabatt Verbrenner | D79: ='1a. Defaults Segment-Ebene'!D79 -> 27,219 | E79: CHF | F79: ='1a. Defaults Segment-Ebene'!F79 -> Standardwert: 27’219 CHF
C80: Service- und Reparaturkosten Verbrenner | D80: ='1a. Defaults Segment-Ebene'!D80 -> 0.050 | E80: CHF/km | F80: ='1a. Defaults Segment-Ebene'!F80 -> Standardwert: 0.050 CHF/km
C81: Restwert Verbrenner | D81: ='1a. Defaults Segment-Ebene'!D81 -> 31.6% | F81: ="Angestrebter Restwert beim Verkauf/Rückgabe des Fahrzeugs in % der Anschaffungskosten. "&'1a. Defaults Segment-Ebene'!F81 -> Angestrebter Restwert beim Verkauf/Rückgabe des Fahrzeugs in % der Anschaffungskosten. Standardwert: 31.6%
C82: Anschaffungspreis inkl. Flottenrabatt E-Fahrzeug | D82: ='1a. Defaults Segment-Ebene'!D82 -> 28,811 | E82: CHF | F82: ='1a. Defaults Segment-Ebene'!F82 -> Standardwert: 28’811 CHF
C83: Service- und Reparaturkosten E-Fahrzeug | D83: ='1a. Defaults Segment-Ebene'!D83 -> 0.025 | E83: CHF/km | F83: ='1a. Defaults Segment-Ebene'!F83 -> Standardwert: 0.025 CHF/km
C84: Restwert E-Fahrzeug | D84: ='1a. Defaults Segment-Ebene'!D84 -> 30.7% | F84: ="Angestrebter Restwert beim Verkauf/Rückgabe des Fahrzeugs in % der Anschaffungskosten. "&'1a. Defaults Segment-Ebene'!F84 -> Angestrebter Restwert beim Verkauf/Rückgabe des Fahrzeugs in % der Anschaffungskosten. Standardwert: 30.7%
C87: Segment C
C89: =IF(C53<>"",C53,"") -> Segmentstruktur | E89: =IF(E53<>"",E53,"") -> 
C90: Anzahl Fahrzeuge | D90: 1
C91: Einsatzart | D91: Poolfahrzeuge | F91: Poolfahrzeuge werden ausschliesslich beruflich genutzt und verbleiben üblicherweise über Nacht am Firmenstandort. Dienstfahrzeuge werden von einer oder mehreren Personen beruflich und privat genutzt und können typischerweise auch für den Arbeitsweg verwendet werden.
C92: Einsatzgebiet | D92: regional
C93: Heimlademöglichkeit | D93: ='1a. Defaults Segment-Ebene'!D93 -> Nein | F93: Angabe, ob Fahrzeuge am Wohnort der Nutzenden geladen werden können. Wirkt sich nur auf Dienstfahrzeuge aus. Poolfahrzeuge werden nie am Wohnort geladen.
C95: Fahrzeugdaten
C96: Fahrzeuggrösse | D96: Mittelklasse
C97: Treibstoffverbrauch Verbrenner | D97: ='1a. Defaults Segment-Ebene'!D97 -> 5.8 | E97: l/100 km | F97: ='1a. Defaults Segment-Ebene'!F97 -> Standardwert: 5.8 l/100 km
C98: Energieverbrauch E-Fahrzeug | D98: ='1a. Defaults Segment-Ebene'!D98 -> 15.1 | E98: kWh/100 km | F98: ='1a. Defaults Segment-Ebene'!F98 -> Standardwert: 15.1 kWh/100 km
C99: Batteriekapazität (netto) | D99: ='1a. Defaults Segment-Ebene'!D99 -> 58.625 | E99: kWh | F99: ="Effektiv nutzbare Speicherkapazität, berechnet aus Bruttokapazität abzüglich herstellerseitiger Sicherheits- und Gesundheitspuffer. I.d.R. ca. 90-95% der Bruttokapazität. "&'1a. Defaults Segment-Ebene'!F99 -> Effektiv nutzbare Speicherkapazität, berechnet aus Bruttokapazität abzüglich herstellerseitiger Sicherheits- und Gesundheitspuffer. I.d.R. ca. 90-95% der Bruttokapazität. Standardwert: 58.6 kWh
C101: Fahr- und Nutzungsprofil (Angabe pro Fahrzeug)
C102: Nutzungsmuster | D102: Werktagsbetrieb | F102: Das Nutzungsmuster beschreibt, wie intensiv die Fahrzeuge während der Arbeitszeit eingesetzt werden. Entsprechend werden unten verschiedene Standardwerte angepasst. Die private Nutzung der Dienstfahrzeuge wird im Werkzeug nicht berücksichtigt.
C103: Anzahl Arbeitstage pro Jahr | D103: ='1a. Defaults Segment-Ebene'!D103 -> 260 | F103: ='1a. Defaults Segment-Ebene'!F103 -> Standardwert: 260
C104: Fahrdistanz während der Arbeitszeit | D104: ='1a. Defaults Segment-Ebene'!D104 -> 100 | E104: km/Tag | F104: ="Durchschnittliche Fahrdistanz pro Fahrzeug an einem typischen Arbeitstag exkl. Pendlerdistanz. "&'1a. Defaults Segment-Ebene'!F104 -> Durchschnittliche Fahrdistanz pro Fahrzeug an einem typischen Arbeitstag exkl. Pendlerdistanz. Standardwert: 100 km/Tag
C105: Pendeldistanz (Hin- und Rückfahrt) | D105: ='1a. Defaults Segment-Ebene'!D105 -> 0 | E105: km/Tag | F105: ="Pendlerdistanz pro Fahrzeug an einem typischen Arbeitstag. "&'1a. Defaults Segment-Ebene'!F105 -> Pendlerdistanz pro Fahrzeug an einem typischen Arbeitstag. Standardwert: 0 km/Tag
C106: Anzahl Einsätze pro Tag | D106: ='1a. Defaults Segment-Ebene'!D106 -> 1 | F106: ="Alle Einsätze an einem typischen Arbeitstag. Ein Einsatz wird definiert als Fahrt ab Firmenstandort bis und mit Rückkehr zurück an den Firmenstandort. "&'1a. Defaults Segment-Ebene'!F106 -> Alle Einsätze an einem typischen Arbeitstag. Ein Einsatz wird definiert als Fahrt ab Firmenstandort bis und mit Rückkehr zurück an den Firmenstandort. Standardwert: 1
C107: Anzahl Pausen pro Tag | D107: =D106 -> 1
C108: Standzeit pro Pause am Firmenstandort | D108: ='1a. Defaults Segment-Ebene'!D108 -> 1 | E108: Stunden | F108: ='1a. Defaults Segment-Ebene'!F108 -> Standardwert: 1 Stunde
C109: Standzeit über Nacht | D109: ='1a. Defaults Segment-Ebene'!D109 -> 8 | E109: Stunden | F109: ="Verfügbare Ladezeit am Wohnort oder Firmenstandort über Nacht. "&'1a. Defaults Segment-Ebene'!F109 -> Verfügbare Ladezeit am Wohnort oder Firmenstandort über Nacht. Standardwert: 8 Stunden
C110: Fahrzeuge pro Ladepunkt, Firmenstandort (tagsüber) | D110: ='1a. Defaults Segment-Ebene'!D110 -> 1 | F110: ="Typischerweise kann bei Schichtbetrieb ein Ladepunkt am Firmenstandort für mehrere Fahrzeuge verwendet werden. "&'1a. Defaults Segment-Ebene'!F110 -> Typischerweise kann bei Schichtbetrieb ein Ladepunkt am Firmenstandort für mehrere Fahrzeuge verwendet werden. Standardwert: 1
C112: Kosten (Angabe pro Fahrzeug)
C113: Laufzeit | D113: 48 | E113: Monate
C114: Leasing-Zinssatz | D114: ='1a. Defaults Segment-Ebene'!D114 -> 3.0% | F114: ='1a. Defaults Segment-Ebene'!F114 -> Standardwert: 3.0%
C115: Anschaffungspreis inkl. Flottenrabatt Verbrenner | D115: ='1a. Defaults Segment-Ebene'!D115 -> 27,219 | E115: CHF | F115: ='1a. Defaults Segment-Ebene'!F115 -> Standardwert: 27’219 CHF
C116: Service- und Reparaturkosten Verbrenner | D116: ='1a. Defaults Segment-Ebene'!D116 -> 0.050 | E116: CHF/km | F116: ='1a. Defaults Segment-Ebene'!F116 -> Standardwert: 0.050 CHF/km
C117: Restwert Verbrenner | D117: ='1a. Defaults Segment-Ebene'!D117 -> 31.6% | F117: ="Angestrebter Restwert beim Verkauf/Rückgabe des Fahrzeugs in % der Anschaffungskosten. "&'1a. Defaults Segment-Ebene'!F117 -> Angestrebter Restwert beim Verkauf/Rückgabe des Fahrzeugs in % der Anschaffungskosten. Standardwert: 31.6%
C118: Anschaffungspreis inkl. Flottenrabatt E-Fahrzeug | D118: ='1a. Defaults Segment-Ebene'!D118 -> 28,811 | E118: CHF | F118: ='1a. Defaults Segment-Ebene'!F118 -> Standardwert: 28’811 CHF
C119: Service- und Reparaturkosten E-Fahrzeug | D119: ='1a. Defaults Segment-Ebene'!D119 -> 0.025 | E119: CHF/km | F119: ='1a. Defaults Segment-Ebene'!F119 -> Standardwert: 0.025 CHF/km
C120: Restwert E-Fahrzeug | D120: ='1a. Defaults Segment-Ebene'!D120 -> 30.7% | F120: ="Angestrebter Restwert beim Verkauf/Rückgabe des Fahrzeugs in % der Anschaffungskosten. "&'1a. Defaults Segment-Ebene'!F120 -> Angestrebter Restwert beim Verkauf/Rückgabe des Fahrzeugs in % der Anschaffungskosten. Standardwert: 30.7%
C123: Segment D
C125: =IF(C89<>"",C89,"") -> Segmentstruktur | E125: =IF(E89<>"",E89,"") -> 
C126: Anzahl Fahrzeuge | D126: 1
C127: Einsatzart | D127: Poolfahrzeuge | F127: Poolfahrzeuge werden ausschliesslich beruflich genutzt und verbleiben üblicherweise über Nacht am Firmenstandort. Dienstfahrzeuge werden von einer oder mehreren Personen beruflich und privat genutzt und können typischerweise auch für den Arbeitsweg verwendet werden.
C128: Einsatzgebiet | D128: regional
C129: Heimlademöglichkeit | D129: ='1a. Defaults Segment-Ebene'!D129 -> Nein | F129: Angabe, ob Fahrzeuge am Wohnort der Nutzenden geladen werden können. Wirkt sich nur auf Dienstfahrzeuge aus. Poolfahrzeuge werden nie am Wohnort geladen.
C131: Fahrzeugdaten
C132: Fahrzeuggrösse | D132: Mittelklasse
C133: Treibstoffverbrauch Verbrenner | D133: ='1a. Defaults Segment-Ebene'!D133 -> 5.8 | E133: l/100 km | F133: ='1a. Defaults Segment-Ebene'!F133 -> Standardwert: 5.8 l/100 km
C134: Energieverbrauch E-Fahrzeug | D134: ='1a. Defaults Segment-Ebene'!D134 -> 15.1 | E134: kWh/100 km | F134: ='1a. Defaults Segment-Ebene'!F134 -> Standardwert: 15.1 kWh/100 km
C135: Batteriekapazität (netto) | D135: ='1a. Defaults Segment-Ebene'!D135 -> 58.625 | E135: kWh | F135: ="Effektiv nutzbare Speicherkapazität, berechnet aus Bruttokapazität abzüglich herstellerseitiger Sicherheits- und Gesundheitspuffer. I.d.R. ca. 90-95% der Bruttokapazität. "&'1a. Defaults Segment-Ebene'!F135 -> Effektiv nutzbare Speicherkapazität, berechnet aus Bruttokapazität abzüglich herstellerseitiger Sicherheits- und Gesundheitspuffer. I.d.R. ca. 90-95% der Bruttokapazität. Standardwert: 58.6 kWh
C137: Fahr- und Nutzungsprofil (Angabe pro Fahrzeug)
C138: Nutzungsmuster | D138: Werktagsbetrieb | F138: Das Nutzungsmuster beschreibt, wie intensiv die Fahrzeuge während der Arbeitszeit eingesetzt werden. Entsprechend werden unten verschiedene Standardwerte angepasst. Die private Nutzung der Dienstfahrzeuge wird im Werkzeug nicht berücksichtigt.
C139: Anzahl Arbeitstage pro Jahr | D139: ='1a. Defaults Segment-Ebene'!D139 -> 260 | F139: ='1a. Defaults Segment-Ebene'!F139 -> Standardwert: 260
C140: Fahrdistanz während der Arbeitszeit | D140: ='1a. Defaults Segment-Ebene'!D140 -> 100 | E140: km/Tag | F140: ="Durchschnittliche Fahrdistanz pro Fahrzeug an einem typischen Arbeitstag exkl. Pendlerdistanz. "&'1a. Defaults Segment-Ebene'!F140 -> Durchschnittliche Fahrdistanz pro Fahrzeug an einem typischen Arbeitstag exkl. Pendlerdistanz. Standardwert: 100 km/Tag
C141: Pendeldistanz (Hin- und Rückfahrt) | D141: ='1a. Defaults Segment-Ebene'!D141 -> 0 | E141: km/Tag | F141: ="Pendlerdistanz pro Fahrzeug an einem typischen Arbeitstag. "&'1a. Defaults Segment-Ebene'!F141 -> Pendlerdistanz pro Fahrzeug an einem typischen Arbeitstag. Standardwert: 0 km/Tag
C142: Anzahl Einsätze pro Tag | D142: ='1a. Defaults Segment-Ebene'!D142 -> 1 | F142: ="Alle Einsätze an einem typischen Arbeitstag. Ein Einsatz wird definiert als Fahrt ab Firmenstandort bis und mit Rückkehr zurück an den Firmenstandort. "&'1a. Defaults Segment-Ebene'!F142 -> Alle Einsätze an einem typischen Arbeitstag. Ein Einsatz wird definiert als Fahrt ab Firmenstandort bis und mit Rückkehr zurück an den Firmenstandort. Standardwert: 1
C143: Anzahl Pausen pro Tag | D143: =D142 -> 1
C144: Standzeit pro Pause am Firmenstandort | D144: ='1a. Defaults Segment-Ebene'!D144 -> 1 | E144: Stunden | F144: ='1a. Defaults Segment-Ebene'!F144 -> Standardwert: 1 Stunde
C145: Standzeit über Nacht | D145: ='1a. Defaults Segment-Ebene'!D145 -> 8 | E145: Stunden | F145: ="Verfügbare Ladezeit am Wohnort oder Firmenstandort über Nacht. "&'1a. Defaults Segment-Ebene'!F145 -> Verfügbare Ladezeit am Wohnort oder Firmenstandort über Nacht. Standardwert: 8 Stunden
C146: Fahrzeuge pro Ladepunkt, Firmenstandort (tagsüber) | D146: ='1a. Defaults Segment-Ebene'!D146 -> 1 | F146: ="Typischerweise kann bei Schichtbetrieb ein Ladepunkt am Firmenstandort für mehrere Fahrzeuge verwendet werden. "&'1a. Defaults Segment-Ebene'!F146 -> Typischerweise kann bei Schichtbetrieb ein Ladepunkt am Firmenstandort für mehrere Fahrzeuge verwendet werden. Standardwert: 1
C148: Kosten (Angabe pro Fahrzeug)
C149: Laufzeit | D149: 48 | E149: Monate
C150: Leasing-Zinssatz | D150: ='1a. Defaults Segment-Ebene'!D150 -> 3.0% | F150: ='1a. Defaults Segment-Ebene'!F150 -> Standardwert: 3.0%
C151: Anschaffungspreis inkl. Flottenrabatt Verbrenner | D151: ='1a. Defaults Segment-Ebene'!D151 -> 27,219 | E151: CHF | F151: ='1a. Defaults Segment-Ebene'!F151 -> Standardwert: 27’219 CHF
C152: Service- und Reparaturkosten Verbrenner | D152: ='1a. Defaults Segment-Ebene'!D152 -> 0.050 | E152: CHF/km | F152: ='1a. Defaults Segment-Ebene'!F152 -> Standardwert: 0.050 CHF/km
C153: Restwert Verbrenner | D153: ='1a. Defaults Segment-Ebene'!D153 -> 31.6% | F153: ="Angestrebter Restwert beim Verkauf/Rückgabe des Fahrzeugs in % der Anschaffungskosten. "&'1a. Defaults Segment-Ebene'!F153 -> Angestrebter Restwert beim Verkauf/Rückgabe des Fahrzeugs in % der Anschaffungskosten. Standardwert: 31.6%
C154: Anschaffungspreis inkl. Flottenrabatt E-Fahrzeug | D154: ='1a. Defaults Segment-Ebene'!D154 -> 28,811 | E154: CHF | F154: ='1a. Defaults Segment-Ebene'!F154 -> Standardwert: 28’811 CHF
C155: Service- und Reparaturkosten E-Fahrzeug | D155: ='1a. Defaults Segment-Ebene'!D155 -> 0.025 | E155: CHF/km | F155: ='1a. Defaults Segment-Ebene'!F155 -> Standardwert: 0.025 CHF/km
C156: Restwert E-Fahrzeug | D156: ='1a. Defaults Segment-Ebene'!D156 -> 30.7% | F156: ="Angestrebter Restwert beim Verkauf/Rückgabe des Fahrzeugs in % der Anschaffungskosten. "&'1a. Defaults Segment-Ebene'!F156 -> Angestrebter Restwert beim Verkauf/Rückgabe des Fahrzeugs in % der Anschaffungskosten. Standardwert: 30.7%
C159: Segment E
C161: =IF(C125<>"",C125,"") -> Segmentstruktur | E161: =IF(E125<>"",E125,"") -> 
C162: Anzahl Fahrzeuge | D162: 1
C163: Einsatzart | D163: Poolfahrzeuge | F163: Poolfahrzeuge werden ausschliesslich beruflich genutzt und verbleiben üblicherweise über Nacht am Firmenstandort. Dienstfahrzeuge werden von einer oder mehreren Personen beruflich und privat genutzt und können typischerweise auch für den Arbeitsweg verwendet werden.
C164: Einsatzgebiet | D164: regional
C165: Heimlademöglichkeit | D165: ='1a. Defaults Segment-Ebene'!D165 -> Nein | F165: Angabe, ob Fahrzeuge am Wohnort der Nutzenden geladen werden können. Wirkt sich nur auf Dienstfahrzeuge aus. Poolfahrzeuge werden nie am Wohnort geladen.
C167: Fahrzeugdaten
C168: Fahrzeuggrösse | D168: Mittelklasse
C169: Treibstoffverbrauch Verbrenner | D169: ='1a. Defaults Segment-Ebene'!D169 -> 5.8 | E169: l/100 km | F169: ='1a. Defaults Segment-Ebene'!F169 -> Standardwert: 5.8 l/100 km
C170: Energieverbrauch E-Fahrzeug | D170: ='1a. Defaults Segment-Ebene'!D170 -> 15.1 | E170: kWh/100 km | F170: ='1a. Defaults Segment-Ebene'!F170 -> Standardwert: 15.1 kWh/100 km
C171: Batteriekapazität (netto) | D171: ='1a. Defaults Segment-Ebene'!D171 -> 58.625 | E171: kWh | F171: ="Effektiv nutzbare Speicherkapazität, berechnet aus Bruttokapazität abzüglich herstellerseitiger Sicherheits- und Gesundheitspuffer. I.d.R. ca. 90-95% der Bruttokapazität. "&'1a. Defaults Segment-Ebene'!F171 -> Effektiv nutzbare Speicherkapazität, berechnet aus Bruttokapazität abzüglich herstellerseitiger Sicherheits- und Gesundheitspuffer. I.d.R. ca. 90-95% der Bruttokapazität. Standardwert: 58.6 kWh
C173: Fahr- und Nutzungsprofil (Angabe pro Fahrzeug)
C174: Nutzungsmuster | D174: Werktagsbetrieb | F174: Das Nutzungsmuster beschreibt, wie intensiv die Fahrzeuge während der Arbeitszeit eingesetzt werden. Entsprechend werden unten verschiedene Standardwerte angepasst. Die private Nutzung der Dienstfahrzeuge wird im Werkzeug nicht berücksichtigt.
C175: Anzahl Arbeitstage pro Jahr | D175: ='1a. Defaults Segment-Ebene'!D175 -> 260 | F175: ='1a. Defaults Segment-Ebene'!F175 -> Standardwert: 260
C176: Fahrdistanz während der Arbeitszeit | D176: ='1a. Defaults Segment-Ebene'!D176 -> 100 | E176: km/Tag | F176: ="Durchschnittliche Fahrdistanz pro Fahrzeug an einem typischen Arbeitstag exkl. Pendlerdistanz. "&'1a. Defaults Segment-Ebene'!F176 -> Durchschnittliche Fahrdistanz pro Fahrzeug an einem typischen Arbeitstag exkl. Pendlerdistanz. Standardwert: 100 km/Tag
C177: Pendeldistanz (Hin- und Rückfahrt) | D177: ='1a. Defaults Segment-Ebene'!D177 -> 0 | E177: km/Tag | F177: ="Pendlerdistanz pro Fahrzeug an einem typischen Arbeitstag. "&'1a. Defaults Segment-Ebene'!F177 -> Pendlerdistanz pro Fahrzeug an einem typischen Arbeitstag. Standardwert: 0 km/Tag
C178: Anzahl Einsätze pro Tag | D178: ='1a. Defaults Segment-Ebene'!D178 -> 1 | F178: ="Alle Einsätze an einem typischen Arbeitstag. Ein Einsatz wird definiert als Fahrt ab Firmenstandort bis und mit Rückkehr zurück an den Firmenstandort. "&'1a. Defaults Segment-Ebene'!F178 -> Alle Einsätze an einem typischen Arbeitstag. Ein Einsatz wird definiert als Fahrt ab Firmenstandort bis und mit Rückkehr zurück an den Firmenstandort. Standardwert: 1
C179: Anzahl Pausen pro Tag | D179: =D178 -> 1
C180: Standzeit pro Pause am Firmenstandort | D180: ='1a. Defaults Segment-Ebene'!D180 -> 1 | E180: Stunden | F180: ='1a. Defaults Segment-Ebene'!F180 -> Standardwert: 1 Stunde
C181: Standzeit über Nacht | D181: ='1a. Defaults Segment-Ebene'!D181 -> 8 | E181: Stunden | F181: ="Verfügbare Ladezeit am Wohnort oder Firmenstandort über Nacht. "&'1a. Defaults Segment-Ebene'!F181 -> Verfügbare Ladezeit am Wohnort oder Firmenstandort über Nacht. Standardwert: 8 Stunden
C182: Fahrzeuge pro Ladepunkt, Firmenstandort (tagsüber) | D182: ='1a. Defaults Segment-Ebene'!D182 -> 1 | F182: ="Typischerweise kann bei Schichtbetrieb ein Ladepunkt am Firmenstandort für mehrere Fahrzeuge verwendet werden. "&'1a. Defaults Segment-Ebene'!F182 -> Typischerweise kann bei Schichtbetrieb ein Ladepunkt am Firmenstandort für mehrere Fahrzeuge verwendet werden. Standardwert: 1
C184: Kosten (Angabe pro Fahrzeug)
C185: Laufzeit | D185: 48 | E185: Monate
C186: Leasing-Zinssatz | D186: ='1a. Defaults Segment-Ebene'!D186 -> 3.0% | F186: ='1a. Defaults Segment-Ebene'!F186 -> Standardwert: 3.0%
C187: Anschaffungspreis inkl. Flottenrabatt Verbrenner | D187: ='1a. Defaults Segment-Ebene'!D187 -> 27,219 | E187: CHF | F187: ='1a. Defaults Segment-Ebene'!F187 -> Standardwert: 27’219 CHF
C188: Service- und Reparaturkosten Verbrenner | D188: ='1a. Defaults Segment-Ebene'!D188 -> 0.050 | E188: CHF/km | F188: ='1a. Defaults Segment-Ebene'!F188 -> Standardwert: 0.050 CHF/km
C189: Restwert Verbrenner | D189: ='1a. Defaults Segment-Ebene'!D189 -> 31.6% | F189: ="Angestrebter Restwert beim Verkauf/Rückgabe des Fahrzeugs in % der Anschaffungskosten. "&'1a. Defaults Segment-Ebene'!F189 -> Angestrebter Restwert beim Verkauf/Rückgabe des Fahrzeugs in % der Anschaffungskosten. Standardwert: 31.6%
C190: Anschaffungspreis inkl. Flottenrabatt E-Fahrzeug | D190: ='1a. Defaults Segment-Ebene'!D190 -> 28,811 | E190: CHF | F190: ='1a. Defaults Segment-Ebene'!F190 -> Standardwert: 28’811 CHF
C191: Service- und Reparaturkosten E-Fahrzeug | D191: ='1a. Defaults Segment-Ebene'!D191 -> 0.025 | E191: CHF/km | F191: ='1a. Defaults Segment-Ebene'!F191 -> Standardwert: 0.025 CHF/km
C192: Restwert E-Fahrzeug | D192: ='1a. Defaults Segment-Ebene'!D192 -> 30.7% | F192: ="Angestrebter Restwert beim Verkauf/Rückgabe des Fahrzeugs in % der Anschaffungskosten. "&'1a. Defaults Segment-Ebene'!F192 -> Angestrebter Restwert beim Verkauf/Rückgabe des Fahrzeugs in % der Anschaffungskosten. Standardwert: 30.7%
C195: Segment F
C197: =IF(C161<>"",C161,"") -> Segmentstruktur | E197: =IF(E161<>"",E161,"") -> 
C198: Anzahl Fahrzeuge | D198: 1
C199: Einsatzart | D199: Poolfahrzeuge | F199: Poolfahrzeuge werden ausschliesslich beruflich genutzt und verbleiben üblicherweise über Nacht am Firmenstandort. Dienstfahrzeuge werden von einer oder mehreren Personen beruflich und privat genutzt und können typischerweise auch für den Arbeitsweg verwendet werden.
C200: Einsatzgebiet | D200: regional
C201: Heimlademöglichkeit | D201: ='1a. Defaults Segment-Ebene'!D201 -> Nein | F201: Angabe, ob Fahrzeuge am Wohnort der Nutzenden geladen werden können. Wirkt sich nur auf Dienstfahrzeuge aus. Poolfahrzeuge werden nie am Wohnort geladen.
C203: Fahrzeugdaten
C204: Fahrzeuggrösse | D204: Mittelklasse
C205: Treibstoffverbrauch Verbrenner | D205: ='1a. Defaults Segment-Ebene'!D205 -> 5.8 | E205: l/100 km | F205: ='1a. Defaults Segment-Ebene'!F205 -> Standardwert: 5.8 l/100 km
C206: Energieverbrauch E-Fahrzeug | D206: ='1a. Defaults Segment-Ebene'!D206 -> 15.1 | E206: kWh/100 km | F206: ='1a. Defaults Segment-Ebene'!F206 -> Standardwert: 15.1 kWh/100 km
C207: Batteriekapazität (netto) | D207: ='1a. Defaults Segment-Ebene'!D207 -> 58.625 | E207: kWh | F207: ="Effektiv nutzbare Speicherkapazität, berechnet aus Bruttokapazität abzüglich herstellerseitiger Sicherheits- und Gesundheitspuffer. I.d.R. ca. 90-95% der Bruttokapazität. "&'1a. Defaults Segment-Ebene'!F207 -> Effektiv nutzbare Speicherkapazität, berechnet aus Bruttokapazität abzüglich herstellerseitiger Sicherheits- und Gesundheitspuffer. I.d.R. ca. 90-95% der Bruttokapazität. Standardwert: 58.6 kWh
C209: Fahr- und Nutzungsprofil (Angabe pro Fahrzeug)
C210: Nutzungsmuster | D210: Werktagsbetrieb | F210: Das Nutzungsmuster beschreibt, wie intensiv die Fahrzeuge während der Arbeitszeit eingesetzt werden. Entsprechend werden unten verschiedene Standardwerte angepasst. Die private Nutzung der Dienstfahrzeuge wird im Werkzeug nicht berücksichtigt.
C211: Anzahl Arbeitstage pro Jahr | D211: ='1a. Defaults Segment-Ebene'!D211 -> 260 | F211: ='1a. Defaults Segment-Ebene'!F211 -> Standardwert: 260
C212: Fahrdistanz während der Arbeitszeit | D212: ='1a. Defaults Segment-Ebene'!D212 -> 100 | E212: km/Tag | F212: ="Durchschnittliche Fahrdistanz pro Fahrzeug an einem typischen Arbeitstag exkl. Pendlerdistanz. "&'1a. Defaults Segment-Ebene'!F212 -> Durchschnittliche Fahrdistanz pro Fahrzeug an einem typischen Arbeitstag exkl. Pendlerdistanz. Standardwert: 100 km/Tag
C213: Pendeldistanz (Hin- und Rückfahrt) | D213: ='1a. Defaults Segment-Ebene'!D213 -> 0 | E213: km/Tag | F213: ="Pendlerdistanz pro Fahrzeug an einem typischen Arbeitstag. "&'1a. Defaults Segment-Ebene'!F213 -> Pendlerdistanz pro Fahrzeug an einem typischen Arbeitstag. Standardwert: 0 km/Tag
C214: Anzahl Einsätze pro Tag | D214: ='1a. Defaults Segment-Ebene'!D214 -> 1 | F214: ="Alle Einsätze an einem typischen Arbeitstag. Ein Einsatz wird definiert als Fahrt ab Firmenstandort bis und mit Rückkehr zurück an den Firmenstandort. "&'1a. Defaults Segment-Ebene'!F214 -> Alle Einsätze an einem typischen Arbeitstag. Ein Einsatz wird definiert als Fahrt ab Firmenstandort bis und mit Rückkehr zurück an den Firmenstandort. Standardwert: 1
C215: Anzahl Pausen pro Tag | D215: =D214 -> 1
C216: Standzeit pro Pause am Firmenstandort | D216: ='1a. Defaults Segment-Ebene'!D216 -> 1 | E216: Stunden | F216: ='1a. Defaults Segment-Ebene'!F216 -> Standardwert: 1 Stunde
C217: Standzeit über Nacht | D217: ='1a. Defaults Segment-Ebene'!D217 -> 8 | E217: Stunden | F217: ="Verfügbare Ladezeit am Wohnort oder Firmenstandort über Nacht. "&'1a. Defaults Segment-Ebene'!F217 -> Verfügbare Ladezeit am Wohnort oder Firmenstandort über Nacht. Standardwert: 8 Stunden
C218: Fahrzeuge pro Ladepunkt, Firmenstandort (tagsüber) | D218: ='1a. Defaults Segment-Ebene'!D218 -> 1 | F218: ="Typischerweise kann bei Schichtbetrieb ein Ladepunkt am Firmenstandort für mehrere Fahrzeuge verwendet werden. "&'1a. Defaults Segment-Ebene'!F218 -> Typischerweise kann bei Schichtbetrieb ein Ladepunkt am Firmenstandort für mehrere Fahrzeuge verwendet werden. Standardwert: 1
C220: Kosten (Angabe pro Fahrzeug)
C221: Laufzeit | D221: 48 | E221: Monate
C222: Leasing-Zinssatz | D222: ='1a. Defaults Segment-Ebene'!D222 -> 3.0% | F222: ='1a. Defaults Segment-Ebene'!F222 -> Standardwert: 3.0%
C223: Anschaffungspreis inkl. Flottenrabatt Verbrenner | D223: ='1a. Defaults Segment-Ebene'!D223 -> 27,219 | E223: CHF | F223: ='1a. Defaults Segment-Ebene'!F223 -> Standardwert: 27’219 CHF
C224: Service- und Reparaturkosten Verbrenner | D224: ='1a. Defaults Segment-Ebene'!D224 -> 0.050 | E224: CHF/km | F224: ='1a. Defaults Segment-Ebene'!F224 -> Standardwert: 0.050 CHF/km
C225: Restwert Verbrenner | D225: ='1a. Defaults Segment-Ebene'!D225 -> 31.6% | F225: ="Angestrebter Restwert beim Verkauf/Rückgabe des Fahrzeugs in % der Anschaffungskosten. "&'1a. Defaults Segment-Ebene'!F225 -> Angestrebter Restwert beim Verkauf/Rückgabe des Fahrzeugs in % der Anschaffungskosten. Standardwert: 31.6%
C226: Anschaffungspreis inkl. Flottenrabatt E-Fahrzeug | D226: ='1a. Defaults Segment-Ebene'!D226 -> 28,811 | E226: CHF | F226: ='1a. Defaults Segment-Ebene'!F226 -> Standardwert: 28’811 CHF
C227: Service- und Reparaturkosten E-Fahrzeug | D227: ='1a. Defaults Segment-Ebene'!D227 -> 0.025 | E227: CHF/km | F227: ='1a. Defaults Segment-Ebene'!F227 -> Standardwert: 0.025 CHF/km
C228: Restwert E-Fahrzeug | D228: ='1a. Defaults Segment-Ebene'!D228 -> 30.7% | F228: ="Angestrebter Restwert beim Verkauf/Rückgabe des Fahrzeugs in % der Anschaffungskosten. "&'1a. Defaults Segment-Ebene'!F228 -> Angestrebter Restwert beim Verkauf/Rückgabe des Fahrzeugs in % der Anschaffungskosten. Standardwert: 30.7%
C231: Segment G
C233: =IF(C197<>"",C197,"") -> Segmentstruktur | E233: =IF(E197<>"",E197,"") -> 
C234: Anzahl Fahrzeuge | D234: 1
C235: Einsatzart | D235: Poolfahrzeuge | F235: Poolfahrzeuge werden ausschliesslich beruflich genutzt und verbleiben üblicherweise über Nacht am Firmenstandort. Dienstfahrzeuge werden von einer oder mehreren Personen beruflich und privat genutzt und können typischerweise auch für den Arbeitsweg verwendet werden.
C236: Einsatzgebiet | D236: regional
C237: Heimlademöglichkeit | D237: ='1a. Defaults Segment-Ebene'!D237 -> Nein | F237: Angabe, ob Fahrzeuge am Wohnort der Nutzenden geladen werden können. Wirkt sich nur auf Dienstfahrzeuge aus. Poolfahrzeuge werden nie am Wohnort geladen.
C239: Fahrzeugdaten
C240: Fahrzeuggrösse | D240: Mittelklasse
C241: Treibstoffverbrauch Verbrenner | D241: ='1a. Defaults Segment-Ebene'!D241 -> 5.8 | E241: l/100 km | F241: ='1a. Defaults Segment-Ebene'!F241 -> Standardwert: 5.8 l/100 km
C242: Energieverbrauch E-Fahrzeug | D242: ='1a. Defaults Segment-Ebene'!D242 -> 15.1 | E242: kWh/100 km | F242: ='1a. Defaults Segment-Ebene'!F242 -> Standardwert: 15.1 kWh/100 km
C243: Batteriekapazität (netto) | D243: ='1a. Defaults Segment-Ebene'!D243 -> 58.625 | E243: kWh | F243: ="Effektiv nutzbare Speicherkapazität, berechnet aus Bruttokapazität abzüglich herstellerseitiger Sicherheits- und Gesundheitspuffer. I.d.R. ca. 90-95% der Bruttokapazität. "&'1a. Defaults Segment-Ebene'!F243 -> Effektiv nutzbare Speicherkapazität, berechnet aus Bruttokapazität abzüglich herstellerseitiger Sicherheits- und Gesundheitspuffer. I.d.R. ca. 90-95% der Bruttokapazität. Standardwert: 58.6 kWh
C245: Fahr- und Nutzungsprofil (Angabe pro Fahrzeug)
... 111 more rows

Sheet Ergebnisse (Outputs)
C2: Zusammenfassung der Eingaben
C4: Segmente | L4: Flotte | R4: Energiekosten
D5: Einsatzart | E5: Anzahl Fahrzeuge | F5: Fahrzeug-grösse | G5: Jährliche Fahrdistanz (km) | H5: Heimlade-möglichkeit | I5: Ladezeit über Nacht (Stunden) | J5: Ladezeit Firmenstandort tagsüber (Stunden) | N5: Dienst- fahrzeuge | O5: Pool-fahrzeuge | P5: Total | S5: Wohnort | T5: Firmenstandort | U5: öffentlich | V5: Einheit
L6: =INDEX(Grösse,ROW()-ROW($L$6)+1) -> Kleinwagen | N6: =SUMIF('1c. Inputs Segment Summary'!$K$2:$K$11,$L6,'1c. Inputs Segment Summary'!$H$2:$H$11) -> 0 | O6: =SUMIF('1c. Inputs Segment Summary'!$K$2:$K$11,$L6,'1c. Inputs Segment Summary'!$G$2:$G$11) -> 0 | P6: =SUMIF('1c. Inputs Segment Summary'!$K$2:$K$11,$L6,'1c. Inputs Segment Summary'!$F$2:$F$11) -> 0 | R6: Strom | S6: ='Eingaben (Inputs)'!J19 -> 0.24 | T6: ='Eingaben (Inputs)'!J20 -> 0.24 | U6: ='Eingaben (Inputs)'!J21 -> 0.55 | V6: ='Eingaben (Inputs)'!K19 -> CHF/kWh
L7: =INDEX(Grösse,ROW()-ROW($L$6)+1) -> Mittelklasse | N7: =SUMIF('1c. Inputs Segment Summary'!$K$2:$K$11,$L7,'1c. Inputs Segment Summary'!$H$2:$H$11) -> 0 | O7: =SUMIF('1c. Inputs Segment Summary'!$K$2:$K$11,$L7,'1c. Inputs Segment Summary'!$G$2:$G$11) -> 1 | P7: =SUMIF('1c. Inputs Segment Summary'!$K$2:$K$11,$L7,'1c. Inputs Segment Summary'!$F$2:$F$11) -> 1
C8: ='1c. Inputs Segment Summary'!A2 -> Segment A | D8: ='1c. Inputs Segment Summary'!E2 -> Poolfahrzeuge | E8: ='1c. Inputs Segment Summary'!F2 -> 1 | F8: ='1c. Inputs Segment Summary'!K2 -> Mittelklasse | G8: =SUM('1c. Inputs Segment Summary'!Q2:R2)*'1c. Inputs Segment Summary'!P2 -> 26,000 | H8: =IF('1c. Inputs Segment Summary'!J2,"Ja","Nein") -> Nein | I8: ='1c. Inputs Segment Summary'!V2 -> 8.0 | J8: =MAX('1c. Inputs Segment Summary'!U2*'1c. Inputs Segment Summary'!T2,0) -> 1.0 | L8: =INDEX(Grösse,ROW()-ROW($L$6)+1) -> Oberklasse | N8: =SUMIF('1c. Inputs Segment Summary'!$K$2:$K$11,$L8,'1c. Inputs Segment Summary'!$H$2:$H$11) -> 0 | O8: =SUMIF('1c. Inputs Segment Summary'!$K$2:$K$11,$L8,'1c. Inputs Segment Summary'!$G$2:$G$11) -> 0 | P8: =SUMIF('1c. Inputs Segment Summary'!$K$2:$K$11,$L8,'1c. Inputs Segment Summary'!$F$2:$F$11) -> 0
C9: ='1c. Inputs Segment Summary'!A3 -> Segment B | D9: ='1c. Inputs Segment Summary'!E3 -> Poolfahrzeuge | E9: ='1c. Inputs Segment Summary'!F3 -> 0 | F9: ='1c. Inputs Segment Summary'!K3 -> Mittelklasse | G9: =SUM('1c. Inputs Segment Summary'!Q3:R3)*'1c. Inputs Segment Summary'!P3 -> 26,000 | H9: =IF('1c. Inputs Segment Summary'!J3,"Ja","Nein") -> Nein | I9: ='1c. Inputs Segment Summary'!V3 -> 8.0 | J9: =MAX('1c. Inputs Segment Summary'!U3*'1c. Inputs Segment Summary'!T3,0) -> 1.0 | L9: =INDEX(Grösse,ROW()-ROW($L$6)+1) -> SUV | N9: =SUMIF('1c. Inputs Segment Summary'!$K$2:$K$11,$L9,'1c. Inputs Segment Summary'!$H$2:$H$11) -> 0 | O9: =SUMIF('1c. Inputs Segment Summary'!$K$2:$K$11,$L9,'1c. Inputs Segment Summary'!$G$2:$G$11) -> 0 | P9: =SUMIF('1c. Inputs Segment Summary'!$K$2:$K$11,$L9,'1c. Inputs Segment Summary'!$F$2:$F$11) -> 0
C10: ='1c. Inputs Segment Summary'!A4 -> Segment C | D10: ='1c. Inputs Segment Summary'!E4 -> Poolfahrzeuge | E10: ='1c. Inputs Segment Summary'!F4 -> 0 | F10: ='1c. Inputs Segment Summary'!K4 -> Mittelklasse | G10: =SUM('1c. Inputs Segment Summary'!Q4:R4)*'1c. Inputs Segment Summary'!P4 -> 26,000 | H10: =IF('1c. Inputs Segment Summary'!J4,"Ja","Nein") -> Nein | I10: ='1c. Inputs Segment Summary'!V4 -> 8.0 | J10: =MAX('1c. Inputs Segment Summary'!U4*'1c. Inputs Segment Summary'!T4,0) -> 1.0 | L10: Total | N10: =SUM(N6:N9) -> 0 | O10: =SUM(O6:O9) -> 1 | P10: =SUM(P6:P9) -> 1 | S10: standort- unabhängig
C11: ='1c. Inputs Segment Summary'!A5 -> Segment D | D11: ='1c. Inputs Segment Summary'!E5 -> Poolfahrzeuge | E11: ='1c. Inputs Segment Summary'!F5 -> 0 | F11: ='1c. Inputs Segment Summary'!K5 -> Mittelklasse | G11: =SUM('1c. Inputs Segment Summary'!Q5:R5)*'1c. Inputs Segment Summary'!P5 -> 26,000 | H11: =IF('1c. Inputs Segment Summary'!J5,"Ja","Nein") -> Nein | I11: ='1c. Inputs Segment Summary'!V5 -> 8.0 | J11: =MAX('1c. Inputs Segment Summary'!U5*'1c. Inputs Segment Summary'!T5,0) -> 1.0 | T11: Einheit
C12: ='1c. Inputs Segment Summary'!A6 -> Segment E | D12: ='1c. Inputs Segment Summary'!E6 -> Poolfahrzeuge | E12: ='1c. Inputs Segment Summary'!F6 -> 0 | F12: ='1c. Inputs Segment Summary'!K6 -> Mittelklasse | G12: =SUM('1c. Inputs Segment Summary'!Q6:R6)*'1c. Inputs Segment Summary'!P6 -> 26,000 | H12: =IF('1c. Inputs Segment Summary'!J6,"Ja","Nein") -> Nein | I12: ='1c. Inputs Segment Summary'!V6 -> 8.0 | J12: =MAX('1c. Inputs Segment Summary'!U6*'1c. Inputs Segment Summary'!T6,0) -> 1.0 | R12: Treibstoff | S12: ='Eingaben (Inputs)'!J18 -> 1.80 | T12: ='Eingaben (Inputs)'!K18 -> CHF/l
C13: ='1c. Inputs Segment Summary'!A7 -> Segment F | D13: ='1c. Inputs Segment Summary'!E7 -> Poolfahrzeuge | E13: ='1c. Inputs Segment Summary'!F7 -> 0 | F13: ='1c. Inputs Segment Summary'!K7 -> Mittelklasse | G13: =SUM('1c. Inputs Segment Summary'!Q7:R7)*'1c. Inputs Segment Summary'!P7 -> 26,000 | H13: =IF('1c. Inputs Segment Summary'!J7,"Ja","Nein") -> Nein | I13: ='1c. Inputs Segment Summary'!V7 -> 8.0 | J13: =MAX('1c. Inputs Segment Summary'!U7*'1c. Inputs Segment Summary'!T7,0) -> 1.0
C14: ='1c. Inputs Segment Summary'!A8 -> Segment G | D14: ='1c. Inputs Segment Summary'!E8 -> Poolfahrzeuge | E14: ='1c. Inputs Segment Summary'!F8 -> 0 | F14: ='1c. Inputs Segment Summary'!K8 -> Mittelklasse | G14: =SUM('1c. Inputs Segment Summary'!Q8:R8)*'1c. Inputs Segment Summary'!P8 -> 26,000 | H14: =IF('1c. Inputs Segment Summary'!J8,"Ja","Nein") -> Nein | I14: ='1c. Inputs Segment Summary'!V8 -> 8.0 | J14: =MAX('1c. Inputs Segment Summary'!U8*'1c. Inputs Segment Summary'!T8,0) -> 1.0
C15: ='1c. Inputs Segment Summary'!A9 -> Segment H | D15: ='1c. Inputs Segment Summary'!E9 -> Poolfahrzeuge | E15: ='1c. Inputs Segment Summary'!F9 -> 0 | F15: ='1c. Inputs Segment Summary'!K9 -> Mittelklasse | G15: =SUM('1c. Inputs Segment Summary'!Q9:R9)*'1c. Inputs Segment Summary'!P9 -> 26,000 | H15: =IF('1c. Inputs Segment Summary'!J9,"Ja","Nein") -> Nein | I15: ='1c. Inputs Segment Summary'!V9 -> 8.0 | J15: =MAX('1c. Inputs Segment Summary'!U9*'1c. Inputs Segment Summary'!T9,0) -> 1.0
C16: ='1c. Inputs Segment Summary'!A10 -> Segment I | D16: ='1c. Inputs Segment Summary'!E10 -> Poolfahrzeuge | E16: ='1c. Inputs Segment Summary'!F10 -> 0 | F16: ='1c. Inputs Segment Summary'!K10 -> Mittelklasse | G16: =SUM('1c. Inputs Segment Summary'!Q10:R10)*'1c. Inputs Segment Summary'!P10 -> 26,000 | H16: =IF('1c. Inputs Segment Summary'!J10,"Ja","Nein") -> Nein | I16: ='1c. Inputs Segment Summary'!V10 -> 8.0 | J16: =MAX('1c. Inputs Segment Summary'!U10*'1c. Inputs Segment Summary'!T10,0) -> 1.0
C17: ='1c. Inputs Segment Summary'!A11 -> Segment J | D17: ='1c. Inputs Segment Summary'!E11 -> Poolfahrzeuge | E17: ='1c. Inputs Segment Summary'!F11 -> 0 | F17: ='1c. Inputs Segment Summary'!K11 -> Mittelklasse | G17: =SUM('1c. Inputs Segment Summary'!Q11:R11)*'1c. Inputs Segment Summary'!P11 -> 26,000 | H17: =IF('1c. Inputs Segment Summary'!J11,"Ja","Nein") -> Nein | I17: ='1c. Inputs Segment Summary'!V11 -> 8.0 | J17: =MAX('1c. Inputs Segment Summary'!U11*'1c. Inputs Segment Summary'!T11,0) -> 1.0
C21: Nötige Ladeinfrastruktur für die Flotte
C23: Ladepunkte | P23: Ladepunkte nach Segment
D24: Anzahl | E24: Ladeleistung (kW) | F24: AC/DC | G24: Energiebedarf pro Tag (kWh) | Q24: Wohnort | S24: Firmenstandort (über Nacht) | U24: Firmenstandort (tagsüber)
C25: öffentlich | D25: - | E25: - | F25: - | G25: =IF('3a. Detailierte Ergebnisse'!J31>0,'3a. Detailierte Ergebnisse'!J31,"-") -> - | J25: Energiebedarf | Q25: Anzahl | R25: Ladeleistung (kW) | S25: Anzahl | T25: Ladeleistung (kW) | U25: Anzahl | V25: Ladeleistung (kW)
C26: Wohnort | D26: =IF('3a. Detailierte Ergebnisse'!B24=0,"-",'3a. Detailierte Ergebnisse'!B24) -> - | E26: =IF(D26="-",D26,'3a. Detailierte Ergebnisse'!B22) -> - | F26: =IF(D26="-",D26,INDEX(OFFSET(Ladeleistung,0,1),MATCH(E26,Ladeleistung,0))) -> - | G26: =IF(D26="-",D26,'3a. Detailierte Ergebnisse'!B25) -> - | P26: ='1c. Inputs Segment Summary'!A2 -> Segment A | Q26: ='2a. Ladekonzept'!V5*'2a. Ladekonzept'!C5 -> 0 | R26: =IF(Q26>0,'Eingaben (Inputs)'!$J$24,0) -> 0 | S26: ='2a. Ladekonzept'!X5*'2a. Ladekonzept'!C5 -> 1.0 | T26: ='2a. Ladekonzept'!Z5 -> 11 | U26: ='2a. Ladekonzept'!AD5*'2a. Ladekonzept'!C5 -> 0 | V26: ='2a. Ladekonzept'!AF5 -> 0
C27: Firmenstandort | D27: =TRANSPOSE(_xlfn.LET(_xlpm.arrkW,'3a. Detailierte Ergebnisse'!T22:AE22,_xlpm.arrN,'3a. Detailierte Ergebnisse'!T24:AE24,IF(E27="-",E27,_xlfn._xlws.FILTER(_xlpm.arrN,_xlpm.arrN>0)))) -> 1 | E27: =TRANSPOSE(_xlfn.LET(_xlpm.arrkW,'3a. Detailierte Ergebnisse'!T22:AE22,_xlpm.arrN,'3a. Detailierte Ergebnisse'!T24:AE24,_xlfn._xlws.FILTER(_xlpm.arrkW,_xlpm.arrN>0,"-"))) -> 11 | F27: =IF(E27="-",E27,INDEX(OFFSET(Ladeleistung,0,1),MATCH(_xlfn.ANCHORARRAY(E27),Ladeleistung,0))) -> AC | G27: =TRANSPOSE(_xlfn.LET(_xlpm.arrkW,'3a. Detailierte Ergebnisse'!T22:AE22,_xlpm.arrN,'3a. Detailierte Ergebnisse'!T24:AE24,_xlpm.arrkWh,'3a. Detailierte Ergebnisse'!T25:AE25,IF(E27="-",E27,_xlfn._xlws.FILTER(_xlpm.arrkWh,_xlpm.arrN>0)))) -> 17 | P27: ='1c. Inputs Segment Summary'!A3 -> Segment B | Q27: ='2a. Ladekonzept'!V6*'2a. Ladekonzept'!C6 -> 0 | R27: =IF(Q27>0,'Eingaben (Inputs)'!$J$24,0) -> 0 | S27: ='2a. Ladekonzept'!X6*'2a. Ladekonzept'!C6 -> 0 | T27: ='2a. Ladekonzept'!Z6 -> 0 | U27: ='2a. Ladekonzept'!AD6*'2a. Ladekonzept'!C6 -> 0 | V27: ='2a. Ladekonzept'!AF6 -> 0
P28: ='1c. Inputs Segment Summary'!A4 -> Segment C | Q28: ='2a. Ladekonzept'!V7*'2a. Ladekonzept'!C7 -> 0 | R28: =IF(Q28>0,'Eingaben (Inputs)'!$J$24,0) -> 0 | S28: ='2a. Ladekonzept'!X7*'2a. Ladekonzept'!C7 -> 0 | T28: ='2a. Ladekonzept'!Z7 -> 0 | U28: ='2a. Ladekonzept'!AD7*'2a. Ladekonzept'!C7 -> 0 | V28: ='2a. Ladekonzept'!AF7 -> 0
P29: ='1c. Inputs Segment Summary'!A5 -> Segment D | Q29: ='2a. Ladekonzept'!V8*'2a. Ladekonzept'!C8 -> 0 | R29: =IF(Q29>0,'Eingaben (Inputs)'!$J$24,0) -> 0 | S29: ='2a. Ladekonzept'!X8*'2a. Ladekonzept'!C8 -> 0 | T29: ='2a. Ladekonzept'!Z8 -> 0 | U29: ='2a. Ladekonzept'!AD8*'2a. Ladekonzept'!C8 -> 0 | V29: ='2a. Ladekonzept'!AF8 -> 0
P30: ='1c. Inputs Segment Summary'!A6 -> Segment E | Q30: ='2a. Ladekonzept'!V9*'2a. Ladekonzept'!C9 -> 0 | R30: =IF(Q30>0,'Eingaben (Inputs)'!$J$24,0) -> 0 | S30: ='2a. Ladekonzept'!X9*'2a. Ladekonzept'!C9 -> 0 | T30: ='2a. Ladekonzept'!Z9 -> 0 | U30: ='2a. Ladekonzept'!AD9*'2a. Ladekonzept'!C9 -> 0 | V30: ='2a. Ladekonzept'!AF9 -> 0
P31: ='1c. Inputs Segment Summary'!A7 -> Segment F | Q31: ='2a. Ladekonzept'!V10*'2a. Ladekonzept'!C10 -> 0 | R31: =IF(Q31>0,'Eingaben (Inputs)'!$J$24,0) -> 0 | S31: ='2a. Ladekonzept'!X10*'2a. Ladekonzept'!C10 -> 0 | T31: ='2a. Ladekonzept'!Z10 -> 0 | U31: ='2a. Ladekonzept'!AD10*'2a. Ladekonzept'!C10 -> 0 | V31: ='2a. Ladekonzept'!AF10 -> 0
P32: ='1c. Inputs Segment Summary'!A8 -> Segment G | Q32: ='2a. Ladekonzept'!V11*'2a. Ladekonzept'!C11 -> 0 | R32: =IF(Q32>0,'Eingaben (Inputs)'!$J$24,0) -> 0 | S32: ='2a. Ladekonzept'!X11*'2a. Ladekonzept'!C11 -> 0 | T32: ='2a. Ladekonzept'!Z11 -> 0 | U32: ='2a. Ladekonzept'!AD11*'2a. Ladekonzept'!C11 -> 0 | V32: ='2a. Ladekonzept'!AF11 -> 0
P33: ='1c. Inputs Segment Summary'!A9 -> Segment H | Q33: ='2a. Ladekonzept'!V12*'2a. Ladekonzept'!C12 -> 0 | R33: =IF(Q33>0,'Eingaben (Inputs)'!$J$24,0) -> 0 | S33: ='2a. Ladekonzept'!X12*'2a. Ladekonzept'!C12 -> 0 | T33: ='2a. Ladekonzept'!Z12 -> 0 | U33: ='2a. Ladekonzept'!AD12*'2a. Ladekonzept'!C12 -> 0 | V33: ='2a. Ladekonzept'!AF12 -> 0
P34: ='1c. Inputs Segment Summary'!A10 -> Segment I | Q34: ='2a. Ladekonzept'!V13*'2a. Ladekonzept'!C13 -> 0 | R34: =IF(Q34>0,'Eingaben (Inputs)'!$J$24,0) -> 0 | S34: ='2a. Ladekonzept'!X13*'2a. Ladekonzept'!C13 -> 0 | T34: ='2a. Ladekonzept'!Z13 -> 0 | U34: ='2a. Ladekonzept'!AD13*'2a. Ladekonzept'!C13 -> 0 | V34: ='2a. Ladekonzept'!AF13 -> 0
P35: ='1c. Inputs Segment Summary'!A11 -> Segment J | Q35: ='2a. Ladekonzept'!V14*'2a. Ladekonzept'!C14 -> 0 | R35: =IF(Q35>0,'Eingaben (Inputs)'!$J$24,0) -> 0 | S35: ='2a. Ladekonzept'!X14*'2a. Ladekonzept'!C14 -> 0 | T35: ='2a. Ladekonzept'!Z14 -> 0 | U35: ='2a. Ladekonzept'!AD14*'2a. Ladekonzept'!C14 -> 0 | V35: ='2a. Ladekonzept'!AF14 -> 0
P38: Bemerkung: Diese Werte können in das Werkzeug "Kostenrechner Ladeinfrastruktur" übertragen werden.
C40: Basisinfrastruktur am Firmenstandort | P40: Ladepunkte und Energiebedarf am Firmenstandort nach Leistungsklassen
C41: Leistungserhöhung des Netzanschlusses (kVA) | F41: ='3a. Detailierte Ergebnisse'!C38 -> 0 | S41: 11-22 kW AC | T41: 22-80 kW DC | U41: 80-150 kW DC | V41: >150 kW DC
P43: Anzahl Ladepunkte | S43: ='3a. Detailierte Ergebnisse'!AF24 -> 1 | T43: ='3a. Detailierte Ergebnisse'!AG24 -> 0 | U43: ='3a. Detailierte Ergebnisse'!AH24 -> 0 | V43: ='3a. Detailierte Ergebnisse'!AI24 -> 0
P44: Energiebedarf pro Jahr pro Ladepunkt (kWh) | S44: =IF(S43>0,'3a. Detailierte Ergebnisse'!AF26/S43,0) -> 4,362 | T44: =IF(T43>0,'3a. Detailierte Ergebnisse'!AG26/T43,0) -> 0 | U44: =IF(U43>0,'3a. Detailierte Ergebnisse'!AH26/U43,0) -> 0 | V44: =IF(V43>0,'3a. Detailierte Ergebnisse'!AI26/V43,0) -> 0
C49: Gesamtkosten (Total Cost of Ownership TCO) der Flotte | N49: Treibhausgasemissionen der Flotte
C51: CHF / km | H51: Indexierte Mehrkosten | N51: g CO2-eq / km | T51: Indexierte Treibhausgasemissionen
C67: CHF | N67: kg CO2-eq
C83: Hinweis: Die Kosten sind auf Basis der Nettobarwerte berechnet und beziehen sich auf die gesamte Flotte. Die zentralen Annahmen basieren auf Daten aus dem Verbrauchskatalog [BFE 2025], der Studie Gesamtkosten von Personenwagen (TCO) [BFE 2023], dem Leitfaden Ladeinfrastruktur in Mietobjekten [BFE 2024], sowie auf Praxiswerten aus der eigenen Erfahrung von INFRAS und dem Schweizer Mobilitätsverband sffv. | N83: Hinweis: Die Klimawirkung der Treibhausgasemissionen über den gesamten Fahrzeuglebenszyklus werden in CO2-Äquivalente (CO2-eq) umgerechnet anhand von Ökobilanzdaten aus dem Umweltrechner Verkehr von EnergieSchweiz. Die Werte beziehen sich auf die gesamte Flotte. Die zentralen Annahmen basieren auf Daten aus dem Verbrauchskatalog [BFE 2025], der Studie Gesamtkosten von Personenwagen (TCO) [BFE 2023], dem Leitfaden Ladeinfrastruktur in Mietobjekten [BFE 2024], sowie auf Praxiswerten aus der eigenen Erfahrung von INFRAS und dem Schweizer Mobilitätsverband sffv.

Sheet 1a. Defaults Segment-Ebene (hidden)
B9: 1) | C9: =IF('Eingaben (Inputs)'!C9<>"",'Eingaben (Inputs)'!C9,"") -> Flottenstruktur | E9: =IF('Eingaben (Inputs)'!E9<>"",'Eingaben (Inputs)'!E9,"") -> 
C10: =IF('Eingaben (Inputs)'!C10<>"",'Eingaben (Inputs)'!C10,"") ->  | E10: =IF('Eingaben (Inputs)'!E10<>"",'Eingaben (Inputs)'!E10,"") -> 
C11: =IF('Eingaben (Inputs)'!C11<>"",'Eingaben (Inputs)'!C11,"") -> Flotte | E11: =IF('Eingaben (Inputs)'!E11<>"",'Eingaben (Inputs)'!E11,"") -> 
C12: =IF('Eingaben (Inputs)'!C12<>"",'Eingaben (Inputs)'!C12,"") -> Anzahl Segmente | E12: =IF('Eingaben (Inputs)'!E12<>"",'Eingaben (Inputs)'!E12,"") -> 
C13: =IF('Eingaben (Inputs)'!C13<>"",'Eingaben (Inputs)'!C13,"") ->  | E13: =IF('Eingaben (Inputs)'!E13<>"",'Eingaben (Inputs)'!E13,"") -> 
C14: =IF('Eingaben (Inputs)'!C14<>"",'Eingaben (Inputs)'!C14,"") ->  | E14: =IF('Eingaben (Inputs)'!E14<>"",'Eingaben (Inputs)'!E14,"") -> 
B15: 2.1) | C15: =IF('Eingaben (Inputs)'!C15<>"",'Eingaben (Inputs)'!C15,"") -> Segment A | E15: =IF('Eingaben (Inputs)'!E15<>"",'Eingaben (Inputs)'!E15,"") ->  | H15: 3) | I15: Gesamte Flotte
C16: =IF('Eingaben (Inputs)'!C16<>"",'Eingaben (Inputs)'!C16,"") ->  | E16: =IF('Eingaben (Inputs)'!E16<>"",'Eingaben (Inputs)'!E16,"") -> 
C17: =IF('Eingaben (Inputs)'!C17<>"",'Eingaben (Inputs)'!C17,"") -> Segmentstruktur | E17: =IF('Eingaben (Inputs)'!E17<>"",'Eingaben (Inputs)'!E17,"") ->  | I17: Energiekosten
C18: =IF('Eingaben (Inputs)'!C18<>"",'Eingaben (Inputs)'!C18,"") -> Anzahl Fahrzeuge | D18: ='Eingaben (Inputs)'!D18 -> 1 | E18: =IF('Eingaben (Inputs)'!E18<>"",'Eingaben (Inputs)'!E18,"") ->  | I18: Treibstoffkosten | J18: 1.80 | K18: CHF/l
C19: =IF('Eingaben (Inputs)'!C19<>"",'Eingaben (Inputs)'!C19,"") -> Einsatzart | D19: ='Eingaben (Inputs)'!D19 -> Poolfahrzeuge | E19: =IF('Eingaben (Inputs)'!E19<>"",'Eingaben (Inputs)'!E19,"") ->  | I19: Durchschnittliche Stromkosten Wohnort | J19: 0.24 | K19: CHF/kWh
C20: =IF('Eingaben (Inputs)'!C20<>"",'Eingaben (Inputs)'!C20,"") -> Einsatzgebiet | D20: ='Eingaben (Inputs)'!D20 -> regional | E20: =IF('Eingaben (Inputs)'!E20<>"",'Eingaben (Inputs)'!E20,"") ->  | I20: Durchschnittliche Stromkosten Firmenstandort | J20: 0.24 | K20: CHF/kWh
C21: =IF('Eingaben (Inputs)'!C21<>"",'Eingaben (Inputs)'!C21,"") -> Heimlademöglichkeit | D21: =INDEX(Heimladen,NOT(_xlfn.XMATCH(D19,Einsatzart)-1)+1) -> Nein | E21: =IF('Eingaben (Inputs)'!E21<>"",'Eingaben (Inputs)'!E21,"") ->  | F21: ="Standardwert: "&'1a. Defaults Segment-Ebene'!D21 -> Standardwert: Nein | I21: Stromkosten (öffentlich) | J21: 0.55 | K21: CHF/kWh
C22: =IF('Eingaben (Inputs)'!C22<>"",'Eingaben (Inputs)'!C22,"") ->  | E22: =IF('Eingaben (Inputs)'!E22<>"",'Eingaben (Inputs)'!E22,"") -> 
C23: =IF('Eingaben (Inputs)'!C23<>"",'Eingaben (Inputs)'!C23,"") -> Fahrzeugdaten | E23: =IF('Eingaben (Inputs)'!E23<>"",'Eingaben (Inputs)'!E23,"") ->  | I23: Ladegeräte
C24: =IF('Eingaben (Inputs)'!C24<>"",'Eingaben (Inputs)'!C24,"") -> Fahrzeuggrösse | D24: ='Eingaben (Inputs)'!D24 -> Mittelklasse | E24: =IF('Eingaben (Inputs)'!E24<>"",'Eingaben (Inputs)'!E24,"") ->  | I24: Max. Ladeleistung pro Ladepunkt (Wohnort) | J24: 11 | K24: kW
C25: =IF('Eingaben (Inputs)'!C25<>"",'Eingaben (Inputs)'!C25,"") -> Treibstoffverbrauch Verbrenner | D25: =INDEX('2d. Annahmen'!$F$13:$F$16,_xlfn.XMATCH(D24,Grösse)) -> 5.8 | E25: =IF('Eingaben (Inputs)'!E25<>"",'Eingaben (Inputs)'!E25,"") -> l/100 km | F25: ="Standardwert: "&TEXT('1a. Defaults Segment-Ebene'!D25,"##0.0")&" "&E25 -> Standardwert: 5.8 l/100 km | I25: Max. Ladeleistung pro Ladepunkt (Firmenstandort, AC) | J25: 11 | K25: kW
C26: =IF('Eingaben (Inputs)'!C26<>"",'Eingaben (Inputs)'!C26,"") -> Energieverbrauch E-Fahrzeug | D26: =INDEX('2d. Annahmen'!$H$4:$H$7,_xlfn.XMATCH(D24,Grösse)) -> 15.1 | E26: =IF('Eingaben (Inputs)'!E26<>"",'Eingaben (Inputs)'!E26,"") -> kWh/100 km | F26: ="Standardwert: "&TEXT('1a. Defaults Segment-Ebene'!D26,"##0.0")&" "&E26 -> Standardwert: 15.1 kWh/100 km | I26: Max. Ladeleistung pro Ladepunkt (Firmenstandort, DC) | J26: 250 | K26: kW
C27: =IF('Eingaben (Inputs)'!C27<>"",'Eingaben (Inputs)'!C27,"") -> Batteriekapazität (netto) | D27: =INDEX('2d. Annahmen'!$F$4:$F$7,_xlfn.XMATCH(D24,Grösse)) -> 58.625 | E27: =IF('Eingaben (Inputs)'!E27<>"",'Eingaben (Inputs)'!E27,"") -> kWh | F27: ="Standardwert: "&TEXT('1a. Defaults Segment-Ebene'!D27,"##0.0")&" "&E27 -> Standardwert: 58.6 kWh | I27: Anschlusskapazität (Firmenstandort, heute) | J27: 40 | K27: kW
C28: =IF('Eingaben (Inputs)'!C28<>"",'Eingaben (Inputs)'!C28,"") ->  | E28: =IF('Eingaben (Inputs)'!E28<>"",'Eingaben (Inputs)'!E28,"") ->  | I28: Fahrzeuge pro Ladepunkt (Wohnort, AC) | J28: 1
C29: =IF('Eingaben (Inputs)'!C29<>"",'Eingaben (Inputs)'!C29,"") -> Fahr- und Nutzungsprofil (Angabe pro Fahrzeug) | E29: =IF('Eingaben (Inputs)'!E29<>"",'Eingaben (Inputs)'!E29,"") ->  | I29: Fahrzeuge pro Ladepunkt (Firmenstandort, AC) | J29: 1
C30: =IF('Eingaben (Inputs)'!C30<>"",'Eingaben (Inputs)'!C30,"") -> Nutzungsmuster | D30: ='Eingaben (Inputs)'!D30 -> Werktagsbetrieb | E30: =IF('Eingaben (Inputs)'!E30<>"",'Eingaben (Inputs)'!E30,"") -> 
C31: =IF('Eingaben (Inputs)'!C31<>"",'Eingaben (Inputs)'!C31,"") -> Anzahl Arbeitstage pro Jahr | D31: =INDEX('1e. Dropdown Values'!$A$7:$D$7,_xlfn.XMATCH(D30,'1e. Dropdown Values'!$A$6:$D$6)) -> 260 | E31: =IF('Eingaben (Inputs)'!E31<>"",'Eingaben (Inputs)'!E31,"") ->  | F31: ="Standardwert: "&TEXT('1a. Defaults Segment-Ebene'!D31,"##0") -> Standardwert: 260
C32: =IF('Eingaben (Inputs)'!C32<>"",'Eingaben (Inputs)'!C32,"") -> Fahrdistanz während der Arbeitszeit | D32: =INDEX('1e. Dropdown Values'!$A$4:$D$4,_xlfn.XMATCH(D20,'1e. Dropdown Values'!$A$3:$D$3)) -> 100 | E32: =IF('Eingaben (Inputs)'!E32<>"",'Eingaben (Inputs)'!E32,"") -> km/Tag | F32: ="Standardwert: "&TEXT('1a. Defaults Segment-Ebene'!D32,"##0")&" "&E32 -> Standardwert: 100 km/Tag
C33: =IF('Eingaben (Inputs)'!C33<>"",'Eingaben (Inputs)'!C33,"") -> Pendeldistanz (Hin- und Rückfahrt) | D33: =(_xlfn.XMATCH(D19,Einsatzart)-1)*30 -> 0 | E33: =IF('Eingaben (Inputs)'!E33<>"",'Eingaben (Inputs)'!E33,"") -> km/Tag | F33: ="Standardwert: "&TEXT('1a. Defaults Segment-Ebene'!D33,"##0")&" "&E33 -> Standardwert: 0 km/Tag
C34: =IF('Eingaben (Inputs)'!C34<>"",'Eingaben (Inputs)'!C34,"") -> Anzahl Einsätze pro Tag | D34: 1 | E34: =IF('Eingaben (Inputs)'!E34<>"",'Eingaben (Inputs)'!E34,"") ->  | F34: ="Standardwert: "&TEXT('1a. Defaults Segment-Ebene'!D34,"##0") -> Standardwert: 1
C35: =IF('Eingaben (Inputs)'!C35<>"",'Eingaben (Inputs)'!C35,"") -> Anzahl Pausen pro Tag | E35: =IF('Eingaben (Inputs)'!E35<>"",'Eingaben (Inputs)'!E35,"") -> 
C36: =IF('Eingaben (Inputs)'!C36<>"",'Eingaben (Inputs)'!C36,"") -> Standzeit pro Pause am Firmenstandort | D36: =INDEX('1e. Dropdown Values'!$A$9:$D$9,_xlfn.XMATCH(D30,'1e. Dropdown Values'!$A$6:$D$6)) -> 1 | E36: =IF('Eingaben (Inputs)'!E36<>"",'Eingaben (Inputs)'!E36,"") -> Stunden | F36: ="Standardwert: "&TEXT('1a. Defaults Segment-Ebene'!D36,"##0")&" "&IF(D36=1,"Stunde",E36) -> Standardwert: 1 Stunde
C37: =IF('Eingaben (Inputs)'!C37<>"",'Eingaben (Inputs)'!C37,"") -> Standzeit über Nacht | D37: =INDEX('1e. Dropdown Values'!$A$8:$D$8,_xlfn.XMATCH(D30,'1e. Dropdown Values'!$A$6:$D$6)) -> 8 | E37: =IF('Eingaben (Inputs)'!E37<>"",'Eingaben (Inputs)'!E37,"") -> Stunden | F37: ="Standardwert: "&TEXT('1a. Defaults Segment-Ebene'!D37,"##0")&" "&IF(D37=1,"Stunde",E37) -> Standardwert: 8 Stunden
C38: =IF('Eingaben (Inputs)'!C38<>"",'Eingaben (Inputs)'!C38,"") -> Fahrzeuge pro Ladepunkt, Firmenstandort (tagsüber) | D38: =INDEX('1e. Dropdown Values'!$B$10:$D$10,_xlfn.XMATCH(D30,Nutzungsmuster)) -> 1 | E38: =IF('Eingaben (Inputs)'!E38<>"",'Eingaben (Inputs)'!E38,"") ->  | F38: ="Standardwert: "&TEXT('1a. Defaults Segment-Ebene'!D38,"##0") -> Standardwert: 1
C39: =IF('Eingaben (Inputs)'!C39<>"",'Eingaben (Inputs)'!C39,"") ->  | E39: =IF('Eingaben (Inputs)'!E39<>"",'Eingaben (Inputs)'!E39,"") -> 
C40: =IF('Eingaben (Inputs)'!C40<>"",'Eingaben (Inputs)'!C40,"") -> Kosten (Angabe pro Fahrzeug) | E40: =IF('Eingaben (Inputs)'!E40<>"",'Eingaben (Inputs)'!E40,"") -> 
C41: =IF('Eingaben (Inputs)'!C41<>"",'Eingaben (Inputs)'!C41,"") -> Laufzeit | D41: ='Eingaben (Inputs)'!D41 -> 48 | E41: =IF('Eingaben (Inputs)'!E41<>"",'Eingaben (Inputs)'!E41,"") -> Monate
C42: =IF('Eingaben (Inputs)'!C42<>"",'Eingaben (Inputs)'!C42,"") -> Leasing-Zinssatz | D42: 3.0% | E42: =IF('Eingaben (Inputs)'!E42<>"",'Eingaben (Inputs)'!E42,"") ->  | F42: ="Standardwert: "&TEXT('1a. Defaults Segment-Ebene'!D42,"##0.0%") -> Standardwert: 3.0%
C43: =IF('Eingaben (Inputs)'!C43<>"",'Eingaben (Inputs)'!C43,"") -> Anschaffungspreis inkl. Flottenrabatt Verbrenner | D43: =INDEX('2d. Annahmen'!$H$13:$H$16,_xlfn.XMATCH(D24,'2d. Annahmen'!$B$4:$B$7))*(1-'2d. Annahmen'!$B$30) -> 27,219 | E43: =IF('Eingaben (Inputs)'!E43<>"",'Eingaben (Inputs)'!E43,"") -> CHF | F43: ="Standardwert: "&TEXT('1a. Defaults Segment-Ebene'!D43,"#’##0")&" "&E43 -> Standardwert: 27’219 CHF
C44: =IF('Eingaben (Inputs)'!C44<>"",'Eingaben (Inputs)'!C44,"") -> Service- und Reparaturkosten Verbrenner | D44: =INDEX('2d. Annahmen'!$J$13:$J$16,_xlfn.XMATCH(D24,Grösse))/20000 -> 0.05 | E44: =IF('Eingaben (Inputs)'!E44<>"",'Eingaben (Inputs)'!E44,"") -> CHF/km | F44: ="Standardwert: "&TEXT('1a. Defaults Segment-Ebene'!D44,"##0.000")&" "&E44 -> Standardwert: 0.050 CHF/km
C45: =IF('Eingaben (Inputs)'!C45<>"",'Eingaben (Inputs)'!C45,"") -> Restwert Verbrenner | D45: =_xlfn.LET(_xlpm.class,D24,_xlpm.km,ROUNDUP(D31*IF(D18=INDEX(Einsatzart,1),D32,D32+D33)*D41/12/5000,0)*5000,_xlpm.lz,D41,_xlpm.totkm,'2d. Annahmen'!$B$76:$G$76,_xlpm.totlz,'2d. Annahmen'!$A$77:$A$82,_xlpm.rkm,MIN(MAX(_xlpm.km,MIN(_xlpm.totkm)),MAX(_xlpm.totkm)),_xlpm.r,_xlfn.XMATCH(_xlpm.lz,_xlpm.totlz),_xlpm.c,_xlfn.XMATCH(_xlpm.rkm,_xlpm.totkm),_xlpm.delta,1+INDEX('2d. Annahmen'!$K$13:$K$16,_xlfn.XMATCH(_xlpm.class,Grösse)),_xlpm.delta*INDEX('2d. Annahmen'!$B$77:$G$82,_xlpm.r,_xlpm.c)) -> 32% | E45: =IF('Eingaben (Inputs)'!E45<>"",'Eingaben (Inputs)'!E45,"") ->  | F45: ="Standardwert: "&TEXT('1a. Defaults Segment-Ebene'!D45,"##0.0%") -> Standardwert: 31.6%
C46: =IF('Eingaben (Inputs)'!C46<>"",'Eingaben (Inputs)'!C46,"") -> Anschaffungspreis inkl. Flottenrabatt E-Fahrzeug | D46: =INDEX('2d. Annahmen'!$K$4:$K$7,_xlfn.XMATCH(D24,'2d. Annahmen'!$B$4:$B$7))*(1-'2d. Annahmen'!$B$29) -> 28,811 | E46: =IF('Eingaben (Inputs)'!E46<>"",'Eingaben (Inputs)'!E46,"") -> CHF | F46: ="Standardwert: "&TEXT('1a. Defaults Segment-Ebene'!D46,"#’##0")&" "&E46 -> Standardwert: 28’811 CHF
C47: =IF('Eingaben (Inputs)'!C47<>"",'Eingaben (Inputs)'!C47,"") -> Service- und Reparaturkosten E-Fahrzeug | D47: =D44*0.5 -> 0.025 | E47: =IF('Eingaben (Inputs)'!E47<>"",'Eingaben (Inputs)'!E47,"") -> CHF/km | F47: ="Standardwert: "&TEXT('1a. Defaults Segment-Ebene'!D47,"0.000")&" "&E47 -> Standardwert: 0.025 CHF/km
C48: =IF('Eingaben (Inputs)'!C48<>"",'Eingaben (Inputs)'!C48,"") -> Restwert E-Fahrzeug | D48: =_xlfn.LET(_xlpm.class,D24,_xlpm.km,ROUNDUP(D31*IF(D18=INDEX(Einsatzart,1),D32,D32+D33)*D41/12/5000,0)*5000,_xlpm.lz,D41,_xlpm.totkm,'2d. Annahmen'!$B$76:$G$76,_xlpm.totlz,'2d. Annahmen'!$A$77:$A$82,_xlpm.rkm,MIN(MAX(_xlpm.km,MIN(_xlpm.totkm)),MAX(_xlpm.totkm)),_xlpm.r,_xlfn.XMATCH(_xlpm.lz,_xlpm.totlz),_xlpm.c,_xlfn.XMATCH(_xlpm.rkm,_xlpm.totkm),_xlpm.delta,1+INDEX('2d. Annahmen'!$N$4:$N$7,_xlfn.XMATCH(_xlpm.class,Grösse)),_xlpm.delta*INDEX('2d. Annahmen'!$B$77:$G$82,_xlpm.r,_xlpm.c)) -> 31% | E48: =IF('Eingaben (Inputs)'!E48<>"",'Eingaben (Inputs)'!E48,"") ->  | F48: ="Standardwert: "&TEXT('1a. Defaults Segment-Ebene'!D48,"##0.0%") -> Standardwert: 30.7%
C49: =IF('Eingaben (Inputs)'!C49<>"",'Eingaben (Inputs)'!C49,"") ->  | E49: =IF('Eingaben (Inputs)'!E49<>"",'Eingaben (Inputs)'!E49,"") -> 
C50: =IF('Eingaben (Inputs)'!C50<>"",'Eingaben (Inputs)'!C50,"") ->  | E50: =IF('Eingaben (Inputs)'!E50<>"",'Eingaben (Inputs)'!E50,"") -> 
B51: 2.2) | C51: =IF('Eingaben (Inputs)'!C51<>"",'Eingaben (Inputs)'!C51,"") -> Segment B | E51: =IF('Eingaben (Inputs)'!E51<>"",'Eingaben (Inputs)'!E51,"") -> 
C52: =IF('Eingaben (Inputs)'!C52<>"",'Eingaben (Inputs)'!C52,"") ->  | E52: =IF('Eingaben (Inputs)'!E52<>"",'Eingaben (Inputs)'!E52,"") -> 
C53: =IF('Eingaben (Inputs)'!C53<>"",'Eingaben (Inputs)'!C53,"") -> Segmentstruktur | E53: =IF('Eingaben (Inputs)'!E53<>"",'Eingaben (Inputs)'!E53,"") -> 
C54: =IF('Eingaben (Inputs)'!C54<>"",'Eingaben (Inputs)'!C54,"") -> Anzahl Fahrzeuge | D54: ='Eingaben (Inputs)'!D54 -> 1 | E54: =IF('Eingaben (Inputs)'!E54<>"",'Eingaben (Inputs)'!E54,"") -> 
C55: =IF('Eingaben (Inputs)'!C55<>"",'Eingaben (Inputs)'!C55,"") -> Einsatzart | D55: ='Eingaben (Inputs)'!D55 -> Poolfahrzeuge | E55: =IF('Eingaben (Inputs)'!E55<>"",'Eingaben (Inputs)'!E55,"") -> 
C56: =IF('Eingaben (Inputs)'!C56<>"",'Eingaben (Inputs)'!C56,"") -> Einsatzgebiet | D56: ='Eingaben (Inputs)'!D56 -> regional | E56: =IF('Eingaben (Inputs)'!E56<>"",'Eingaben (Inputs)'!E56,"") -> 
C57: =IF('Eingaben (Inputs)'!C57<>"",'Eingaben (Inputs)'!C57,"") -> Heimlademöglichkeit | D57: =INDEX(Heimladen,NOT(_xlfn.XMATCH(D55,Einsatzart)-1)+1) -> Nein | E57: =IF('Eingaben (Inputs)'!E57<>"",'Eingaben (Inputs)'!E57,"") ->  | F57: ="Standardwert: "&'1a. Defaults Segment-Ebene'!D57 -> Standardwert: Nein
C58: =IF('Eingaben (Inputs)'!C58<>"",'Eingaben (Inputs)'!C58,"") ->  | E58: =IF('Eingaben (Inputs)'!E58<>"",'Eingaben (Inputs)'!E58,"") -> 
C59: =IF('Eingaben (Inputs)'!C59<>"",'Eingaben (Inputs)'!C59,"") -> Fahrzeugdaten | E59: =IF('Eingaben (Inputs)'!E59<>"",'Eingaben (Inputs)'!E59,"") -> 
C60: =IF('Eingaben (Inputs)'!C60<>"",'Eingaben (Inputs)'!C60,"") -> Fahrzeuggrösse | D60: ='Eingaben (Inputs)'!D60 -> Mittelklasse | E60: =IF('Eingaben (Inputs)'!E60<>"",'Eingaben (Inputs)'!E60,"") -> 
C61: =IF('Eingaben (Inputs)'!C61<>"",'Eingaben (Inputs)'!C61,"") -> Treibstoffverbrauch Verbrenner | D61: =INDEX('2d. Annahmen'!$F$13:$F$16,_xlfn.XMATCH(D60,Grösse)) -> 5.8 | E61: =IF('Eingaben (Inputs)'!E61<>"",'Eingaben (Inputs)'!E61,"") -> l/100 km | F61: ="Standardwert: "&TEXT('1a. Defaults Segment-Ebene'!D61,"##0.0")&" "&E61 -> Standardwert: 5.8 l/100 km
C62: =IF('Eingaben (Inputs)'!C62<>"",'Eingaben (Inputs)'!C62,"") -> Energieverbrauch E-Fahrzeug | D62: =INDEX('2d. Annahmen'!$H$4:$H$7,_xlfn.XMATCH(D60,Grösse)) -> 15.1 | E62: =IF('Eingaben (Inputs)'!E62<>"",'Eingaben (Inputs)'!E62,"") -> kWh/100 km | F62: ="Standardwert: "&TEXT('1a. Defaults Segment-Ebene'!D62,"##0.0")&" "&E62 -> Standardwert: 15.1 kWh/100 km
C63: =IF('Eingaben (Inputs)'!C63<>"",'Eingaben (Inputs)'!C63,"") -> Batteriekapazität (netto) | D63: =INDEX('2d. Annahmen'!$F$4:$F$7,_xlfn.XMATCH(D60,Grösse)) -> 58.625 | E63: =IF('Eingaben (Inputs)'!E63<>"",'Eingaben (Inputs)'!E63,"") -> kWh | F63: ="Standardwert: "&TEXT('1a. Defaults Segment-Ebene'!D63,"##0.0")&" "&E63 -> Standardwert: 58.6 kWh
C64: =IF('Eingaben (Inputs)'!C64<>"",'Eingaben (Inputs)'!C64,"") ->  | E64: =IF('Eingaben (Inputs)'!E64<>"",'Eingaben (Inputs)'!E64,"") -> 
C65: =IF('Eingaben (Inputs)'!C65<>"",'Eingaben (Inputs)'!C65,"") -> Fahr- und Nutzungsprofil (Angabe pro Fahrzeug) | E65: =IF('Eingaben (Inputs)'!E65<>"",'Eingaben (Inputs)'!E65,"") -> 
C66: =IF('Eingaben (Inputs)'!C66<>"",'Eingaben (Inputs)'!C66,"") -> Nutzungsmuster | D66: ='Eingaben (Inputs)'!D66 -> Werktagsbetrieb | E66: =IF('Eingaben (Inputs)'!E66<>"",'Eingaben (Inputs)'!E66,"") -> 
C67: =IF('Eingaben (Inputs)'!C67<>"",'Eingaben (Inputs)'!C67,"") -> Anzahl Arbeitstage pro Jahr | D67: =INDEX('1e. Dropdown Values'!$A$7:$D$7,_xlfn.XMATCH(D66,'1e. Dropdown Values'!$A$6:$D$6)) -> 260 | E67: =IF('Eingaben (Inputs)'!E67<>"",'Eingaben (Inputs)'!E67,"") ->  | F67: ="Standardwert: "&TEXT('1a. Defaults Segment-Ebene'!D67,"##0") -> Standardwert: 260
C68: =IF('Eingaben (Inputs)'!C68<>"",'Eingaben (Inputs)'!C68,"") -> Fahrdistanz während der Arbeitszeit | D68: =INDEX('1e. Dropdown Values'!$A$4:$D$4,_xlfn.XMATCH(D56,'1e. Dropdown Values'!$A$3:$D$3)) -> 100 | E68: =IF('Eingaben (Inputs)'!E68<>"",'Eingaben (Inputs)'!E68,"") -> km/Tag | F68: ="Standardwert: "&TEXT('1a. Defaults Segment-Ebene'!D68,"##0")&" "&E68 -> Standardwert: 100 km/Tag
C69: =IF('Eingaben (Inputs)'!C69<>"",'Eingaben (Inputs)'!C69,"") -> Pendeldistanz (Hin- und Rückfahrt) | D69: =(_xlfn.XMATCH(D55,Einsatzart)-1)*30 -> 0 | E69: =IF('Eingaben (Inputs)'!E69<>"",'Eingaben (Inputs)'!E69,"") -> km/Tag | F69: ="Standardwert: "&TEXT('1a. Defaults Segment-Ebene'!D69,"##0")&" "&E69 -> Standardwert: 0 km/Tag
C70: =IF('Eingaben (Inputs)'!C70<>"",'Eingaben (Inputs)'!C70,"") -> Anzahl Einsätze pro Tag | D70: 1 | E70: =IF('Eingaben (Inputs)'!E70<>"",'Eingaben (Inputs)'!E70,"") ->  | F70: ="Standardwert: "&TEXT('1a. Defaults Segment-Ebene'!D70,"##0") -> Standardwert: 1
C71: =IF('Eingaben (Inputs)'!C71<>"",'Eingaben (Inputs)'!C71,"") -> Anzahl Pausen pro Tag | E71: =IF('Eingaben (Inputs)'!E71<>"",'Eingaben (Inputs)'!E71,"") -> 
C72: =IF('Eingaben (Inputs)'!C72<>"",'Eingaben (Inputs)'!C72,"") -> Standzeit pro Pause am Firmenstandort | D72: =INDEX('1e. Dropdown Values'!$A$9:$D$9,_xlfn.XMATCH(D66,'1e. Dropdown Values'!$A$6:$D$6)) -> 1 | E72: =IF('Eingaben (Inputs)'!E72<>"",'Eingaben (Inputs)'!E72,"") -> Stunden | F72: ="Standardwert: "&TEXT('1a. Defaults Segment-Ebene'!D72,"##0")&" "&IF(D72=1,"Stunde",E72) -> Standardwert: 1 Stunde
C73: =IF('Eingaben (Inputs)'!C73<>"",'Eingaben (Inputs)'!C73,"") -> Standzeit über Nacht | D73: =INDEX('1e. Dropdown Values'!$A$8:$D$8,_xlfn.XMATCH(D66,'1e. Dropdown Values'!$A$6:$D$6)) -> 8 | E73: =IF('Eingaben (Inputs)'!E73<>"",'Eingaben (Inputs)'!E73,"") -> Stunden | F73: ="Standardwert: "&TEXT('1a. Defaults Segment-Ebene'!D73,"##0")&" "&IF(D73=1,"Stunde",E73) -> Standardwert: 8 Stunden
C74: =IF('Eingaben (Inputs)'!C74<>"",'Eingaben (Inputs)'!C74,"") -> Fahrzeuge pro Ladepunkt, Firmenstandort (tagsüber) | D74: =INDEX('1e. Dropdown Values'!$B$10:$D$10,_xlfn.XMATCH(D66,Nutzungsmuster)) -> 1 | E74: =IF('Eingaben (Inputs)'!E74<>"",'Eingaben (Inputs)'!E74,"") ->  | F74: ="Standardwert: "&TEXT('1a. Defaults Segment-Ebene'!D74,"##0") -> Standardwert: 1
C75: =IF('Eingaben (Inputs)'!C75<>"",'Eingaben (Inputs)'!C75,"") ->  | E75: =IF('Eingaben (Inputs)'!E75<>"",'Eingaben (Inputs)'!E75,"") -> 
C76: =IF('Eingaben (Inputs)'!C76<>"",'Eingaben (Inputs)'!C76,"") -> Kosten (Angabe pro Fahrzeug) | E76: =IF('Eingaben (Inputs)'!E76<>"",'Eingaben (Inputs)'!E76,"") -> 
C77: =IF('Eingaben (Inputs)'!C77<>"",'Eingaben (Inputs)'!C77,"") -> Laufzeit | D77: ='Eingaben (Inputs)'!D77 -> 48 | E77: =IF('Eingaben (Inputs)'!E77<>"",'Eingaben (Inputs)'!E77,"") -> Monate
C78: =IF('Eingaben (Inputs)'!C78<>"",'Eingaben (Inputs)'!C78,"") -> Leasing-Zinssatz | D78: 3.0% | E78: =IF('Eingaben (Inputs)'!E78<>"",'Eingaben (Inputs)'!E78,"") ->  | F78: ="Standardwert: "&TEXT('1a. Defaults Segment-Ebene'!D78,"##0.0%") -> Standardwert: 3.0%
C79: =IF('Eingaben (Inputs)'!C79<>"",'Eingaben (Inputs)'!C79,"") -> Anschaffungspreis inkl. Flottenrabatt Verbrenner | D79: =INDEX('2d. Annahmen'!$H$13:$H$16,_xlfn.XMATCH(D60,'2d. Annahmen'!$B$4:$B$7))*(1-'2d. Annahmen'!$B$30) -> 27,219 | E79: =IF('Eingaben (Inputs)'!E79<>"",'Eingaben (Inputs)'!E79,"") -> CHF | F79: ="Standardwert: "&TEXT('1a. Defaults Segment-Ebene'!D79,"#’##0")&" "&E79 -> Standardwert: 27’219 CHF
C80: =IF('Eingaben (Inputs)'!C80<>"",'Eingaben (Inputs)'!C80,"") -> Service- und Reparaturkosten Verbrenner | D80: =INDEX('2d. Annahmen'!$J$13:$J$16,_xlfn.XMATCH(D60,Grösse))/20000 -> 0.05 | E80: =IF('Eingaben (Inputs)'!E80<>"",'Eingaben (Inputs)'!E80,"") -> CHF/km | F80: ="Standardwert: "&TEXT('1a. Defaults Segment-Ebene'!D80,"##0.000")&" "&E80 -> Standardwert: 0.050 CHF/km
C81: =IF('Eingaben (Inputs)'!C81<>"",'Eingaben (Inputs)'!C81,"") -> Restwert Verbrenner | D81: =_xlfn.LET(_xlpm.class,D60,_xlpm.km,ROUNDUP(D67*IF(D54=INDEX(Einsatzart,1),D68,D68+D69)*D77/12/5000,0)*5000,_xlpm.lz,D77,_xlpm.totkm,'2d. Annahmen'!$B$76:$G$76,_xlpm.totlz,'2d. Annahmen'!$A$77:$A$82,_xlpm.rkm,MIN(MAX(_xlpm.km,MIN(_xlpm.totkm)),MAX(_xlpm.totkm)),_xlpm.r,_xlfn.XMATCH(_xlpm.lz,_xlpm.totlz),_xlpm.c,_xlfn.XMATCH(_xlpm.rkm,_xlpm.totkm),_xlpm.delta,1+INDEX('2d. Annahmen'!$K$13:$K$16,_xlfn.XMATCH(_xlpm.class,Grösse)),_xlpm.delta*INDEX('2d. Annahmen'!$B$77:$G$82,_xlpm.r,_xlpm.c)) -> 32% | E81: =IF('Eingaben (Inputs)'!E81<>"",'Eingaben (Inputs)'!E81,"") ->  | F81: ="Standardwert: "&TEXT('1a. Defaults Segment-Ebene'!D81,"##0.0%") -> Standardwert: 31.6%
C82: =IF('Eingaben (Inputs)'!C82<>"",'Eingaben (Inputs)'!C82,"") -> Anschaffungspreis inkl. Flottenrabatt E-Fahrzeug | D82: =INDEX('2d. Annahmen'!$K$4:$K$7,_xlfn.XMATCH(D60,'2d. Annahmen'!$B$4:$B$7))*(1-'2d. Annahmen'!$B$29) -> 28,811 | E82: =IF('Eingaben (Inputs)'!E82<>"",'Eingaben (Inputs)'!E82,"") -> CHF | F82: ="Standardwert: "&TEXT('1a. Defaults Segment-Ebene'!D82,"#’##0")&" "&E82 -> Standardwert: 28’811 CHF
C83: =IF('Eingaben (Inputs)'!C83<>"",'Eingaben (Inputs)'!C83,"") -> Service- und Reparaturkosten E-Fahrzeug | D83: =D80*0.5 -> 0.025 | E83: =IF('Eingaben (Inputs)'!E83<>"",'Eingaben (Inputs)'!E83,"") -> CHF/km | F83: ="Standardwert: "&TEXT('1a. Defaults Segment-Ebene'!D83,"0.000")&" "&E83 -> Standardwert: 0.025 CHF/km
C84: =IF('Eingaben (Inputs)'!C84<>"",'Eingaben (Inputs)'!C84,"") -> Restwert E-Fahrzeug | D84: =_xlfn.LET(_xlpm.class,D60,_xlpm.km,ROUNDUP(D67*IF(D54=INDEX(Einsatzart,1),D68,D68+D69)*D77/12/5000,0)*5000,_xlpm.lz,D77,_xlpm.totkm,'2d. Annahmen'!$B$76:$G$76,_xlpm.totlz,'2d. Annahmen'!$A$77:$A$82,_xlpm.rkm,MIN(MAX(_xlpm.km,MIN(_xlpm.totkm)),MAX(_xlpm.totkm)),_xlpm.r,_xlfn.XMATCH(_xlpm.lz,_xlpm.totlz),_xlpm.c,_xlfn.XMATCH(_xlpm.rkm,_xlpm.totkm),_xlpm.delta,1+INDEX('2d. Annahmen'!$N$4:$N$7,_xlfn.XMATCH(_xlpm.class,Grösse)),_xlpm.delta*INDEX('2d. Annahmen'!$B$77:$G$82,_xlpm.r,_xlpm.c)) -> 31% | E84: =IF('Eingaben (Inputs)'!E84<>"",'Eingaben (Inputs)'!E84,"") ->  | F84: ="Standardwert: "&TEXT('1a. Defaults Segment-Ebene'!D84,"##0.0%") -> Standardwert: 30.7%
C85: =IF('Eingaben (Inputs)'!C85<>"",'Eingaben (Inputs)'!C85,"") ->  | E85: =IF('Eingaben (Inputs)'!E85<>"",'Eingaben (Inputs)'!E85,"") -> 
C86: =IF('Eingaben (Inputs)'!C86<>"",'Eingaben (Inputs)'!C86,"") ->  | E86: =IF('Eingaben (Inputs)'!E86<>"",'Eingaben (Inputs)'!E86,"") -> 
B87: 2.3) | C87: =IF('Eingaben (Inputs)'!C87<>"",'Eingaben (Inputs)'!C87,"") -> Segment C | E87: =IF('Eingaben (Inputs)'!E87<>"",'Eingaben (Inputs)'!E87,"") -> 
C88: =IF('Eingaben (Inputs)'!C88<>"",'Eingaben (Inputs)'!C88,"") ->  | E88: =IF('Eingaben (Inputs)'!E88<>"",'Eingaben (Inputs)'!E88,"") -> 
C89: =IF('Eingaben (Inputs)'!C89<>"",'Eingaben (Inputs)'!C89,"") -> Segmentstruktur | E89: =IF('Eingaben (Inputs)'!E89<>"",'Eingaben (Inputs)'!E89,"") -> 
C90: =IF('Eingaben (Inputs)'!C90<>"",'Eingaben (Inputs)'!C90,"") -> Anzahl Fahrzeuge | D90: ='Eingaben (Inputs)'!D90 -> 1 | E90: =IF('Eingaben (Inputs)'!E90<>"",'Eingaben (Inputs)'!E90,"") -> 
C91: =IF('Eingaben (Inputs)'!C91<>"",'Eingaben (Inputs)'!C91,"") -> Einsatzart | D91: ='Eingaben (Inputs)'!D91 -> Poolfahrzeuge | E91: =IF('Eingaben (Inputs)'!E91<>"",'Eingaben (Inputs)'!E91,"") -> 
C92: =IF('Eingaben (Inputs)'!C92<>"",'Eingaben (Inputs)'!C92,"") -> Einsatzgebiet | D92: ='Eingaben (Inputs)'!D92 -> regional | E92: =IF('Eingaben (Inputs)'!E92<>"",'Eingaben (Inputs)'!E92,"") -> 
C93: =IF('Eingaben (Inputs)'!C93<>"",'Eingaben (Inputs)'!C93,"") -> Heimlademöglichkeit | D93: =INDEX(Heimladen,NOT(_xlfn.XMATCH(D91,Einsatzart)-1)+1) -> Nein | E93: =IF('Eingaben (Inputs)'!E93<>"",'Eingaben (Inputs)'!E93,"") ->  | F93: ="Standardwert: "&'1a. Defaults Segment-Ebene'!D93 -> Standardwert: Nein
C94: =IF('Eingaben (Inputs)'!C94<>"",'Eingaben (Inputs)'!C94,"") ->  | E94: =IF('Eingaben (Inputs)'!E94<>"",'Eingaben (Inputs)'!E94,"") -> 
C95: =IF('Eingaben (Inputs)'!C95<>"",'Eingaben (Inputs)'!C95,"") -> Fahrzeugdaten | E95: =IF('Eingaben (Inputs)'!E95<>"",'Eingaben (Inputs)'!E95,"") -> 
C96: =IF('Eingaben (Inputs)'!C96<>"",'Eingaben (Inputs)'!C96,"") -> Fahrzeuggrösse | D96: ='Eingaben (Inputs)'!D96 -> Mittelklasse | E96: =IF('Eingaben (Inputs)'!E96<>"",'Eingaben (Inputs)'!E96,"") -> 
C97: =IF('Eingaben (Inputs)'!C97<>"",'Eingaben (Inputs)'!C97,"") -> Treibstoffverbrauch Verbrenner | D97: =INDEX('2d. Annahmen'!$F$13:$F$16,_xlfn.XMATCH(D96,Grösse)) -> 5.8 | E97: =IF('Eingaben (Inputs)'!E97<>"",'Eingaben (Inputs)'!E97,"") -> l/100 km | F97: ="Standardwert: "&TEXT('1a. Defaults Segment-Ebene'!D97,"##0.0")&" "&E97 -> Standardwert: 5.8 l/100 km
C98: =IF('Eingaben (Inputs)'!C98<>"",'Eingaben (Inputs)'!C98,"") -> Energieverbrauch E-Fahrzeug | D98: =INDEX('2d. Annahmen'!$H$4:$H$7,_xlfn.XMATCH(D96,Grösse)) -> 15.1 | E98: =IF('Eingaben (Inputs)'!E98<>"",'Eingaben (Inputs)'!E98,"") -> kWh/100 km | F98: ="Standardwert: "&TEXT('1a. Defaults Segment-Ebene'!D98,"##0.0")&" "&E98 -> Standardwert: 15.1 kWh/100 km
C99: =IF('Eingaben (Inputs)'!C99<>"",'Eingaben (Inputs)'!C99,"") -> Batteriekapazität (netto) | D99: =INDEX('2d. Annahmen'!$F$4:$F$7,_xlfn.XMATCH(D96,Grösse)) -> 58.625 | E99: =IF('Eingaben (Inputs)'!E99<>"",'Eingaben (Inputs)'!E99,"") -> kWh | F99: ="Standardwert: "&TEXT('1a. Defaults Segment-Ebene'!D99,"##0.0")&" "&E99 -> Standardwert: 58.6 kWh
C100: =IF('Eingaben (Inputs)'!C100<>"",'Eingaben (Inputs)'!C100,"") ->  | E100: =IF('Eingaben (Inputs)'!E100<>"",'Eingaben (Inputs)'!E100,"") -> 
C101: =IF('Eingaben (Inputs)'!C101<>"",'Eingaben (Inputs)'!C101,"") -> Fahr- und Nutzungsprofil (Angabe pro Fahrzeug) | E101: =IF('Eingaben (Inputs)'!E101<>"",'Eingaben (Inputs)'!E101,"") -> 
C102: =IF('Eingaben (Inputs)'!C102<>"",'Eingaben (Inputs)'!C102,"") -> Nutzungsmuster | D102: ='Eingaben (Inputs)'!D102 -> Werktagsbetrieb | E102: =IF('Eingaben (Inputs)'!E102<>"",'Eingaben (Inputs)'!E102,"") -> 
C103: =IF('Eingaben (Inputs)'!C103<>"",'Eingaben (Inputs)'!C103,"") -> Anzahl Arbeitstage pro Jahr | D103: =INDEX('1e. Dropdown Values'!$A$7:$D$7,_xlfn.XMATCH(D102,'1e. Dropdown Values'!$A$6:$D$6)) -> 260 | E103: =IF('Eingaben (Inputs)'!E103<>"",'Eingaben (Inputs)'!E103,"") ->  | F103: ="Standardwert: "&TEXT('1a. Defaults Segment-Ebene'!D103,"##0") -> Standardwert: 260
C104: =IF('Eingaben (Inputs)'!C104<>"",'Eingaben (Inputs)'!C104,"") -> Fahrdistanz während der Arbeitszeit | D104: =INDEX('1e. Dropdown Values'!$A$4:$D$4,_xlfn.XMATCH(D92,'1e. Dropdown Values'!$A$3:$D$3)) -> 100 | E104: =IF('Eingaben (Inputs)'!E104<>"",'Eingaben (Inputs)'!E104,"") -> km/Tag | F104: ="Standardwert: "&TEXT('1a. Defaults Segment-Ebene'!D104,"##0")&" "&E104 -> Standardwert: 100 km/Tag
C105: =IF('Eingaben (Inputs)'!C105<>"",'Eingaben (Inputs)'!C105,"") -> Pendeldistanz (Hin- und Rückfahrt) | D105: =(_xlfn.XMATCH(D91,Einsatzart)-1)*30 -> 0 | E105: =IF('Eingaben (Inputs)'!E105<>"",'Eingaben (Inputs)'!E105,"") -> km/Tag | F105: ="Standardwert: "&TEXT('1a. Defaults Segment-Ebene'!D105,"##0")&" "&E105 -> Standardwert: 0 km/Tag
C106: =IF('Eingaben (Inputs)'!C106<>"",'Eingaben (Inputs)'!C106,"") -> Anzahl Einsätze pro Tag | D106: 1 | E106: =IF('Eingaben (Inputs)'!E106<>"",'Eingaben (Inputs)'!E106,"") ->  | F106: ="Standardwert: "&TEXT('1a. Defaults Segment-Ebene'!D106,"##0") -> Standardwert: 1
C107: =IF('Eingaben (Inputs)'!C107<>"",'Eingaben (Inputs)'!C107,"") -> Anzahl Pausen pro Tag | E107: =IF('Eingaben (Inputs)'!E107<>"",'Eingaben (Inputs)'!E107,"") -> 
C108: =IF('Eingaben (Inputs)'!C108<>"",'Eingaben (Inputs)'!C108,"") -> Standzeit pro Pause am Firmenstandort | D108: =INDEX('1e. Dropdown Values'!$A$9:$D$9,_xlfn.XMATCH(D102,'1e. Dropdown Values'!$A$6:$D$6)) -> 1 | E108: =IF('Eingaben (Inputs)'!E108<>"",'Eingaben (Inputs)'!E108,"") -> Stunden | F108: ="Standardwert: "&TEXT('1a. Defaults Segment-Ebene'!D108,"##0")&" "&IF(D108=1,"Stunde",E108) -> Standardwert: 1 Stunde
C109: =IF('Eingaben (Inputs)'!C109<>"",'Eingaben (Inputs)'!C109,"") -> Standzeit über Nacht | D109: =INDEX('1e. Dropdown Values'!$A$8:$D$8,_xlfn.XMATCH(D102,'1e. Dropdown Values'!$A$6:$D$6)) -> 8 | E109: =IF('Eingaben (Inputs)'!E109<>"",'Eingaben (Inputs)'!E109,"") -> Stunden | F109: ="Standardwert: "&TEXT('1a. Defaults Segment-Ebene'!D109,"##0")&" "&IF(D109=1,"Stunde",E109) -> Standardwert: 8 Stunden
C110: =IF('Eingaben (Inputs)'!C110<>"",'Eingaben (Inputs)'!C110,"") -> Fahrzeuge pro Ladepunkt, Firmenstandort (tagsüber) | D110: =INDEX('1e. Dropdown Values'!$B$10:$D$10,_xlfn.XMATCH(D102,Nutzungsmuster)) -> 1 | E110: =IF('Eingaben (Inputs)'!E110<>"",'Eingaben (Inputs)'!E110,"") ->  | F110: ="Standardwert: "&TEXT('1a. Defaults Segment-Ebene'!D110,"##0") -> Standardwert: 1
C111: =IF('Eingaben (Inputs)'!C111<>"",'Eingaben (Inputs)'!C111,"") ->  | E111: =IF('Eingaben (Inputs)'!E111<>"",'Eingaben (Inputs)'!E111,"") -> 
C112: =IF('Eingaben (Inputs)'!C112<>"",'Eingaben (Inputs)'!C112,"") -> Kosten (Angabe pro Fahrzeug) | E112: =IF('Eingaben (Inputs)'!E112<>"",'Eingaben (Inputs)'!E112,"") -> 
C113: =IF('Eingaben (Inputs)'!C113<>"",'Eingaben (Inputs)'!C113,"") -> Laufzeit | D113: ='Eingaben (Inputs)'!D113 -> 48 | E113: =IF('Eingaben (Inputs)'!E113<>"",'Eingaben (Inputs)'!E113,"") -> Monate
C114: =IF('Eingaben (Inputs)'!C114<>"",'Eingaben (Inputs)'!C114,"") -> Leasing-Zinssatz | D114: 3.0% | E114: =IF('Eingaben (Inputs)'!E114<>"",'Eingaben (Inputs)'!E114,"") ->  | F114: ="Standardwert: "&TEXT('1a. Defaults Segment-Ebene'!D114,"##0.0%") -> Standardwert: 3.0%
C115: =IF('Eingaben (Inputs)'!C115<>"",'Eingaben (Inputs)'!C115,"") -> Anschaffungspreis inkl. Flottenrabatt Verbrenner | D115: =INDEX('2d. Annahmen'!$H$13:$H$16,_xlfn.XMATCH(D96,'2d. Annahmen'!$B$4:$B$7))*(1-'2d. Annahmen'!$B$30) -> 27,219 | E115: =IF('Eingaben (Inputs)'!E115<>"",'Eingaben (Inputs)'!E115,"") -> CHF | F115: ="Standardwert: "&TEXT('1a. Defaults Segment-Ebene'!D115,"#’##0")&" "&E115 -> Standardwert: 27’219 CHF
C116: =IF('Eingaben (Inputs)'!C116<>"",'Eingaben (Inputs)'!C116,"") -> Service- und Reparaturkosten Verbrenner | D116: =INDEX('2d. Annahmen'!$J$13:$J$16,_xlfn.XMATCH(D96,Grösse))/20000 -> 0.05 | E116: =IF('Eingaben (Inputs)'!E116<>"",'Eingaben (Inputs)'!E116,"") -> CHF/km | F116: ="Standardwert: "&TEXT('1a. Defaults Segment-Ebene'!D116,"##0.000")&" "&E116 -> Standardwert: 0.050 CHF/km
C117: =IF('Eingaben (Inputs)'!C117<>"",'Eingaben (Inputs)'!C117,"") -> Restwert Verbrenner | D117: =_xlfn.LET(_xlpm.class,D96,_xlpm.km,ROUNDUP(D103*IF(D90=INDEX(Einsatzart,1),D104,D104+D105)*D113/12/5000,0)*5000,_xlpm.lz,D113,_xlpm.totkm,'2d. Annahmen'!$B$76:$G$76,_xlpm.totlz,'2d. Annahmen'!$A$77:$A$82,_xlpm.rkm,MIN(MAX(_xlpm.km,MIN(_xlpm.totkm)),MAX(_xlpm.totkm)),_xlpm.r,_xlfn.XMATCH(_xlpm.lz,_xlpm.totlz),_xlpm.c,_xlfn.XMATCH(_xlpm.rkm,_xlpm.totkm),_xlpm.delta,1+INDEX('2d. Annahmen'!$K$13:$K$16,_xlfn.XMATCH(_xlpm.class,Grösse)),_xlpm.delta*INDEX('2d. Annahmen'!$B$77:$G$82,_xlpm.r,_xlpm.c)) -> 32% | E117: =IF('Eingaben (Inputs)'!E117<>"",'Eingaben (Inputs)'!E117,"") ->  | F117: ="Standardwert: "&TEXT('1a. Defaults Segment-Ebene'!D117,"##0.0%") -> Standardwert: 31.6%
C118: =IF('Eingaben (Inputs)'!C118<>"",'Eingaben (Inputs)'!C118,"") -> Anschaffungspreis inkl. Flottenrabatt E-Fahrzeug | D118: =INDEX('2d. Annahmen'!$K$4:$K$7,_xlfn.XMATCH(D96,'2d. Annahmen'!$B$4:$B$7))*(1-'2d. Annahmen'!$B$29) -> 28,811 | E118: =IF('Eingaben (Inputs)'!E118<>"",'Eingaben (Inputs)'!E118,"") -> CHF | F118: ="Standardwert: "&TEXT('1a. Defaults Segment-Ebene'!D118,"#’##0")&" "&E118 -> Standardwert: 28’811 CHF
C119: =IF('Eingaben (Inputs)'!C119<>"",'Eingaben (Inputs)'!C119,"") -> Service- und Reparaturkosten E-Fahrzeug | D119: =D116*0.5 -> 0.025 | E119: =IF('Eingaben (Inputs)'!E119<>"",'Eingaben (Inputs)'!E119,"") -> CHF/km | F119: ="Standardwert: "&TEXT('1a. Defaults Segment-Ebene'!D119,"0.000")&" "&E119 -> Standardwert: 0.025 CHF/km
C120: =IF('Eingaben (Inputs)'!C120<>"",'Eingaben (Inputs)'!C120,"") -> Restwert E-Fahrzeug | D120: =_xlfn.LET(_xlpm.class,D96,_xlpm.km,ROUNDUP(D103*IF(D90=INDEX(Einsatzart,1),D104,D104+D105)*D113/12/5000,0)*5000,_xlpm.lz,D113,_xlpm.totkm,'2d. Annahmen'!$B$76:$G$76,_xlpm.totlz,'2d. Annahmen'!$A$77:$A$82,_xlpm.rkm,MIN(MAX(_xlpm.km,MIN(_xlpm.totkm)),MAX(_xlpm.totkm)),_xlpm.r,_xlfn.XMATCH(_xlpm.lz,_xlpm.totlz),_xlpm.c,_xlfn.XMATCH(_xlpm.rkm,_xlpm.totkm),_xlpm.delta,1+INDEX('2d. Annahmen'!$N$4:$N$7,_xlfn.XMATCH(_xlpm.class,Grösse)),_xlpm.delta*INDEX('2d. Annahmen'!$B$77:$G$82,_xlpm.r,_xlpm.c)) -> 31% | E120: =IF('Eingaben (Inputs)'!E120<>"",'Eingaben (Inputs)'!E120,"") ->  | F120: ="Standardwert: "&TEXT('1a. Defaults Segment-Ebene'!D120,"##0.0%") -> Standardwert: 30.7%
C121: =IF('Eingaben (Inputs)'!C121<>"",'Eingaben (Inputs)'!C121,"") ->  | E121: =IF('Eingaben (Inputs)'!E121<>"",'Eingaben (Inputs)'!E121,"") -> 
C122: =IF('Eingaben (Inputs)'!C122<>"",'Eingaben (Inputs)'!C122,"") ->  | E122: =IF('Eingaben (Inputs)'!E122<>"",'Eingaben (Inputs)'!E122,"") -> 
B123: 2.4) | C123: =IF('Eingaben (Inputs)'!C123<>"",'Eingaben (Inputs)'!C123,"") -> Segment D | E123: =IF('Eingaben (Inputs)'!E123<>"",'Eingaben (Inputs)'!E123,"") -> 
C124: =IF('Eingaben (Inputs)'!C124<>"",'Eingaben (Inputs)'!C124,"") ->  | E124: =IF('Eingaben (Inputs)'!E124<>"",'Eingaben (Inputs)'!E124,"") -> 
C125: =IF('Eingaben (Inputs)'!C125<>"",'Eingaben (Inputs)'!C125,"") -> Segmentstruktur | E125: =IF('Eingaben (Inputs)'!E125<>"",'Eingaben (Inputs)'!E125,"") -> 
C126: =IF('Eingaben (Inputs)'!C126<>"",'Eingaben (Inputs)'!C126,"") -> Anzahl Fahrzeuge | D126: ='Eingaben (Inputs)'!D126 -> 1 | E126: =IF('Eingaben (Inputs)'!E126<>"",'Eingaben (Inputs)'!E126,"") -> 
C127: =IF('Eingaben (Inputs)'!C127<>"",'Eingaben (Inputs)'!C127,"") -> Einsatzart | D127: ='Eingaben (Inputs)'!D127 -> Poolfahrzeuge | E127: =IF('Eingaben (Inputs)'!E127<>"",'Eingaben (Inputs)'!E127,"") -> 
C128: =IF('Eingaben (Inputs)'!C128<>"",'Eingaben (Inputs)'!C128,"") -> Einsatzgebiet | D128: ='Eingaben (Inputs)'!D128 -> regional | E128: =IF('Eingaben (Inputs)'!E128<>"",'Eingaben (Inputs)'!E128,"") -> 
C129: =IF('Eingaben (Inputs)'!C129<>"",'Eingaben (Inputs)'!C129,"") -> Heimlademöglichkeit | D129: =INDEX(Heimladen,NOT(_xlfn.XMATCH(D127,Einsatzart)-1)+1) -> Nein | E129: =IF('Eingaben (Inputs)'!E129<>"",'Eingaben (Inputs)'!E129,"") ->  | F129: ="Standardwert: "&'1a. Defaults Segment-Ebene'!D129 -> Standardwert: Nein
C130: =IF('Eingaben (Inputs)'!C130<>"",'Eingaben (Inputs)'!C130,"") ->  | E130: =IF('Eingaben (Inputs)'!E130<>"",'Eingaben (Inputs)'!E130,"") -> 
C131: =IF('Eingaben (Inputs)'!C131<>"",'Eingaben (Inputs)'!C131,"") -> Fahrzeugdaten | E131: =IF('Eingaben (Inputs)'!E131<>"",'Eingaben (Inputs)'!E131,"") -> 
C132: =IF('Eingaben (Inputs)'!C132<>"",'Eingaben (Inputs)'!C132,"") -> Fahrzeuggrösse | D132: ='Eingaben (Inputs)'!D132 -> Mittelklasse | E132: =IF('Eingaben (Inputs)'!E132<>"",'Eingaben (Inputs)'!E132,"") -> 
C133: =IF('Eingaben (Inputs)'!C133<>"",'Eingaben (Inputs)'!C133,"") -> Treibstoffverbrauch Verbrenner | D133: =INDEX('2d. Annahmen'!$F$13:$F$16,_xlfn.XMATCH(D132,Grösse)) -> 5.8 | E133: =IF('Eingaben (Inputs)'!E133<>"",'Eingaben (Inputs)'!E133,"") -> l/100 km | F133: ="Standardwert: "&TEXT('1a. Defaults Segment-Ebene'!D133,"##0.0")&" "&E133 -> Standardwert: 5.8 l/100 km
C134: =IF('Eingaben (Inputs)'!C134<>"",'Eingaben (Inputs)'!C134,"") -> Energieverbrauch E-Fahrzeug | D134: =INDEX('2d. Annahmen'!$H$4:$H$7,_xlfn.XMATCH(D132,Grösse)) -> 15.1 | E134: =IF('Eingaben (Inputs)'!E134<>"",'Eingaben (Inputs)'!E134,"") -> kWh/100 km | F134: ="Standardwert: "&TEXT('1a. Defaults Segment-Ebene'!D134,"##0.0")&" "&E134 -> Standardwert: 15.1 kWh/100 km
C135: =IF('Eingaben (Inputs)'!C135<>"",'Eingaben (Inputs)'!C135,"") -> Batteriekapazität (netto) | D135: =INDEX('2d. Annahmen'!$F$4:$F$7,_xlfn.XMATCH(D132,Grösse)) -> 58.625 | E135: =IF('Eingaben (Inputs)'!E135<>"",'Eingaben (Inputs)'!E135,"") -> kWh | F135: ="Standardwert: "&TEXT('1a. Defaults Segment-Ebene'!D135,"##0.0")&" "&E135 -> Standardwert: 58.6 kWh
C136: =IF('Eingaben (Inputs)'!C136<>"",'Eingaben (Inputs)'!C136,"") ->  | E136: =IF('Eingaben (Inputs)'!E136<>"",'Eingaben (Inputs)'!E136,"") -> 
C137: =IF('Eingaben (Inputs)'!C137<>"",'Eingaben (Inputs)'!C137,"") -> Fahr- und Nutzungsprofil (Angabe pro Fahrzeug) | E137: =IF('Eingaben (Inputs)'!E137<>"",'Eingaben (Inputs)'!E137,"") -> 
C138: =IF('Eingaben (Inputs)'!C138<>"",'Eingaben (Inputs)'!C138,"") -> Nutzungsmuster | D138: ='Eingaben (Inputs)'!D138 -> Werktagsbetrieb | E138: =IF('Eingaben (Inputs)'!E138<>"",'Eingaben (Inputs)'!E138,"") -> 
C139: =IF('Eingaben (Inputs)'!C139<>"",'Eingaben (Inputs)'!C139,"") -> Anzahl Arbeitstage pro Jahr | D139: =INDEX('1e. Dropdown Values'!$A$7:$D$7,_xlfn.XMATCH(D138,'1e. Dropdown Values'!$A$6:$D$6)) -> 260 | E139: =IF('Eingaben (Inputs)'!E139<>"",'Eingaben (Inputs)'!E139,"") ->  | F139: ="Standardwert: "&TEXT('1a. Defaults Segment-Ebene'!D139,"##0") -> Standardwert: 260
C140: =IF('Eingaben (Inputs)'!C140<>"",'Eingaben (Inputs)'!C140,"") -> Fahrdistanz während der Arbeitszeit | D140: =INDEX('1e. Dropdown Values'!$A$4:$D$4,_xlfn.XMATCH(D128,'1e. Dropdown Values'!$A$3:$D$3)) -> 100 | E140: =IF('Eingaben (Inputs)'!E140<>"",'Eingaben (Inputs)'!E140,"") -> km/Tag | F140: ="Standardwert: "&TEXT('1a. Defaults Segment-Ebene'!D140,"##0")&" "&E140 -> Standardwert: 100 km/Tag
C141: =IF('Eingaben (Inputs)'!C141<>"",'Eingaben (Inputs)'!C141,"") -> Pendeldistanz (Hin- und Rückfahrt) | D141: =(_xlfn.XMATCH(D127,Einsatzart)-1)*30 -> 0 | E141: =IF('Eingaben (Inputs)'!E141<>"",'Eingaben (Inputs)'!E141,"") -> km/Tag | F141: ="Standardwert: "&TEXT('1a. Defaults Segment-Ebene'!D141,"##0")&" "&E141 -> Standardwert: 0 km/Tag
C142: =IF('Eingaben (Inputs)'!C142<>"",'Eingaben (Inputs)'!C142,"") -> Anzahl Einsätze pro Tag | D142: 1 | E142: =IF('Eingaben (Inputs)'!E142<>"",'Eingaben (Inputs)'!E142,"") ->  | F142: ="Standardwert: "&TEXT('1a. Defaults Segment-Ebene'!D142,"##0") -> Standardwert: 1
C143: =IF('Eingaben (Inputs)'!C143<>"",'Eingaben (Inputs)'!C143,"") -> Anzahl Pausen pro Tag | E143: =IF('Eingaben (Inputs)'!E143<>"",'Eingaben (Inputs)'!E143,"") -> 
C144: =IF('Eingaben (Inputs)'!C144<>"",'Eingaben (Inputs)'!C144,"") -> Standzeit pro Pause am Firmenstandort | D144: =INDEX('1e. Dropdown Values'!$A$9:$D$9,_xlfn.XMATCH(D138,'1e. Dropdown Values'!$A$6:$D$6)) -> 1 | E144: =IF('Eingaben (Inputs)'!E144<>"",'Eingaben (Inputs)'!E144,"") -> Stunden | F144: ="Standardwert: "&TEXT('1a. Defaults Segment-Ebene'!D144,"##0")&" "&IF(D144=1,"Stunde",E144) -> Standardwert: 1 Stunde
C145: =IF('Eingaben (Inputs)'!C145<>"",'Eingaben (Inputs)'!C145,"") -> Standzeit über Nacht | D145: =INDEX('1e. Dropdown Values'!$A$8:$D$8,_xlfn.XMATCH(D138,'1e. Dropdown Values'!$A$6:$D$6)) -> 8 | E145: =IF('Eingaben (Inputs)'!E145<>"",'Eingaben (Inputs)'!E145,"") -> Stunden | F145: ="Standardwert: "&TEXT('1a. Defaults Segment-Ebene'!D145,"##0")&" "&IF(D145=1,"Stunde",E145) -> Standardwert: 8 Stunden
C146: =IF('Eingaben (Inputs)'!C146<>"",'Eingaben (Inputs)'!C146,"") -> Fahrzeuge pro Ladepunkt, Firmenstandort (tagsüber) | D146: =INDEX('1e. Dropdown Values'!$B$10:$D$10,_xlfn.XMATCH(D138,Nutzungsmuster)) -> 1 | E146: =IF('Eingaben (Inputs)'!E146<>"",'Eingaben (Inputs)'!E146,"") ->  | F146: ="Standardwert: "&TEXT('1a. Defaults Segment-Ebene'!D146,"##0") -> Standardwert: 1
C147: =IF('Eingaben (Inputs)'!C147<>"",'Eingaben (Inputs)'!C147,"") ->  | E147: =IF('Eingaben (Inputs)'!E147<>"",'Eingaben (Inputs)'!E147,"") -> 
C148: =IF('Eingaben (Inputs)'!C148<>"",'Eingaben (Inputs)'!C148,"") -> Kosten (Angabe pro Fahrzeug) | E148: =IF('Eingaben (Inputs)'!E148<>"",'Eingaben (Inputs)'!E148,"") -> 
C149: =IF('Eingaben (Inputs)'!C149<>"",'Eingaben (Inputs)'!C149,"") -> Laufzeit | D149: ='Eingaben (Inputs)'!D149 -> 48 | E149: =IF('Eingaben (Inputs)'!E149<>"",'Eingaben (Inputs)'!E149,"") -> Monate
C150: =IF('Eingaben (Inputs)'!C150<>"",'Eingaben (Inputs)'!C150,"") -> Leasing-Zinssatz | D150: 3.0% | E150: =IF('Eingaben (Inputs)'!E150<>"",'Eingaben (Inputs)'!E150,"") ->  | F150: ="Standardwert: "&TEXT('1a. Defaults Segment-Ebene'!D150,"##0.0%") -> Standardwert: 3.0%
C151: =IF('Eingaben (Inputs)'!C151<>"",'Eingaben (Inputs)'!C151,"") -> Anschaffungspreis inkl. Flottenrabatt Verbrenner | D151: =INDEX('2d. Annahmen'!$H$13:$H$16,_xlfn.XMATCH(D132,'2d. Annahmen'!$B$4:$B$7))*(1-'2d. Annahmen'!$B$30) -> 27,219 | E151: =IF('Eingaben (Inputs)'!E151<>"",'Eingaben (Inputs)'!E151,"") -> CHF | F151: ="Standardwert: "&TEXT('1a. Defaults Segment-Ebene'!D151,"#’##0")&" "&E151 -> Standardwert: 27’219 CHF
C152: =IF('Eingaben (Inputs)'!C152<>"",'Eingaben (Inputs)'!C152,"") -> Service- und Reparaturkosten Verbrenner | D152: =INDEX('2d. Annahmen'!$J$13:$J$16,_xlfn.XMATCH(D132,Grösse))/20000 -> 0.05 | E152: =IF('Eingaben (Inputs)'!E152<>"",'Eingaben (Inputs)'!E152,"") -> CHF/km | F152: ="Standardwert: "&TEXT('1a. Defaults Segment-Ebene'!D152,"##0.000")&" "&E152 -> Standardwert: 0.050 CHF/km
C153: =IF('Eingaben (Inputs)'!C153<>"",'Eingaben (Inputs)'!C153,"") -> Restwert Verbrenner | D153: =_xlfn.LET(_xlpm.class,D132,_xlpm.km,ROUNDUP(D139*IF(D126=INDEX(Einsatzart,1),D140,D140+D141)*D149/12/5000,0)*5000,_xlpm.lz,D149,_xlpm.totkm,'2d. Annahmen'!$B$76:$G$76,_xlpm.totlz,'2d. Annahmen'!$A$77:$A$82,_xlpm.rkm,MIN(MAX(_xlpm.km,MIN(_xlpm.totkm)),MAX(_xlpm.totkm)),_xlpm.r,_xlfn.XMATCH(_xlpm.lz,_xlpm.totlz),_xlpm.c,_xlfn.XMATCH(_xlpm.rkm,_xlpm.totkm),_xlpm.delta,1+INDEX('2d. Annahmen'!$K$13:$K$16,_xlfn.XMATCH(_xlpm.class,Grösse)),_xlpm.delta*INDEX('2d. Annahmen'!$B$77:$G$82,_xlpm.r,_xlpm.c)) -> 32% | E153: =IF('Eingaben (Inputs)'!E153<>"",'Eingaben (Inputs)'!E153,"") ->  | F153: ="Standardwert: "&TEXT('1a. Defaults Segment-Ebene'!D153,"##0.0%") -> Standardwert: 31.6%
C154: =IF('Eingaben (Inputs)'!C154<>"",'Eingaben (Inputs)'!C154,"") -> Anschaffungspreis inkl. Flottenrabatt E-Fahrzeug | D154: =INDEX('2d. Annahmen'!$K$4:$K$7,_xlfn.XMATCH(D132,'2d. Annahmen'!$B$4:$B$7))*(1-'2d. Annahmen'!$B$29) -> 28,811 | E154: =IF('Eingaben (Inputs)'!E154<>"",'Eingaben (Inputs)'!E154,"") -> CHF | F154: ="Standardwert: "&TEXT('1a. Defaults Segment-Ebene'!D154,"#’##0")&" "&E154 -> Standardwert: 28’811 CHF
C155: =IF('Eingaben (Inputs)'!C155<>"",'Eingaben (Inputs)'!C155,"") -> Service- und Reparaturkosten E-Fahrzeug | D155: =D152*0.5 -> 0.025 | E155: =IF('Eingaben (Inputs)'!E155<>"",'Eingaben (Inputs)'!E155,"") -> CHF/km | F155: ="Standardwert: "&TEXT('1a. Defaults Segment-Ebene'!D155,"0.000")&" "&E155 -> Standardwert: 0.025 CHF/km
C156: =IF('Eingaben (Inputs)'!C156<>"",'Eingaben (Inputs)'!C156,"") -> Restwert E-Fahrzeug | D156: =_xlfn.LET(_xlpm.class,D132,_xlpm.km,ROUNDUP(D139*IF(D126=INDEX(Einsatzart,1),D140,D140+D141)*D149/12/5000,0)*5000,_xlpm.lz,D149,_xlpm.totkm,'2d. Annahmen'!$B$76:$G$76,_xlpm.totlz,'2d. Annahmen'!$A$77:$A$82,_xlpm.rkm,MIN(MAX(_xlpm.km,MIN(_xlpm.totkm)),MAX(_xlpm.totkm)),_xlpm.r,_xlfn.XMATCH(_xlpm.lz,_xlpm.totlz),_xlpm.c,_xlfn.XMATCH(_xlpm.rkm,_xlpm.totkm),_xlpm.delta,1+INDEX('2d. Annahmen'!$N$4:$N$7,_xlfn.XMATCH(_xlpm.class,Grösse)),_xlpm.delta*INDEX('2d. Annahmen'!$B$77:$G$82,_xlpm.r,_xlpm.c)) -> 31% | E156: =IF('Eingaben (Inputs)'!E156<>"",'Eingaben (Inputs)'!E156,"") ->  | F156: ="Standardwert: "&TEXT('1a. Defaults Segment-Ebene'!D156,"##0.0%") -> Standardwert: 30.7%
C157: =IF('Eingaben (Inputs)'!C157<>"",'Eingaben (Inputs)'!C157,"") ->  | E157: =IF('Eingaben (Inputs)'!E157<>"",'Eingaben (Inputs)'!E157,"") -> 
C158: =IF('Eingaben (Inputs)'!C158<>"",'Eingaben (Inputs)'!C158,"") ->  | E158: =IF('Eingaben (Inputs)'!E158<>"",'Eingaben (Inputs)'!E158,"") -> 
B159: 2.5) | C159: =IF('Eingaben (Inputs)'!C159<>"",'Eingaben (Inputs)'!C159,"") -> Segment E | E159: =IF('Eingaben (Inputs)'!E159<>"",'Eingaben (Inputs)'!E159,"") -> 
C160: =IF('Eingaben (Inputs)'!C160<>"",'Eingaben (Inputs)'!C160,"") ->  | E160: =IF('Eingaben (Inputs)'!E160<>"",'Eingaben (Inputs)'!E160,"") -> 
C161: =IF('Eingaben (Inputs)'!C161<>"",'Eingaben (Inputs)'!C161,"") -> Segmentstruktur | E161: =IF('Eingaben (Inputs)'!E161<>"",'Eingaben (Inputs)'!E161,"") -> 
C162: =IF('Eingaben (Inputs)'!C162<>"",'Eingaben (Inputs)'!C162,"") -> Anzahl Fahrzeuge | D162: ='Eingaben (Inputs)'!D162 -> 1 | E162: =IF('Eingaben (Inputs)'!E162<>"",'Eingaben (Inputs)'!E162,"") -> 
C163: =IF('Eingaben (Inputs)'!C163<>"",'Eingaben (Inputs)'!C163,"") -> Einsatzart | D163: ='Eingaben (Inputs)'!D163 -> Poolfahrzeuge | E163: =IF('Eingaben (Inputs)'!E163<>"",'Eingaben (Inputs)'!E163,"") -> 
C164: =IF('Eingaben (Inputs)'!C164<>"",'Eingaben (Inputs)'!C164,"") -> Einsatzgebiet | D164: ='Eingaben (Inputs)'!D164 -> regional | E164: =IF('Eingaben (Inputs)'!E164<>"",'Eingaben (Inputs)'!E164,"") -> 
C165: =IF('Eingaben (Inputs)'!C165<>"",'Eingaben (Inputs)'!C165,"") -> Heimlademöglichkeit | D165: =INDEX(Heimladen,NOT(_xlfn.XMATCH(D163,Einsatzart)-1)+1) -> Nein | E165: =IF('Eingaben (Inputs)'!E165<>"",'Eingaben (Inputs)'!E165,"") ->  | F165: ="Standardwert: "&'1a. Defaults Segment-Ebene'!D165 -> Standardwert: Nein
C166: =IF('Eingaben (Inputs)'!C166<>"",'Eingaben (Inputs)'!C166,"") ->  | E166: =IF('Eingaben (Inputs)'!E166<>"",'Eingaben (Inputs)'!E166,"") -> 
C167: =IF('Eingaben (Inputs)'!C167<>"",'Eingaben (Inputs)'!C167,"") -> Fahrzeugdaten | E167: =IF('Eingaben (Inputs)'!E167<>"",'Eingaben (Inputs)'!E167,"") -> 
C168: =IF('Eingaben (Inputs)'!C168<>"",'Eingaben (Inputs)'!C168,"") -> Fahrzeuggrösse | D168: ='Eingaben (Inputs)'!D168 -> Mittelklasse | E168: =IF('Eingaben (Inputs)'!E168<>"",'Eingaben (Inputs)'!E168,"") -> 
C169: =IF('Eingaben (Inputs)'!C169<>"",'Eingaben (Inputs)'!C169,"") -> Treibstoffverbrauch Verbrenner | D169: =INDEX('2d. Annahmen'!$F$13:$F$16,_xlfn.XMATCH(D168,Grösse)) -> 5.8 | E169: =IF('Eingaben (Inputs)'!E169<>"",'Eingaben (Inputs)'!E169,"") -> l/100 km | F169: ="Standardwert: "&TEXT('1a. Defaults Segment-Ebene'!D169,"##0.0")&" "&E169 -> Standardwert: 5.8 l/100 km
C170: =IF('Eingaben (Inputs)'!C170<>"",'Eingaben (Inputs)'!C170,"") -> Energieverbrauch E-Fahrzeug | D170: =INDEX('2d. Annahmen'!$H$4:$H$7,_xlfn.XMATCH(D168,Grösse)) -> 15.1 | E170: =IF('Eingaben (Inputs)'!E170<>"",'Eingaben (Inputs)'!E170,"") -> kWh/100 km | F170: ="Standardwert: "&TEXT('1a. Defaults Segment-Ebene'!D170,"##0.0")&" "&E170 -> Standardwert: 15.1 kWh/100 km
C171: =IF('Eingaben (Inputs)'!C171<>"",'Eingaben (Inputs)'!C171,"") -> Batteriekapazität (netto) | D171: =INDEX('2d. Annahmen'!$F$4:$F$7,_xlfn.XMATCH(D168,Grösse)) -> 58.625 | E171: =IF('Eingaben (Inputs)'!E171<>"",'Eingaben (Inputs)'!E171,"") -> kWh | F171: ="Standardwert: "&TEXT('1a. Defaults Segment-Ebene'!D171,"##0.0")&" "&E171 -> Standardwert: 58.6 kWh
C172: =IF('Eingaben (Inputs)'!C172<>"",'Eingaben (Inputs)'!C172,"") ->  | E172: =IF('Eingaben (Inputs)'!E172<>"",'Eingaben (Inputs)'!E172,"") -> 
C173: =IF('Eingaben (Inputs)'!C173<>"",'Eingaben (Inputs)'!C173,"") -> Fahr- und Nutzungsprofil (Angabe pro Fahrzeug) | E173: =IF('Eingaben (Inputs)'!E173<>"",'Eingaben (Inputs)'!E173,"") -> 
C174: =IF('Eingaben (Inputs)'!C174<>"",'Eingaben (Inputs)'!C174,"") -> Nutzungsmuster | D174: ='Eingaben (Inputs)'!D174 -> Werktagsbetrieb | E174: =IF('Eingaben (Inputs)'!E174<>"",'Eingaben (Inputs)'!E174,"") -> 
C175: =IF('Eingaben (Inputs)'!C175<>"",'Eingaben (Inputs)'!C175,"") -> Anzahl Arbeitstage pro Jahr | D175: =INDEX('1e. Dropdown Values'!$A$7:$D$7,_xlfn.XMATCH(D174,'1e. Dropdown Values'!$A$6:$D$6)) -> 260 | E175: =IF('Eingaben (Inputs)'!E175<>"",'Eingaben (Inputs)'!E175,"") ->  | F175: ="Standardwert: "&TEXT('1a. Defaults Segment-Ebene'!D175,"##0") -> Standardwert: 260
C176: =IF('Eingaben (Inputs)'!C176<>"",'Eingaben (Inputs)'!C176,"") -> Fahrdistanz während der Arbeitszeit | D176: =INDEX('1e. Dropdown Values'!$A$4:$D$4,_xlfn.XMATCH(D164,'1e. Dropdown Values'!$A$3:$D$3)) -> 100 | E176: =IF('Eingaben (Inputs)'!E176<>"",'Eingaben (Inputs)'!E176,"") -> km/Tag | F176: ="Standardwert: "&TEXT('1a. Defaults Segment-Ebene'!D176,"##0")&" "&E176 -> Standardwert: 100 km/Tag
C177: =IF('Eingaben (Inputs)'!C177<>"",'Eingaben (Inputs)'!C177,"") -> Pendeldistanz (Hin- und Rückfahrt) | D177: =(_xlfn.XMATCH(D163,Einsatzart)-1)*30 -> 0 | E177: =IF('Eingaben (Inputs)'!E177<>"",'Eingaben (Inputs)'!E177,"") -> km/Tag | F177: ="Standardwert: "&TEXT('1a. Defaults Segment-Ebene'!D177,"##0")&" "&E177 -> Standardwert: 0 km/Tag
C178: =IF('Eingaben (Inputs)'!C178<>"",'Eingaben (Inputs)'!C178,"") -> Anzahl Einsätze pro Tag | D178: 1 | E178: =IF('Eingaben (Inputs)'!E178<>"",'Eingaben (Inputs)'!E178,"") ->  | F178: ="Standardwert: "&TEXT('1a. Defaults Segment-Ebene'!D178,"##0") -> Standardwert: 1
C179: =IF('Eingaben (Inputs)'!C179<>"",'Eingaben (Inputs)'!C179,"") -> Anzahl Pausen pro Tag | E179: =IF('Eingaben (Inputs)'!E179<>"",'Eingaben (Inputs)'!E179,"") -> 
C180: =IF('Eingaben (Inputs)'!C180<>"",'Eingaben (Inputs)'!C180,"") -> Standzeit pro Pause am Firmenstandort | D180: =INDEX('1e. Dropdown Values'!$A$9:$D$9,_xlfn.XMATCH(D174,'1e. Dropdown Values'!$A$6:$D$6)) -> 1 | E180: =IF('Eingaben (Inputs)'!E180<>"",'Eingaben (Inputs)'!E180,"") -> Stunden | F180: ="Standardwert: "&TEXT('1a. Defaults Segment-Ebene'!D180,"##0")&" "&IF(D180=1,"Stunde",E180) -> Standardwert: 1 Stunde
C181: =IF('Eingaben (Inputs)'!C181<>"",'Eingaben (Inputs)'!C181,"") -> Standzeit über Nacht | D181: =INDEX('1e. Dropdown Values'!$A$8:$D$8,_xlfn.XMATCH(D174,'1e. Dropdown Values'!$A$6:$D$6)) -> 8 | E181: =IF('Eingaben (Inputs)'!E181<>"",'Eingaben (Inputs)'!E181,"") -> Stunden | F181: ="Standardwert: "&TEXT('1a. Defaults Segment-Ebene'!D181,"##0")&" "&IF(D181=1,"Stunde",E181) -> Standardwert: 8 Stunden
C182: =IF('Eingaben (Inputs)'!C182<>"",'Eingaben (Inputs)'!C182,"") -> Fahrzeuge pro Ladepunkt, Firmenstandort (tagsüber) | D182: =INDEX('1e. Dropdown Values'!$B$10:$D$10,_xlfn.XMATCH(D174,Nutzungsmuster)) -> 1 | E182: =IF('Eingaben (Inputs)'!E182<>"",'Eingaben (Inputs)'!E182,"") ->  | F182: ="Standardwert: "&TEXT('1a. Defaults Segment-Ebene'!D182,"##0") -> Standardwert: 1
C183: =IF('Eingaben (Inputs)'!C183<>"",'Eingaben (Inputs)'!C183,"") ->  | E183: =IF('Eingaben (Inputs)'!E183<>"",'Eingaben (Inputs)'!E183,"") -> 
C184: =IF('Eingaben (Inputs)'!C184<>"",'Eingaben (Inputs)'!C184,"") -> Kosten (Angabe pro Fahrzeug) | E184: =IF('Eingaben (Inputs)'!E184<>"",'Eingaben (Inputs)'!E184,"") -> 
C185: =IF('Eingaben (Inputs)'!C185<>"",'Eingaben (Inputs)'!C185,"") -> Laufzeit | D185: ='Eingaben (Inputs)'!D185 -> 48 | E185: =IF('Eingaben (Inputs)'!E185<>"",'Eingaben (Inputs)'!E185,"") -> Monate
C186: =IF('Eingaben (Inputs)'!C186<>"",'Eingaben (Inputs)'!C186,"") -> Leasing-Zinssatz | D186: 3.0% | E186: =IF('Eingaben (Inputs)'!E186<>"",'Eingaben (Inputs)'!E186,"") ->  | F186: ="Standardwert: "&TEXT('1a. Defaults Segment-Ebene'!D186,"##0.0%") -> Standardwert: 3.0%
C187: =IF('Eingaben (Inputs)'!C187<>"",'Eingaben (Inputs)'!C187,"") -> Anschaffungspreis inkl. Flottenrabatt Verbrenner | D187: =INDEX('2d. Annahmen'!$H$13:$H$16,_xlfn.XMATCH(D168,'2d. Annahmen'!$B$4:$B$7))*(1-'2d. Annahmen'!$B$30) -> 27,219 | E187: =IF('Eingaben (Inputs)'!E187<>"",'Eingaben (Inputs)'!E187,"") -> CHF | F187: ="Standardwert: "&TEXT('1a. Defaults Segment-Ebene'!D187,"#’##0")&" "&E187 -> Standardwert: 27’219 CHF
C188: =IF('Eingaben (Inputs)'!C188<>"",'Eingaben (Inputs)'!C188,"") -> Service- und Reparaturkosten Verbrenner | D188: =INDEX('2d. Annahmen'!$J$13:$J$16,_xlfn.XMATCH(D168,Grösse))/20000 -> 0.05 | E188: =IF('Eingaben (Inputs)'!E188<>"",'Eingaben (Inputs)'!E188,"") -> CHF/km | F188: ="Standardwert: "&TEXT('1a. Defaults Segment-Ebene'!D188,"##0.000")&" "&E188 -> Standardwert: 0.050 CHF/km
C189: =IF('Eingaben (Inputs)'!C189<>"",'Eingaben (Inputs)'!C189,"") -> Restwert Verbrenner | D189: =_xlfn.LET(_xlpm.class,D168,_xlpm.km,ROUNDUP(D175*IF(D162=INDEX(Einsatzart,1),D176,D176+D177)*D185/12/5000,0)*5000,_xlpm.lz,D185,_xlpm.totkm,'2d. Annahmen'!$B$76:$G$76,_xlpm.totlz,'2d. Annahmen'!$A$77:$A$82,_xlpm.rkm,MIN(MAX(_xlpm.km,MIN(_xlpm.totkm)),MAX(_xlpm.totkm)),_xlpm.r,_xlfn.XMATCH(_xlpm.lz,_xlpm.totlz),_xlpm.c,_xlfn.XMATCH(_xlpm.rkm,_xlpm.totkm),_xlpm.delta,1+INDEX('2d. Annahmen'!$K$13:$K$16,_xlfn.XMATCH(_xlpm.class,Grösse)),_xlpm.delta*INDEX('2d. Annahmen'!$B$77:$G$82,_xlpm.r,_xlpm.c)) -> 32% | E189: =IF('Eingaben (Inputs)'!E189<>"",'Eingaben (Inputs)'!E189,"") ->  | F189: ="Standardwert: "&TEXT('1a. Defaults Segment-Ebene'!D189,"##0.0%") -> Standardwert: 31.6%
C190: =IF('Eingaben (Inputs)'!C190<>"",'Eingaben (Inputs)'!C190,"") -> Anschaffungspreis inkl. Flottenrabatt E-Fahrzeug | D190: =INDEX('2d. Annahmen'!$K$4:$K$7,_xlfn.XMATCH(D168,'2d. Annahmen'!$B$4:$B$7))*(1-'2d. Annahmen'!$B$29) -> 28,811 | E190: =IF('Eingaben (Inputs)'!E190<>"",'Eingaben (Inputs)'!E190,"") -> CHF | F190: ="Standardwert: "&TEXT('1a. Defaults Segment-Ebene'!D190,"#’##0")&" "&E190 -> Standardwert: 28’811 CHF
C191: =IF('Eingaben (Inputs)'!C191<>"",'Eingaben (Inputs)'!C191,"") -> Service- und Reparaturkosten E-Fahrzeug | D191: =D188*0.5 -> 0.025 | E191: =IF('Eingaben (Inputs)'!E191<>"",'Eingaben (Inputs)'!E191,"") -> CHF/km | F191: ="Standardwert: "&TEXT('1a. Defaults Segment-Ebene'!D191,"0.000")&" "&E191 -> Standardwert: 0.025 CHF/km
C192: =IF('Eingaben (Inputs)'!C192<>"",'Eingaben (Inputs)'!C192,"") -> Restwert E-Fahrzeug | D192: =_xlfn.LET(_xlpm.class,D168,_xlpm.km,ROUNDUP(D175*IF(D162=INDEX(Einsatzart,1),D176,D176+D177)*D185/12/5000,0)*5000,_xlpm.lz,D185,_xlpm.totkm,'2d. Annahmen'!$B$76:$G$76,_xlpm.totlz,'2d. Annahmen'!$A$77:$A$82,_xlpm.rkm,MIN(MAX(_xlpm.km,MIN(_xlpm.totkm)),MAX(_xlpm.totkm)),_xlpm.r,_xlfn.XMATCH(_xlpm.lz,_xlpm.totlz),_xlpm.c,_xlfn.XMATCH(_xlpm.rkm,_xlpm.totkm),_xlpm.delta,1+INDEX('2d. Annahmen'!$N$4:$N$7,_xlfn.XMATCH(_xlpm.class,Grösse)),_xlpm.delta*INDEX('2d. Annahmen'!$B$77:$G$82,_xlpm.r,_xlpm.c)) -> 31% | E192: =IF('Eingaben (Inputs)'!E192<>"",'Eingaben (Inputs)'!E192,"") ->  | F192: ="Standardwert: "&TEXT('1a. Defaults Segment-Ebene'!D192,"##0.0%") -> Standardwert: 30.7%
C193: =IF('Eingaben (Inputs)'!C193<>"",'Eingaben (Inputs)'!C193,"") ->  | E193: =IF('Eingaben (Inputs)'!E193<>"",'Eingaben (Inputs)'!E193,"") -> 
C194: =IF('Eingaben (Inputs)'!C194<>"",'Eingaben (Inputs)'!C194,"") ->  | E194: =IF('Eingaben (Inputs)'!E194<>"",'Eingaben (Inputs)'!E194,"") -> 
B195: 2.6) | C195: =IF('Eingaben (Inputs)'!C195<>"",'Eingaben (Inputs)'!C195,"") -> Segment F | E195: =IF('Eingaben (Inputs)'!E195<>"",'Eingaben (Inputs)'!E195,"") -> 
C196: =IF('Eingaben (Inputs)'!C196<>"",'Eingaben (Inputs)'!C196,"") ->  | E196: =IF('Eingaben (Inputs)'!E196<>"",'Eingaben (Inputs)'!E196,"") -> 
C197: =IF('Eingaben (Inputs)'!C197<>"",'Eingaben (Inputs)'!C197,"") -> Segmentstruktur | E197: =IF('Eingaben (Inputs)'!E197<>"",'Eingaben (Inputs)'!E197,"") -> 
C198: =IF('Eingaben (Inputs)'!C198<>"",'Eingaben (Inputs)'!C198,"") -> Anzahl Fahrzeuge | D198: ='Eingaben (Inputs)'!D198 -> 1 | E198: =IF('Eingaben (Inputs)'!E198<>"",'Eingaben (Inputs)'!E198,"") -> 
C199: =IF('Eingaben (Inputs)'!C199<>"",'Eingaben (Inputs)'!C199,"") -> Einsatzart | D199: ='Eingaben (Inputs)'!D199 -> Poolfahrzeuge | E199: =IF('Eingaben (Inputs)'!E199<>"",'Eingaben (Inputs)'!E199,"") -> 
C200: =IF('Eingaben (Inputs)'!C200<>"",'Eingaben (Inputs)'!C200,"") -> Einsatzgebiet | D200: ='Eingaben (Inputs)'!D200 -> regional | E200: =IF('Eingaben (Inputs)'!E200<>"",'Eingaben (Inputs)'!E200,"") -> 
C201: =IF('Eingaben (Inputs)'!C201<>"",'Eingaben (Inputs)'!C201,"") -> Heimlademöglichkeit | D201: =INDEX(Heimladen,NOT(_xlfn.XMATCH(D199,Einsatzart)-1)+1) -> Nein | E201: =IF('Eingaben (Inputs)'!E201<>"",'Eingaben (Inputs)'!E201,"") ->  | F201: ="Standardwert: "&'1a. Defaults Segment-Ebene'!D201 -> Standardwert: Nein
C202: =IF('Eingaben (Inputs)'!C202<>"",'Eingaben (Inputs)'!C202,"") ->  | E202: =IF('Eingaben (Inputs)'!E202<>"",'Eingaben (Inputs)'!E202,"") -> 
C203: =IF('Eingaben (Inputs)'!C203<>"",'Eingaben (Inputs)'!C203,"") -> Fahrzeugdaten | E203: =IF('Eingaben (Inputs)'!E203<>"",'Eingaben (Inputs)'!E203,"") -> 
C204: =IF('Eingaben (Inputs)'!C204<>"",'Eingaben (Inputs)'!C204,"") -> Fahrzeuggrösse | D204: ='Eingaben (Inputs)'!D204 -> Mittelklasse | E204: =IF('Eingaben (Inputs)'!E204<>"",'Eingaben (Inputs)'!E204,"") -> 
C205: =IF('Eingaben (Inputs)'!C205<>"",'Eingaben (Inputs)'!C205,"") -> Treibstoffverbrauch Verbrenner | D205: =INDEX('2d. Annahmen'!$F$13:$F$16,_xlfn.XMATCH(D204,Grösse)) -> 5.8 | E205: =IF('Eingaben (Inputs)'!E205<>"",'Eingaben (Inputs)'!E205,"") -> l/100 km | F205: ="Standardwert: "&TEXT('1a. Defaults Segment-Ebene'!D205,"##0.0")&" "&E205 -> Standardwert: 5.8 l/100 km
C206: =IF('Eingaben (Inputs)'!C206<>"",'Eingaben (Inputs)'!C206,"") -> Energieverbrauch E-Fahrzeug | D206: =INDEX('2d. Annahmen'!$H$4:$H$7,_xlfn.XMATCH(D204,Grösse)) -> 15.1 | E206: =IF('Eingaben (Inputs)'!E206<>"",'Eingaben (Inputs)'!E206,"") -> kWh/100 km | F206: ="Standardwert: "&TEXT('1a. Defaults Segment-Ebene'!D206,"##0.0")&" "&E206 -> Standardwert: 15.1 kWh/100 km
C207: =IF('Eingaben (Inputs)'!C207<>"",'Eingaben (Inputs)'!C207,"") -> Batteriekapazität (netto) | D207: =INDEX('2d. Annahmen'!$F$4:$F$7,_xlfn.XMATCH(D204,Grösse)) -> 58.625 | E207: =IF('Eingaben (Inputs)'!E207<>"",'Eingaben (Inputs)'!E207,"") -> kWh | F207: ="Standardwert: "&TEXT('1a. Defaults Segment-Ebene'!D207,"##0.0")&" "&E207 -> Standardwert: 58.6 kWh
C208: =IF('Eingaben (Inputs)'!C208<>"",'Eingaben (Inputs)'!C208,"") ->  | E208: =IF('Eingaben (Inputs)'!E208<>"",'Eingaben (Inputs)'!E208,"") -> 
... 164 more rows

Sheet 1b. Corrected Inputs Segment (hidden)
B9: 1) | C9: =IF('Eingaben (Inputs)'!C9<>"",'Eingaben (Inputs)'!C9,"") -> Flottenstruktur | E9: =IF('Eingaben (Inputs)'!E9<>"",'Eingaben (Inputs)'!E9,"") -> 
C10: =IF('Eingaben (Inputs)'!C10<>"",'Eingaben (Inputs)'!C10,"") ->  | E10: =IF('Eingaben (Inputs)'!E10<>"",'Eingaben (Inputs)'!E10,"") -> 
C11: =IF('Eingaben (Inputs)'!C11<>"",'Eingaben (Inputs)'!C11,"") -> Flotte | E11: =IF('Eingaben (Inputs)'!E11<>"",'Eingaben (Inputs)'!E11,"") -> 
C12: =IF('Eingaben (Inputs)'!C12<>"",'Eingaben (Inputs)'!C12,"") -> Anzahl Segmente | D12: ='Eingaben (Inputs)'!D12 -> 1 | E12: =IF('Eingaben (Inputs)'!E12<>"",'Eingaben (Inputs)'!E12,"") -> 
C13: =IF('Eingaben (Inputs)'!C13<>"",'Eingaben (Inputs)'!C13,"") ->  | E13: =IF('Eingaben (Inputs)'!E13<>"",'Eingaben (Inputs)'!E13,"") -> 
C14: =IF('Eingaben (Inputs)'!C14<>"",'Eingaben (Inputs)'!C14,"") ->  | E14: =IF('Eingaben (Inputs)'!E14<>"",'Eingaben (Inputs)'!E14,"") -> 
B15: 2.1) | C15: =IF('Eingaben (Inputs)'!C15<>"",'Eingaben (Inputs)'!C15,"") -> Segment A | D15: 1 | E15: =IF('Eingaben (Inputs)'!E15<>"",'Eingaben (Inputs)'!E15,"") ->  | H15: 3) | I15: Gesamte Flotte
C16: =IF('Eingaben (Inputs)'!C16<>"",'Eingaben (Inputs)'!C16,"") ->  | E16: =IF('Eingaben (Inputs)'!E16<>"",'Eingaben (Inputs)'!E16,"") -> 
C17: =IF('Eingaben (Inputs)'!C17<>"",'Eingaben (Inputs)'!C17,"") -> Segmentstruktur | E17: =IF('Eingaben (Inputs)'!E17<>"",'Eingaben (Inputs)'!E17,"") ->  | I17: Energiekosten
C18: =IF('Eingaben (Inputs)'!C18<>"",'Eingaben (Inputs)'!C18,"") -> Anzahl Fahrzeuge | D18: =IF(D15<=$D$12,'Eingaben (Inputs)'!D18,0) -> 1 | E18: =IF('Eingaben (Inputs)'!E18<>"",'Eingaben (Inputs)'!E18,"") ->  | I18: Treibstoffkosten | J18: =IF('Eingaben (Inputs)'!J18<>"",'Eingaben (Inputs)'!J18,'1a. Defaults Segment-Ebene'!J18) -> 1.80 | K18: CHF/l
C19: =IF('Eingaben (Inputs)'!C19<>"",'Eingaben (Inputs)'!C19,"") -> Einsatzart | D19: ='Eingaben (Inputs)'!D19 -> Poolfahrzeuge | E19: =IF('Eingaben (Inputs)'!E19<>"",'Eingaben (Inputs)'!E19,"") ->  | I19: Durchschnittliche Stromkosten Wohnort | J19: =IF('Eingaben (Inputs)'!J19<>"",'Eingaben (Inputs)'!J19,'1a. Defaults Segment-Ebene'!J19) -> 0.24 | K19: CHF/kWh
C20: =IF('Eingaben (Inputs)'!C20<>"",'Eingaben (Inputs)'!C20,"") -> Einsatzgebiet | D20: ='Eingaben (Inputs)'!D20 -> regional | E20: =IF('Eingaben (Inputs)'!E20<>"",'Eingaben (Inputs)'!E20,"") ->  | I20: Durchschnittliche Stromkosten Firmenstandort | J20: =IF('Eingaben (Inputs)'!J20<>"",'Eingaben (Inputs)'!J20,'1a. Defaults Segment-Ebene'!J20) -> 0.24 | K20: CHF/kWh
C21: =IF('Eingaben (Inputs)'!C21<>"",'Eingaben (Inputs)'!C21,"") -> Heimlademöglichkeit | D21: =INDEX(OFFSET(Heimladen,0,1),_xlfn.XMATCH('Eingaben (Inputs)'!D21,Heimladen)) -> 0 | E21: =IF('Eingaben (Inputs)'!E21<>"",'Eingaben (Inputs)'!E21,"") ->  | I21: Stromkosten (öffentlich) | J21: =IF('Eingaben (Inputs)'!J21<>"",'Eingaben (Inputs)'!J21,'1a. Defaults Segment-Ebene'!J21) -> 0.55 | K21: CHF/kWh
C22: =IF('Eingaben (Inputs)'!C22<>"",'Eingaben (Inputs)'!C22,"") ->  | E22: =IF('Eingaben (Inputs)'!E22<>"",'Eingaben (Inputs)'!E22,"") -> 
C23: =IF('Eingaben (Inputs)'!C23<>"",'Eingaben (Inputs)'!C23,"") -> Fahrzeugdaten | E23: =IF('Eingaben (Inputs)'!E23<>"",'Eingaben (Inputs)'!E23,"") ->  | I23: Ladegeräte
C24: =IF('Eingaben (Inputs)'!C24<>"",'Eingaben (Inputs)'!C24,"") -> Fahrzeuggrösse | D24: ='Eingaben (Inputs)'!D24 -> Mittelklasse | E24: =IF('Eingaben (Inputs)'!E24<>"",'Eingaben (Inputs)'!E24,"") ->  | I24: Max. Ladeleistung pro Ladepunkt (Wohnort) | J24: =IF('Eingaben (Inputs)'!J24<>"",'Eingaben (Inputs)'!J24,'1a. Defaults Segment-Ebene'!J24) -> 11 | K24: kW
C25: =IF('Eingaben (Inputs)'!C25<>"",'Eingaben (Inputs)'!C25,"") -> Treibstoffverbrauch Verbrenner | D25: =IF('Eingaben (Inputs)'!D25<>"",'Eingaben (Inputs)'!D25,'1a. Defaults Segment-Ebene'!D25) -> 5.8 | E25: =IF('Eingaben (Inputs)'!E25<>"",'Eingaben (Inputs)'!E25,"") -> l/100 km | I25: Max. Ladeleistung pro Ladepunkt (Firmenstandort, AC) | J25: =IF('Eingaben (Inputs)'!J25<>"",'Eingaben (Inputs)'!J25,'1a. Defaults Segment-Ebene'!J25) -> 11 | K25: kW
C26: =IF('Eingaben (Inputs)'!C26<>"",'Eingaben (Inputs)'!C26,"") -> Energieverbrauch E-Fahrzeug | D26: =IF('Eingaben (Inputs)'!D26<>"",'Eingaben (Inputs)'!D26,'1a. Defaults Segment-Ebene'!D26) -> 15.1 | E26: =IF('Eingaben (Inputs)'!E26<>"",'Eingaben (Inputs)'!E26,"") -> kWh/100 km | I26: Max. Ladeleistung pro Ladepunkt (Firmenstandort, DC) | J26: =IF('Eingaben (Inputs)'!J26<>"",'Eingaben (Inputs)'!J26,'1a. Defaults Segment-Ebene'!J26) -> 250 | K26: kW
C27: =IF('Eingaben (Inputs)'!C27<>"",'Eingaben (Inputs)'!C27,"") -> Batteriekapazität (netto) | D27: =IF('Eingaben (Inputs)'!D27<>"",'Eingaben (Inputs)'!D27,'1a. Defaults Segment-Ebene'!D27) -> 58.625 | E27: =IF('Eingaben (Inputs)'!E27<>"",'Eingaben (Inputs)'!E27,"") -> kWh | I27: Anschlusskapazität (Firmenstandort, heute) | J27: =IF('Eingaben (Inputs)'!J27<>"",'Eingaben (Inputs)'!J27,'1a. Defaults Segment-Ebene'!J27) -> 40.00 | K27: kW
C28: =IF('Eingaben (Inputs)'!C28<>"",'Eingaben (Inputs)'!C28,"") ->  | E28: =IF('Eingaben (Inputs)'!E28<>"",'Eingaben (Inputs)'!E28,"") ->  | I28: Fahrzeuge pro Ladepunkt (Wohnort, AC) | J28: =IF('Eingaben (Inputs)'!J28<>"",'Eingaben (Inputs)'!J28,'1a. Defaults Segment-Ebene'!J28) -> 1
C29: =IF('Eingaben (Inputs)'!C29<>"",'Eingaben (Inputs)'!C29,"") -> Fahr- und Nutzungsprofil (Angabe pro Fahrzeug) | E29: =IF('Eingaben (Inputs)'!E29<>"",'Eingaben (Inputs)'!E29,"") ->  | I29: Fahrzeuge pro Ladepunkt (Firmenstandort, AC) | J29: =IF('Eingaben (Inputs)'!J29<>"",'Eingaben (Inputs)'!J29,'1a. Defaults Segment-Ebene'!J29) -> 1
C30: =IF('Eingaben (Inputs)'!C30<>"",'Eingaben (Inputs)'!C30,"") -> Nutzungsmuster | D30: ='Eingaben (Inputs)'!D30 -> Werktagsbetrieb | E30: =IF('Eingaben (Inputs)'!E30<>"",'Eingaben (Inputs)'!E30,"") -> 
C31: =IF('Eingaben (Inputs)'!C31<>"",'Eingaben (Inputs)'!C31,"") -> Anzahl Arbeitstage pro Jahr | D31: =IF('Eingaben (Inputs)'!D31<>"",'Eingaben (Inputs)'!D31,'1a. Defaults Segment-Ebene'!D31) -> 260 | E31: =IF('Eingaben (Inputs)'!E31<>"",'Eingaben (Inputs)'!E31,"") -> 
C32: =IF('Eingaben (Inputs)'!C32<>"",'Eingaben (Inputs)'!C32,"") -> Fahrdistanz während der Arbeitszeit | D32: =IF('Eingaben (Inputs)'!D32<>"",'Eingaben (Inputs)'!D32,'1a. Defaults Segment-Ebene'!D32) -> 100 | E32: =IF('Eingaben (Inputs)'!E32<>"",'Eingaben (Inputs)'!E32,"") -> km/Tag
C33: =IF('Eingaben (Inputs)'!C33<>"",'Eingaben (Inputs)'!C33,"") -> Pendeldistanz (Hin- und Rückfahrt) | D33: =(_xlfn.XMATCH(D19,Einsatzart)-1)*IF('Eingaben (Inputs)'!D33<>"",'Eingaben (Inputs)'!D33,'1a. Defaults Segment-Ebene'!D33) -> 0 | E33: =IF('Eingaben (Inputs)'!E33<>"",'Eingaben (Inputs)'!E33,"") -> km/Tag
C34: =IF('Eingaben (Inputs)'!C34<>"",'Eingaben (Inputs)'!C34,"") -> Anzahl Einsätze pro Tag | D34: =IF('Eingaben (Inputs)'!D34<>"",'Eingaben (Inputs)'!D34,'1a. Defaults Segment-Ebene'!D34) -> 1 | E34: =IF('Eingaben (Inputs)'!E34<>"",'Eingaben (Inputs)'!E34,"") -> 
C35: =IF('Eingaben (Inputs)'!C35<>"",'Eingaben (Inputs)'!C35,"") -> Anzahl Pausen pro Tag | D35: ='Eingaben (Inputs)'!D35 -> 1 | E35: =IF('Eingaben (Inputs)'!E35<>"",'Eingaben (Inputs)'!E35,"") -> 
C36: =IF('Eingaben (Inputs)'!C36<>"",'Eingaben (Inputs)'!C36,"") -> Standzeit pro Pause am Firmenstandort | D36: =IF('Eingaben (Inputs)'!D36<>"",'Eingaben (Inputs)'!D36,'1a. Defaults Segment-Ebene'!D36) -> 1 | E36: =IF('Eingaben (Inputs)'!E36<>"",'Eingaben (Inputs)'!E36,"") -> Stunden
C37: =IF('Eingaben (Inputs)'!C37<>"",'Eingaben (Inputs)'!C37,"") -> Standzeit über Nacht | D37: =IF('Eingaben (Inputs)'!D37<>"",'Eingaben (Inputs)'!D37,'1a. Defaults Segment-Ebene'!D37)*IF(AND(_xlfn.XMATCH(D19,Einsatzart)=2,NOT(D21)),0,1) -> 8 | E37: =IF('Eingaben (Inputs)'!E37<>"",'Eingaben (Inputs)'!E37,"") -> Stunden
C38: =IF('Eingaben (Inputs)'!C38<>"",'Eingaben (Inputs)'!C38,"") -> Fahrzeuge pro Ladepunkt, Firmenstandort (tagsüber) | D38: =IF('Eingaben (Inputs)'!D38<>"",'Eingaben (Inputs)'!D38,'1a. Defaults Segment-Ebene'!D38) -> 1 | E38: =IF('Eingaben (Inputs)'!E38<>"",'Eingaben (Inputs)'!E38,"") -> 
C39: =IF('Eingaben (Inputs)'!C39<>"",'Eingaben (Inputs)'!C39,"") ->  | E39: =IF('Eingaben (Inputs)'!E39<>"",'Eingaben (Inputs)'!E39,"") -> 
C40: =IF('Eingaben (Inputs)'!C40<>"",'Eingaben (Inputs)'!C40,"") -> Kosten (Angabe pro Fahrzeug) | E40: =IF('Eingaben (Inputs)'!E40<>"",'Eingaben (Inputs)'!E40,"") -> 
C41: =IF('Eingaben (Inputs)'!C41<>"",'Eingaben (Inputs)'!C41,"") -> Laufzeit | D41: =IF('Eingaben (Inputs)'!D41<>"",'Eingaben (Inputs)'!D41,'1a. Defaults Segment-Ebene'!D41) -> 48 | E41: =IF('Eingaben (Inputs)'!E41<>"",'Eingaben (Inputs)'!E41,"") -> Monate
C42: =IF('Eingaben (Inputs)'!C42<>"",'Eingaben (Inputs)'!C42,"") -> Leasing-Zinssatz | D42: =IF('Eingaben (Inputs)'!D42<>"",'Eingaben (Inputs)'!D42,'1a. Defaults Segment-Ebene'!D42) -> 3.0% | E42: =IF('Eingaben (Inputs)'!E42<>"",'Eingaben (Inputs)'!E42,"") -> 
C43: =IF('Eingaben (Inputs)'!C43<>"",'Eingaben (Inputs)'!C43,"") -> Anschaffungspreis inkl. Flottenrabatt Verbrenner | D43: =IF('Eingaben (Inputs)'!D43<>"",'Eingaben (Inputs)'!D43,'1a. Defaults Segment-Ebene'!D43) -> 27,219 | E43: =IF('Eingaben (Inputs)'!E43<>"",'Eingaben (Inputs)'!E43,"") -> CHF
C44: =IF('Eingaben (Inputs)'!C44<>"",'Eingaben (Inputs)'!C44,"") -> Service- und Reparaturkosten Verbrenner | D44: =IF('Eingaben (Inputs)'!D44<>"",'Eingaben (Inputs)'!D44,'1a. Defaults Segment-Ebene'!D44) -> 0.05 | E44: =IF('Eingaben (Inputs)'!E44<>"",'Eingaben (Inputs)'!E44,"") -> CHF/km
C45: =IF('Eingaben (Inputs)'!C45<>"",'Eingaben (Inputs)'!C45,"") -> Restwert Verbrenner | D45: =IF('Eingaben (Inputs)'!D45<>"",'Eingaben (Inputs)'!D45,'1a. Defaults Segment-Ebene'!D45) -> 32% | E45: =IF('Eingaben (Inputs)'!E45<>"",'Eingaben (Inputs)'!E45,"") -> 
C46: =IF('Eingaben (Inputs)'!C46<>"",'Eingaben (Inputs)'!C46,"") -> Anschaffungspreis inkl. Flottenrabatt E-Fahrzeug | D46: =IF('Eingaben (Inputs)'!D46<>"",'Eingaben (Inputs)'!D46,'1a. Defaults Segment-Ebene'!D46) -> 28,811 | E46: =IF('Eingaben (Inputs)'!E46<>"",'Eingaben (Inputs)'!E46,"") -> CHF
C47: =IF('Eingaben (Inputs)'!C47<>"",'Eingaben (Inputs)'!C47,"") -> Service- und Reparaturkosten E-Fahrzeug | D47: =IF('Eingaben (Inputs)'!D47<>"",'Eingaben (Inputs)'!D47,'1a. Defaults Segment-Ebene'!D47) -> 0.025 | E47: =IF('Eingaben (Inputs)'!E47<>"",'Eingaben (Inputs)'!E47,"") -> CHF/km
C48: =IF('Eingaben (Inputs)'!C48<>"",'Eingaben (Inputs)'!C48,"") -> Restwert E-Fahrzeug | D48: =IF('Eingaben (Inputs)'!D48<>"",'Eingaben (Inputs)'!D48,'1a. Defaults Segment-Ebene'!D48) -> 31% | E48: =IF('Eingaben (Inputs)'!E48<>"",'Eingaben (Inputs)'!E48,"") -> 
C49: =IF('Eingaben (Inputs)'!C49<>"",'Eingaben (Inputs)'!C49,"") ->  | E49: =IF('Eingaben (Inputs)'!E49<>"",'Eingaben (Inputs)'!E49,"") -> 
C50: =IF('Eingaben (Inputs)'!C50<>"",'Eingaben (Inputs)'!C50,"") ->  | E50: =IF('Eingaben (Inputs)'!E50<>"",'Eingaben (Inputs)'!E50,"") -> 
B51: 2.2) | C51: =IF('Eingaben (Inputs)'!C51<>"",'Eingaben (Inputs)'!C51,"") -> Segment B | D51: =D15+1 -> 2 | E51: =IF('Eingaben (Inputs)'!E51<>"",'Eingaben (Inputs)'!E51,"") -> 
C52: =IF('Eingaben (Inputs)'!C52<>"",'Eingaben (Inputs)'!C52,"") ->  | E52: =IF('Eingaben (Inputs)'!E52<>"",'Eingaben (Inputs)'!E52,"") -> 
C53: =IF('Eingaben (Inputs)'!C53<>"",'Eingaben (Inputs)'!C53,"") -> Segmentstruktur | E53: =IF('Eingaben (Inputs)'!E53<>"",'Eingaben (Inputs)'!E53,"") -> 
C54: =IF('Eingaben (Inputs)'!C54<>"",'Eingaben (Inputs)'!C54,"") -> Anzahl Fahrzeuge | D54: =IF(D51<=$D$12,'Eingaben (Inputs)'!D54,0) -> 0 | E54: =IF('Eingaben (Inputs)'!E54<>"",'Eingaben (Inputs)'!E54,"") -> 
C55: =IF('Eingaben (Inputs)'!C55<>"",'Eingaben (Inputs)'!C55,"") -> Einsatzart | D55: ='Eingaben (Inputs)'!D55 -> Poolfahrzeuge | E55: =IF('Eingaben (Inputs)'!E55<>"",'Eingaben (Inputs)'!E55,"") -> 
C56: =IF('Eingaben (Inputs)'!C56<>"",'Eingaben (Inputs)'!C56,"") -> Einsatzgebiet | D56: ='Eingaben (Inputs)'!D56 -> regional | E56: =IF('Eingaben (Inputs)'!E56<>"",'Eingaben (Inputs)'!E56,"") -> 
C57: =IF('Eingaben (Inputs)'!C57<>"",'Eingaben (Inputs)'!C57,"") -> Heimlademöglichkeit | D57: =INDEX(OFFSET(Heimladen,0,1),_xlfn.XMATCH('Eingaben (Inputs)'!D57,Heimladen)) -> 0 | E57: =IF('Eingaben (Inputs)'!E57<>"",'Eingaben (Inputs)'!E57,"") -> 
C58: =IF('Eingaben (Inputs)'!C58<>"",'Eingaben (Inputs)'!C58,"") ->  | E58: =IF('Eingaben (Inputs)'!E58<>"",'Eingaben (Inputs)'!E58,"") -> 
C59: =IF('Eingaben (Inputs)'!C59<>"",'Eingaben (Inputs)'!C59,"") -> Fahrzeugdaten | E59: =IF('Eingaben (Inputs)'!E59<>"",'Eingaben (Inputs)'!E59,"") -> 
C60: =IF('Eingaben (Inputs)'!C60<>"",'Eingaben (Inputs)'!C60,"") -> Fahrzeuggrösse | D60: ='Eingaben (Inputs)'!D60 -> Mittelklasse | E60: =IF('Eingaben (Inputs)'!E60<>"",'Eingaben (Inputs)'!E60,"") -> 
C61: =IF('Eingaben (Inputs)'!C61<>"",'Eingaben (Inputs)'!C61,"") -> Treibstoffverbrauch Verbrenner | D61: =IF('Eingaben (Inputs)'!D61<>"",'Eingaben (Inputs)'!D61,'1a. Defaults Segment-Ebene'!D61) -> 5.8 | E61: =IF('Eingaben (Inputs)'!E61<>"",'Eingaben (Inputs)'!E61,"") -> l/100 km
C62: =IF('Eingaben (Inputs)'!C62<>"",'Eingaben (Inputs)'!C62,"") -> Energieverbrauch E-Fahrzeug | D62: =IF('Eingaben (Inputs)'!D62<>"",'Eingaben (Inputs)'!D62,'1a. Defaults Segment-Ebene'!D62) -> 15.1 | E62: =IF('Eingaben (Inputs)'!E62<>"",'Eingaben (Inputs)'!E62,"") -> kWh/100 km
C63: =IF('Eingaben (Inputs)'!C63<>"",'Eingaben (Inputs)'!C63,"") -> Batteriekapazität (netto) | D63: =IF('Eingaben (Inputs)'!D63<>"",'Eingaben (Inputs)'!D63,'1a. Defaults Segment-Ebene'!D63) -> 58.625 | E63: =IF('Eingaben (Inputs)'!E63<>"",'Eingaben (Inputs)'!E63,"") -> kWh
C64: =IF('Eingaben (Inputs)'!C64<>"",'Eingaben (Inputs)'!C64,"") ->  | E64: =IF('Eingaben (Inputs)'!E64<>"",'Eingaben (Inputs)'!E64,"") -> 
C65: =IF('Eingaben (Inputs)'!C65<>"",'Eingaben (Inputs)'!C65,"") -> Fahr- und Nutzungsprofil (Angabe pro Fahrzeug) | E65: =IF('Eingaben (Inputs)'!E65<>"",'Eingaben (Inputs)'!E65,"") -> 
C66: =IF('Eingaben (Inputs)'!C66<>"",'Eingaben (Inputs)'!C66,"") -> Nutzungsmuster | D66: ='Eingaben (Inputs)'!D66 -> Werktagsbetrieb | E66: =IF('Eingaben (Inputs)'!E66<>"",'Eingaben (Inputs)'!E66,"") -> 
C67: =IF('Eingaben (Inputs)'!C67<>"",'Eingaben (Inputs)'!C67,"") -> Anzahl Arbeitstage pro Jahr | D67: =IF('Eingaben (Inputs)'!D67<>"",'Eingaben (Inputs)'!D67,'1a. Defaults Segment-Ebene'!D67) -> 260 | E67: =IF('Eingaben (Inputs)'!E67<>"",'Eingaben (Inputs)'!E67,"") -> 
C68: =IF('Eingaben (Inputs)'!C68<>"",'Eingaben (Inputs)'!C68,"") -> Fahrdistanz während der Arbeitszeit | D68: =IF('Eingaben (Inputs)'!D68<>"",'Eingaben (Inputs)'!D68,'1a. Defaults Segment-Ebene'!D68) -> 100 | E68: =IF('Eingaben (Inputs)'!E68<>"",'Eingaben (Inputs)'!E68,"") -> km/Tag
C69: =IF('Eingaben (Inputs)'!C69<>"",'Eingaben (Inputs)'!C69,"") -> Pendeldistanz (Hin- und Rückfahrt) | D69: =(_xlfn.XMATCH(D55,Einsatzart)-1)*IF('Eingaben (Inputs)'!D69<>"",'Eingaben (Inputs)'!D69,'1a. Defaults Segment-Ebene'!D69) -> 0 | E69: =IF('Eingaben (Inputs)'!E69<>"",'Eingaben (Inputs)'!E69,"") -> km/Tag
C70: =IF('Eingaben (Inputs)'!C70<>"",'Eingaben (Inputs)'!C70,"") -> Anzahl Einsätze pro Tag | D70: =IF('Eingaben (Inputs)'!D70<>"",'Eingaben (Inputs)'!D70,'1a. Defaults Segment-Ebene'!D70) -> 1 | E70: =IF('Eingaben (Inputs)'!E70<>"",'Eingaben (Inputs)'!E70,"") -> 
C71: =IF('Eingaben (Inputs)'!C71<>"",'Eingaben (Inputs)'!C71,"") -> Anzahl Pausen pro Tag | D71: ='Eingaben (Inputs)'!D71 -> 1 | E71: =IF('Eingaben (Inputs)'!E71<>"",'Eingaben (Inputs)'!E71,"") -> 
C72: =IF('Eingaben (Inputs)'!C72<>"",'Eingaben (Inputs)'!C72,"") -> Standzeit pro Pause am Firmenstandort | D72: =IF('Eingaben (Inputs)'!D72<>"",'Eingaben (Inputs)'!D72,'1a. Defaults Segment-Ebene'!D72) -> 1 | E72: =IF('Eingaben (Inputs)'!E72<>"",'Eingaben (Inputs)'!E72,"") -> Stunden
C73: =IF('Eingaben (Inputs)'!C73<>"",'Eingaben (Inputs)'!C73,"") -> Standzeit über Nacht | D73: =IF('Eingaben (Inputs)'!D73<>"",'Eingaben (Inputs)'!D73,'1a. Defaults Segment-Ebene'!D73)*IF(AND(_xlfn.XMATCH(D55,Einsatzart)=2,NOT(D57)),0,1) -> 8 | E73: =IF('Eingaben (Inputs)'!E73<>"",'Eingaben (Inputs)'!E73,"") -> Stunden
C74: =IF('Eingaben (Inputs)'!C74<>"",'Eingaben (Inputs)'!C74,"") -> Fahrzeuge pro Ladepunkt, Firmenstandort (tagsüber) | D74: =IF('Eingaben (Inputs)'!D74<>"",'Eingaben (Inputs)'!D74,'1a. Defaults Segment-Ebene'!D74) -> 1 | E74: =IF('Eingaben (Inputs)'!E74<>"",'Eingaben (Inputs)'!E74,"") -> 
C75: =IF('Eingaben (Inputs)'!C75<>"",'Eingaben (Inputs)'!C75,"") ->  | E75: =IF('Eingaben (Inputs)'!E75<>"",'Eingaben (Inputs)'!E75,"") -> 
C76: =IF('Eingaben (Inputs)'!C76<>"",'Eingaben (Inputs)'!C76,"") -> Kosten (Angabe pro Fahrzeug) | E76: =IF('Eingaben (Inputs)'!E76<>"",'Eingaben (Inputs)'!E76,"") -> 
C77: =IF('Eingaben (Inputs)'!C77<>"",'Eingaben (Inputs)'!C77,"") -> Laufzeit | D77: =IF('Eingaben (Inputs)'!D77<>"",'Eingaben (Inputs)'!D77,'1a. Defaults Segment-Ebene'!D77) -> 48 | E77: =IF('Eingaben (Inputs)'!E77<>"",'Eingaben (Inputs)'!E77,"") -> Monate
C78: =IF('Eingaben (Inputs)'!C78<>"",'Eingaben (Inputs)'!C78,"") -> Leasing-Zinssatz | D78: =IF('Eingaben (Inputs)'!D78<>"",'Eingaben (Inputs)'!D78,'1a. Defaults Segment-Ebene'!D78) -> 3.0% | E78: =IF('Eingaben (Inputs)'!E78<>"",'Eingaben (Inputs)'!E78,"") -> 
C79: =IF('Eingaben (Inputs)'!C79<>"",'Eingaben (Inputs)'!C79,"") -> Anschaffungspreis inkl. Flottenrabatt Verbrenner | D79: =IF('Eingaben (Inputs)'!D79<>"",'Eingaben (Inputs)'!D79,'1a. Defaults Segment-Ebene'!D79) -> 27,219 | E79: =IF('Eingaben (Inputs)'!E79<>"",'Eingaben (Inputs)'!E79,"") -> CHF
C80: =IF('Eingaben (Inputs)'!C80<>"",'Eingaben (Inputs)'!C80,"") -> Service- und Reparaturkosten Verbrenner | D80: =IF('Eingaben (Inputs)'!D80<>"",'Eingaben (Inputs)'!D80,'1a. Defaults Segment-Ebene'!D80) -> 0.05 | E80: =IF('Eingaben (Inputs)'!E80<>"",'Eingaben (Inputs)'!E80,"") -> CHF/km
C81: =IF('Eingaben (Inputs)'!C81<>"",'Eingaben (Inputs)'!C81,"") -> Restwert Verbrenner | D81: =IF('Eingaben (Inputs)'!D81<>"",'Eingaben (Inputs)'!D81,'1a. Defaults Segment-Ebene'!D81) -> 32% | E81: =IF('Eingaben (Inputs)'!E81<>"",'Eingaben (Inputs)'!E81,"") -> 
C82: =IF('Eingaben (Inputs)'!C82<>"",'Eingaben (Inputs)'!C82,"") -> Anschaffungspreis inkl. Flottenrabatt E-Fahrzeug | D82: =IF('Eingaben (Inputs)'!D82<>"",'Eingaben (Inputs)'!D82,'1a. Defaults Segment-Ebene'!D82) -> 28,811 | E82: =IF('Eingaben (Inputs)'!E82<>"",'Eingaben (Inputs)'!E82,"") -> CHF
C83: =IF('Eingaben (Inputs)'!C83<>"",'Eingaben (Inputs)'!C83,"") -> Service- und Reparaturkosten E-Fahrzeug | D83: =IF('Eingaben (Inputs)'!D83<>"",'Eingaben (Inputs)'!D83,'1a. Defaults Segment-Ebene'!D83) -> 0.025 | E83: =IF('Eingaben (Inputs)'!E83<>"",'Eingaben (Inputs)'!E83,"") -> CHF/km
C84: =IF('Eingaben (Inputs)'!C84<>"",'Eingaben (Inputs)'!C84,"") -> Restwert E-Fahrzeug | D84: =IF('Eingaben (Inputs)'!D84<>"",'Eingaben (Inputs)'!D84,'1a. Defaults Segment-Ebene'!D84) -> 31% | E84: =IF('Eingaben (Inputs)'!E84<>"",'Eingaben (Inputs)'!E84,"") -> 
C85: =IF('Eingaben (Inputs)'!C85<>"",'Eingaben (Inputs)'!C85,"") ->  | E85: =IF('Eingaben (Inputs)'!E85<>"",'Eingaben (Inputs)'!E85,"") -> 
C86: =IF('Eingaben (Inputs)'!C86<>"",'Eingaben (Inputs)'!C86,"") ->  | E86: =IF('Eingaben (Inputs)'!E86<>"",'Eingaben (Inputs)'!E86,"") -> 
B87: 2.3) | C87: =IF('Eingaben (Inputs)'!C87<>"",'Eingaben (Inputs)'!C87,"") -> Segment C | D87: =D51+1 -> 3 | E87: =IF('Eingaben (Inputs)'!E87<>"",'Eingaben (Inputs)'!E87,"") -> 
C88: =IF('Eingaben (Inputs)'!C88<>"",'Eingaben (Inputs)'!C88,"") ->  | E88: =IF('Eingaben (Inputs)'!E88<>"",'Eingaben (Inputs)'!E88,"") -> 
C89: =IF('Eingaben (Inputs)'!C89<>"",'Eingaben (Inputs)'!C89,"") -> Segmentstruktur | E89: =IF('Eingaben (Inputs)'!E89<>"",'Eingaben (Inputs)'!E89,"") -> 
C90: =IF('Eingaben (Inputs)'!C90<>"",'Eingaben (Inputs)'!C90,"") -> Anzahl Fahrzeuge | D90: =IF(D87<=$D$12,'Eingaben (Inputs)'!D90,0) -> 0 | E90: =IF('Eingaben (Inputs)'!E90<>"",'Eingaben (Inputs)'!E90,"") -> 
C91: =IF('Eingaben (Inputs)'!C91<>"",'Eingaben (Inputs)'!C91,"") -> Einsatzart | D91: ='Eingaben (Inputs)'!D91 -> Poolfahrzeuge | E91: =IF('Eingaben (Inputs)'!E91<>"",'Eingaben (Inputs)'!E91,"") -> 
C92: =IF('Eingaben (Inputs)'!C92<>"",'Eingaben (Inputs)'!C92,"") -> Einsatzgebiet | D92: ='Eingaben (Inputs)'!D92 -> regional | E92: =IF('Eingaben (Inputs)'!E92<>"",'Eingaben (Inputs)'!E92,"") -> 
C93: =IF('Eingaben (Inputs)'!C93<>"",'Eingaben (Inputs)'!C93,"") -> Heimlademöglichkeit | D93: =INDEX(OFFSET(Heimladen,0,1),_xlfn.XMATCH('Eingaben (Inputs)'!D93,Heimladen)) -> 0 | E93: =IF('Eingaben (Inputs)'!E93<>"",'Eingaben (Inputs)'!E93,"") -> 
C94: =IF('Eingaben (Inputs)'!C94<>"",'Eingaben (Inputs)'!C94,"") ->  | E94: =IF('Eingaben (Inputs)'!E94<>"",'Eingaben (Inputs)'!E94,"") -> 
C95: =IF('Eingaben (Inputs)'!C95<>"",'Eingaben (Inputs)'!C95,"") -> Fahrzeugdaten | E95: =IF('Eingaben (Inputs)'!E95<>"",'Eingaben (Inputs)'!E95,"") -> 
C96: =IF('Eingaben (Inputs)'!C96<>"",'Eingaben (Inputs)'!C96,"") -> Fahrzeuggrösse | D96: ='Eingaben (Inputs)'!D96 -> Mittelklasse | E96: =IF('Eingaben (Inputs)'!E96<>"",'Eingaben (Inputs)'!E96,"") -> 
C97: =IF('Eingaben (Inputs)'!C97<>"",'Eingaben (Inputs)'!C97,"") -> Treibstoffverbrauch Verbrenner | D97: =IF('Eingaben (Inputs)'!D97<>"",'Eingaben (Inputs)'!D97,'1a. Defaults Segment-Ebene'!D97) -> 5.8 | E97: =IF('Eingaben (Inputs)'!E97<>"",'Eingaben (Inputs)'!E97,"") -> l/100 km
C98: =IF('Eingaben (Inputs)'!C98<>"",'Eingaben (Inputs)'!C98,"") -> Energieverbrauch E-Fahrzeug | D98: =IF('Eingaben (Inputs)'!D98<>"",'Eingaben (Inputs)'!D98,'1a. Defaults Segment-Ebene'!D98) -> 15.1 | E98: =IF('Eingaben (Inputs)'!E98<>"",'Eingaben (Inputs)'!E98,"") -> kWh/100 km
C99: =IF('Eingaben (Inputs)'!C99<>"",'Eingaben (Inputs)'!C99,"") -> Batteriekapazität (netto) | D99: =IF('Eingaben (Inputs)'!D99<>"",'Eingaben (Inputs)'!D99,'1a. Defaults Segment-Ebene'!D99) -> 58.625 | E99: =IF('Eingaben (Inputs)'!E99<>"",'Eingaben (Inputs)'!E99,"") -> kWh
C100: =IF('Eingaben (Inputs)'!C100<>"",'Eingaben (Inputs)'!C100,"") ->  | E100: =IF('Eingaben (Inputs)'!E100<>"",'Eingaben (Inputs)'!E100,"") -> 
C101: =IF('Eingaben (Inputs)'!C101<>"",'Eingaben (Inputs)'!C101,"") -> Fahr- und Nutzungsprofil (Angabe pro Fahrzeug) | E101: =IF('Eingaben (Inputs)'!E101<>"",'Eingaben (Inputs)'!E101,"") -> 
C102: =IF('Eingaben (Inputs)'!C102<>"",'Eingaben (Inputs)'!C102,"") -> Nutzungsmuster | D102: ='Eingaben (Inputs)'!D102 -> Werktagsbetrieb | E102: =IF('Eingaben (Inputs)'!E102<>"",'Eingaben (Inputs)'!E102,"") -> 
C103: =IF('Eingaben (Inputs)'!C103<>"",'Eingaben (Inputs)'!C103,"") -> Anzahl Arbeitstage pro Jahr | D103: =IF('Eingaben (Inputs)'!D103<>"",'Eingaben (Inputs)'!D103,'1a. Defaults Segment-Ebene'!D103) -> 260 | E103: =IF('Eingaben (Inputs)'!E103<>"",'Eingaben (Inputs)'!E103,"") -> 
C104: =IF('Eingaben (Inputs)'!C104<>"",'Eingaben (Inputs)'!C104,"") -> Fahrdistanz während der Arbeitszeit | D104: =IF('Eingaben (Inputs)'!D104<>"",'Eingaben (Inputs)'!D104,'1a. Defaults Segment-Ebene'!D104) -> 100 | E104: =IF('Eingaben (Inputs)'!E104<>"",'Eingaben (Inputs)'!E104,"") -> km/Tag
C105: =IF('Eingaben (Inputs)'!C105<>"",'Eingaben (Inputs)'!C105,"") -> Pendeldistanz (Hin- und Rückfahrt) | D105: =(_xlfn.XMATCH(D91,Einsatzart)-1)*IF('Eingaben (Inputs)'!D105<>"",'Eingaben (Inputs)'!D105,'1a. Defaults Segment-Ebene'!D105) -> 0 | E105: =IF('Eingaben (Inputs)'!E105<>"",'Eingaben (Inputs)'!E105,"") -> km/Tag
C106: =IF('Eingaben (Inputs)'!C106<>"",'Eingaben (Inputs)'!C106,"") -> Anzahl Einsätze pro Tag | D106: =IF('Eingaben (Inputs)'!D106<>"",'Eingaben (Inputs)'!D106,'1a. Defaults Segment-Ebene'!D106) -> 1 | E106: =IF('Eingaben (Inputs)'!E106<>"",'Eingaben (Inputs)'!E106,"") -> 
C107: =IF('Eingaben (Inputs)'!C107<>"",'Eingaben (Inputs)'!C107,"") -> Anzahl Pausen pro Tag | D107: ='Eingaben (Inputs)'!D107 -> 1 | E107: =IF('Eingaben (Inputs)'!E107<>"",'Eingaben (Inputs)'!E107,"") -> 
C108: =IF('Eingaben (Inputs)'!C108<>"",'Eingaben (Inputs)'!C108,"") -> Standzeit pro Pause am Firmenstandort | D108: =IF('Eingaben (Inputs)'!D108<>"",'Eingaben (Inputs)'!D108,'1a. Defaults Segment-Ebene'!D108) -> 1 | E108: =IF('Eingaben (Inputs)'!E108<>"",'Eingaben (Inputs)'!E108,"") -> Stunden
C109: =IF('Eingaben (Inputs)'!C109<>"",'Eingaben (Inputs)'!C109,"") -> Standzeit über Nacht | D109: =IF('Eingaben (Inputs)'!D109<>"",'Eingaben (Inputs)'!D109,'1a. Defaults Segment-Ebene'!D109)*IF(AND(_xlfn.XMATCH(D91,Einsatzart)=2,NOT(D93)),0,1) -> 8 | E109: =IF('Eingaben (Inputs)'!E109<>"",'Eingaben (Inputs)'!E109,"") -> Stunden
C110: =IF('Eingaben (Inputs)'!C110<>"",'Eingaben (Inputs)'!C110,"") -> Fahrzeuge pro Ladepunkt, Firmenstandort (tagsüber) | D110: =IF('Eingaben (Inputs)'!D110<>"",'Eingaben (Inputs)'!D110,'1a. Defaults Segment-Ebene'!D110) -> 1 | E110: =IF('Eingaben (Inputs)'!E110<>"",'Eingaben (Inputs)'!E110,"") -> 
C111: =IF('Eingaben (Inputs)'!C111<>"",'Eingaben (Inputs)'!C111,"") ->  | E111: =IF('Eingaben (Inputs)'!E111<>"",'Eingaben (Inputs)'!E111,"") -> 
C112: =IF('Eingaben (Inputs)'!C112<>"",'Eingaben (Inputs)'!C112,"") -> Kosten (Angabe pro Fahrzeug) | E112: =IF('Eingaben (Inputs)'!E112<>"",'Eingaben (Inputs)'!E112,"") -> 
C113: =IF('Eingaben (Inputs)'!C113<>"",'Eingaben (Inputs)'!C113,"") -> Laufzeit | D113: =IF('Eingaben (Inputs)'!D113<>"",'Eingaben (Inputs)'!D113,'1a. Defaults Segment-Ebene'!D113) -> 48 | E113: =IF('Eingaben (Inputs)'!E113<>"",'Eingaben (Inputs)'!E113,"") -> Monate
C114: =IF('Eingaben (Inputs)'!C114<>"",'Eingaben (Inputs)'!C114,"") -> Leasing-Zinssatz | D114: =IF('Eingaben (Inputs)'!D114<>"",'Eingaben (Inputs)'!D114,'1a. Defaults Segment-Ebene'!D114) -> 3.0% | E114: =IF('Eingaben (Inputs)'!E114<>"",'Eingaben (Inputs)'!E114,"") -> 
C115: =IF('Eingaben (Inputs)'!C115<>"",'Eingaben (Inputs)'!C115,"") -> Anschaffungspreis inkl. Flottenrabatt Verbrenner | D115: =IF('Eingaben (Inputs)'!D115<>"",'Eingaben (Inputs)'!D115,'1a. Defaults Segment-Ebene'!D115) -> 27,219 | E115: =IF('Eingaben (Inputs)'!E115<>"",'Eingaben (Inputs)'!E115,"") -> CHF
C116: =IF('Eingaben (Inputs)'!C116<>"",'Eingaben (Inputs)'!C116,"") -> Service- und Reparaturkosten Verbrenner | D116: =IF('Eingaben (Inputs)'!D116<>"",'Eingaben (Inputs)'!D116,'1a. Defaults Segment-Ebene'!D116) -> 0.05 | E116: =IF('Eingaben (Inputs)'!E116<>"",'Eingaben (Inputs)'!E116,"") -> CHF/km
C117: =IF('Eingaben (Inputs)'!C117<>"",'Eingaben (Inputs)'!C117,"") -> Restwert Verbrenner | D117: =IF('Eingaben (Inputs)'!D117<>"",'Eingaben (Inputs)'!D117,'1a. Defaults Segment-Ebene'!D117) -> 32% | E117: =IF('Eingaben (Inputs)'!E117<>"",'Eingaben (Inputs)'!E117,"") -> 
C118: =IF('Eingaben (Inputs)'!C118<>"",'Eingaben (Inputs)'!C118,"") -> Anschaffungspreis inkl. Flottenrabatt E-Fahrzeug | D118: =IF('Eingaben (Inputs)'!D118<>"",'Eingaben (Inputs)'!D118,'1a. Defaults Segment-Ebene'!D118) -> 28,811 | E118: =IF('Eingaben (Inputs)'!E118<>"",'Eingaben (Inputs)'!E118,"") -> CHF
C119: =IF('Eingaben (Inputs)'!C119<>"",'Eingaben (Inputs)'!C119,"") -> Service- und Reparaturkosten E-Fahrzeug | D119: =IF('Eingaben (Inputs)'!D119<>"",'Eingaben (Inputs)'!D119,'1a. Defaults Segment-Ebene'!D119) -> 0.025 | E119: =IF('Eingaben (Inputs)'!E119<>"",'Eingaben (Inputs)'!E119,"") -> CHF/km
C120: =IF('Eingaben (Inputs)'!C120<>"",'Eingaben (Inputs)'!C120,"") -> Restwert E-Fahrzeug | D120: =IF('Eingaben (Inputs)'!D120<>"",'Eingaben (Inputs)'!D120,'1a. Defaults Segment-Ebene'!D120) -> 31% | E120: =IF('Eingaben (Inputs)'!E120<>"",'Eingaben (Inputs)'!E120,"") -> 
C121: =IF('Eingaben (Inputs)'!C121<>"",'Eingaben (Inputs)'!C121,"") ->  | E121: =IF('Eingaben (Inputs)'!E121<>"",'Eingaben (Inputs)'!E121,"") -> 
C122: =IF('Eingaben (Inputs)'!C122<>"",'Eingaben (Inputs)'!C122,"") ->  | E122: =IF('Eingaben (Inputs)'!E122<>"",'Eingaben (Inputs)'!E122,"") -> 
B123: 2.4) | C123: =IF('Eingaben (Inputs)'!C123<>"",'Eingaben (Inputs)'!C123,"") -> Segment D | D123: =D87+1 -> 4 | E123: =IF('Eingaben (Inputs)'!E123<>"",'Eingaben (Inputs)'!E123,"") -> 
C124: =IF('Eingaben (Inputs)'!C124<>"",'Eingaben (Inputs)'!C124,"") ->  | E124: =IF('Eingaben (Inputs)'!E124<>"",'Eingaben (Inputs)'!E124,"") -> 
C125: =IF('Eingaben (Inputs)'!C125<>"",'Eingaben (Inputs)'!C125,"") -> Segmentstruktur | E125: =IF('Eingaben (Inputs)'!E125<>"",'Eingaben (Inputs)'!E125,"") -> 
C126: =IF('Eingaben (Inputs)'!C126<>"",'Eingaben (Inputs)'!C126,"") -> Anzahl Fahrzeuge | D126: =IF(D123<=$D$12,'Eingaben (Inputs)'!D126,0) -> 0 | E126: =IF('Eingaben (Inputs)'!E126<>"",'Eingaben (Inputs)'!E126,"") -> 
C127: =IF('Eingaben (Inputs)'!C127<>"",'Eingaben (Inputs)'!C127,"") -> Einsatzart | D127: ='Eingaben (Inputs)'!D127 -> Poolfahrzeuge | E127: =IF('Eingaben (Inputs)'!E127<>"",'Eingaben (Inputs)'!E127,"") -> 
C128: =IF('Eingaben (Inputs)'!C128<>"",'Eingaben (Inputs)'!C128,"") -> Einsatzgebiet | D128: ='Eingaben (Inputs)'!D128 -> regional | E128: =IF('Eingaben (Inputs)'!E128<>"",'Eingaben (Inputs)'!E128,"") -> 
C129: =IF('Eingaben (Inputs)'!C129<>"",'Eingaben (Inputs)'!C129,"") -> Heimlademöglichkeit | D129: =INDEX(OFFSET(Heimladen,0,1),_xlfn.XMATCH('Eingaben (Inputs)'!D129,Heimladen)) -> 0 | E129: =IF('Eingaben (Inputs)'!E129<>"",'Eingaben (Inputs)'!E129,"") -> 
C130: =IF('Eingaben (Inputs)'!C130<>"",'Eingaben (Inputs)'!C130,"") ->  | E130: =IF('Eingaben (Inputs)'!E130<>"",'Eingaben (Inputs)'!E130,"") -> 
C131: =IF('Eingaben (Inputs)'!C131<>"",'Eingaben (Inputs)'!C131,"") -> Fahrzeugdaten | E131: =IF('Eingaben (Inputs)'!E131<>"",'Eingaben (Inputs)'!E131,"") -> 
C132: =IF('Eingaben (Inputs)'!C132<>"",'Eingaben (Inputs)'!C132,"") -> Fahrzeuggrösse | D132: ='Eingaben (Inputs)'!D132 -> Mittelklasse | E132: =IF('Eingaben (Inputs)'!E132<>"",'Eingaben (Inputs)'!E132,"") -> 
C133: =IF('Eingaben (Inputs)'!C133<>"",'Eingaben (Inputs)'!C133,"") -> Treibstoffverbrauch Verbrenner | D133: =IF('Eingaben (Inputs)'!D133<>"",'Eingaben (Inputs)'!D133,'1a. Defaults Segment-Ebene'!D133) -> 5.8 | E133: =IF('Eingaben (Inputs)'!E133<>"",'Eingaben (Inputs)'!E133,"") -> l/100 km
C134: =IF('Eingaben (Inputs)'!C134<>"",'Eingaben (Inputs)'!C134,"") -> Energieverbrauch E-Fahrzeug | D134: =IF('Eingaben (Inputs)'!D134<>"",'Eingaben (Inputs)'!D134,'1a. Defaults Segment-Ebene'!D134) -> 15.1 | E134: =IF('Eingaben (Inputs)'!E134<>"",'Eingaben (Inputs)'!E134,"") -> kWh/100 km
C135: =IF('Eingaben (Inputs)'!C135<>"",'Eingaben (Inputs)'!C135,"") -> Batteriekapazität (netto) | D135: =IF('Eingaben (Inputs)'!D135<>"",'Eingaben (Inputs)'!D135,'1a. Defaults Segment-Ebene'!D135) -> 58.625 | E135: =IF('Eingaben (Inputs)'!E135<>"",'Eingaben (Inputs)'!E135,"") -> kWh
C136: =IF('Eingaben (Inputs)'!C136<>"",'Eingaben (Inputs)'!C136,"") ->  | E136: =IF('Eingaben (Inputs)'!E136<>"",'Eingaben (Inputs)'!E136,"") -> 
C137: =IF('Eingaben (Inputs)'!C137<>"",'Eingaben (Inputs)'!C137,"") -> Fahr- und Nutzungsprofil (Angabe pro Fahrzeug) | E137: =IF('Eingaben (Inputs)'!E137<>"",'Eingaben (Inputs)'!E137,"") -> 
C138: =IF('Eingaben (Inputs)'!C138<>"",'Eingaben (Inputs)'!C138,"") -> Nutzungsmuster | D138: ='Eingaben (Inputs)'!D138 -> Werktagsbetrieb | E138: =IF('Eingaben (Inputs)'!E138<>"",'Eingaben (Inputs)'!E138,"") -> 
C139: =IF('Eingaben (Inputs)'!C139<>"",'Eingaben (Inputs)'!C139,"") -> Anzahl Arbeitstage pro Jahr | D139: =IF('Eingaben (Inputs)'!D139<>"",'Eingaben (Inputs)'!D139,'1a. Defaults Segment-Ebene'!D139) -> 260 | E139: =IF('Eingaben (Inputs)'!E139<>"",'Eingaben (Inputs)'!E139,"") -> 
C140: =IF('Eingaben (Inputs)'!C140<>"",'Eingaben (Inputs)'!C140,"") -> Fahrdistanz während der Arbeitszeit | D140: =IF('Eingaben (Inputs)'!D140<>"",'Eingaben (Inputs)'!D140,'1a. Defaults Segment-Ebene'!D140) -> 100 | E140: =IF('Eingaben (Inputs)'!E140<>"",'Eingaben (Inputs)'!E140,"") -> km/Tag
C141: =IF('Eingaben (Inputs)'!C141<>"",'Eingaben (Inputs)'!C141,"") -> Pendeldistanz (Hin- und Rückfahrt) | D141: =(_xlfn.XMATCH(D127,Einsatzart)-1)*IF('Eingaben (Inputs)'!D141<>"",'Eingaben (Inputs)'!D141,'1a. Defaults Segment-Ebene'!D141) -> 0 | E141: =IF('Eingaben (Inputs)'!E141<>"",'Eingaben (Inputs)'!E141,"") -> km/Tag
C142: =IF('Eingaben (Inputs)'!C142<>"",'Eingaben (Inputs)'!C142,"") -> Anzahl Einsätze pro Tag | D142: =IF('Eingaben (Inputs)'!D142<>"",'Eingaben (Inputs)'!D142,'1a. Defaults Segment-Ebene'!D142) -> 1 | E142: =IF('Eingaben (Inputs)'!E142<>"",'Eingaben (Inputs)'!E142,"") -> 
C143: =IF('Eingaben (Inputs)'!C143<>"",'Eingaben (Inputs)'!C143,"") -> Anzahl Pausen pro Tag | D143: ='Eingaben (Inputs)'!D143 -> 1 | E143: =IF('Eingaben (Inputs)'!E143<>"",'Eingaben (Inputs)'!E143,"") -> 
C144: =IF('Eingaben (Inputs)'!C144<>"",'Eingaben (Inputs)'!C144,"") -> Standzeit pro Pause am Firmenstandort | D144: =IF('Eingaben (Inputs)'!D144<>"",'Eingaben (Inputs)'!D144,'1a. Defaults Segment-Ebene'!D144) -> 1 | E144: =IF('Eingaben (Inputs)'!E144<>"",'Eingaben (Inputs)'!E144,"") -> Stunden
C145: =IF('Eingaben (Inputs)'!C145<>"",'Eingaben (Inputs)'!C145,"") -> Standzeit über Nacht | D145: =IF('Eingaben (Inputs)'!D145<>"",'Eingaben (Inputs)'!D145,'1a. Defaults Segment-Ebene'!D145)*IF(AND(_xlfn.XMATCH(D127,Einsatzart)=2,NOT(D129)),0,1) -> 8 | E145: =IF('Eingaben (Inputs)'!E145<>"",'Eingaben (Inputs)'!E145,"") -> Stunden
C146: =IF('Eingaben (Inputs)'!C146<>"",'Eingaben (Inputs)'!C146,"") -> Fahrzeuge pro Ladepunkt, Firmenstandort (tagsüber) | D146: =IF('Eingaben (Inputs)'!D146<>"",'Eingaben (Inputs)'!D146,'1a. Defaults Segment-Ebene'!D146) -> 1 | E146: =IF('Eingaben (Inputs)'!E146<>"",'Eingaben (Inputs)'!E146,"") -> 
C147: =IF('Eingaben (Inputs)'!C147<>"",'Eingaben (Inputs)'!C147,"") ->  | E147: =IF('Eingaben (Inputs)'!E147<>"",'Eingaben (Inputs)'!E147,"") -> 
C148: =IF('Eingaben (Inputs)'!C148<>"",'Eingaben (Inputs)'!C148,"") -> Kosten (Angabe pro Fahrzeug) | E148: =IF('Eingaben (Inputs)'!E148<>"",'Eingaben (Inputs)'!E148,"") -> 
C149: =IF('Eingaben (Inputs)'!C149<>"",'Eingaben (Inputs)'!C149,"") -> Laufzeit | D149: =IF('Eingaben (Inputs)'!D149<>"",'Eingaben (Inputs)'!D149,'1a. Defaults Segment-Ebene'!D149) -> 48 | E149: =IF('Eingaben (Inputs)'!E149<>"",'Eingaben (Inputs)'!E149,"") -> Monate
C150: =IF('Eingaben (Inputs)'!C150<>"",'Eingaben (Inputs)'!C150,"") -> Leasing-Zinssatz | D150: =IF('Eingaben (Inputs)'!D150<>"",'Eingaben (Inputs)'!D150,'1a. Defaults Segment-Ebene'!D150) -> 3.0% | E150: =IF('Eingaben (Inputs)'!E150<>"",'Eingaben (Inputs)'!E150,"") -> 
C151: =IF('Eingaben (Inputs)'!C151<>"",'Eingaben (Inputs)'!C151,"") -> Anschaffungspreis inkl. Flottenrabatt Verbrenner | D151: =IF('Eingaben (Inputs)'!D151<>"",'Eingaben (Inputs)'!D151,'1a. Defaults Segment-Ebene'!D151) -> 27,219 | E151: =IF('Eingaben (Inputs)'!E151<>"",'Eingaben (Inputs)'!E151,"") -> CHF
C152: =IF('Eingaben (Inputs)'!C152<>"",'Eingaben (Inputs)'!C152,"") -> Service- und Reparaturkosten Verbrenner | D152: =IF('Eingaben (Inputs)'!D152<>"",'Eingaben (Inputs)'!D152,'1a. Defaults Segment-Ebene'!D152) -> 0.05 | E152: =IF('Eingaben (Inputs)'!E152<>"",'Eingaben (Inputs)'!E152,"") -> CHF/km
C153: =IF('Eingaben (Inputs)'!C153<>"",'Eingaben (Inputs)'!C153,"") -> Restwert Verbrenner | D153: =IF('Eingaben (Inputs)'!D153<>"",'Eingaben (Inputs)'!D153,'1a. Defaults Segment-Ebene'!D153) -> 32% | E153: =IF('Eingaben (Inputs)'!E153<>"",'Eingaben (Inputs)'!E153,"") -> 
C154: =IF('Eingaben (Inputs)'!C154<>"",'Eingaben (Inputs)'!C154,"") -> Anschaffungspreis inkl. Flottenrabatt E-Fahrzeug | D154: =IF('Eingaben (Inputs)'!D154<>"",'Eingaben (Inputs)'!D154,'1a. Defaults Segment-Ebene'!D154) -> 28,811 | E154: =IF('Eingaben (Inputs)'!E154<>"",'Eingaben (Inputs)'!E154,"") -> CHF
C155: =IF('Eingaben (Inputs)'!C155<>"",'Eingaben (Inputs)'!C155,"") -> Service- und Reparaturkosten E-Fahrzeug | D155: =IF('Eingaben (Inputs)'!D155<>"",'Eingaben (Inputs)'!D155,'1a. Defaults Segment-Ebene'!D155) -> 0.025 | E155: =IF('Eingaben (Inputs)'!E155<>"",'Eingaben (Inputs)'!E155,"") -> CHF/km
C156: =IF('Eingaben (Inputs)'!C156<>"",'Eingaben (Inputs)'!C156,"") -> Restwert E-Fahrzeug | D156: =IF('Eingaben (Inputs)'!D156<>"",'Eingaben (Inputs)'!D156,'1a. Defaults Segment-Ebene'!D156) -> 31% | E156: =IF('Eingaben (Inputs)'!E156<>"",'Eingaben (Inputs)'!E156,"") -> 
C157: =IF('Eingaben (Inputs)'!C157<>"",'Eingaben (Inputs)'!C157,"") ->  | E157: =IF('Eingaben (Inputs)'!E157<>"",'Eingaben (Inputs)'!E157,"") -> 
C158: =IF('Eingaben (Inputs)'!C158<>"",'Eingaben (Inputs)'!C158,"") ->  | E158: =IF('Eingaben (Inputs)'!E158<>"",'Eingaben (Inputs)'!E158,"") -> 
B159: 2.5) | C159: =IF('Eingaben (Inputs)'!C159<>"",'Eingaben (Inputs)'!C159,"") -> Segment E | D159: =D123+1 -> 5 | E159: =IF('Eingaben (Inputs)'!E159<>"",'Eingaben (Inputs)'!E159,"") -> 
C160: =IF('Eingaben (Inputs)'!C160<>"",'Eingaben (Inputs)'!C160,"") ->  | E160: =IF('Eingaben (Inputs)'!E160<>"",'Eingaben (Inputs)'!E160,"") -> 
C161: =IF('Eingaben (Inputs)'!C161<>"",'Eingaben (Inputs)'!C161,"") -> Segmentstruktur | E161: =IF('Eingaben (Inputs)'!E161<>"",'Eingaben (Inputs)'!E161,"") -> 
C162: =IF('Eingaben (Inputs)'!C162<>"",'Eingaben (Inputs)'!C162,"") -> Anzahl Fahrzeuge | D162: =IF(D159<=$D$12,'Eingaben (Inputs)'!D162,0) -> 0 | E162: =IF('Eingaben (Inputs)'!E162<>"",'Eingaben (Inputs)'!E162,"") -> 
C163: =IF('Eingaben (Inputs)'!C163<>"",'Eingaben (Inputs)'!C163,"") -> Einsatzart | D163: ='Eingaben (Inputs)'!D163 -> Poolfahrzeuge | E163: =IF('Eingaben (Inputs)'!E163<>"",'Eingaben (Inputs)'!E163,"") -> 
C164: =IF('Eingaben (Inputs)'!C164<>"",'Eingaben (Inputs)'!C164,"") -> Einsatzgebiet | D164: ='Eingaben (Inputs)'!D164 -> regional | E164: =IF('Eingaben (Inputs)'!E164<>"",'Eingaben (Inputs)'!E164,"") -> 
C165: =IF('Eingaben (Inputs)'!C165<>"",'Eingaben (Inputs)'!C165,"") -> Heimlademöglichkeit | D165: =INDEX(OFFSET(Heimladen,0,1),_xlfn.XMATCH('Eingaben (Inputs)'!D165,Heimladen)) -> 0 | E165: =IF('Eingaben (Inputs)'!E165<>"",'Eingaben (Inputs)'!E165,"") -> 
C166: =IF('Eingaben (Inputs)'!C166<>"",'Eingaben (Inputs)'!C166,"") ->  | E166: =IF('Eingaben (Inputs)'!E166<>"",'Eingaben (Inputs)'!E166,"") -> 
C167: =IF('Eingaben (Inputs)'!C167<>"",'Eingaben (Inputs)'!C167,"") -> Fahrzeugdaten | E167: =IF('Eingaben (Inputs)'!E167<>"",'Eingaben (Inputs)'!E167,"") -> 
C168: =IF('Eingaben (Inputs)'!C168<>"",'Eingaben (Inputs)'!C168,"") -> Fahrzeuggrösse | D168: ='Eingaben (Inputs)'!D168 -> Mittelklasse | E168: =IF('Eingaben (Inputs)'!E168<>"",'Eingaben (Inputs)'!E168,"") -> 
C169: =IF('Eingaben (Inputs)'!C169<>"",'Eingaben (Inputs)'!C169,"") -> Treibstoffverbrauch Verbrenner | D169: =IF('Eingaben (Inputs)'!D169<>"",'Eingaben (Inputs)'!D169,'1a. Defaults Segment-Ebene'!D169) -> 5.8 | E169: =IF('Eingaben (Inputs)'!E169<>"",'Eingaben (Inputs)'!E169,"") -> l/100 km
C170: =IF('Eingaben (Inputs)'!C170<>"",'Eingaben (Inputs)'!C170,"") -> Energieverbrauch E-Fahrzeug | D170: =IF('Eingaben (Inputs)'!D170<>"",'Eingaben (Inputs)'!D170,'1a. Defaults Segment-Ebene'!D170) -> 15.1 | E170: =IF('Eingaben (Inputs)'!E170<>"",'Eingaben (Inputs)'!E170,"") -> kWh/100 km
C171: =IF('Eingaben (Inputs)'!C171<>"",'Eingaben (Inputs)'!C171,"") -> Batteriekapazität (netto) | D171: =IF('Eingaben (Inputs)'!D171<>"",'Eingaben (Inputs)'!D171,'1a. Defaults Segment-Ebene'!D171) -> 58.625 | E171: =IF('Eingaben (Inputs)'!E171<>"",'Eingaben (Inputs)'!E171,"") -> kWh
C172: =IF('Eingaben (Inputs)'!C172<>"",'Eingaben (Inputs)'!C172,"") ->  | E172: =IF('Eingaben (Inputs)'!E172<>"",'Eingaben (Inputs)'!E172,"") -> 
C173: =IF('Eingaben (Inputs)'!C173<>"",'Eingaben (Inputs)'!C173,"") -> Fahr- und Nutzungsprofil (Angabe pro Fahrzeug) | E173: =IF('Eingaben (Inputs)'!E173<>"",'Eingaben (Inputs)'!E173,"") -> 
C174: =IF('Eingaben (Inputs)'!C174<>"",'Eingaben (Inputs)'!C174,"") -> Nutzungsmuster | D174: ='Eingaben (Inputs)'!D174 -> Werktagsbetrieb | E174: =IF('Eingaben (Inputs)'!E174<>"",'Eingaben (Inputs)'!E174,"") -> 
C175: =IF('Eingaben (Inputs)'!C175<>"",'Eingaben (Inputs)'!C175,"") -> Anzahl Arbeitstage pro Jahr | D175: =IF('Eingaben (Inputs)'!D175<>"",'Eingaben (Inputs)'!D175,'1a. Defaults Segment-Ebene'!D175) -> 260 | E175: =IF('Eingaben (Inputs)'!E175<>"",'Eingaben (Inputs)'!E175,"") -> 
C176: =IF('Eingaben (Inputs)'!C176<>"",'Eingaben (Inputs)'!C176,"") -> Fahrdistanz während der Arbeitszeit | D176: =IF('Eingaben (Inputs)'!D176<>"",'Eingaben (Inputs)'!D176,'1a. Defaults Segment-Ebene'!D176) -> 100 | E176: =IF('Eingaben (Inputs)'!E176<>"",'Eingaben (Inputs)'!E176,"") -> km/Tag
C177: =IF('Eingaben (Inputs)'!C177<>"",'Eingaben (Inputs)'!C177,"") -> Pendeldistanz (Hin- und Rückfahrt) | D177: =(_xlfn.XMATCH(D163,Einsatzart)-1)*IF('Eingaben (Inputs)'!D177<>"",'Eingaben (Inputs)'!D177,'1a. Defaults Segment-Ebene'!D177) -> 0 | E177: =IF('Eingaben (Inputs)'!E177<>"",'Eingaben (Inputs)'!E177,"") -> km/Tag
C178: =IF('Eingaben (Inputs)'!C178<>"",'Eingaben (Inputs)'!C178,"") -> Anzahl Einsätze pro Tag | D178: =IF('Eingaben (Inputs)'!D178<>"",'Eingaben (Inputs)'!D178,'1a. Defaults Segment-Ebene'!D178) -> 1 | E178: =IF('Eingaben (Inputs)'!E178<>"",'Eingaben (Inputs)'!E178,"") -> 
C179: =IF('Eingaben (Inputs)'!C179<>"",'Eingaben (Inputs)'!C179,"") -> Anzahl Pausen pro Tag | D179: ='Eingaben (Inputs)'!D179 -> 1 | E179: =IF('Eingaben (Inputs)'!E179<>"",'Eingaben (Inputs)'!E179,"") -> 
C180: =IF('Eingaben (Inputs)'!C180<>"",'Eingaben (Inputs)'!C180,"") -> Standzeit pro Pause am Firmenstandort | D180: =IF('Eingaben (Inputs)'!D180<>"",'Eingaben (Inputs)'!D180,'1a. Defaults Segment-Ebene'!D180) -> 1 | E180: =IF('Eingaben (Inputs)'!E180<>"",'Eingaben (Inputs)'!E180,"") -> Stunden
C181: =IF('Eingaben (Inputs)'!C181<>"",'Eingaben (Inputs)'!C181,"") -> Standzeit über Nacht | D181: =IF('Eingaben (Inputs)'!D181<>"",'Eingaben (Inputs)'!D181,'1a. Defaults Segment-Ebene'!D181)*IF(AND(_xlfn.XMATCH(D163,Einsatzart)=2,NOT(D165)),0,1) -> 8 | E181: =IF('Eingaben (Inputs)'!E181<>"",'Eingaben (Inputs)'!E181,"") -> Stunden
C182: =IF('Eingaben (Inputs)'!C182<>"",'Eingaben (Inputs)'!C182,"") -> Fahrzeuge pro Ladepunkt, Firmenstandort (tagsüber) | D182: =IF('Eingaben (Inputs)'!D182<>"",'Eingaben (Inputs)'!D182,'1a. Defaults Segment-Ebene'!D182) -> 1 | E182: =IF('Eingaben (Inputs)'!E182<>"",'Eingaben (Inputs)'!E182,"") -> 
C183: =IF('Eingaben (Inputs)'!C183<>"",'Eingaben (Inputs)'!C183,"") ->  | E183: =IF('Eingaben (Inputs)'!E183<>"",'Eingaben (Inputs)'!E183,"") -> 
C184: =IF('Eingaben (Inputs)'!C184<>"",'Eingaben (Inputs)'!C184,"") -> Kosten (Angabe pro Fahrzeug) | E184: =IF('Eingaben (Inputs)'!E184<>"",'Eingaben (Inputs)'!E184,"") -> 
C185: =IF('Eingaben (Inputs)'!C185<>"",'Eingaben (Inputs)'!C185,"") -> Laufzeit | D185: =IF('Eingaben (Inputs)'!D185<>"",'Eingaben (Inputs)'!D185,'1a. Defaults Segment-Ebene'!D185) -> 48 | E185: =IF('Eingaben (Inputs)'!E185<>"",'Eingaben (Inputs)'!E185,"") -> Monate
C186: =IF('Eingaben (Inputs)'!C186<>"",'Eingaben (Inputs)'!C186,"") -> Leasing-Zinssatz | D186: =IF('Eingaben (Inputs)'!D186<>"",'Eingaben (Inputs)'!D186,'1a. Defaults Segment-Ebene'!D186) -> 3.0% | E186: =IF('Eingaben (Inputs)'!E186<>"",'Eingaben (Inputs)'!E186,"") -> 
C187: =IF('Eingaben (Inputs)'!C187<>"",'Eingaben (Inputs)'!C187,"") -> Anschaffungspreis inkl. Flottenrabatt Verbrenner | D187: =IF('Eingaben (Inputs)'!D187<>"",'Eingaben (Inputs)'!D187,'1a. Defaults Segment-Ebene'!D187) -> 27,219 | E187: =IF('Eingaben (Inputs)'!E187<>"",'Eingaben (Inputs)'!E187,"") -> CHF
C188: =IF('Eingaben (Inputs)'!C188<>"",'Eingaben (Inputs)'!C188,"") -> Service- und Reparaturkosten Verbrenner | D188: =IF('Eingaben (Inputs)'!D188<>"",'Eingaben (Inputs)'!D188,'1a. Defaults Segment-Ebene'!D188) -> 0.05 | E188: =IF('Eingaben (Inputs)'!E188<>"",'Eingaben (Inputs)'!E188,"") -> CHF/km
C189: =IF('Eingaben (Inputs)'!C189<>"",'Eingaben (Inputs)'!C189,"") -> Restwert Verbrenner | D189: =IF('Eingaben (Inputs)'!D189<>"",'Eingaben (Inputs)'!D189,'1a. Defaults Segment-Ebene'!D189) -> 32% | E189: =IF('Eingaben (Inputs)'!E189<>"",'Eingaben (Inputs)'!E189,"") -> 
C190: =IF('Eingaben (Inputs)'!C190<>"",'Eingaben (Inputs)'!C190,"") -> Anschaffungspreis inkl. Flottenrabatt E-Fahrzeug | D190: =IF('Eingaben (Inputs)'!D190<>"",'Eingaben (Inputs)'!D190,'1a. Defaults Segment-Ebene'!D190) -> 28,811 | E190: =IF('Eingaben (Inputs)'!E190<>"",'Eingaben (Inputs)'!E190,"") -> CHF
C191: =IF('Eingaben (Inputs)'!C191<>"",'Eingaben (Inputs)'!C191,"") -> Service- und Reparaturkosten E-Fahrzeug | D191: =IF('Eingaben (Inputs)'!D191<>"",'Eingaben (Inputs)'!D191,'1a. Defaults Segment-Ebene'!D191) -> 0.025 | E191: =IF('Eingaben (Inputs)'!E191<>"",'Eingaben (Inputs)'!E191,"") -> CHF/km
C192: =IF('Eingaben (Inputs)'!C192<>"",'Eingaben (Inputs)'!C192,"") -> Restwert E-Fahrzeug | D192: =IF('Eingaben (Inputs)'!D192<>"",'Eingaben (Inputs)'!D192,'1a. Defaults Segment-Ebene'!D192) -> 31% | E192: =IF('Eingaben (Inputs)'!E192<>"",'Eingaben (Inputs)'!E192,"") -> 
C193: =IF('Eingaben (Inputs)'!C193<>"",'Eingaben (Inputs)'!C193,"") ->  | E193: =IF('Eingaben (Inputs)'!E193<>"",'Eingaben (Inputs)'!E193,"") -> 
C194: =IF('Eingaben (Inputs)'!C194<>"",'Eingaben (Inputs)'!C194,"") ->  | E194: =IF('Eingaben (Inputs)'!E194<>"",'Eingaben (Inputs)'!E194,"") -> 
B195: 2.6) | C195: =IF('Eingaben (Inputs)'!C195<>"",'Eingaben (Inputs)'!C195,"") -> Segment F | D195: =D159+1 -> 6 | E195: =IF('Eingaben (Inputs)'!E195<>"",'Eingaben (Inputs)'!E195,"") -> 
C196: =IF('Eingaben (Inputs)'!C196<>"",'Eingaben (Inputs)'!C196,"") ->  | E196: =IF('Eingaben (Inputs)'!E196<>"",'Eingaben (Inputs)'!E196,"") -> 
C197: =IF('Eingaben (Inputs)'!C197<>"",'Eingaben (Inputs)'!C197,"") -> Segmentstruktur | E197: =IF('Eingaben (Inputs)'!E197<>"",'Eingaben (Inputs)'!E197,"") -> 
C198: =IF('Eingaben (Inputs)'!C198<>"",'Eingaben (Inputs)'!C198,"") -> Anzahl Fahrzeuge | D198: =IF(D195<=$D$12,'Eingaben (Inputs)'!D198,0) -> 0 | E198: =IF('Eingaben (Inputs)'!E198<>"",'Eingaben (Inputs)'!E198,"") -> 
C199: =IF('Eingaben (Inputs)'!C199<>"",'Eingaben (Inputs)'!C199,"") -> Einsatzart | D199: ='Eingaben (Inputs)'!D199 -> Poolfahrzeuge | E199: =IF('Eingaben (Inputs)'!E199<>"",'Eingaben (Inputs)'!E199,"") -> 
C200: =IF('Eingaben (Inputs)'!C200<>"",'Eingaben (Inputs)'!C200,"") -> Einsatzgebiet | D200: ='Eingaben (Inputs)'!D200 -> regional | E200: =IF('Eingaben (Inputs)'!E200<>"",'Eingaben (Inputs)'!E200,"") -> 
C201: =IF('Eingaben (Inputs)'!C201<>"",'Eingaben (Inputs)'!C201,"") -> Heimlademöglichkeit | D201: =INDEX(OFFSET(Heimladen,0,1),_xlfn.XMATCH('Eingaben (Inputs)'!D201,Heimladen)) -> 0 | E201: =IF('Eingaben (Inputs)'!E201<>"",'Eingaben (Inputs)'!E201,"") -> 
C202: =IF('Eingaben (Inputs)'!C202<>"",'Eingaben (Inputs)'!C202,"") ->  | E202: =IF('Eingaben (Inputs)'!E202<>"",'Eingaben (Inputs)'!E202,"") -> 
C203: =IF('Eingaben (Inputs)'!C203<>"",'Eingaben (Inputs)'!C203,"") -> Fahrzeugdaten | E203: =IF('Eingaben (Inputs)'!E203<>"",'Eingaben (Inputs)'!E203,"") -> 
C204: =IF('Eingaben (Inputs)'!C204<>"",'Eingaben (Inputs)'!C204,"") -> Fahrzeuggrösse | D204: ='Eingaben (Inputs)'!D204 -> Mittelklasse | E204: =IF('Eingaben (Inputs)'!E204<>"",'Eingaben (Inputs)'!E204,"") -> 
C205: =IF('Eingaben (Inputs)'!C205<>"",'Eingaben (Inputs)'!C205,"") -> Treibstoffverbrauch Verbrenner | D205: =IF('Eingaben (Inputs)'!D205<>"",'Eingaben (Inputs)'!D205,'1a. Defaults Segment-Ebene'!D205) -> 5.8 | E205: =IF('Eingaben (Inputs)'!E205<>"",'Eingaben (Inputs)'!E205,"") -> l/100 km
C206: =IF('Eingaben (Inputs)'!C206<>"",'Eingaben (Inputs)'!C206,"") -> Energieverbrauch E-Fahrzeug | D206: =IF('Eingaben (Inputs)'!D206<>"",'Eingaben (Inputs)'!D206,'1a. Defaults Segment-Ebene'!D206) -> 15.1 | E206: =IF('Eingaben (Inputs)'!E206<>"",'Eingaben (Inputs)'!E206,"") -> kWh/100 km
C207: =IF('Eingaben (Inputs)'!C207<>"",'Eingaben (Inputs)'!C207,"") -> Batteriekapazität (netto) | D207: =IF('Eingaben (Inputs)'!D207<>"",'Eingaben (Inputs)'!D207,'1a. Defaults Segment-Ebene'!D207) -> 58.625 | E207: =IF('Eingaben (Inputs)'!E207<>"",'Eingaben (Inputs)'!E207,"") -> kWh
C208: =IF('Eingaben (Inputs)'!C208<>"",'Eingaben (Inputs)'!C208,"") ->  | E208: =IF('Eingaben (Inputs)'!E208<>"",'Eingaben (Inputs)'!E208,"") -> 
... 164 more rows

Sheet 1c. Inputs Segment Summary (hidden)
B1: Anzahl Fahrzeuge | C1: … davon Poolfahrzeug | D1: … davon Dienstfahrzeuge | E1: Einsatzart | F1: Anzahl Fahrzeuge | G1: … davon Poolfahrzeug | H1: … davon Dienstfahrzeuge | I1: Einsatzgebiet | J1: Laden am Wohnort möglich? | K1: Fahrzeuggrösse | L1: Batteriekapazität (nutzbar) | M1: Energieverbrauch (E-Fahrzeug) | N1: Treibstoffverbrauch (Verbrenner) | O1: Nutzungsmuster | P1: Anzahl Arbeitstage pro Jahr | Q1: Ø Fahrleistung während der Arbeitszeit | R1: Ø Pendeldistanz (Hin- und Rückfahrt) | S1: Anzahl Einsätze pro Tag | T1: Anzahl Pausen pro Tag | U1: Ø Standzeit pro Pause | V1: Ø Standzeit über Nacht | W1: Fahrzeuge pro Ladepunkt | X1: Anschaffung (E-Fahrzeug, netto) | Y1: Anschaffung (Verbrenner, netto) | Z1: Zinssatz | AA1: Laufzeit | AB1: Wartungs- und Betriebskosten (Verbrenner) | AC1: Restwert (Verbrenner) | AD1: Wartungs- und Betriebskosten (E-Fzg.) | AE1: Restwert (E-Fzg.)
A2: Segment A | B2: =SUM(F$2:F2) -> 1 | C2: =SUM(G$2:G2) -> 1 | D2: =SUM(H$2:H2) -> 0 | E2: ='1b. Corrected Inputs Segment'!$D$19 -> Poolfahrzeuge | F2: ='1b. Corrected Inputs Segment'!$D$18 -> 1 | G2: =IF(E2=INDEX(Einsatzart,1),F2,0) -> 1 | H2: =IF(E2=INDEX(Einsatzart,1),0,F2) -> 0 | I2: ='1b. Corrected Inputs Segment'!$D$20 -> regional | J2: ='1b. Corrected Inputs Segment'!$D$21 -> 0 | K2: ='1b. Corrected Inputs Segment'!$D$24 -> Mittelklasse | L2: ='1b. Corrected Inputs Segment'!$D$27*'2d. Annahmen'!$G$2 -> 46.9 | M2: ='1b. Corrected Inputs Segment'!$D$26 -> 15.1 | N2: ='1b. Corrected Inputs Segment'!$D$25 -> 5.8 | O2: ='1b. Corrected Inputs Segment'!$D$30 -> Werktagsbetrieb | P2: ='1b. Corrected Inputs Segment'!$D$31 -> 260 | Q2: ='1b. Corrected Inputs Segment'!$D$32 -> 100 | R2: ='1b. Corrected Inputs Segment'!$D$33 -> 0 | S2: ='1b. Corrected Inputs Segment'!$D$34 -> 1 | T2: ='1b. Corrected Inputs Segment'!$D$35 -> 1 | U2: ='1b. Corrected Inputs Segment'!$D$36 -> 1.0 | V2: ='1b. Corrected Inputs Segment'!$D$37 -> 8.0 | W2: ='1b. Corrected Inputs Segment'!$D$38 -> 1.0 | X2: ='1b. Corrected Inputs Segment'!$D$46 -> 28,811 | Y2: ='1b. Corrected Inputs Segment'!$D$43 -> 27,219 | Z2: ='1b. Corrected Inputs Segment'!$D$42 -> 3.0% | AA2: ='1b. Corrected Inputs Segment'!$D$41 -> 48 | AB2: ='1b. Corrected Inputs Segment'!$D$44 -> 0.050 | AC2: ='1b. Corrected Inputs Segment'!$D$45 -> 32% | AD2: ='1b. Corrected Inputs Segment'!$D$47 -> 0.025 | AE2: ='1b. Corrected Inputs Segment'!$D$48 -> 31%
A3: Segment B | B3: =SUM(F$2:F3) -> 1 | C3: =SUM(G$2:G3) -> 1 | D3: =SUM(H$2:H3) -> 0 | E3: ='1b. Corrected Inputs Segment'!$D$55 -> Poolfahrzeuge | F3: ='1b. Corrected Inputs Segment'!$D$54 -> 0 | G3: =IF(E3=INDEX(Einsatzart,1),F3,0) -> 0 | H3: =IF(E3=INDEX(Einsatzart,1),0,F3) -> 0 | I3: ='1b. Corrected Inputs Segment'!$D$56 -> regional | J3: ='1b. Corrected Inputs Segment'!$D$57 -> 0 | K3: ='1b. Corrected Inputs Segment'!$D$60 -> Mittelklasse | L3: ='1b. Corrected Inputs Segment'!$D$63*'2d. Annahmen'!$G$2 -> 46.90 | M3: ='1b. Corrected Inputs Segment'!$D$62 -> 15.1 | N3: ='1b. Corrected Inputs Segment'!$D$61 -> 5.8 | O3: ='1b. Corrected Inputs Segment'!$D$66 -> Werktagsbetrieb | P3: ='1b. Corrected Inputs Segment'!$D$67 -> 260 | Q3: ='1b. Corrected Inputs Segment'!$D$68 -> 100 | R3: ='1b. Corrected Inputs Segment'!$D$69 -> 0 | S3: ='1b. Corrected Inputs Segment'!$D$70 -> 1 | T3: ='1b. Corrected Inputs Segment'!$D$71 -> 1 | U3: ='1b. Corrected Inputs Segment'!$D$72 -> 1.0 | V3: ='1b. Corrected Inputs Segment'!$D$73 -> 8.0 | W3: ='1b. Corrected Inputs Segment'!$D$74 -> 1.0 | X3: ='1b. Corrected Inputs Segment'!$D$82 -> 28,811 | Y3: ='1b. Corrected Inputs Segment'!$D$79 -> 27,219 | Z3: ='1b. Corrected Inputs Segment'!$D$78 -> 3.0% | AA3: ='1b. Corrected Inputs Segment'!$D$77 -> 48 | AB3: ='1b. Corrected Inputs Segment'!$D$80 -> 0.050 | AC3: ='1b. Corrected Inputs Segment'!$D$81 -> 32% | AD3: ='1b. Corrected Inputs Segment'!$D$83 -> 0.025 | AE3: ='1b. Corrected Inputs Segment'!$D$84 -> 31%
A4: Segment C | B4: =SUM(F$2:F4) -> 1 | C4: =SUM(G$2:G4) -> 1 | D4: =SUM(H$2:H4) -> 0 | E4: ='1b. Corrected Inputs Segment'!$D$91 -> Poolfahrzeuge | F4: ='1b. Corrected Inputs Segment'!$D$90 -> 0 | G4: 0 | H4: 0 | I4: ='1b. Corrected Inputs Segment'!$D$92 -> regional | J4: ='1b. Corrected Inputs Segment'!$D$93 -> 0 | K4: ='1b. Corrected Inputs Segment'!$D$96 -> Mittelklasse | L4: ='1b. Corrected Inputs Segment'!$D$99*'2d. Annahmen'!$G$2 -> 46.90 | M4: ='1b. Corrected Inputs Segment'!$D$98 -> 15.1 | N4: ='1b. Corrected Inputs Segment'!$D$97 -> 5.8 | O4: ='1b. Corrected Inputs Segment'!$D$102 -> Werktagsbetrieb | P4: ='1b. Corrected Inputs Segment'!$D$103 -> 260 | Q4: ='1b. Corrected Inputs Segment'!$D$104 -> 100 | R4: ='1b. Corrected Inputs Segment'!$D$105 -> 0 | S4: ='1b. Corrected Inputs Segment'!$D$106 -> 1 | T4: ='1b. Corrected Inputs Segment'!$D$107 -> 1 | U4: ='1b. Corrected Inputs Segment'!$D$108 -> 1.0 | V4: ='1b. Corrected Inputs Segment'!$D$109 -> 8.0 | W4: ='1b. Corrected Inputs Segment'!$D$110 -> 1.0 | X4: ='1b. Corrected Inputs Segment'!$D$118 -> 28,811 | Y4: ='1b. Corrected Inputs Segment'!$D$115 -> 27,219 | Z4: ='1b. Corrected Inputs Segment'!$D$114 -> 3.0% | AA4: ='1b. Corrected Inputs Segment'!$D$113 -> 48 | AB4: ='1b. Corrected Inputs Segment'!$D$116 -> 0.050 | AC4: ='1b. Corrected Inputs Segment'!$D$117 -> 32% | AD4: ='1b. Corrected Inputs Segment'!$D$119 -> 0.025 | AE4: ='1b. Corrected Inputs Segment'!$D$120 -> 31%
A5: Segment D | B5: =SUM(F$2:F5) -> 1 | C5: =SUM(G$2:G5) -> 1 | D5: =SUM(H$2:H5) -> 0 | E5: ='1b. Corrected Inputs Segment'!$D$127 -> Poolfahrzeuge | F5: ='1b. Corrected Inputs Segment'!$D$126 -> 0 | G5: 0 | H5: 0 | I5: ='1b. Corrected Inputs Segment'!$D$128 -> regional | J5: ='1b. Corrected Inputs Segment'!$D$129 -> 0 | K5: ='1b. Corrected Inputs Segment'!$D$132 -> Mittelklasse | L5: ='1b. Corrected Inputs Segment'!$D$135*'2d. Annahmen'!$G$2 -> 46.90 | M5: ='1b. Corrected Inputs Segment'!$D$134 -> 15.1 | N5: ='1b. Corrected Inputs Segment'!$D$133 -> 5.8 | O5: ='1b. Corrected Inputs Segment'!$D$138 -> Werktagsbetrieb | P5: ='1b. Corrected Inputs Segment'!$D$139 -> 260 | Q5: ='1b. Corrected Inputs Segment'!$D$140 -> 100 | R5: ='1b. Corrected Inputs Segment'!$D$141 -> 0 | S5: ='1b. Corrected Inputs Segment'!$D$142 -> 1 | T5: ='1b. Corrected Inputs Segment'!$D$143 -> 1 | U5: ='1b. Corrected Inputs Segment'!$D$144 -> 1.0 | V5: ='1b. Corrected Inputs Segment'!$D$145 -> 8.0 | W5: ='1b. Corrected Inputs Segment'!$D$146 -> 1.0 | X5: ='1b. Corrected Inputs Segment'!$D$154 -> 28,811 | Y5: ='1b. Corrected Inputs Segment'!$D$151 -> 27,219 | Z5: ='1b. Corrected Inputs Segment'!$D$150 -> 3.0% | AA5: ='1b. Corrected Inputs Segment'!$D$149 -> 48 | AB5: ='1b. Corrected Inputs Segment'!$D$152 -> 0.050 | AC5: ='1b. Corrected Inputs Segment'!$D$153 -> 32% | AD5: ='1b. Corrected Inputs Segment'!$D$155 -> 0.025 | AE5: ='1b. Corrected Inputs Segment'!$D$156 -> 31%
A6: Segment E | B6: =SUM(F$2:F6) -> 1 | C6: =SUM(G$2:G6) -> 1 | D6: =SUM(H$2:H6) -> 0 | E6: ='1b. Corrected Inputs Segment'!$D$163 -> Poolfahrzeuge | F6: ='1b. Corrected Inputs Segment'!$D$162 -> 0 | G6: 0 | H6: 0 | I6: ='1b. Corrected Inputs Segment'!$D$164 -> regional | J6: ='1b. Corrected Inputs Segment'!$D$165 -> 0 | K6: ='1b. Corrected Inputs Segment'!$D$168 -> Mittelklasse | L6: ='1b. Corrected Inputs Segment'!$D$171*'2d. Annahmen'!$G$2 -> 46.90 | M6: ='1b. Corrected Inputs Segment'!$D$170 -> 15.1 | N6: ='1b. Corrected Inputs Segment'!$D$169 -> 5.8 | O6: ='1b. Corrected Inputs Segment'!$D$174 -> Werktagsbetrieb | P6: ='1b. Corrected Inputs Segment'!$D$175 -> 260 | Q6: ='1b. Corrected Inputs Segment'!$D$176 -> 100 | R6: ='1b. Corrected Inputs Segment'!$D$177 -> 0 | S6: ='1b. Corrected Inputs Segment'!$D$178 -> 1 | T6: ='1b. Corrected Inputs Segment'!$D$179 -> 1 | U6: ='1b. Corrected Inputs Segment'!$D$180 -> 1.0 | V6: ='1b. Corrected Inputs Segment'!$D$181 -> 8.0 | W6: ='1b. Corrected Inputs Segment'!$D$182 -> 1.0 | X6: ='1b. Corrected Inputs Segment'!$D$190 -> 28,811 | Y6: ='1b. Corrected Inputs Segment'!$D$187 -> 27,219 | Z6: ='1b. Corrected Inputs Segment'!$D$186 -> 3.0% | AA6: ='1b. Corrected Inputs Segment'!$D$185 -> 48 | AB6: ='1b. Corrected Inputs Segment'!$D$188 -> 0.050 | AC6: ='1b. Corrected Inputs Segment'!$D$189 -> 32% | AD6: ='1b. Corrected Inputs Segment'!$D$191 -> 0.025 | AE6: ='1b. Corrected Inputs Segment'!$D$192 -> 31%
A7: Segment F | B7: =SUM(F$2:F7) -> 1 | C7: =SUM(G$2:G7) -> 1 | D7: =SUM(H$2:H7) -> 0 | E7: ='1b. Corrected Inputs Segment'!$D$199 -> Poolfahrzeuge | F7: ='1b. Corrected Inputs Segment'!$D$198 -> 0 | G7: 0 | H7: 0 | I7: ='1b. Corrected Inputs Segment'!$D$200 -> regional | J7: ='1b. Corrected Inputs Segment'!$D$201 -> 0 | K7: ='1b. Corrected Inputs Segment'!$D$204 -> Mittelklasse | L7: ='1b. Corrected Inputs Segment'!$D$207*'2d. Annahmen'!$G$2 -> 46.90 | M7: ='1b. Corrected Inputs Segment'!$D$206 -> 15.1 | N7: ='1b. Corrected Inputs Segment'!$D$205 -> 5.8 | O7: ='1b. Corrected Inputs Segment'!$D$210 -> Werktagsbetrieb | P7: ='1b. Corrected Inputs Segment'!$D$211 -> 260 | Q7: ='1b. Corrected Inputs Segment'!$D$212 -> 100 | R7: ='1b. Corrected Inputs Segment'!$D$213 -> 0 | S7: ='1b. Corrected Inputs Segment'!$D$214 -> 1 | T7: ='1b. Corrected Inputs Segment'!$D$215 -> 1 | U7: ='1b. Corrected Inputs Segment'!$D$216 -> 1.0 | V7: ='1b. Corrected Inputs Segment'!$D$217 -> 8.0 | W7: ='1b. Corrected Inputs Segment'!$D$218 -> 1.0 | X7: ='1b. Corrected Inputs Segment'!$D$226 -> 28,811 | Y7: ='1b. Corrected Inputs Segment'!$D$223 -> 27,219 | Z7: ='1b. Corrected Inputs Segment'!$D$222 -> 3.0% | AA7: ='1b. Corrected Inputs Segment'!$D$221 -> 48 | AB7: ='1b. Corrected Inputs Segment'!$D$224 -> 0.050 | AC7: ='1b. Corrected Inputs Segment'!$D$225 -> 32% | AD7: ='1b. Corrected Inputs Segment'!$D$227 -> 0.025 | AE7: ='1b. Corrected Inputs Segment'!$D$228 -> 31%
A8: Segment G | B8: =SUM(F$2:F8) -> 1 | C8: =SUM(G$2:G8) -> 1 | D8: =SUM(H$2:H8) -> 0 | E8: ='1b. Corrected Inputs Segment'!$D$235 -> Poolfahrzeuge | F8: ='1b. Corrected Inputs Segment'!$D$234 -> 0 | G8: 0 | H8: 0 | I8: ='1b. Corrected Inputs Segment'!$D$236 -> regional | J8: ='1b. Corrected Inputs Segment'!$D$237 -> 0 | K8: ='1b. Corrected Inputs Segment'!$D$240 -> Mittelklasse | L8: ='1b. Corrected Inputs Segment'!$D$243*'2d. Annahmen'!$G$2 -> 46.90 | M8: ='1b. Corrected Inputs Segment'!$D$242 -> 15.1 | N8: ='1b. Corrected Inputs Segment'!$D$241 -> 5.8 | O8: ='1b. Corrected Inputs Segment'!$D$246 -> Werktagsbetrieb | P8: ='1b. Corrected Inputs Segment'!$D$247 -> 260 | Q8: ='1b. Corrected Inputs Segment'!$D$248 -> 100 | R8: ='1b. Corrected Inputs Segment'!$D$249 -> 0 | S8: ='1b. Corrected Inputs Segment'!$D$250 -> 1 | T8: ='1b. Corrected Inputs Segment'!$D$251 -> 1 | U8: ='1b. Corrected Inputs Segment'!$D$252 -> 1.0 | V8: ='1b. Corrected Inputs Segment'!$D$253 -> 8.0 | W8: ='1b. Corrected Inputs Segment'!$D$254 -> 1.0 | X8: ='1b. Corrected Inputs Segment'!$D$262 -> 28,811 | Y8: ='1b. Corrected Inputs Segment'!$D$259 -> 27,219 | Z8: ='1b. Corrected Inputs Segment'!$D$258 -> 3.0% | AA8: ='1b. Corrected Inputs Segment'!$D$257 -> 48 | AB8: ='1b. Corrected Inputs Segment'!$D$260 -> 0.050 | AC8: ='1b. Corrected Inputs Segment'!$D$261 -> 32% | AD8: ='1b. Corrected Inputs Segment'!$D$263 -> 0.025 | AE8: ='1b. Corrected Inputs Segment'!$D$264 -> 31%
A9: Segment H | B9: =SUM(F$2:F9) -> 1 | C9: =SUM(G$2:G9) -> 1 | D9: =SUM(H$2:H9) -> 0 | E9: ='1b. Corrected Inputs Segment'!$D$271 -> Poolfahrzeuge | F9: ='1b. Corrected Inputs Segment'!$D$270 -> 0 | G9: 0 | H9: 0 | I9: ='1b. Corrected Inputs Segment'!$D$272 -> regional | J9: ='1b. Corrected Inputs Segment'!$D$273 -> 0 | K9: ='1b. Corrected Inputs Segment'!$D$276 -> Mittelklasse | L9: ='1b. Corrected Inputs Segment'!$D$279*'2d. Annahmen'!$G$2 -> 46.90 | M9: ='1b. Corrected Inputs Segment'!$D$278 -> 15.1 | N9: ='1b. Corrected Inputs Segment'!$D$277 -> 5.8 | O9: ='1b. Corrected Inputs Segment'!$D$282 -> Werktagsbetrieb | P9: ='1b. Corrected Inputs Segment'!$D$283 -> 260 | Q9: ='1b. Corrected Inputs Segment'!$D$284 -> 100 | R9: ='1b. Corrected Inputs Segment'!$D$285 -> 0 | S9: ='1b. Corrected Inputs Segment'!$D$286 -> 1 | T9: ='1b. Corrected Inputs Segment'!$D$287 -> 1 | U9: ='1b. Corrected Inputs Segment'!$D$288 -> 1.0 | V9: ='1b. Corrected Inputs Segment'!$D$289 -> 8.0 | W9: ='1b. Corrected Inputs Segment'!$D$290 -> 1.0 | X9: ='1b. Corrected Inputs Segment'!$D$298 -> 28,811 | Y9: ='1b. Corrected Inputs Segment'!$D$295 -> 27,219 | Z9: ='1b. Corrected Inputs Segment'!$D$294 -> 3.0% | AA9: ='1b. Corrected Inputs Segment'!$D$293 -> 48 | AB9: ='1b. Corrected Inputs Segment'!$D$296 -> 0.050 | AC9: ='1b. Corrected Inputs Segment'!$D$297 -> 32% | AD9: ='1b. Corrected Inputs Segment'!$D$299 -> 0.025 | AE9: ='1b. Corrected Inputs Segment'!$D$300 -> 31%
A10: Segment I | B10: =SUM(F$2:F10) -> 1 | C10: =SUM(G$2:G10) -> 1 | D10: =SUM(H$2:H10) -> 0 | E10: ='1b. Corrected Inputs Segment'!$D$307 -> Poolfahrzeuge | F10: ='1b. Corrected Inputs Segment'!$D$306 -> 0 | G10: 0 | H10: 0 | I10: ='1b. Corrected Inputs Segment'!$D$308 -> regional | J10: ='1b. Corrected Inputs Segment'!$D$309 -> 0 | K10: ='1b. Corrected Inputs Segment'!$D$312 -> Mittelklasse | L10: ='1b. Corrected Inputs Segment'!$D$315*'2d. Annahmen'!$G$2 -> 46.90 | M10: ='1b. Corrected Inputs Segment'!$D$314 -> 15.1 | N10: ='1b. Corrected Inputs Segment'!$D$313 -> 5.8 | O10: ='1b. Corrected Inputs Segment'!$D$318 -> Werktagsbetrieb | P10: ='1b. Corrected Inputs Segment'!$D$319 -> 260 | Q10: ='1b. Corrected Inputs Segment'!$D$320 -> 100 | R10: ='1b. Corrected Inputs Segment'!$D$321 -> 0 | S10: ='1b. Corrected Inputs Segment'!$D$322 -> 1 | T10: ='1b. Corrected Inputs Segment'!$D$323 -> 1 | U10: ='1b. Corrected Inputs Segment'!$D$324 -> 1.0 | V10: ='1b. Corrected Inputs Segment'!$D$325 -> 8.0 | W10: ='1b. Corrected Inputs Segment'!$D$326 -> 1.0 | X10: ='1b. Corrected Inputs Segment'!$D$334 -> 28,811 | Y10: ='1b. Corrected Inputs Segment'!$D$331 -> 27,219 | Z10: ='1b. Corrected Inputs Segment'!$D$330 -> 3.0% | AA10: ='1b. Corrected Inputs Segment'!$D$329 -> 48 | AB10: ='1b. Corrected Inputs Segment'!$D$332 -> 0.050 | AC10: ='1b. Corrected Inputs Segment'!$D$333 -> 32% | AD10: ='1b. Corrected Inputs Segment'!$D$335 -> 0.025 | AE10: ='1b. Corrected Inputs Segment'!$D$336 -> 31%
A11: Segment J | B11: =SUM(F$2:F11) -> 1 | C11: =SUM(G$2:G11) -> 1 | D11: =SUM(H$2:H11) -> 0 | E11: ='1b. Corrected Inputs Segment'!$D$343 -> Poolfahrzeuge | F11: ='1b. Corrected Inputs Segment'!$D$342 -> 0 | G11: 0 | H11: 0 | I11: ='1b. Corrected Inputs Segment'!$D$344 -> regional | J11: ='1b. Corrected Inputs Segment'!$D$345 -> 0 | K11: ='1b. Corrected Inputs Segment'!$D$348 -> Mittelklasse | L11: ='1b. Corrected Inputs Segment'!$D$351*'2d. Annahmen'!$G$2 -> 46.90 | M11: ='1b. Corrected Inputs Segment'!$D$350 -> 15.1 | N11: ='1b. Corrected Inputs Segment'!$D$349 -> 5.8 | O11: ='1b. Corrected Inputs Segment'!$D$354 -> Werktagsbetrieb | P11: ='1b. Corrected Inputs Segment'!$D$355 -> 260 | Q11: ='1b. Corrected Inputs Segment'!$D$356 -> 100 | R11: ='1b. Corrected Inputs Segment'!$D$357 -> 0 | S11: ='1b. Corrected Inputs Segment'!$D$358 -> 1 | T11: ='1b. Corrected Inputs Segment'!$D$359 -> 1 | U11: ='1b. Corrected Inputs Segment'!$D$360 -> 1.0 | V11: ='1b. Corrected Inputs Segment'!$D$361 -> 8.0 | W11: ='1b. Corrected Inputs Segment'!$D$362 -> 1.0 | X11: ='1b. Corrected Inputs Segment'!$D$370 -> 28,811 | Y11: ='1b. Corrected Inputs Segment'!$D$367 -> 27,219 | Z11: ='1b. Corrected Inputs Segment'!$D$366 -> 3.0% | AA11: ='1b. Corrected Inputs Segment'!$D$365 -> 48 | AB11: ='1b. Corrected Inputs Segment'!$D$368 -> 0.050 | AC11: ='1b. Corrected Inputs Segment'!$D$369 -> 32% | AD11: ='1b. Corrected Inputs Segment'!$D$371 -> 0.025 | AE11: ='1b. Corrected Inputs Segment'!$D$372 -> 31%
A12: Total | B12: Running Sums (above) | F12: =SUM(F2:F11) -> 1 | G12: =SUM(G2:G11) -> 1 | H12: =SUM(H2:H11) -> 0

Sheet 1d. Dropdown Lists (hidden)
A1: User | C1: Einsatzart | D1: Einsatzzweck | E1: Einsatzgebiet | F1: Nutzungsmuster | H1: Fahrzeuggrösse | J1: Laufzeit | L1: Ladeleistung (pro LP) | O1: Anzahl Segmente | R1: Heimladen
A2: Default Werte | C2: Poolfahrzeuge | D2: Aussendienst | E2: regional | F2: Werktagsbetrieb | H2: Kleinwagen | I2: Compact | J2: 12 | L2: 11 | M2: AC | O2: 1 | R2: Ja | S2: 1
A3: Eigene Eingaben | C3: Dienstfahrzeuge | D3: Lieferdienst | E3: schweizweit | F3: 24/7-Betrieb | H3: Mittelklasse | I3: Medium | J3: 24 | L3: 22 | M3: AC | O3: 2 | R3: Nein | S3: 0
E4: international | F4: Schichtbetrieb | H4: Oberklasse | I4: Large | J4: 36 | L4: 50 | M4: DC | O4: 3
H5: SUV | I5: SUV | J5: 48 | L5: 66 | M5: DC | O5: 4
J6: 60 | L6: 75 | M6: DC | O6: 5
J7: 72 | L7: 100 | M7: DC | O7: 6
L8: 120 | M8: DC | O8: 7
L9: 150 | M9: DC | O9: 8
L10: 180 | M10: DC | O10: 9
L11: 200 | M11: DC | O11: 10
L12: 225 | M12: DC
L13: 250 | M13: DC

Sheet 1e. Dropdown Values (hidden)
A1: Defaultwerte werden von Dropdownauswahl beeinflusst
A3: Einsatzgebiet | B3: =TRANSPOSE(Einsatzgebiet) -> regional | C3: schweizweit | D3: international
A4: Ø Fahrleistung während der Arbeitszeit (km) | B4: 100 | C4: 200 | D4: 400
A6: Nutzungsmuster | B6: =TRANSPOSE(Nutzungsmuster) -> Werktagsbetrieb | C6: 24/7-Betrieb | D6: Schichtbetrieb
A7: Anzahl Werktage | B7: =5*52 -> 260 | C7: =360 -> 360 | D7: 260
A8: Standzeit (übernacht) | B8: 8 | C8: 0 | D8: 0
A9: Ø Standzeit pro Pause | B9: 1 | C9: 1 | D9: 1
A10: Anzahl Fzg pro LP | B10: 1 | C10: 2 | D10: 2

Sheet 2. Eingaben Fahrzeug-Ebene (hidden)
A1: wird ausgeblendet ? | B1: Fahrzeugtyp | I1: Technische Details | T1: Fahrleistung | Z1: Ladekonzept
I2: E-Fahrzeug | O2: Verbrenner
B3: Used? | C3: Anzahl Fahrzeug | D3: Pool-fahrzeug | E3: Dienst-fahrzeug | F3: Fahrzeug-grösse | G3: Fahrzeug-grösse Index | H3: Laufzeit | I3: Batterie-kapazität (nutzbar) | J3: Energie-verbrauch | K3: Anschaffungs-kosten | L3: Restwert | M3: Endwert | N3: Unterhalts-kosten | O3: Treibstoff-verbrauch | P3: Anschaffungs-kosten | Q3: Restwert | R3: Endwert | S3: Unterhalts-kosten | T3: Fahrleistung während der Arbeit | U3: Pendeldistanz (Hin- und Rückfahrt) | V3: Tägliche Fahrleistung | W3: Anzahl Werktage | X3: Jährliche Fahrleistung | Y3: Fahrleistung während der Nutzungsdauer | Z3: Anzahl Einsätze | AA3: Anzahl Pausen vor 1. Einsatz | AB3: Anzahl Pausen am Firmen-standort (tagsüber) | AC3: Anzahl Pausen nach letzter Einsatz | AD3: Standzeit pro Pause | AE3: Standzeit am Firmen-standort (tagsüber) | AF3: Standzeit (über Nacht) | AG3: Laden am Wohnort (über Nacht) möglich | AH3: Laden am Firmen-standort (über Nacht) möglich | AI3: Fahrzeuge pro Ladepunkt, Firmenstandort (tagsüber)
A4: Segment | B4: - | C4: - | D4: - | E4: - | H4: Monate | I4: kWh | J4: kWh/100 km | K4: CHF | L4: % | M4: CHF | N4: CHF/km | O4: l/100 km | P4: CHF | Q4: % | R4: CHF | S4: CHF/km | T4: km | U4: km | V4: km | W4: - | X4: km | Y4: km | Z4: pro Tag | AB4: pro Tag | AD4: Stunden | AE4: Stunden/Tag | AF4: Stunden/Tag | AG4: - | AH4: - | AI4: -
A5: Segment 1 | B5: =('1c. Inputs Segment Summary'!F2>0)*1 -> 1 | C5: ='1c. Inputs Segment Summary'!F2 -> 1 | D5: =('1c. Inputs Segment Summary'!G2>0)*1 -> 1 | E5: =('1c. Inputs Segment Summary'!H2>0)*1 -> 0 | F5: =IF(B5,'1c. Inputs Segment Summary'!K2,"") -> Mittelklasse | G5: =IF(B5,_xlfn.XMATCH(F5,Grösse),0) -> 2 | H5: =IF(B5,'1c. Inputs Segment Summary'!AA2,0) -> 48 | I5: =IF(B5,'1c. Inputs Segment Summary'!L2,0) -> 47 | J5: =IF(B5,'1c. Inputs Segment Summary'!M2,0) -> 15 | K5: =IF(B5,'1c. Inputs Segment Summary'!X2,0) -> 28,811 | L5: =IF(B5,'1c. Inputs Segment Summary'!AE2,0) -> 31% | M5: =K5*L5 -> 8,833 | N5: =IF(B5,'1c. Inputs Segment Summary'!AD2,0) -> 0.03 | O5: =IF(B5,'1c. Inputs Segment Summary'!N2,0) -> 5.8 | P5: =IF(B5,'1c. Inputs Segment Summary'!Y2,0) -> 27,219 | Q5: =IF(B5,'1c. Inputs Segment Summary'!AC2,0) -> 32% | R5: =P5*Q5 -> 8,603 | S5: =IF(B5,'1c. Inputs Segment Summary'!AB2,0) -> 0.05 | T5: =IF(B5,'1c. Inputs Segment Summary'!Q2,0) -> 100 | U5: =IF(B5,'1c. Inputs Segment Summary'!R2,0) -> 0 | V5: =SUM(T5:U5) -> 100 | W5: =IF(B5,'1c. Inputs Segment Summary'!P2,0) -> 260 | X5: =W5*V5 -> 26,000 | Y5: =X5*(H5/12) -> 104,000 | Z5: =IF(B5,'1c. Inputs Segment Summary'!S2,0) -> 1 | AA5: =1 -> 1.0 | AB5: =IF(B5,Z5-1,0) -> 0 | AC5: =0 -> 0.0 | AD5: =IF(B5,'1c. Inputs Segment Summary'!U2,0) -> 1.0 | AE5: =SUM(AA5:AC5)*AD5 -> 1.0 | AF5: =IF(B5,'1c. Inputs Segment Summary'!V2,0) -> 8.0 | AG5: =IF(B5,$E5*'1c. Inputs Segment Summary'!J2,0) -> 0 | AH5: =1*$D5 -> 1 | AI5: =IF(B5,'1c. Inputs Segment Summary'!W2,0) -> 1
A6: Segment 2 | B6: =('1c. Inputs Segment Summary'!F3>0)*1 -> 0 | C6: ='1c. Inputs Segment Summary'!F3 -> 0 | D6: =('1c. Inputs Segment Summary'!G3>0)*1 -> 0 | E6: =('1c. Inputs Segment Summary'!H3>0)*1 -> 0 | F6: =IF(B6,'1c. Inputs Segment Summary'!K3,"") ->  | G6: 0 | H6: =IF(B6,'1c. Inputs Segment Summary'!AA3,0) -> 0 | I6: =IF(B6,'1c. Inputs Segment Summary'!L3,0) -> 0 | J6: =IF(B6,'1c. Inputs Segment Summary'!M3,0) -> 0 | K6: =IF(B6,'1c. Inputs Segment Summary'!X3,0) -> 0 | L6: =IF(B6,'1c. Inputs Segment Summary'!AE3,0) -> 0% | M6: =K6*L6 -> 0 | N6: =IF(B6,'1c. Inputs Segment Summary'!AD3,0) -> 0.00 | O6: =IF(B6,'1c. Inputs Segment Summary'!N3,0) -> 0.0 | P6: =IF(B6,'1c. Inputs Segment Summary'!Y3,0) -> 0 | Q6: =IF(B6,'1c. Inputs Segment Summary'!AC3,0) -> 0% | R6: =P6*Q6 -> 0 | S6: =IF(B6,'1c. Inputs Segment Summary'!AB3,0) -> 0.00 | T6: =IF(B6,'1c. Inputs Segment Summary'!Q3,0) -> 0 | U6: =IF(B6,'1c. Inputs Segment Summary'!R3,0) -> 0 | V6: =SUM(T6:U6) -> 0 | W6: =IF(B6,'1c. Inputs Segment Summary'!P3,0) -> 0 | X6: =W6*V6 -> 0 | Y6: =X6*(H6/12) -> 0 | Z6: =IF(B6,'1c. Inputs Segment Summary'!S3,0) -> 0 | AA6: =1 -> 1.0 | AB6: 0 | AC6: =0 -> 0.0 | AD6: =IF(B6,'1c. Inputs Segment Summary'!U3,0) -> 0.0 | AE6: =SUM(AA6:AC6)*AD6 -> 0.0 | AF6: =IF(B6,'1c. Inputs Segment Summary'!V3,0) -> 0.0 | AG6: =IF(B6,$E6*'1c. Inputs Segment Summary'!J3,0) -> 0 | AH6: =1*$D6 -> 0 | AI6: =IF(B6,'1c. Inputs Segment Summary'!W3,0) -> 0
A7: Segment 3 | B7: =('1c. Inputs Segment Summary'!F4>0)*1 -> 0 | C7: ='1c. Inputs Segment Summary'!F4 -> 0 | D7: =('1c. Inputs Segment Summary'!G4>0)*1 -> 0 | E7: =('1c. Inputs Segment Summary'!H4>0)*1 -> 0 | F7: =IF(B7,'1c. Inputs Segment Summary'!K4,"") ->  | G7: 0 | H7: =IF(B7,'1c. Inputs Segment Summary'!AA4,0) -> 0 | I7: =IF(B7,'1c. Inputs Segment Summary'!L4,0) -> 0 | J7: =IF(B7,'1c. Inputs Segment Summary'!M4,0) -> 0 | K7: =IF(B7,'1c. Inputs Segment Summary'!X4,0) -> 0 | L7: =IF(B7,'1c. Inputs Segment Summary'!AE4,0) -> 0% | M7: 0 | N7: =IF(B7,'1c. Inputs Segment Summary'!AD4,0) -> 0.00 | O7: =IF(B7,'1c. Inputs Segment Summary'!N4,0) -> 0.0 | P7: =IF(B7,'1c. Inputs Segment Summary'!Y4,0) -> 0 | Q7: =IF(B7,'1c. Inputs Segment Summary'!AC4,0) -> 0% | R7: 0 | S7: =IF(B7,'1c. Inputs Segment Summary'!AB4,0) -> 0.00 | T7: =IF(B7,'1c. Inputs Segment Summary'!Q4,0) -> 0 | U7: =IF(B7,'1c. Inputs Segment Summary'!R4,0) -> 0 | V7: 0 | W7: =IF(B7,'1c. Inputs Segment Summary'!P4,0) -> 0 | X7: 0 | Y7: 0 | Z7: =IF(B7,'1c. Inputs Segment Summary'!S4,0) -> 0 | AA7: =1 -> 1.0 | AB7: 0 | AC7: =0 -> 0.0 | AD7: =IF(B7,'1c. Inputs Segment Summary'!U4,0) -> 0.0 | AE7: 0.0 | AF7: =IF(B7,'1c. Inputs Segment Summary'!V4,0) -> 0.0 | AG7: =IF(B7,$E7*'1c. Inputs Segment Summary'!J4,0) -> 0 | AH7: 0 | AI7: =IF(B7,'1c. Inputs Segment Summary'!W4,0) -> 0
A8: Segment 4 | B8: =('1c. Inputs Segment Summary'!F5>0)*1 -> 0 | C8: ='1c. Inputs Segment Summary'!F5 -> 0 | D8: =('1c. Inputs Segment Summary'!G5>0)*1 -> 0 | E8: =('1c. Inputs Segment Summary'!H5>0)*1 -> 0 | F8: =IF(B8,'1c. Inputs Segment Summary'!K5,"") ->  | G8: 0 | H8: =IF(B8,'1c. Inputs Segment Summary'!AA5,0) -> 0 | I8: =IF(B8,'1c. Inputs Segment Summary'!L5,0) -> 0 | J8: =IF(B8,'1c. Inputs Segment Summary'!M5,0) -> 0 | K8: =IF(B8,'1c. Inputs Segment Summary'!X5,0) -> 0 | L8: =IF(B8,'1c. Inputs Segment Summary'!AE5,0) -> 0% | M8: 0 | N8: =IF(B8,'1c. Inputs Segment Summary'!AD5,0) -> 0.00 | O8: =IF(B8,'1c. Inputs Segment Summary'!N5,0) -> 0.0 | P8: =IF(B8,'1c. Inputs Segment Summary'!Y5,0) -> 0 | Q8: =IF(B8,'1c. Inputs Segment Summary'!AC5,0) -> 0% | R8: 0 | S8: =IF(B8,'1c. Inputs Segment Summary'!AB5,0) -> 0.00 | T8: =IF(B8,'1c. Inputs Segment Summary'!Q5,0) -> 0 | U8: =IF(B8,'1c. Inputs Segment Summary'!R5,0) -> 0 | V8: 0 | W8: =IF(B8,'1c. Inputs Segment Summary'!P5,0) -> 0 | X8: 0 | Y8: 0 | Z8: =IF(B8,'1c. Inputs Segment Summary'!S5,0) -> 0 | AA8: =1 -> 1.0 | AB8: 0 | AC8: =0 -> 0.0 | AD8: =IF(B8,'1c. Inputs Segment Summary'!U5,0) -> 0.0 | AE8: 0.0 | AF8: =IF(B8,'1c. Inputs Segment Summary'!V5,0) -> 0.0 | AG8: =IF(B8,$E8*'1c. Inputs Segment Summary'!J5,0) -> 0 | AH8: 0 | AI8: =IF(B8,'1c. Inputs Segment Summary'!W5,0) -> 0
A9: Segment 5 | B9: =('1c. Inputs Segment Summary'!F6>0)*1 -> 0 | C9: ='1c. Inputs Segment Summary'!F6 -> 0 | D9: =('1c. Inputs Segment Summary'!G6>0)*1 -> 0 | E9: =('1c. Inputs Segment Summary'!H6>0)*1 -> 0 | F9: =IF(B9,'1c. Inputs Segment Summary'!K6,"") ->  | G9: 0 | H9: =IF(B9,'1c. Inputs Segment Summary'!AA6,0) -> 0 | I9: =IF(B9,'1c. Inputs Segment Summary'!L6,0) -> 0 | J9: =IF(B9,'1c. Inputs Segment Summary'!M6,0) -> 0 | K9: =IF(B9,'1c. Inputs Segment Summary'!X6,0) -> 0 | L9: =IF(B9,'1c. Inputs Segment Summary'!AE6,0) -> 0% | M9: 0 | N9: =IF(B9,'1c. Inputs Segment Summary'!AD6,0) -> 0.00 | O9: =IF(B9,'1c. Inputs Segment Summary'!N6,0) -> 0.0 | P9: =IF(B9,'1c. Inputs Segment Summary'!Y6,0) -> 0 | Q9: =IF(B9,'1c. Inputs Segment Summary'!AC6,0) -> 0% | R9: 0 | S9: =IF(B9,'1c. Inputs Segment Summary'!AB6,0) -> 0.00 | T9: =IF(B9,'1c. Inputs Segment Summary'!Q6,0) -> 0 | U9: =IF(B9,'1c. Inputs Segment Summary'!R6,0) -> 0 | V9: 0 | W9: =IF(B9,'1c. Inputs Segment Summary'!P6,0) -> 0 | X9: 0 | Y9: 0 | Z9: =IF(B9,'1c. Inputs Segment Summary'!S6,0) -> 0 | AA9: =1 -> 1.0 | AB9: 0 | AC9: =0 -> 0.0 | AD9: =IF(B9,'1c. Inputs Segment Summary'!U6,0) -> 0.0 | AE9: 0.0 | AF9: =IF(B9,'1c. Inputs Segment Summary'!V6,0) -> 0.0 | AG9: =IF(B9,$E9*'1c. Inputs Segment Summary'!J6,0) -> 0 | AH9: 0 | AI9: =IF(B9,'1c. Inputs Segment Summary'!W6,0) -> 0
A10: Segment 6 | B10: =('1c. Inputs Segment Summary'!F7>0)*1 -> 0 | C10: ='1c. Inputs Segment Summary'!F7 -> 0 | D10: =('1c. Inputs Segment Summary'!G7>0)*1 -> 0 | E10: =('1c. Inputs Segment Summary'!H7>0)*1 -> 0 | F10: =IF(B10,'1c. Inputs Segment Summary'!K7,"") ->  | G10: 0 | H10: =IF(B10,'1c. Inputs Segment Summary'!AA7,0) -> 0 | I10: =IF(B10,'1c. Inputs Segment Summary'!L7,0) -> 0 | J10: =IF(B10,'1c. Inputs Segment Summary'!M7,0) -> 0 | K10: =IF(B10,'1c. Inputs Segment Summary'!X7,0) -> 0 | L10: =IF(B10,'1c. Inputs Segment Summary'!AE7,0) -> 0% | M10: 0 | N10: =IF(B10,'1c. Inputs Segment Summary'!AD7,0) -> 0.00 | O10: =IF(B10,'1c. Inputs Segment Summary'!N7,0) -> 0.0 | P10: =IF(B10,'1c. Inputs Segment Summary'!Y7,0) -> 0 | Q10: =IF(B10,'1c. Inputs Segment Summary'!AC7,0) -> 0% | R10: 0 | S10: =IF(B10,'1c. Inputs Segment Summary'!AB7,0) -> 0.00 | T10: =IF(B10,'1c. Inputs Segment Summary'!Q7,0) -> 0 | U10: =IF(B10,'1c. Inputs Segment Summary'!R7,0) -> 0 | V10: 0 | W10: =IF(B10,'1c. Inputs Segment Summary'!P7,0) -> 0 | X10: 0 | Y10: 0 | Z10: =IF(B10,'1c. Inputs Segment Summary'!S7,0) -> 0 | AA10: =1 -> 1.0 | AB10: 0 | AC10: =0 -> 0.0 | AD10: =IF(B10,'1c. Inputs Segment Summary'!U7,0) -> 0.0 | AE10: 0.0 | AF10: =IF(B10,'1c. Inputs Segment Summary'!V7,0) -> 0.0 | AG10: =IF(B10,$E10*'1c. Inputs Segment Summary'!J7,0) -> 0 | AH10: 0 | AI10: =IF(B10,'1c. Inputs Segment Summary'!W7,0) -> 0
A11: Segment 7 | B11: =('1c. Inputs Segment Summary'!F8>0)*1 -> 0 | C11: ='1c. Inputs Segment Summary'!F8 -> 0 | D11: =('1c. Inputs Segment Summary'!G8>0)*1 -> 0 | E11: =('1c. Inputs Segment Summary'!H8>0)*1 -> 0 | F11: =IF(B11,'1c. Inputs Segment Summary'!K8,"") ->  | G11: 0 | H11: =IF(B11,'1c. Inputs Segment Summary'!AA8,0) -> 0 | I11: =IF(B11,'1c. Inputs Segment Summary'!L8,0) -> 0 | J11: =IF(B11,'1c. Inputs Segment Summary'!M8,0) -> 0 | K11: =IF(B11,'1c. Inputs Segment Summary'!X8,0) -> 0 | L11: =IF(B11,'1c. Inputs Segment Summary'!AE8,0) -> 0% | M11: 0 | N11: =IF(B11,'1c. Inputs Segment Summary'!AD8,0) -> 0.00 | O11: =IF(B11,'1c. Inputs Segment Summary'!N8,0) -> 0.0 | P11: =IF(B11,'1c. Inputs Segment Summary'!Y8,0) -> 0 | Q11: =IF(B11,'1c. Inputs Segment Summary'!AC8,0) -> 0% | R11: 0 | S11: =IF(B11,'1c. Inputs Segment Summary'!AB8,0) -> 0.00 | T11: =IF(B11,'1c. Inputs Segment Summary'!Q8,0) -> 0 | U11: =IF(B11,'1c. Inputs Segment Summary'!R8,0) -> 0 | V11: 0 | W11: =IF(B11,'1c. Inputs Segment Summary'!P8,0) -> 0 | X11: 0 | Y11: 0 | Z11: =IF(B11,'1c. Inputs Segment Summary'!S8,0) -> 0 | AA11: =1 -> 1.0 | AB11: 0 | AC11: =0 -> 0.0 | AD11: =IF(B11,'1c. Inputs Segment Summary'!U8,0) -> 0.0 | AE11: 0.0 | AF11: =IF(B11,'1c. Inputs Segment Summary'!V8,0) -> 0.0 | AG11: =IF(B11,$E11*'1c. Inputs Segment Summary'!J8,0) -> 0 | AH11: 0 | AI11: =IF(B11,'1c. Inputs Segment Summary'!W8,0) -> 0
A12: Segment 8 | B12: =('1c. Inputs Segment Summary'!F9>0)*1 -> 0 | C12: ='1c. Inputs Segment Summary'!F9 -> 0 | D12: =('1c. Inputs Segment Summary'!G9>0)*1 -> 0 | E12: =('1c. Inputs Segment Summary'!H9>0)*1 -> 0 | F12: =IF(B12,'1c. Inputs Segment Summary'!K9,"") ->  | G12: 0 | H12: =IF(B12,'1c. Inputs Segment Summary'!AA9,0) -> 0 | I12: =IF(B12,'1c. Inputs Segment Summary'!L9,0) -> 0 | J12: =IF(B12,'1c. Inputs Segment Summary'!M9,0) -> 0 | K12: =IF(B12,'1c. Inputs Segment Summary'!X9,0) -> 0 | L12: =IF(B12,'1c. Inputs Segment Summary'!AE9,0) -> 0% | M12: 0 | N12: =IF(B12,'1c. Inputs Segment Summary'!AD9,0) -> 0.00 | O12: =IF(B12,'1c. Inputs Segment Summary'!N9,0) -> 0.0 | P12: =IF(B12,'1c. Inputs Segment Summary'!Y9,0) -> 0 | Q12: =IF(B12,'1c. Inputs Segment Summary'!AC9,0) -> 0% | R12: 0 | S12: =IF(B12,'1c. Inputs Segment Summary'!AB9,0) -> 0.00 | T12: =IF(B12,'1c. Inputs Segment Summary'!Q9,0) -> 0 | U12: =IF(B12,'1c. Inputs Segment Summary'!R9,0) -> 0 | V12: 0 | W12: =IF(B12,'1c. Inputs Segment Summary'!P9,0) -> 0 | X12: 0 | Y12: 0 | Z12: =IF(B12,'1c. Inputs Segment Summary'!S9,0) -> 0 | AA12: =1 -> 1.0 | AB12: 0 | AC12: =0 -> 0.0 | AD12: =IF(B12,'1c. Inputs Segment Summary'!U9,0) -> 0.0 | AE12: 0.0 | AF12: =IF(B12,'1c. Inputs Segment Summary'!V9,0) -> 0.0 | AG12: =IF(B12,$E12*'1c. Inputs Segment Summary'!J9,0) -> 0 | AH12: 0 | AI12: =IF(B12,'1c. Inputs Segment Summary'!W9,0) -> 0
A13: Segment 9 | B13: =('1c. Inputs Segment Summary'!F10>0)*1 -> 0 | C13: ='1c. Inputs Segment Summary'!F10 -> 0 | D13: =('1c. Inputs Segment Summary'!G10>0)*1 -> 0 | E13: =('1c. Inputs Segment Summary'!H10>0)*1 -> 0 | F13: =IF(B13,'1c. Inputs Segment Summary'!K10,"") ->  | G13: 0 | H13: =IF(B13,'1c. Inputs Segment Summary'!AA10,0) -> 0 | I13: =IF(B13,'1c. Inputs Segment Summary'!L10,0) -> 0 | J13: =IF(B13,'1c. Inputs Segment Summary'!M10,0) -> 0 | K13: =IF(B13,'1c. Inputs Segment Summary'!X10,0) -> 0 | L13: =IF(B13,'1c. Inputs Segment Summary'!AE10,0) -> 0% | M13: 0 | N13: =IF(B13,'1c. Inputs Segment Summary'!AD10,0) -> 0.00 | O13: =IF(B13,'1c. Inputs Segment Summary'!N10,0) -> 0.0 | P13: =IF(B13,'1c. Inputs Segment Summary'!Y10,0) -> 0 | Q13: =IF(B13,'1c. Inputs Segment Summary'!AC10,0) -> 0% | R13: 0 | S13: =IF(B13,'1c. Inputs Segment Summary'!AB10,0) -> 0.00 | T13: =IF(B13,'1c. Inputs Segment Summary'!Q10,0) -> 0 | U13: =IF(B13,'1c. Inputs Segment Summary'!R10,0) -> 0 | V13: 0 | W13: =IF(B13,'1c. Inputs Segment Summary'!P10,0) -> 0 | X13: 0 | Y13: 0 | Z13: =IF(B13,'1c. Inputs Segment Summary'!S10,0) -> 0 | AA13: =1 -> 1.0 | AB13: 0 | AC13: =0 -> 0.0 | AD13: =IF(B13,'1c. Inputs Segment Summary'!U10,0) -> 0.0 | AE13: 0.0 | AF13: =IF(B13,'1c. Inputs Segment Summary'!V10,0) -> 0.0 | AG13: =IF(B13,$E13*'1c. Inputs Segment Summary'!J10,0) -> 0 | AH13: 0 | AI13: =IF(B13,'1c. Inputs Segment Summary'!W10,0) -> 0
A14: Segment 10 | B14: =('1c. Inputs Segment Summary'!F11>0)*1 -> 0 | C14: ='1c. Inputs Segment Summary'!F11 -> 0 | D14: =('1c. Inputs Segment Summary'!G11>0)*1 -> 0 | E14: =('1c. Inputs Segment Summary'!H11>0)*1 -> 0 | F14: =IF(B14,'1c. Inputs Segment Summary'!K11,"") ->  | G14: 0 | H14: =IF(B14,'1c. Inputs Segment Summary'!AA11,0) -> 0 | I14: =IF(B14,'1c. Inputs Segment Summary'!L11,0) -> 0 | J14: =IF(B14,'1c. Inputs Segment Summary'!M11,0) -> 0 | K14: =IF(B14,'1c. Inputs Segment Summary'!X11,0) -> 0 | L14: =IF(B14,'1c. Inputs Segment Summary'!AE11,0) -> 0% | M14: 0 | N14: =IF(B14,'1c. Inputs Segment Summary'!AD11,0) -> 0.00 | O14: =IF(B14,'1c. Inputs Segment Summary'!N11,0) -> 0.0 | P14: =IF(B14,'1c. Inputs Segment Summary'!Y11,0) -> 0 | Q14: =IF(B14,'1c. Inputs Segment Summary'!AC11,0) -> 0% | R14: 0 | S14: =IF(B14,'1c. Inputs Segment Summary'!AB11,0) -> 0.00 | T14: =IF(B14,'1c. Inputs Segment Summary'!Q11,0) -> 0 | U14: =IF(B14,'1c. Inputs Segment Summary'!R11,0) -> 0 | V14: 0 | W14: =IF(B14,'1c. Inputs Segment Summary'!P11,0) -> 0 | X14: 0 | Y14: 0 | Z14: =IF(B14,'1c. Inputs Segment Summary'!S11,0) -> 0 | AA14: =1 -> 1.0 | AB14: 0 | AC14: =0 -> 0.0 | AD14: =IF(B14,'1c. Inputs Segment Summary'!U11,0) -> 0.0 | AE14: 0.0 | AF14: =IF(B14,'1c. Inputs Segment Summary'!V11,0) -> 0.0 | AG14: =IF(B14,$E14*'1c. Inputs Segment Summary'!J11,0) -> 0 | AH14: 0 | AI14: =IF(B14,'1c. Inputs Segment Summary'!W11,0) -> 0

Sheet 2a. Ladekonzept (hidden)
A1: Arbeitsblatt wird ausgeblendet | AA1: Quelle: SIA 2060 | AH1: Quelle: SIA 2060
D2: Verbrauch | H2: Trips | K2: Max. Energiemenge (inkl. Verlust Fzg -> Batterie) | O2: öffentliches Laden | S2: Wohnort / Firmenstandort Laden | V2: LIS Wohnort | W2: Ladeinfrastruktur Firmenstandort | AJ2: Check
A3: Segment | B3: In Use? | C3: Anzahl Fahrzeug | D3: Verbrauch | E3: Verbrauch (Arbeitszeit) | F3: Verbrauch (Arbeitszeit, pro Einsatz) | G3: Verbrauch (Pendeln, einfache Fahrt) | H3: Pendeln | I3: Einsätze | J3: Pendeln | K3: Heimladen | L3: Firmenstandort (über Nacht) | M3: Firmenstandort (tagsüber, pro Pause) | N3: Firmenstandort (tagsüber, total) | O3: öffentlich (fehlende Reichweite) | P3: öffentlich (Ladeleistung begrenzt) | Q3: öffentlich (total) | R3: öffentliches Laden nötig | S3: Heimladen | T3: Firmenstandort (über Nacht) | U3: Firmenstandort (tagsüber, total) | V3: Anzahl LP (Wohnort) | W3: Fzg pro LP (über Nacht) | X3: Anzahl LP (über Nacht) | Y3: Ø Nennleistung (über Nacht) | Z3: Gerundete Nennleistung (über Nacht) | AA3: Gleichzeitigkeits-faktor (über Nacht) | AB3: Anschlussleistung (über Nacht) | AC3: Fzg pro LP (tagsüber) | AD3: Anzahl LP (tagsüber) | AE3: Ø Nennleistung (tagsüber) | AF3: Gerundete Nenn-leistung (tagsüber) | AG3: Ladevorgänge (tagsüber) | AH3: Gleichzeitigkeits-faktor (tagsüber) | AI3: Anschlussleistung (tagsüber) | AJ3: Firmenstandort (tagsüber, pro Pause) | AK3: Batterie Stand Tagesbeginn | AL3: öffentlich (Pendeln) | AM3: Batterie Stand vor 1. Einsatz | AN3: öffentlich (Andere Einsätze) | AO3: Batterie Stand vor letzter Einsatz | AP3: öffentlich (Pendeln) | AQ3: Batterie Stand Tagesende | AR3: CHECK öff. Ladebedarf | AS3: CHECK Ladebedarf | AT3: CHECK Stand Tagesende
D4: kWh/Tag | E4: kWh | F4: kWh | G4: kWh | H4: kWh | I4: kWh | J4: kWh | K4: kWh | L4: kWh | M4: kWh | N4: kWh | O4: kWh | P4: kWh | Q4: kWh | R4: - | S4: kWh | T4: kWh | U4: kWh | V4: - | X4: - | Y4: kW | Z4: kW | AD4: - | AE4: kW | AF4: kW | AG4: - | AJ4: kWh
A5: Segment 1 | B5: ='2. Eingaben Fahrzeug-Ebene'!B5*(SUM('2. Eingaben Fahrzeug-Ebene'!D5:E5)>0) -> 1 | C5: ='2. Eingaben Fahrzeug-Ebene'!C5 -> 1 | D5: ='2. Eingaben Fahrzeug-Ebene'!V5*'2. Eingaben Fahrzeug-Ebene'!$J5/100 -> 15 | E5: ='2. Eingaben Fahrzeug-Ebene'!T5*'2. Eingaben Fahrzeug-Ebene'!$J5/100 -> 15 | F5: =IF(B5,E5/'2. Eingaben Fahrzeug-Ebene'!Z5,0) -> 15 | G5: ='2. Eingaben Fahrzeug-Ebene'!U5*'2. Eingaben Fahrzeug-Ebene'!$J5/100/2 -> 0 | H5: =G5 -> 0 | I5: =F5 -> 15 | J5: =G5 -> 0 | K5: =MIN('2. Eingaben Fahrzeug-Ebene'!AG5*'1b. Corrected Inputs Segment'!$J$24*'2. Eingaben Fahrzeug-Ebene'!AF5*'2d. Annahmen'!$B$57,'2. Eingaben Fahrzeug-Ebene'!I5) -> 0 | L5: =MIN('2. Eingaben Fahrzeug-Ebene'!AH5*'1b. Corrected Inputs Segment'!$J$25*'2. Eingaben Fahrzeug-Ebene'!AF5*'2d. Annahmen'!$B$57,'2. Eingaben Fahrzeug-Ebene'!I5) -> 47 | M5: =MIN('1b. Corrected Inputs Segment'!$J$26*'2. Eingaben Fahrzeug-Ebene'!AD5*'2d. Annahmen'!$B$57,'2. Eingaben Fahrzeug-Ebene'!I5) -> 47 | N5: =M5*SUM('2. Eingaben Fahrzeug-Ebene'!AA5:AC5) -> 47 | O5: =SUM(MAX(H5-'2. Eingaben Fahrzeug-Ebene'!I5,0),MAX(('2. Eingaben Fahrzeug-Ebene'!Z5)*(I5-'2. Eingaben Fahrzeug-Ebene'!I5),0),MAX(J5-'2. Eingaben Fahrzeug-Ebene'!I5,0)) -> 0 | P5: =MAX(D5-SUM(K5:L5,N5),0) -> 0 | Q5: =MAX(O5:P5) -> 0 | R5: =(Q5>0)*1 -> 0 | S5: =MIN(D5,K5) -> 0 | T5: =MIN(D5,L5) -> 15 | U5: =D5-SUM(S5:T5,Q5) -> 0 | V5: =(S5>0)*1/'1b. Corrected Inputs Segment'!$J$28 -> 0 | W5: ='1b. Corrected Inputs Segment'!$J$29 -> 1 | X5: =(T5>0)/W5 -> 1 | Y5: =IF(T5>0,T5/'2. Eingaben Fahrzeug-Ebene'!AF5/'2d. Annahmen'!$B$57,0) -> 2 | Z5: =IF(Y5>0,MIN(MIN(_xlfn._xlws.FILTER(Ladeleistung,(Ladeleistung>=Y5))),'1b. Corrected Inputs Segment'!$J$25),0) -> 11 | AA5: =IFERROR(0.8/(SUM('3a. Detailierte Ergebnisse'!$T$24:$U$24)^0.401),1) -> 0.80 | AB5: =MAX(X5*Y5,X5*'1b. Corrected Inputs Segment'!$J$25*AA5) -> 9 | AC5: ='2. Eingaben Fahrzeug-Ebene'!AI5 -> 1 | AD5: =IF(B5,(U5>0)/AC5,0) -> 0 | AE5: =IF(U5>0,MIN('1b. Corrected Inputs Segment'!$J$26,U5/'2. Eingaben Fahrzeug-Ebene'!AE5/'2d. Annahmen'!$B$57),0) -> 0 | AF5: =IF(AE5>0,MIN(_xlfn._xlws.FILTER(Ladeleistung,(Ladeleistung>=AE5))),0) -> 0 | AG5: =IF(B5,ROUNDUP(U5/'2. Eingaben Fahrzeug-Ebene'!I5,0),0) -> 0 | AH5: =_xlfn.LET(_xlpm.nS,'3a. Detailierte Ergebnisse'!$E$24,_xlpm.nM,'3a. Detailierte Ergebnisse'!$F$24,_xlpm.nL,'3a. Detailierte Ergebnisse'!$G$24,_xlpm.n,_xlpm.nS+_xlpm.nM+_xlpm.nL,IF(AF5<=100,IF(_xlpm.n<=3,1,1.119/(_xlpm.n^0.094)),IF(AF5<=150,IF(_xlpm.n<=3,1,1.226/(_xlpm.n^0.164)),IF(_xlpm.n=1,1,1.111/(_xlpm.n^0.192))))) -> 1.00 | AI5: =IF(B5,MAX(AD5*AE5/'2d. Annahmen'!$B$56,AD5*AF5*AH5/'2d. Annahmen'!$B$56),0) -> 0 | AJ5: =IF(SUM('2. Eingaben Fahrzeug-Ebene'!AA5:AC5)>0,U5/SUM('2. Eingaben Fahrzeug-Ebene'!AA5:AC5),0) -> 0 | AK5: =SUM(S5:T5)+MAX(U5-SUM(E5,J5),0) -> 15 | AL5: =IF('2. Eingaben Fahrzeug-Ebene'!E5,MAX(H5-AK5,0),MAX(H5-AK5,0)) -> 0 | AM5: =AK5+AL5-H5+'2. Eingaben Fahrzeug-Ebene'!AA5*AJ5 -> 15 | AN5: =-MIN(AM5+'2. Eingaben Fahrzeug-Ebene'!AB5*AJ5-'2. Eingaben Fahrzeug-Ebene'!Z5*I5,0) -> 0 | AO5: =AM5+AN5+'2. Eingaben Fahrzeug-Ebene'!AC5*AJ5-'2. Eingaben Fahrzeug-Ebene'!Z5*I5+'2. Eingaben Fahrzeug-Ebene'!AB5*AJ5 -> 0 | AP5: =MAX(J5-AO5,0) -> 0 | AQ5: =AO5+AP5-J5 -> 0 | AR5: =ABS(SUM(AL5+AN5+AP5)-Q5)<0.0001 -> TRUE | AS5: =ABS(SUM(S5:U5,Q5)-D5)<0.0001 -> TRUE | AT5: =ABS(AQ5-(AK5-SUM(S5:T5)))<0.0001 -> TRUE | AU5: ="" -> 
A6: Segment 2 | B6: ='2. Eingaben Fahrzeug-Ebene'!B6*(SUM('2. Eingaben Fahrzeug-Ebene'!D6:E6)>0) -> 0 | C6: ='2. Eingaben Fahrzeug-Ebene'!C6 -> 0 | D6: ='2. Eingaben Fahrzeug-Ebene'!V6*'2. Eingaben Fahrzeug-Ebene'!$J6/100 -> 0 | E6: ='2. Eingaben Fahrzeug-Ebene'!T6*'2. Eingaben Fahrzeug-Ebene'!$J6/100 -> 0 | F6: =IF(B6,E6/'2. Eingaben Fahrzeug-Ebene'!Z6,0) -> 0 | G6: ='2. Eingaben Fahrzeug-Ebene'!U6*'2. Eingaben Fahrzeug-Ebene'!$J6/100/2 -> 0 | H6: =G6 -> 0 | I6: =F6 -> 0 | J6: =G6 -> 0 | K6: =MIN('2. Eingaben Fahrzeug-Ebene'!AG6*'1b. Corrected Inputs Segment'!$J$24*'2. Eingaben Fahrzeug-Ebene'!AF6*'2d. Annahmen'!$B$57,'2. Eingaben Fahrzeug-Ebene'!I6) -> 0 | L6: =MIN('2. Eingaben Fahrzeug-Ebene'!AH6*'1b. Corrected Inputs Segment'!$J$25*'2. Eingaben Fahrzeug-Ebene'!AF6*'2d. Annahmen'!$B$57,'2. Eingaben Fahrzeug-Ebene'!I6) -> 0 | M6: =MIN('1b. Corrected Inputs Segment'!$J$26*'2. Eingaben Fahrzeug-Ebene'!AD6*'2d. Annahmen'!$B$57,'2. Eingaben Fahrzeug-Ebene'!I6) -> 0 | N6: =M6*SUM('2. Eingaben Fahrzeug-Ebene'!AA6:AC6) -> 0 | O6: =SUM(MAX(H6-'2. Eingaben Fahrzeug-Ebene'!I6,0),MAX(('2. Eingaben Fahrzeug-Ebene'!Z6)*(I6-'2. Eingaben Fahrzeug-Ebene'!I6),0),MAX(J6-'2. Eingaben Fahrzeug-Ebene'!I6,0)) -> 0 | P6: =MAX(D6-SUM(K6:L6,N6),0) -> 0 | Q6: =MAX(O6:P6) -> 0 | R6: =(Q6>0)*1 -> 0 | S6: =MIN(D6,K6) -> 0 | T6: =MIN(D6,L6) -> 0 | U6: =D6-SUM(S6:T6,Q6) -> 0 | V6: =(S6>0)*1/'1b. Corrected Inputs Segment'!$J$28 -> 0 | W6: ='1b. Corrected Inputs Segment'!$J$29 -> 1 | X6: =(T6>0)/W6 -> 0 | Y6: =IF(T6>0,T6/'2. Eingaben Fahrzeug-Ebene'!AF6/'2d. Annahmen'!$B$57,0) -> 0 | Z6: =IF(Y6>0,MIN(MIN(_xlfn._xlws.FILTER(Ladeleistung,(Ladeleistung>=Y6))),'1b. Corrected Inputs Segment'!$J$25),0) -> 0 | AA6: =IFERROR(0.8/(SUM('3a. Detailierte Ergebnisse'!$T$24:$U$24)^0.401),1) -> 0.80 | AB6: =MAX(X6*Y6,X6*'1b. Corrected Inputs Segment'!$J$25*AA6) -> 0 | AC6: ='2. Eingaben Fahrzeug-Ebene'!AI6 -> 0 | AD6: =IF(B6,(U6>0)/AC6,0) -> 0 | AE6: =IF(U6>0,MIN('1b. Corrected Inputs Segment'!$J$26,U6/'2. Eingaben Fahrzeug-Ebene'!AE6/'2d. Annahmen'!$B$57),0) -> 0 | AF6: =IF(AE6>0,MIN(_xlfn._xlws.FILTER(Ladeleistung,(Ladeleistung>=AE6))),0) -> 0 | AG6: =IF(B6,ROUNDUP(U6/'2. Eingaben Fahrzeug-Ebene'!I6,0),0) -> 0 | AH6: =_xlfn.LET(_xlpm.nS,'3a. Detailierte Ergebnisse'!$E$24,_xlpm.nM,'3a. Detailierte Ergebnisse'!$F$24,_xlpm.nL,'3a. Detailierte Ergebnisse'!$G$24,_xlpm.n,_xlpm.nS+_xlpm.nM+_xlpm.nL,IF(AF6<=100,IF(_xlpm.n<=3,1,1.119/(_xlpm.n^0.094)),IF(AF6<=150,IF(_xlpm.n<=3,1,1.226/(_xlpm.n^0.164)),IF(_xlpm.n=1,1,1.111/(_xlpm.n^0.192))))) -> 1.00 | AI6: =IF(B6,MAX(AD6*AE6/'2d. Annahmen'!$B$56,AD6*AF6*AH6/'2d. Annahmen'!$B$56),0) -> 0 | AJ6: =IF(SUM('2. Eingaben Fahrzeug-Ebene'!AA6:AC6)>0,U6/SUM('2. Eingaben Fahrzeug-Ebene'!AA6:AC6),0) -> 0 | AK6: =SUM(S6:T6)+MAX(U6-SUM(E6,J6),0) -> 0 | AL6: =IF('2. Eingaben Fahrzeug-Ebene'!E6,MAX(H6-AK6,0),MAX(H6-AK6,0)) -> 0 | AM6: =AK6+AL6-H6+'2. Eingaben Fahrzeug-Ebene'!AA6*AJ6 -> 0 | AN6: =-MIN(AM6+'2. Eingaben Fahrzeug-Ebene'!AB6*AJ6-'2. Eingaben Fahrzeug-Ebene'!Z6*I6,0) -> 0 | AO6: =AM6+AN6+'2. Eingaben Fahrzeug-Ebene'!AC6*AJ6-'2. Eingaben Fahrzeug-Ebene'!Z6*I6+'2. Eingaben Fahrzeug-Ebene'!AB6*AJ6 -> 0 | AP6: =MAX(J6-AO6,0) -> 0 | AQ6: =AO6+AP6-J6 -> 0 | AR6: =ABS(SUM(AL6+AN6+AP6)-Q6)<0.0001 -> TRUE | AS6: =ABS(SUM(S6:U6,Q6)-D6)<0.0001 -> TRUE | AT6: =ABS(AQ6-(AK6-SUM(S6:T6)))<0.0001 -> TRUE | AU6: ="" -> 
A7: Segment 3 | B7: ='2. Eingaben Fahrzeug-Ebene'!B7*(SUM('2. Eingaben Fahrzeug-Ebene'!D7:E7)>0) -> 0 | C7: ='2. Eingaben Fahrzeug-Ebene'!C7 -> 0 | D7: ='2. Eingaben Fahrzeug-Ebene'!V7*'2. Eingaben Fahrzeug-Ebene'!$J7/100 -> 0 | E7: ='2. Eingaben Fahrzeug-Ebene'!T7*'2. Eingaben Fahrzeug-Ebene'!$J7/100 -> 0 | F7: =IF(B7,E7/'2. Eingaben Fahrzeug-Ebene'!Z7,0) -> 0 | G7: ='2. Eingaben Fahrzeug-Ebene'!U7*'2. Eingaben Fahrzeug-Ebene'!$J7/100/2 -> 0 | H7: 0 | I7: 0 | J7: 0 | K7: =MIN('2. Eingaben Fahrzeug-Ebene'!AG7*'1b. Corrected Inputs Segment'!$J$24*'2. Eingaben Fahrzeug-Ebene'!AF7*'2d. Annahmen'!$B$57,'2. Eingaben Fahrzeug-Ebene'!I7) -> 0 | L7: =MIN('2. Eingaben Fahrzeug-Ebene'!AH7*'1b. Corrected Inputs Segment'!$J$25*'2. Eingaben Fahrzeug-Ebene'!AF7*'2d. Annahmen'!$B$57,'2. Eingaben Fahrzeug-Ebene'!I7) -> 0 | M7: =MIN('1b. Corrected Inputs Segment'!$J$26*'2. Eingaben Fahrzeug-Ebene'!AD7*'2d. Annahmen'!$B$57,'2. Eingaben Fahrzeug-Ebene'!I7) -> 0 | N7: =M7*SUM('2. Eingaben Fahrzeug-Ebene'!AA7:AC7) -> 0 | O7: =SUM(MAX(H7-'2. Eingaben Fahrzeug-Ebene'!I7,0),MAX(('2. Eingaben Fahrzeug-Ebene'!Z7)*(I7-'2. Eingaben Fahrzeug-Ebene'!I7),0),MAX(J7-'2. Eingaben Fahrzeug-Ebene'!I7,0)) -> 0 | P7: 0 | Q7: 0 | R7: 0 | S7: 0 | T7: 0 | U7: 0 | V7: =(S7>0)*1/'1b. Corrected Inputs Segment'!$J$28 -> 0 | W7: ='1b. Corrected Inputs Segment'!$J$29 -> 1 | X7: 0 | Y7: =IF(T7>0,T7/'2. Eingaben Fahrzeug-Ebene'!AF7/'2d. Annahmen'!$B$57,0) -> 0 | Z7: =IF(Y7>0,MIN(MIN(_xlfn._xlws.FILTER(Ladeleistung,(Ladeleistung>=Y7))),'1b. Corrected Inputs Segment'!$J$25),0) -> 0 | AA7: =IFERROR(0.8/(SUM('3a. Detailierte Ergebnisse'!$T$24:$U$24)^0.401),1) -> 0.80 | AB7: =MAX(X7*Y7,X7*'1b. Corrected Inputs Segment'!$J$25*AA7) -> 0 | AC7: ='2. Eingaben Fahrzeug-Ebene'!AI7 -> 0 | AD7: 0 | AE7: =IF(U7>0,MIN('1b. Corrected Inputs Segment'!$J$26,U7/'2. Eingaben Fahrzeug-Ebene'!AE7/'2d. Annahmen'!$B$57),0) -> 0 | AF7: =IF(AE7>0,MIN(_xlfn._xlws.FILTER(Ladeleistung,(Ladeleistung>=AE7))),0) -> 0 | AG7: =IF(B7,ROUNDUP(U7/'2. Eingaben Fahrzeug-Ebene'!I7,0),0) -> 0 | AH7: =_xlfn.LET(_xlpm.nS,'3a. Detailierte Ergebnisse'!$E$24,_xlpm.nM,'3a. Detailierte Ergebnisse'!$F$24,_xlpm.nL,'3a. Detailierte Ergebnisse'!$G$24,_xlpm.n,_xlpm.nS+_xlpm.nM+_xlpm.nL,IF(AF7<=100,IF(_xlpm.n<=3,1,1.119/(_xlpm.n^0.094)),IF(AF7<=150,IF(_xlpm.n<=3,1,1.226/(_xlpm.n^0.164)),IF(_xlpm.n=1,1,1.111/(_xlpm.n^0.192))))) -> 1.00 | AI7: =IF(B7,MAX(AD7*AE7/'2d. Annahmen'!$B$56,AD7*AF7*AH7/'2d. Annahmen'!$B$56),0) -> 0 | AJ7: =IF(SUM('2. Eingaben Fahrzeug-Ebene'!AA7:AC7)>0,U7/SUM('2. Eingaben Fahrzeug-Ebene'!AA7:AC7),0) -> 0 | AK7: 0 | AL7: =IF('2. Eingaben Fahrzeug-Ebene'!E7,MAX(H7-AK7,0),MAX(H7-AK7,0)) -> 0 | AM7: =AK7+AL7-H7+'2. Eingaben Fahrzeug-Ebene'!AA7*AJ7 -> 0 | AN7: =-MIN(AM7+'2. Eingaben Fahrzeug-Ebene'!AB7*AJ7-'2. Eingaben Fahrzeug-Ebene'!Z7*I7,0) -> 0 | AO7: =AM7+AN7+'2. Eingaben Fahrzeug-Ebene'!AC7*AJ7-'2. Eingaben Fahrzeug-Ebene'!Z7*I7+'2. Eingaben Fahrzeug-Ebene'!AB7*AJ7 -> 0 | AP7: 0 | AQ7: 0 | AR7: TRUE | AS7: TRUE | AT7: TRUE | AU7: ="" -> 
A8: Segment 4 | B8: ='2. Eingaben Fahrzeug-Ebene'!B8*(SUM('2. Eingaben Fahrzeug-Ebene'!D8:E8)>0) -> 0 | C8: ='2. Eingaben Fahrzeug-Ebene'!C8 -> 0 | D8: ='2. Eingaben Fahrzeug-Ebene'!V8*'2. Eingaben Fahrzeug-Ebene'!$J8/100 -> 0 | E8: ='2. Eingaben Fahrzeug-Ebene'!T8*'2. Eingaben Fahrzeug-Ebene'!$J8/100 -> 0 | F8: =IF(B8,E8/'2. Eingaben Fahrzeug-Ebene'!Z8,0) -> 0 | G8: ='2. Eingaben Fahrzeug-Ebene'!U8*'2. Eingaben Fahrzeug-Ebene'!$J8/100/2 -> 0 | H8: 0 | I8: 0 | J8: 0 | K8: =MIN('2. Eingaben Fahrzeug-Ebene'!AG8*'1b. Corrected Inputs Segment'!$J$24*'2. Eingaben Fahrzeug-Ebene'!AF8*'2d. Annahmen'!$B$57,'2. Eingaben Fahrzeug-Ebene'!I8) -> 0 | L8: =MIN('2. Eingaben Fahrzeug-Ebene'!AH8*'1b. Corrected Inputs Segment'!$J$25*'2. Eingaben Fahrzeug-Ebene'!AF8*'2d. Annahmen'!$B$57,'2. Eingaben Fahrzeug-Ebene'!I8) -> 0 | M8: =MIN('1b. Corrected Inputs Segment'!$J$26*'2. Eingaben Fahrzeug-Ebene'!AD8*'2d. Annahmen'!$B$57,'2. Eingaben Fahrzeug-Ebene'!I8) -> 0 | N8: =M8*SUM('2. Eingaben Fahrzeug-Ebene'!AA8:AC8) -> 0 | O8: =SUM(MAX(H8-'2. Eingaben Fahrzeug-Ebene'!I8,0),MAX(('2. Eingaben Fahrzeug-Ebene'!Z8)*(I8-'2. Eingaben Fahrzeug-Ebene'!I8),0),MAX(J8-'2. Eingaben Fahrzeug-Ebene'!I8,0)) -> 0 | P8: 0 | Q8: 0 | R8: 0 | S8: 0 | T8: 0 | U8: 0 | V8: =(S8>0)*1/'1b. Corrected Inputs Segment'!$J$28 -> 0 | W8: ='1b. Corrected Inputs Segment'!$J$29 -> 1 | X8: 0 | Y8: =IF(T8>0,T8/'2. Eingaben Fahrzeug-Ebene'!AF8/'2d. Annahmen'!$B$57,0) -> 0 | Z8: =IF(Y8>0,MIN(MIN(_xlfn._xlws.FILTER(Ladeleistung,(Ladeleistung>=Y8))),'1b. Corrected Inputs Segment'!$J$25),0) -> 0 | AA8: =IFERROR(0.8/(SUM('3a. Detailierte Ergebnisse'!$T$24:$U$24)^0.401),1) -> 0.80 | AB8: =MAX(X8*Y8,X8*'1b. Corrected Inputs Segment'!$J$25*AA8) -> 0 | AC8: ='2. Eingaben Fahrzeug-Ebene'!AI8 -> 0 | AD8: 0 | AE8: =IF(U8>0,MIN('1b. Corrected Inputs Segment'!$J$26,U8/'2. Eingaben Fahrzeug-Ebene'!AE8/'2d. Annahmen'!$B$57),0) -> 0 | AF8: =IF(AE8>0,MIN(_xlfn._xlws.FILTER(Ladeleistung,(Ladeleistung>=AE8))),0) -> 0 | AG8: =IF(B8,ROUNDUP(U8/'2. Eingaben Fahrzeug-Ebene'!I8,0),0) -> 0 | AH8: =_xlfn.LET(_xlpm.nS,'3a. Detailierte Ergebnisse'!$E$24,_xlpm.nM,'3a. Detailierte Ergebnisse'!$F$24,_xlpm.nL,'3a. Detailierte Ergebnisse'!$G$24,_xlpm.n,_xlpm.nS+_xlpm.nM+_xlpm.nL,IF(AF8<=100,IF(_xlpm.n<=3,1,1.119/(_xlpm.n^0.094)),IF(AF8<=150,IF(_xlpm.n<=3,1,1.226/(_xlpm.n^0.164)),IF(_xlpm.n=1,1,1.111/(_xlpm.n^0.192))))) -> 1.00 | AI8: =IF(B8,MAX(AD8*AE8/'2d. Annahmen'!$B$56,AD8*AF8*AH8/'2d. Annahmen'!$B$56),0) -> 0 | AJ8: =IF(SUM('2. Eingaben Fahrzeug-Ebene'!AA8:AC8)>0,U8/SUM('2. Eingaben Fahrzeug-Ebene'!AA8:AC8),0) -> 0 | AK8: 0 | AL8: =IF('2. Eingaben Fahrzeug-Ebene'!E8,MAX(H8-AK8,0),MAX(H8-AK8,0)) -> 0 | AM8: =AK8+AL8-H8+'2. Eingaben Fahrzeug-Ebene'!AA8*AJ8 -> 0 | AN8: =-MIN(AM8+'2. Eingaben Fahrzeug-Ebene'!AB8*AJ8-'2. Eingaben Fahrzeug-Ebene'!Z8*I8,0) -> 0 | AO8: =AM8+AN8+'2. Eingaben Fahrzeug-Ebene'!AC8*AJ8-'2. Eingaben Fahrzeug-Ebene'!Z8*I8+'2. Eingaben Fahrzeug-Ebene'!AB8*AJ8 -> 0 | AP8: 0 | AQ8: 0 | AR8: TRUE | AS8: TRUE | AT8: TRUE | AU8: ="" -> 
A9: Segment 5 | B9: ='2. Eingaben Fahrzeug-Ebene'!B9*(SUM('2. Eingaben Fahrzeug-Ebene'!D9:E9)>0) -> 0 | C9: ='2. Eingaben Fahrzeug-Ebene'!C9 -> 0 | D9: ='2. Eingaben Fahrzeug-Ebene'!V9*'2. Eingaben Fahrzeug-Ebene'!$J9/100 -> 0 | E9: ='2. Eingaben Fahrzeug-Ebene'!T9*'2. Eingaben Fahrzeug-Ebene'!$J9/100 -> 0 | F9: =IF(B9,E9/'2. Eingaben Fahrzeug-Ebene'!Z9,0) -> 0 | G9: ='2. Eingaben Fahrzeug-Ebene'!U9*'2. Eingaben Fahrzeug-Ebene'!$J9/100/2 -> 0 | H9: 0 | I9: 0 | J9: 0 | K9: =MIN('2. Eingaben Fahrzeug-Ebene'!AG9*'1b. Corrected Inputs Segment'!$J$24*'2. Eingaben Fahrzeug-Ebene'!AF9*'2d. Annahmen'!$B$57,'2. Eingaben Fahrzeug-Ebene'!I9) -> 0 | L9: =MIN('2. Eingaben Fahrzeug-Ebene'!AH9*'1b. Corrected Inputs Segment'!$J$25*'2. Eingaben Fahrzeug-Ebene'!AF9*'2d. Annahmen'!$B$57,'2. Eingaben Fahrzeug-Ebene'!I9) -> 0 | M9: =MIN('1b. Corrected Inputs Segment'!$J$26*'2. Eingaben Fahrzeug-Ebene'!AD9*'2d. Annahmen'!$B$57,'2. Eingaben Fahrzeug-Ebene'!I9) -> 0 | N9: =M9*SUM('2. Eingaben Fahrzeug-Ebene'!AA9:AC9) -> 0 | O9: =SUM(MAX(H9-'2. Eingaben Fahrzeug-Ebene'!I9,0),MAX(('2. Eingaben Fahrzeug-Ebene'!Z9)*(I9-'2. Eingaben Fahrzeug-Ebene'!I9),0),MAX(J9-'2. Eingaben Fahrzeug-Ebene'!I9,0)) -> 0 | P9: 0 | Q9: 0 | R9: 0 | S9: 0 | T9: 0 | U9: 0 | V9: =(S9>0)*1/'1b. Corrected Inputs Segment'!$J$28 -> 0 | W9: ='1b. Corrected Inputs Segment'!$J$29 -> 1 | X9: 0 | Y9: =IF(T9>0,T9/'2. Eingaben Fahrzeug-Ebene'!AF9/'2d. Annahmen'!$B$57,0) -> 0 | Z9: =IF(Y9>0,MIN(MIN(_xlfn._xlws.FILTER(Ladeleistung,(Ladeleistung>=Y9))),'1b. Corrected Inputs Segment'!$J$25),0) -> 0 | AA9: =IFERROR(0.8/(SUM('3a. Detailierte Ergebnisse'!$T$24:$U$24)^0.401),1) -> 0.80 | AB9: =MAX(X9*Y9,X9*'1b. Corrected Inputs Segment'!$J$25*AA9) -> 0 | AC9: ='2. Eingaben Fahrzeug-Ebene'!AI9 -> 0 | AD9: 0 | AE9: =IF(U9>0,MIN('1b. Corrected Inputs Segment'!$J$26,U9/'2. Eingaben Fahrzeug-Ebene'!AE9/'2d. Annahmen'!$B$57),0) -> 0 | AF9: =IF(AE9>0,MIN(_xlfn._xlws.FILTER(Ladeleistung,(Ladeleistung>=AE9))),0) -> 0 | AG9: =IF(B9,ROUNDUP(U9/'2. Eingaben Fahrzeug-Ebene'!I9,0),0) -> 0 | AH9: =_xlfn.LET(_xlpm.nS,'3a. Detailierte Ergebnisse'!$E$24,_xlpm.nM,'3a. Detailierte Ergebnisse'!$F$24,_xlpm.nL,'3a. Detailierte Ergebnisse'!$G$24,_xlpm.n,_xlpm.nS+_xlpm.nM+_xlpm.nL,IF(AF9<=100,IF(_xlpm.n<=3,1,1.119/(_xlpm.n^0.094)),IF(AF9<=150,IF(_xlpm.n<=3,1,1.226/(_xlpm.n^0.164)),IF(_xlpm.n=1,1,1.111/(_xlpm.n^0.192))))) -> 1.00 | AI9: =IF(B9,MAX(AD9*AE9/'2d. Annahmen'!$B$56,AD9*AF9*AH9/'2d. Annahmen'!$B$56),0) -> 0 | AJ9: =IF(SUM('2. Eingaben Fahrzeug-Ebene'!AA9:AC9)>0,U9/SUM('2. Eingaben Fahrzeug-Ebene'!AA9:AC9),0) -> 0 | AK9: 0 | AL9: =IF('2. Eingaben Fahrzeug-Ebene'!E9,MAX(H9-AK9,0),MAX(H9-AK9,0)) -> 0 | AM9: =AK9+AL9-H9+'2. Eingaben Fahrzeug-Ebene'!AA9*AJ9 -> 0 | AN9: =-MIN(AM9+'2. Eingaben Fahrzeug-Ebene'!AB9*AJ9-'2. Eingaben Fahrzeug-Ebene'!Z9*I9,0) -> 0 | AO9: =AM9+AN9+'2. Eingaben Fahrzeug-Ebene'!AC9*AJ9-'2. Eingaben Fahrzeug-Ebene'!Z9*I9+'2. Eingaben Fahrzeug-Ebene'!AB9*AJ9 -> 0 | AP9: 0 | AQ9: 0 | AR9: TRUE | AS9: TRUE | AT9: TRUE | AU9: ="" -> 
A10: Segment 6 | B10: ='2. Eingaben Fahrzeug-Ebene'!B10*(SUM('2. Eingaben Fahrzeug-Ebene'!D10:E10)>0) -> 0 | C10: ='2. Eingaben Fahrzeug-Ebene'!C10 -> 0 | D10: ='2. Eingaben Fahrzeug-Ebene'!V10*'2. Eingaben Fahrzeug-Ebene'!$J10/100 -> 0 | E10: ='2. Eingaben Fahrzeug-Ebene'!T10*'2. Eingaben Fahrzeug-Ebene'!$J10/100 -> 0 | F10: =IF(B10,E10/'2. Eingaben Fahrzeug-Ebene'!Z10,0) -> 0 | G10: ='2. Eingaben Fahrzeug-Ebene'!U10*'2. Eingaben Fahrzeug-Ebene'!$J10/100/2 -> 0 | H10: 0 | I10: 0 | J10: 0 | K10: =MIN('2. Eingaben Fahrzeug-Ebene'!AG10*'1b. Corrected Inputs Segment'!$J$24*'2. Eingaben Fahrzeug-Ebene'!AF10*'2d. Annahmen'!$B$57,'2. Eingaben Fahrzeug-Ebene'!I10) -> 0 | L10: =MIN('2. Eingaben Fahrzeug-Ebene'!AH10*'1b. Corrected Inputs Segment'!$J$25*'2. Eingaben Fahrzeug-Ebene'!AF10*'2d. Annahmen'!$B$57,'2. Eingaben Fahrzeug-Ebene'!I10) -> 0 | M10: =MIN('1b. Corrected Inputs Segment'!$J$26*'2. Eingaben Fahrzeug-Ebene'!AD10*'2d. Annahmen'!$B$57,'2. Eingaben Fahrzeug-Ebene'!I10) -> 0 | N10: =M10*SUM('2. Eingaben Fahrzeug-Ebene'!AA10:AC10) -> 0 | O10: =SUM(MAX(H10-'2. Eingaben Fahrzeug-Ebene'!I10,0),MAX(('2. Eingaben Fahrzeug-Ebene'!Z10)*(I10-'2. Eingaben Fahrzeug-Ebene'!I10),0),MAX(J10-'2. Eingaben Fahrzeug-Ebene'!I10,0)) -> 0 | P10: 0 | Q10: 0 | R10: 0 | S10: 0 | T10: 0 | U10: 0 | V10: =(S10>0)*1/'1b. Corrected Inputs Segment'!$J$28 -> 0 | W10: ='1b. Corrected Inputs Segment'!$J$29 -> 1 | X10: 0 | Y10: =IF(T10>0,T10/'2. Eingaben Fahrzeug-Ebene'!AF10/'2d. Annahmen'!$B$57,0) -> 0 | Z10: =IF(Y10>0,MIN(MIN(_xlfn._xlws.FILTER(Ladeleistung,(Ladeleistung>=Y10))),'1b. Corrected Inputs Segment'!$J$25),0) -> 0 | AA10: =IFERROR(0.8/(SUM('3a. Detailierte Ergebnisse'!$T$24:$U$24)^0.401),1) -> 0.80 | AB10: =MAX(X10*Y10,X10*'1b. Corrected Inputs Segment'!$J$25*AA10) -> 0 | AC10: ='2. Eingaben Fahrzeug-Ebene'!AI10 -> 0 | AD10: 0 | AE10: =IF(U10>0,MIN('1b. Corrected Inputs Segment'!$J$26,U10/'2. Eingaben Fahrzeug-Ebene'!AE10/'2d. Annahmen'!$B$57),0) -> 0 | AF10: =IF(AE10>0,MIN(_xlfn._xlws.FILTER(Ladeleistung,(Ladeleistung>=AE10))),0) -> 0 | AG10: =IF(B10,ROUNDUP(U10/'2. Eingaben Fahrzeug-Ebene'!I10,0),0) -> 0 | AH10: =_xlfn.LET(_xlpm.nS,'3a. Detailierte Ergebnisse'!$E$24,_xlpm.nM,'3a. Detailierte Ergebnisse'!$F$24,_xlpm.nL,'3a. Detailierte Ergebnisse'!$G$24,_xlpm.n,_xlpm.nS+_xlpm.nM+_xlpm.nL,IF(AF10<=100,IF(_xlpm.n<=3,1,1.119/(_xlpm.n^0.094)),IF(AF10<=150,IF(_xlpm.n<=3,1,1.226/(_xlpm.n^0.164)),IF(_xlpm.n=1,1,1.111/(_xlpm.n^0.192))))) -> 1.00 | AI10: =IF(B10,MAX(AD10*AE10/'2d. Annahmen'!$B$56,AD10*AF10*AH10/'2d. Annahmen'!$B$56),0) -> 0 | AJ10: =IF(SUM('2. Eingaben Fahrzeug-Ebene'!AA10:AC10)>0,U10/SUM('2. Eingaben Fahrzeug-Ebene'!AA10:AC10),0) -> 0 | AK10: 0 | AL10: =IF('2. Eingaben Fahrzeug-Ebene'!E10,MAX(H10-AK10,0),MAX(H10-AK10,0)) -> 0 | AM10: =AK10+AL10-H10+'2. Eingaben Fahrzeug-Ebene'!AA10*AJ10 -> 0 | AN10: =-MIN(AM10+'2. Eingaben Fahrzeug-Ebene'!AB10*AJ10-'2. Eingaben Fahrzeug-Ebene'!Z10*I10,0) -> 0 | AO10: =AM10+AN10+'2. Eingaben Fahrzeug-Ebene'!AC10*AJ10-'2. Eingaben Fahrzeug-Ebene'!Z10*I10+'2. Eingaben Fahrzeug-Ebene'!AB10*AJ10 -> 0 | AP10: 0 | AQ10: 0 | AR10: TRUE | AS10: TRUE | AT10: TRUE | AU10: ="" -> 
A11: Segment 7 | B11: ='2. Eingaben Fahrzeug-Ebene'!B11*(SUM('2. Eingaben Fahrzeug-Ebene'!D11:E11)>0) -> 0 | C11: ='2. Eingaben Fahrzeug-Ebene'!C11 -> 0 | D11: ='2. Eingaben Fahrzeug-Ebene'!V11*'2. Eingaben Fahrzeug-Ebene'!$J11/100 -> 0 | E11: ='2. Eingaben Fahrzeug-Ebene'!T11*'2. Eingaben Fahrzeug-Ebene'!$J11/100 -> 0 | F11: =IF(B11,E11/'2. Eingaben Fahrzeug-Ebene'!Z11,0) -> 0 | G11: ='2. Eingaben Fahrzeug-Ebene'!U11*'2. Eingaben Fahrzeug-Ebene'!$J11/100/2 -> 0 | H11: 0 | I11: 0 | J11: 0 | K11: =MIN('2. Eingaben Fahrzeug-Ebene'!AG11*'1b. Corrected Inputs Segment'!$J$24*'2. Eingaben Fahrzeug-Ebene'!AF11*'2d. Annahmen'!$B$57,'2. Eingaben Fahrzeug-Ebene'!I11) -> 0 | L11: =MIN('2. Eingaben Fahrzeug-Ebene'!AH11*'1b. Corrected Inputs Segment'!$J$25*'2. Eingaben Fahrzeug-Ebene'!AF11*'2d. Annahmen'!$B$57,'2. Eingaben Fahrzeug-Ebene'!I11) -> 0 | M11: =MIN('1b. Corrected Inputs Segment'!$J$26*'2. Eingaben Fahrzeug-Ebene'!AD11*'2d. Annahmen'!$B$57,'2. Eingaben Fahrzeug-Ebene'!I11) -> 0 | N11: =M11*SUM('2. Eingaben Fahrzeug-Ebene'!AA11:AC11) -> 0 | O11: =SUM(MAX(H11-'2. Eingaben Fahrzeug-Ebene'!I11,0),MAX(('2. Eingaben Fahrzeug-Ebene'!Z11)*(I11-'2. Eingaben Fahrzeug-Ebene'!I11),0),MAX(J11-'2. Eingaben Fahrzeug-Ebene'!I11,0)) -> 0 | P11: 0 | Q11: 0 | R11: 0 | S11: 0 | T11: 0 | U11: 0 | V11: =(S11>0)*1/'1b. Corrected Inputs Segment'!$J$28 -> 0 | W11: ='1b. Corrected Inputs Segment'!$J$29 -> 1 | X11: 0 | Y11: =IF(T11>0,T11/'2. Eingaben Fahrzeug-Ebene'!AF11/'2d. Annahmen'!$B$57,0) -> 0 | Z11: =IF(Y11>0,MIN(MIN(_xlfn._xlws.FILTER(Ladeleistung,(Ladeleistung>=Y11))),'1b. Corrected Inputs Segment'!$J$25),0) -> 0 | AA11: =IFERROR(0.8/(SUM('3a. Detailierte Ergebnisse'!$T$24:$U$24)^0.401),1) -> 0.80 | AB11: =MAX(X11*Y11,X11*'1b. Corrected Inputs Segment'!$J$25*AA11) -> 0 | AC11: ='2. Eingaben Fahrzeug-Ebene'!AI11 -> 0 | AD11: 0 | AE11: =IF(U11>0,MIN('1b. Corrected Inputs Segment'!$J$26,U11/'2. Eingaben Fahrzeug-Ebene'!AE11/'2d. Annahmen'!$B$57),0) -> 0 | AF11: =IF(AE11>0,MIN(_xlfn._xlws.FILTER(Ladeleistung,(Ladeleistung>=AE11))),0) -> 0 | AG11: =IF(B11,ROUNDUP(U11/'2. Eingaben Fahrzeug-Ebene'!I11,0),0) -> 0 | AH11: =_xlfn.LET(_xlpm.nS,'3a. Detailierte Ergebnisse'!$E$24,_xlpm.nM,'3a. Detailierte Ergebnisse'!$F$24,_xlpm.nL,'3a. Detailierte Ergebnisse'!$G$24,_xlpm.n,_xlpm.nS+_xlpm.nM+_xlpm.nL,IF(AF11<=100,IF(_xlpm.n<=3,1,1.119/(_xlpm.n^0.094)),IF(AF11<=150,IF(_xlpm.n<=3,1,1.226/(_xlpm.n^0.164)),IF(_xlpm.n=1,1,1.111/(_xlpm.n^0.192))))) -> 1.00 | AI11: =IF(B11,MAX(AD11*AE11/'2d. Annahmen'!$B$56,AD11*AF11*AH11/'2d. Annahmen'!$B$56),0) -> 0 | AJ11: =IF(SUM('2. Eingaben Fahrzeug-Ebene'!AA11:AC11)>0,U11/SUM('2. Eingaben Fahrzeug-Ebene'!AA11:AC11),0) -> 0 | AK11: 0 | AL11: =IF('2. Eingaben Fahrzeug-Ebene'!E11,MAX(H11-AK11,0),MAX(H11-AK11,0)) -> 0 | AM11: =AK11+AL11-H11+'2. Eingaben Fahrzeug-Ebene'!AA11*AJ11 -> 0 | AN11: =-MIN(AM11+'2. Eingaben Fahrzeug-Ebene'!AB11*AJ11-'2. Eingaben Fahrzeug-Ebene'!Z11*I11,0) -> 0 | AO11: =AM11+AN11+'2. Eingaben Fahrzeug-Ebene'!AC11*AJ11-'2. Eingaben Fahrzeug-Ebene'!Z11*I11+'2. Eingaben Fahrzeug-Ebene'!AB11*AJ11 -> 0 | AP11: 0 | AQ11: 0 | AR11: TRUE | AS11: TRUE | AT11: TRUE | AU11: ="" -> 
A12: Segment 8 | B12: ='2. Eingaben Fahrzeug-Ebene'!B12*(SUM('2. Eingaben Fahrzeug-Ebene'!D12:E12)>0) -> 0 | C12: ='2. Eingaben Fahrzeug-Ebene'!C12 -> 0 | D12: ='2. Eingaben Fahrzeug-Ebene'!V12*'2. Eingaben Fahrzeug-Ebene'!$J12/100 -> 0 | E12: ='2. Eingaben Fahrzeug-Ebene'!T12*'2. Eingaben Fahrzeug-Ebene'!$J12/100 -> 0 | F12: =IF(B12,E12/'2. Eingaben Fahrzeug-Ebene'!Z12,0) -> 0 | G12: ='2. Eingaben Fahrzeug-Ebene'!U12*'2. Eingaben Fahrzeug-Ebene'!$J12/100/2 -> 0 | H12: 0 | I12: 0 | J12: 0 | K12: =MIN('2. Eingaben Fahrzeug-Ebene'!AG12*'1b. Corrected Inputs Segment'!$J$24*'2. Eingaben Fahrzeug-Ebene'!AF12*'2d. Annahmen'!$B$57,'2. Eingaben Fahrzeug-Ebene'!I12) -> 0 | L12: =MIN('2. Eingaben Fahrzeug-Ebene'!AH12*'1b. Corrected Inputs Segment'!$J$25*'2. Eingaben Fahrzeug-Ebene'!AF12*'2d. Annahmen'!$B$57,'2. Eingaben Fahrzeug-Ebene'!I12) -> 0 | M12: =MIN('1b. Corrected Inputs Segment'!$J$26*'2. Eingaben Fahrzeug-Ebene'!AD12*'2d. Annahmen'!$B$57,'2. Eingaben Fahrzeug-Ebene'!I12) -> 0 | N12: =M12*SUM('2. Eingaben Fahrzeug-Ebene'!AA12:AC12) -> 0 | O12: =SUM(MAX(H12-'2. Eingaben Fahrzeug-Ebene'!I12,0),MAX(('2. Eingaben Fahrzeug-Ebene'!Z12)*(I12-'2. Eingaben Fahrzeug-Ebene'!I12),0),MAX(J12-'2. Eingaben Fahrzeug-Ebene'!I12,0)) -> 0 | P12: 0 | Q12: 0 | R12: 0 | S12: 0 | T12: 0 | U12: 0 | V12: =(S12>0)*1/'1b. Corrected Inputs Segment'!$J$28 -> 0 | W12: ='1b. Corrected Inputs Segment'!$J$29 -> 1 | X12: 0 | Y12: =IF(T12>0,T12/'2. Eingaben Fahrzeug-Ebene'!AF12/'2d. Annahmen'!$B$57,0) -> 0 | Z12: =IF(Y12>0,MIN(MIN(_xlfn._xlws.FILTER(Ladeleistung,(Ladeleistung>=Y12))),'1b. Corrected Inputs Segment'!$J$25),0) -> 0 | AA12: =IFERROR(0.8/(SUM('3a. Detailierte Ergebnisse'!$T$24:$U$24)^0.401),1) -> 0.80 | AB12: =MAX(X12*Y12,X12*'1b. Corrected Inputs Segment'!$J$25*AA12) -> 0 | AC12: ='2. Eingaben Fahrzeug-Ebene'!AI12 -> 0 | AD12: 0 | AE12: =IF(U12>0,MIN('1b. Corrected Inputs Segment'!$J$26,U12/'2. Eingaben Fahrzeug-Ebene'!AE12/'2d. Annahmen'!$B$57),0) -> 0 | AF12: =IF(AE12>0,MIN(_xlfn._xlws.FILTER(Ladeleistung,(Ladeleistung>=AE12))),0) -> 0 | AG12: =IF(B12,ROUNDUP(U12/'2. Eingaben Fahrzeug-Ebene'!I12,0),0) -> 0 | AH12: =_xlfn.LET(_xlpm.nS,'3a. Detailierte Ergebnisse'!$E$24,_xlpm.nM,'3a. Detailierte Ergebnisse'!$F$24,_xlpm.nL,'3a. Detailierte Ergebnisse'!$G$24,_xlpm.n,_xlpm.nS+_xlpm.nM+_xlpm.nL,IF(AF12<=100,IF(_xlpm.n<=3,1,1.119/(_xlpm.n^0.094)),IF(AF12<=150,IF(_xlpm.n<=3,1,1.226/(_xlpm.n^0.164)),IF(_xlpm.n=1,1,1.111/(_xlpm.n^0.192))))) -> 1.00 | AI12: =IF(B12,MAX(AD12*AE12/'2d. Annahmen'!$B$56,AD12*AF12*AH12/'2d. Annahmen'!$B$56),0) -> 0 | AJ12: =IF(SUM('2. Eingaben Fahrzeug-Ebene'!AA12:AC12)>0,U12/SUM('2. Eingaben Fahrzeug-Ebene'!AA12:AC12),0) -> 0 | AK12: 0 | AL12: =IF('2. Eingaben Fahrzeug-Ebene'!E12,MAX(H12-AK12,0),MAX(H12-AK12,0)) -> 0 | AM12: =AK12+AL12-H12+'2. Eingaben Fahrzeug-Ebene'!AA12*AJ12 -> 0 | AN12: =-MIN(AM12+'2. Eingaben Fahrzeug-Ebene'!AB12*AJ12-'2. Eingaben Fahrzeug-Ebene'!Z12*I12,0) -> 0 | AO12: =AM12+AN12+'2. Eingaben Fahrzeug-Ebene'!AC12*AJ12-'2. Eingaben Fahrzeug-Ebene'!Z12*I12+'2. Eingaben Fahrzeug-Ebene'!AB12*AJ12 -> 0 | AP12: 0 | AQ12: 0 | AR12: TRUE | AS12: TRUE | AT12: TRUE | AU12: ="" -> 
A13: Segment 9 | B13: ='2. Eingaben Fahrzeug-Ebene'!B13*(SUM('2. Eingaben Fahrzeug-Ebene'!D13:E13)>0) -> 0 | C13: ='2. Eingaben Fahrzeug-Ebene'!C13 -> 0 | D13: ='2. Eingaben Fahrzeug-Ebene'!V13*'2. Eingaben Fahrzeug-Ebene'!$J13/100 -> 0 | E13: ='2. Eingaben Fahrzeug-Ebene'!T13*'2. Eingaben Fahrzeug-Ebene'!$J13/100 -> 0 | F13: =IF(B13,E13/'2. Eingaben Fahrzeug-Ebene'!Z13,0) -> 0 | G13: ='2. Eingaben Fahrzeug-Ebene'!U13*'2. Eingaben Fahrzeug-Ebene'!$J13/100/2 -> 0 | H13: 0 | I13: 0 | J13: 0 | K13: =MIN('2. Eingaben Fahrzeug-Ebene'!AG13*'1b. Corrected Inputs Segment'!$J$24*'2. Eingaben Fahrzeug-Ebene'!AF13*'2d. Annahmen'!$B$57,'2. Eingaben Fahrzeug-Ebene'!I13) -> 0 | L13: =MIN('2. Eingaben Fahrzeug-Ebene'!AH13*'1b. Corrected Inputs Segment'!$J$25*'2. Eingaben Fahrzeug-Ebene'!AF13*'2d. Annahmen'!$B$57,'2. Eingaben Fahrzeug-Ebene'!I13) -> 0 | M13: =MIN('1b. Corrected Inputs Segment'!$J$26*'2. Eingaben Fahrzeug-Ebene'!AD13*'2d. Annahmen'!$B$57,'2. Eingaben Fahrzeug-Ebene'!I13) -> 0 | N13: =M13*SUM('2. Eingaben Fahrzeug-Ebene'!AA13:AC13) -> 0 | O13: =SUM(MAX(H13-'2. Eingaben Fahrzeug-Ebene'!I13,0),MAX(('2. Eingaben Fahrzeug-Ebene'!Z13)*(I13-'2. Eingaben Fahrzeug-Ebene'!I13),0),MAX(J13-'2. Eingaben Fahrzeug-Ebene'!I13,0)) -> 0 | P13: 0 | Q13: 0 | R13: 0 | S13: 0 | T13: 0 | U13: 0 | V13: =(S13>0)*1/'1b. Corrected Inputs Segment'!$J$28 -> 0 | W13: ='1b. Corrected Inputs Segment'!$J$29 -> 1 | X13: 0 | Y13: =IF(T13>0,T13/'2. Eingaben Fahrzeug-Ebene'!AF13/'2d. Annahmen'!$B$57,0) -> 0 | Z13: =IF(Y13>0,MIN(MIN(_xlfn._xlws.FILTER(Ladeleistung,(Ladeleistung>=Y13))),'1b. Corrected Inputs Segment'!$J$25),0) -> 0 | AA13: =IFERROR(0.8/(SUM('3a. Detailierte Ergebnisse'!$T$24:$U$24)^0.401),1) -> 0.80 | AB13: =MAX(X13*Y13,X13*'1b. Corrected Inputs Segment'!$J$25*AA13) -> 0 | AC13: ='2. Eingaben Fahrzeug-Ebene'!AI13 -> 0 | AD13: 0 | AE13: =IF(U13>0,MIN('1b. Corrected Inputs Segment'!$J$26,U13/'2. Eingaben Fahrzeug-Ebene'!AE13/'2d. Annahmen'!$B$57),0) -> 0 | AF13: =IF(AE13>0,MIN(_xlfn._xlws.FILTER(Ladeleistung,(Ladeleistung>=AE13))),0) -> 0 | AG13: =IF(B13,ROUNDUP(U13/'2. Eingaben Fahrzeug-Ebene'!I13,0),0) -> 0 | AH13: =_xlfn.LET(_xlpm.nS,'3a. Detailierte Ergebnisse'!$E$24,_xlpm.nM,'3a. Detailierte Ergebnisse'!$F$24,_xlpm.nL,'3a. Detailierte Ergebnisse'!$G$24,_xlpm.n,_xlpm.nS+_xlpm.nM+_xlpm.nL,IF(AF13<=100,IF(_xlpm.n<=3,1,1.119/(_xlpm.n^0.094)),IF(AF13<=150,IF(_xlpm.n<=3,1,1.226/(_xlpm.n^0.164)),IF(_xlpm.n=1,1,1.111/(_xlpm.n^0.192))))) -> 1.00 | AI13: =IF(B13,MAX(AD13*AE13/'2d. Annahmen'!$B$56,AD13*AF13*AH13/'2d. Annahmen'!$B$56),0) -> 0 | AJ13: =IF(SUM('2. Eingaben Fahrzeug-Ebene'!AA13:AC13)>0,U13/SUM('2. Eingaben Fahrzeug-Ebene'!AA13:AC13),0) -> 0 | AK13: 0 | AL13: =IF('2. Eingaben Fahrzeug-Ebene'!E13,MAX(H13-AK13,0),MAX(H13-AK13,0)) -> 0 | AM13: =AK13+AL13-H13+'2. Eingaben Fahrzeug-Ebene'!AA13*AJ13 -> 0 | AN13: =-MIN(AM13+'2. Eingaben Fahrzeug-Ebene'!AB13*AJ13-'2. Eingaben Fahrzeug-Ebene'!Z13*I13,0) -> 0 | AO13: =AM13+AN13+'2. Eingaben Fahrzeug-Ebene'!AC13*AJ13-'2. Eingaben Fahrzeug-Ebene'!Z13*I13+'2. Eingaben Fahrzeug-Ebene'!AB13*AJ13 -> 0 | AP13: 0 | AQ13: 0 | AR13: TRUE | AS13: TRUE | AT13: TRUE | AU13: ="" -> 
A14: Segment 10 | B14: ='2. Eingaben Fahrzeug-Ebene'!B14*(SUM('2. Eingaben Fahrzeug-Ebene'!D14:E14)>0) -> 0 | C14: ='2. Eingaben Fahrzeug-Ebene'!C14 -> 0 | D14: ='2. Eingaben Fahrzeug-Ebene'!V14*'2. Eingaben Fahrzeug-Ebene'!$J14/100 -> 0 | E14: ='2. Eingaben Fahrzeug-Ebene'!T14*'2. Eingaben Fahrzeug-Ebene'!$J14/100 -> 0 | F14: =IF(B14,E14/'2. Eingaben Fahrzeug-Ebene'!Z14,0) -> 0 | G14: ='2. Eingaben Fahrzeug-Ebene'!U14*'2. Eingaben Fahrzeug-Ebene'!$J14/100/2 -> 0 | H14: 0 | I14: 0 | J14: 0 | K14: =MIN('2. Eingaben Fahrzeug-Ebene'!AG14*'1b. Corrected Inputs Segment'!$J$24*'2. Eingaben Fahrzeug-Ebene'!AF14*'2d. Annahmen'!$B$57,'2. Eingaben Fahrzeug-Ebene'!I14) -> 0 | L14: =MIN('2. Eingaben Fahrzeug-Ebene'!AH14*'1b. Corrected Inputs Segment'!$J$25*'2. Eingaben Fahrzeug-Ebene'!AF14*'2d. Annahmen'!$B$57,'2. Eingaben Fahrzeug-Ebene'!I14) -> 0 | M14: =MIN('1b. Corrected Inputs Segment'!$J$26*'2. Eingaben Fahrzeug-Ebene'!AD14*'2d. Annahmen'!$B$57,'2. Eingaben Fahrzeug-Ebene'!I14) -> 0 | N14: =M14*SUM('2. Eingaben Fahrzeug-Ebene'!AA14:AC14) -> 0 | O14: =SUM(MAX(H14-'2. Eingaben Fahrzeug-Ebene'!I14,0),MAX(('2. Eingaben Fahrzeug-Ebene'!Z14)*(I14-'2. Eingaben Fahrzeug-Ebene'!I14),0),MAX(J14-'2. Eingaben Fahrzeug-Ebene'!I14,0)) -> 0 | P14: 0 | Q14: 0 | R14: 0 | S14: 0 | T14: 0 | U14: 0 | V14: =(S14>0)*1/'1b. Corrected Inputs Segment'!$J$28 -> 0 | W14: ='1b. Corrected Inputs Segment'!$J$29 -> 1 | X14: 0 | Y14: =IF(T14>0,T14/'2. Eingaben Fahrzeug-Ebene'!AF14/'2d. Annahmen'!$B$57,0) -> 0 | Z14: =IF(Y14>0,MIN(MIN(_xlfn._xlws.FILTER(Ladeleistung,(Ladeleistung>=Y14))),'1b. Corrected Inputs Segment'!$J$25),0) -> 0 | AA14: =IFERROR(0.8/(SUM('3a. Detailierte Ergebnisse'!$T$24:$U$24)^0.401),1) -> 0.80 | AB14: =MAX(X14*Y14,X14*'1b. Corrected Inputs Segment'!$J$25*AA14) -> 0 | AC14: ='2. Eingaben Fahrzeug-Ebene'!AI14 -> 0 | AD14: 0 | AE14: =IF(U14>0,MIN('1b. Corrected Inputs Segment'!$J$26,U14/'2. Eingaben Fahrzeug-Ebene'!AE14/'2d. Annahmen'!$B$57),0) -> 0 | AF14: =IF(AE14>0,MIN(_xlfn._xlws.FILTER(Ladeleistung,(Ladeleistung>=AE14))),0) -> 0 | AG14: =IF(B14,ROUNDUP(U14/'2. Eingaben Fahrzeug-Ebene'!I14,0),0) -> 0 | AH14: =_xlfn.LET(_xlpm.nS,'3a. Detailierte Ergebnisse'!$E$24,_xlpm.nM,'3a. Detailierte Ergebnisse'!$F$24,_xlpm.nL,'3a. Detailierte Ergebnisse'!$G$24,_xlpm.n,_xlpm.nS+_xlpm.nM+_xlpm.nL,IF(AF14<=100,IF(_xlpm.n<=3,1,1.119/(_xlpm.n^0.094)),IF(AF14<=150,IF(_xlpm.n<=3,1,1.226/(_xlpm.n^0.164)),IF(_xlpm.n=1,1,1.111/(_xlpm.n^0.192))))) -> 1.00 | AI14: =IF(B14,MAX(AD14*AE14/'2d. Annahmen'!$B$56,AD14*AF14*AH14/'2d. Annahmen'!$B$56),0) -> 0 | AJ14: =IF(SUM('2. Eingaben Fahrzeug-Ebene'!AA14:AC14)>0,U14/SUM('2. Eingaben Fahrzeug-Ebene'!AA14:AC14),0) -> 0 | AK14: 0 | AL14: =IF('2. Eingaben Fahrzeug-Ebene'!E14,MAX(H14-AK14,0),MAX(H14-AK14,0)) -> 0 | AM14: =AK14+AL14-H14+'2. Eingaben Fahrzeug-Ebene'!AA14*AJ14 -> 0 | AN14: =-MIN(AM14+'2. Eingaben Fahrzeug-Ebene'!AB14*AJ14-'2. Eingaben Fahrzeug-Ebene'!Z14*I14,0) -> 0 | AO14: =AM14+AN14+'2. Eingaben Fahrzeug-Ebene'!AC14*AJ14-'2. Eingaben Fahrzeug-Ebene'!Z14*I14+'2. Eingaben Fahrzeug-Ebene'!AB14*AJ14 -> 0 | AP14: 0 | AQ14: 0 | AR14: TRUE | AS14: TRUE | AT14: TRUE | AU14: ="" -> 

Sheet 2b. Kosten (hidden)
A1: Arbeitsblatt wird ausgeblendet | D1: Verbrauch | J1: Kosten
B2: In Use? | C2: Anzahl Fahrzeug | D2: E-Fzg | H2: Verbrenner | J2: Leasing | L2: E-Fzg | Z2: Verbrenner | AN2: Ladeinfrastruktur
D3: Energiebedarf (inkl. Verluste) | E3: Anteil Wohnort | F3: Anteil Firmenstandort | G3: Anteil öffentlich | H3: Verbrauch | J3: Zinssatz | K3: Laufzeit | L3: Unterhaltskosten | M3: Energiekosten | N3: Flottenverwaltungskosten | O3: Versicherung | P3: Reifen | Q3: Anschaffung | R3: Restwert | S3: Anschaffung abzgl. Restwert | T3: Unterhalt | U3: Reifen | V3: Energiekosten | W3: Infrastruktur | X3: Versicherung | Y3: Flottenverwaltungskosten | Z3: Unterhaltskosten | AA3: Energiekosten | AB3: Flottenverwaltungskosten | AC3: Versicherung | AD3: Reifen | AE3: Anschaffungskosten | AF3: Restwert | AG3: Anschaffung abzgl. Restwert | AH3: Unterhalt | AI3: Reifen | AJ3: Energiekosten | AK3: Infrastruktur | AL3: Versicherung | AM3: Flottenverwaltungskosten | AN3: Ladeinfrastruktur (Wohnort) | AO3: Ladeinfrastruktur (Firmenstandort) | AP3: Installierte Ladeleistung (Wohnort) | AQ3: Installierte Ladeleistung (Firmenstandort) | AR3: Anschlussleistung (Firmenstandort) | AS3: Ladeinfrastruktur (Wohnort) | AT3: Ladeinfrastruktur (Firmenstandort, Nacht) | AU3: Ladeinfrastruktur (Firmenstandort, Tag) | AV3: Ladeinfrastruktur Anschaffung | AW3: Ladeinfrastruktur Restwert | AX3: Ladeinfrastruktur Unterhalt | AY3: Ladeanschluss Stromtarif Auswirkung | AZ3: Ladeanschluss (Wohnort) | BA3: Ausbaustufe C1-C2 (Wohnort) | BB3: Ladeanschluss (Firmenstandort) | BC3: Ausbaustufe C1-C2 (Firmenstandort) | BD3: Basisinfrastruktur | BE3: Basisinfrastruktur Restwert
D4: kWh/Jahr | H4: l/Tag | I4: l/Jahr | K4: Jahren | L4: CHF/Jahr | M4: CHF/Jahr | N4: CHF/Jahr | O4: CHF/Jahr | P4: CHF/Jahr | Q4: CHF | R4: CHF | S4: CHF | T4: CHF | U4: CHF | V4: CHF | W4: CHF | X4: CHF | Y4: CHF | Z4: CHF/Jahr | AA4: CHF/Jahr | AB4: CHF/Jahr | AC4: CHF/Jahr | AD4: CHF/Jahr | AE4: CHF | AF4: CHF | AG4: CHF | AH4: CHF | AI4: CHF | AJ4: CHF | AK4: CHF | AL4: CHF | AM4: CHF | AS4: CHF | AT4: CHF | AU4: CHF | AV4: CHF | AW4: CHF | AX4: CHF/Jahr | AY4: CHF/Jahr | AZ4: CHF | BA4: CHF | BB4: CHF | BC4: CHF | BD4: CHF | BE4: CHF
A5: Segment 1 | B5: =SUM('2. Eingaben Fahrzeug-Ebene'!$D5:$E5) -> 1 | C5: ='2. Eingaben Fahrzeug-Ebene'!C5 -> 1 | D5: ='2. Eingaben Fahrzeug-Ebene'!X5*'2. Eingaben Fahrzeug-Ebene'!J5/100/'2d. Annahmen'!$B$56 -> 4,362 | E5: =IF(B5,'2a. Ladekonzept'!S5/'2a. Ladekonzept'!D5,0) -> 0% | F5: =IF(B5,SUM('2a. Ladekonzept'!U5,'2a. Ladekonzept'!T5)/'2a. Ladekonzept'!D5,0) -> 100% | G5: =IF(B5,'2a. Ladekonzept'!Q5/'2a. Ladekonzept'!D5,0) -> 0% | H5: ='2. Eingaben Fahrzeug-Ebene'!V5*'2. Eingaben Fahrzeug-Ebene'!O5/100 -> 5.80 | I5: ='2. Eingaben Fahrzeug-Ebene'!X5*'2. Eingaben Fahrzeug-Ebene'!O5/100 -> 1,508 | J5: =IF(B5,'1c. Inputs Segment Summary'!Z2,0) -> 3.00% | K5: =IF(B5,'1c. Inputs Segment Summary'!AA2/12,0) -> 4 | L5: =IF(B5,'2. Eingaben Fahrzeug-Ebene'!N5*'2. Eingaben Fahrzeug-Ebene'!$X5,0) -> 650 | M5: =IF(B5,D5*(SUMPRODUCT('1b. Corrected Inputs Segment'!$J$19:$J$21,TRANSPOSE('2b. Kosten'!E5:G5)))+AY5,0) -> 1,047 | N5: =IF(B5,INDEX('2d. Annahmen'!$D$22:$D$25,'2. Eingaben Fahrzeug-Ebene'!G5),0) -> 400 | O5: =IF(B5,INDEX('2d. Annahmen'!$C$22:$C$25,'2. Eingaben Fahrzeug-Ebene'!G5),0) -> 1,200 | P5: =IF(B5,INDEX('2d. Annahmen'!$L$4:$L$7,'2. Eingaben Fahrzeug-Ebene'!G5),0) -> 470 | Q5: =IF(B5,'2. Eingaben Fahrzeug-Ebene'!K5,0) -> 28,811 | R5: =IF(B5,NPV(J5, _xlfn.MAKEARRAY(1, K5, _xlfn.LAMBDA(_xlpm.r,_xlpm.c, IF(_xlpm.c = K5, -'2. Eingaben Fahrzeug-Ebene'!M5, 0)))),0) -> -7,848 | S5: =SUM(Q5:R5) -> 20,963 | T5: =IF(B5,NPV(J5,_xlfn.MAKEARRAY(K5,1,_xlfn.LAMBDA(_xlpm.r,_xlpm.c,L5))),0) -> 2,416 | U5: =IF(B5,NPV(J5,_xlfn.MAKEARRAY(K5,1,_xlfn.LAMBDA(_xlpm.r,_xlpm.c,P5))),0) -> 1,747 | V5: =IF(B5,NPV(J5,_xlfn.MAKEARRAY(K5,1,_xlfn.LAMBDA(_xlpm.r,_xlpm.c,M5))),0) -> 3,892 | W5: =IF(B5,AV5+NPV(J5,_xlfn.MAKEARRAY(K5,1,_xlfn.LAMBDA(_xlpm.r,_xlpm.c,AX5)))+NPV(J5, _xlfn.MAKEARRAY(1, K5, _xlfn.LAMBDA(_xlpm.r,_xlpm.c, IF(_xlpm.c = K5, -AW5, 0))))+BD5+NPV(J5, _xlfn.MAKEARRAY(1, K5, _xlfn.LAMBDA(_xlpm.r,_xlpm.c, IF(_xlpm.c = K5, -BE5, 0)))),0) -> 1,721 | X5: =IF(B5,NPV(J5,_xlfn.MAKEARRAY(K5,1,_xlfn.LAMBDA(_xlpm.r,_xlpm.c,O5))),0) -> 4,461 | Y5: =IF(B5,NPV(J5,_xlfn.MAKEARRAY(K5,1,_xlfn.LAMBDA(_xlpm.r,_xlpm.c,N5))),0) -> 1,487 | Z5: =IF(B5,'2. Eingaben Fahrzeug-Ebene'!S5*'2. Eingaben Fahrzeug-Ebene'!$X5,0) -> 1,300 | AA5: =IF(B5,I5*'1b. Corrected Inputs Segment'!$J$18,0) -> 2,714 | AB5: =IF(B5,INDEX('2d. Annahmen'!$D$22:$D$25,'2. Eingaben Fahrzeug-Ebene'!G5),0) -> 400 | AC5: =IF(B5,INDEX('2d. Annahmen'!$C$22:$C$25,'2. Eingaben Fahrzeug-Ebene'!G5),0) -> 1,200 | AD5: =IF(B5,INDEX('2d. Annahmen'!I13:I16,'2. Eingaben Fahrzeug-Ebene'!G5),0) -> 400 | AE5: =IF(B5,'2. Eingaben Fahrzeug-Ebene'!P5,0) -> 27,219 | AF5: =IF(B5,NPV(J5, _xlfn.MAKEARRAY(1, K5, _xlfn.LAMBDA(_xlpm.r,_xlpm.c, IF(_xlpm.c = K5, -'2. Eingaben Fahrzeug-Ebene'!R5, 0)))),0) -> -7,644 | AG5: =SUM(AE5:AF5) -> 19,576 | AH5: =IF(B5,NPV(J5,_xlfn.MAKEARRAY(K5,1,_xlfn.LAMBDA(_xlpm.r,_xlpm.c,Z5))),0) -> 4,832 | AI5: =IF(B5,NPV(J5,_xlfn.MAKEARRAY(K5,1,_xlfn.LAMBDA(_xlpm.r,_xlpm.c,AD5))),0) -> 1,487 | AJ5: =IF(B5,NPV(J5,_xlfn.MAKEARRAY(K5,1,_xlfn.LAMBDA(_xlpm.r,_xlpm.c,AA5))),0) -> 10,090 | AK5: =0 -> 0 | AL5: =IF(B5,NPV(J5,_xlfn.MAKEARRAY(K5,1,_xlfn.LAMBDA(_xlpm.r,_xlpm.c,AC5))),0) -> 4,461 | AM5: =IF(B5,NPV(J5,_xlfn.MAKEARRAY(K5,1,_xlfn.LAMBDA(_xlpm.r,_xlpm.c,AB5))),0) -> 1,487 | AN5: =IF('2a. Ladekonzept'!V5>0,'2a. Ladekonzept'!V5&" x "&_xlfn.TEXTJOIN(" ",TRUE,'1b. Corrected Inputs Segment'!$J$24:$K$24),"") ->  | AO5: =_xlfn.TEXTJOIN(", ",TRUE,IF('2a. Ladekonzept'!X5>0,'2a. Ladekonzept'!X5&" x "&_xlfn.TEXTJOIN(" ",TRUE,'1b. Corrected Inputs Segment'!$J$25:$K$25),""),IF('2a. Ladekonzept'!AD5>0,'2a. Ladekonzept'!AD5&" x "&'2a. Ladekonzept'!AF5&" kW","")) -> 1 x 11 kW | AP5: ='2a. Ladekonzept'!V5*'1b. Corrected Inputs Segment'!$J$24 -> 0 | AQ5: ='2a. Ladekonzept'!X5*'1b. Corrected Inputs Segment'!$J$25+'2a. Ladekonzept'!AD5*'2a. Ladekonzept'!AF5 -> 11 | AR5: =MAX('2a. Ladekonzept'!AI5,'2a. Ladekonzept'!AB5) -> 9 | AS5: ='2a. Ladekonzept'!V5*'3a. Detailierte Ergebnisse'!$B$28 -> 0 | AT5: =IF(B5,'2a. Ladekonzept'!X5*IF('2a. Ladekonzept'!Z5>0,INDEX('3a. Detailierte Ergebnisse'!$T$28:$AE$28,MATCH('2a. Ladekonzept'!Z5,Ladeleistung,0)),0),0) -> 1,632 | AU5: =IF(B5,'2a. Ladekonzept'!AD5*IF('2a. Ladekonzept'!AF5>0,INDEX('3a. Detailierte Ergebnisse'!$T$28:$AE$28,MATCH('2a. Ladekonzept'!AF5,Ladeleistung,0)),0),0) -> 0 | AV5: =SUM(AS5:AU5) -> 1,632 | AW5: =AV5*('2d. Annahmen'!$B$54-K5)/'2d. Annahmen'!$B$54 -> 979 | AX5: ='2d. Annahmen'!$B$55*AV5 -> 24 | AY5: =IF(AQ5>0,'2d. Annahmen'!$B$69*AQ5,0)*12 -> 0 | AZ5: =IF(AP5>0,'3a. Detailierte Ergebnisse'!$B$41*AP5,0) -> 0 | BA5: ='2a. Ladekonzept'!V5*'3a. Detailierte Ergebnisse'!$F$39 -> 0 | BB5: =IF(AR5>0,'3a. Detailierte Ergebnisse'!$C$41*AR5,0) -> 0 | BC5: =SUM('2a. Ladekonzept'!X5,'2a. Ladekonzept'!AD5)*'3a. Detailierte Ergebnisse'!$J$39 -> 3,000 | BD5: =SUM(AZ5:BC5) -> 3,000 | BE5: =BD5*('2d. Annahmen'!$B$62-K5)/'2d. Annahmen'!$B$62 -> 2,400
A6: Segment 2 | B6: =SUM('2. Eingaben Fahrzeug-Ebene'!$D6:$E6) -> 0 | C6: ='2. Eingaben Fahrzeug-Ebene'!C6 -> 0 | D6: ='2. Eingaben Fahrzeug-Ebene'!X6*'2. Eingaben Fahrzeug-Ebene'!J6/100/'2d. Annahmen'!$B$56 -> 0 | E6: =IF(B6,'2a. Ladekonzept'!S6/'2a. Ladekonzept'!D6,0) -> 0% | F6: =IF(B6,SUM('2a. Ladekonzept'!U6,'2a. Ladekonzept'!T6)/'2a. Ladekonzept'!D6,0) -> 0% | G6: =IF(B6,'2a. Ladekonzept'!Q6/'2a. Ladekonzept'!D6,0) -> 0% | H6: ='2. Eingaben Fahrzeug-Ebene'!V6*'2. Eingaben Fahrzeug-Ebene'!O6/100 -> 0.00 | I6: ='2. Eingaben Fahrzeug-Ebene'!X6*'2. Eingaben Fahrzeug-Ebene'!O6/100 -> 0 | J6: =IF(B6,'1c. Inputs Segment Summary'!Z3,0) -> 0.00% | K6: =IF(B6,'1c. Inputs Segment Summary'!AA3/12,0) -> 0 | L6: =IF(B6,'2. Eingaben Fahrzeug-Ebene'!N6*'2. Eingaben Fahrzeug-Ebene'!$X6,0) -> 0 | M6: =IF(B6,D6*(SUMPRODUCT('1b. Corrected Inputs Segment'!$J$19:$J$21,TRANSPOSE('2b. Kosten'!E6:G6)))+AY6,0) -> 0 | N6: =IF(B6,INDEX('2d. Annahmen'!$D$22:$D$25,'2. Eingaben Fahrzeug-Ebene'!G6),0) -> 0 | O6: =IF(B6,INDEX('2d. Annahmen'!$C$22:$C$25,'2. Eingaben Fahrzeug-Ebene'!G6),0) -> 0 | P6: =IF(B6,INDEX('2d. Annahmen'!$L$4:$L$7,'2. Eingaben Fahrzeug-Ebene'!G6),0) -> 0 | Q6: =IF(B6,'2. Eingaben Fahrzeug-Ebene'!K6,0) -> 0 | R6: =IF(B6,NPV(J6, _xlfn.MAKEARRAY(1, K6, _xlfn.LAMBDA(_xlpm.r,_xlpm.c, IF(_xlpm.c = K6, -'2. Eingaben Fahrzeug-Ebene'!M6, 0)))),0) -> 0 | S6: =SUM(Q6:R6) -> 0 | T6: =IF(B6,NPV(J6,_xlfn.MAKEARRAY(K6,1,_xlfn.LAMBDA(_xlpm.r,_xlpm.c,L6))),0) -> 0 | U6: =IF(B6,NPV(J6,_xlfn.MAKEARRAY(K6,1,_xlfn.LAMBDA(_xlpm.r,_xlpm.c,P6))),0) -> 0 | V6: =IF(B6,NPV(J6,_xlfn.MAKEARRAY(K6,1,_xlfn.LAMBDA(_xlpm.r,_xlpm.c,M6))),0) -> 0 | W6: =IF(B6,AV6+NPV(J6,_xlfn.MAKEARRAY(K6,1,_xlfn.LAMBDA(_xlpm.r,_xlpm.c,AX6)))+NPV(J6, _xlfn.MAKEARRAY(1, K6, _xlfn.LAMBDA(_xlpm.r,_xlpm.c, IF(_xlpm.c = K6, -AW6, 0))))+BD6+NPV(J6, _xlfn.MAKEARRAY(1, K6, _xlfn.LAMBDA(_xlpm.r,_xlpm.c, IF(_xlpm.c = K6, -BE6, 0)))),0) -> 0 | X6: =IF(B6,NPV(J6,_xlfn.MAKEARRAY(K6,1,_xlfn.LAMBDA(_xlpm.r,_xlpm.c,O6))),0) -> 0 | Y6: =IF(B6,NPV(J6,_xlfn.MAKEARRAY(K6,1,_xlfn.LAMBDA(_xlpm.r,_xlpm.c,N6))),0) -> 0 | Z6: =IF(B6,'2. Eingaben Fahrzeug-Ebene'!S6*'2. Eingaben Fahrzeug-Ebene'!$X6,0) -> 0 | AA6: =IF(B6,I6*'1b. Corrected Inputs Segment'!$J$18,0) -> 0 | AB6: =IF(B6,INDEX('2d. Annahmen'!$D$22:$D$25,'2. Eingaben Fahrzeug-Ebene'!G6),0) -> 0 | AC6: =IF(B6,INDEX('2d. Annahmen'!$C$22:$C$25,'2. Eingaben Fahrzeug-Ebene'!G6),0) -> 0 | AD6: =IF(B6,INDEX('2d. Annahmen'!I14:I17,'2. Eingaben Fahrzeug-Ebene'!G6),0) -> 0 | AE6: =IF(B6,'2. Eingaben Fahrzeug-Ebene'!P6,0) -> 0 | AF6: =IF(B6,NPV(J6, _xlfn.MAKEARRAY(1, K6, _xlfn.LAMBDA(_xlpm.r,_xlpm.c, IF(_xlpm.c = K6, -'2. Eingaben Fahrzeug-Ebene'!R6, 0)))),0) -> 0 | AG6: =SUM(AE6:AF6) -> 0 | AH6: =IF(B6,NPV(J6,_xlfn.MAKEARRAY(K6,1,_xlfn.LAMBDA(_xlpm.r,_xlpm.c,Z6))),0) -> 0 | AI6: =IF(B6,NPV(J6,_xlfn.MAKEARRAY(K6,1,_xlfn.LAMBDA(_xlpm.r,_xlpm.c,AD6))),0) -> 0 | AJ6: =IF(B6,NPV(J6,_xlfn.MAKEARRAY(K6,1,_xlfn.LAMBDA(_xlpm.r,_xlpm.c,AA6))),0) -> 0 | AK6: =0 -> 0 | AL6: =IF(B6,NPV(J6,_xlfn.MAKEARRAY(K6,1,_xlfn.LAMBDA(_xlpm.r,_xlpm.c,AC6))),0) -> 0 | AM6: =IF(B6,NPV(J6,_xlfn.MAKEARRAY(K6,1,_xlfn.LAMBDA(_xlpm.r,_xlpm.c,AB6))),0) -> 0 | AN6: =IF('2a. Ladekonzept'!V6>0,'2a. Ladekonzept'!V6&" x "&_xlfn.TEXTJOIN(" ",TRUE,'1b. Corrected Inputs Segment'!$J$24:$K$24),"") ->  | AO6: =_xlfn.TEXTJOIN(", ",TRUE,IF('2a. Ladekonzept'!X6>0,'2a. Ladekonzept'!X6&" x "&_xlfn.TEXTJOIN(" ",TRUE,'1b. Corrected Inputs Segment'!$J$25:$K$25),""),IF('2a. Ladekonzept'!AD6>0,'2a. Ladekonzept'!AD6&" x "&'2a. Ladekonzept'!AF6&" kW","")) ->  | AP6: ='2a. Ladekonzept'!V6*'1b. Corrected Inputs Segment'!$J$24 -> 0 | AQ6: ='2a. Ladekonzept'!X6*'1b. Corrected Inputs Segment'!$J$25+'2a. Ladekonzept'!AD6*'2a. Ladekonzept'!AF6 -> 0 | AR6: =MAX('2a. Ladekonzept'!AI6,'2a. Ladekonzept'!AB6) -> 0 | AS6: ='2a. Ladekonzept'!V6*'3a. Detailierte Ergebnisse'!$B$28 -> 0 | AT6: =IF(B6,'2a. Ladekonzept'!X6*IF('2a. Ladekonzept'!Z6>0,INDEX('3a. Detailierte Ergebnisse'!$T$28:$AE$28,MATCH('2a. Ladekonzept'!Z6,Ladeleistung,0)),0),0) -> 0 | AU6: =IF(B6,'2a. Ladekonzept'!AD6*IF('2a. Ladekonzept'!AF6>0,INDEX('3a. Detailierte Ergebnisse'!$T$28:$AE$28,MATCH('2a. Ladekonzept'!AF6,Ladeleistung,0)),0),0) -> 0 | AV6: 0 | AW6: =AV6*('2d. Annahmen'!$B$54-K6)/'2d. Annahmen'!$B$54 -> 0 | AX6: ='2d. Annahmen'!$B$55*AV6 -> 0 | AY6: =IF(AQ6>0,'2d. Annahmen'!$B$69*AQ6,0)*12 -> 0 | AZ6: =IF(AP6>0,'3a. Detailierte Ergebnisse'!$B$41*AP6,0) -> 0 | BA6: ='2a. Ladekonzept'!V6*'3a. Detailierte Ergebnisse'!$F$39 -> 0 | BB6: =IF(AR6>0,'3a. Detailierte Ergebnisse'!$C$41*AR6,0) -> 0 | BC6: =SUM('2a. Ladekonzept'!X6,'2a. Ladekonzept'!AD6)*'3a. Detailierte Ergebnisse'!$J$39 -> 0 | BD6: =SUM(AZ6:BC6) -> 0 | BE6: =BD6*('2d. Annahmen'!$B$62-K6)/'2d. Annahmen'!$B$62 -> 0
A7: Segment 3 | B7: =SUM('2. Eingaben Fahrzeug-Ebene'!$D7:$E7) -> 0 | C7: ='2. Eingaben Fahrzeug-Ebene'!C7 -> 0 | D7: ='2. Eingaben Fahrzeug-Ebene'!X7*'2. Eingaben Fahrzeug-Ebene'!J7/100/'2d. Annahmen'!$B$56 -> 0 | E7: =IF(B7,'2a. Ladekonzept'!S7/'2a. Ladekonzept'!D7,0) -> 0% | F7: =IF(B7,SUM('2a. Ladekonzept'!U7,'2a. Ladekonzept'!T7)/'2a. Ladekonzept'!D7,0) -> 0% | G7: =IF(B7,'2a. Ladekonzept'!Q7/'2a. Ladekonzept'!D7,0) -> 0% | H7: ='2. Eingaben Fahrzeug-Ebene'!V7*'2. Eingaben Fahrzeug-Ebene'!O7/100 -> 0.00 | I7: ='2. Eingaben Fahrzeug-Ebene'!X7*'2. Eingaben Fahrzeug-Ebene'!O7/100 -> 0 | J7: =IF(B7,'1c. Inputs Segment Summary'!Z4,0) -> 0.00% | K7: =IF(B7,'1c. Inputs Segment Summary'!AA4/12,0) -> 0 | L7: =IF(B7,'2. Eingaben Fahrzeug-Ebene'!N7*'2. Eingaben Fahrzeug-Ebene'!$X7,0) -> 0 | M7: =IF(B7,D7*(SUMPRODUCT('1b. Corrected Inputs Segment'!$J$19:$J$21,TRANSPOSE('2b. Kosten'!E7:G7)))+AY7,0) -> 0 | N7: =IF(B7,INDEX('2d. Annahmen'!$D$22:$D$25,'2. Eingaben Fahrzeug-Ebene'!G7),0) -> 0 | O7: =IF(B7,INDEX('2d. Annahmen'!$C$22:$C$25,'2. Eingaben Fahrzeug-Ebene'!G7),0) -> 0 | P7: =IF(B7,INDEX('2d. Annahmen'!$L$4:$L$7,'2. Eingaben Fahrzeug-Ebene'!G7),0) -> 0 | Q7: =IF(B7,'2. Eingaben Fahrzeug-Ebene'!K7,0) -> 0 | R7: =IF(B7,NPV(J7, _xlfn.MAKEARRAY(1, K7, _xlfn.LAMBDA(_xlpm.r,_xlpm.c, IF(_xlpm.c = K7, -'2. Eingaben Fahrzeug-Ebene'!M7, 0)))),0) -> 0 | S7: 0 | T7: =IF(B7,NPV(J7,_xlfn.MAKEARRAY(K7,1,_xlfn.LAMBDA(_xlpm.r,_xlpm.c,L7))),0) -> 0 | U7: =IF(B7,NPV(J7,_xlfn.MAKEARRAY(K7,1,_xlfn.LAMBDA(_xlpm.r,_xlpm.c,P7))),0) -> 0 | V7: =IF(B7,NPV(J7,_xlfn.MAKEARRAY(K7,1,_xlfn.LAMBDA(_xlpm.r,_xlpm.c,M7))),0) -> 0 | W7: =IF(B7,AV7+NPV(J7,_xlfn.MAKEARRAY(K7,1,_xlfn.LAMBDA(_xlpm.r,_xlpm.c,AX7)))+NPV(J7, _xlfn.MAKEARRAY(1, K7, _xlfn.LAMBDA(_xlpm.r,_xlpm.c, IF(_xlpm.c = K7, -AW7, 0))))+BD7+NPV(J7, _xlfn.MAKEARRAY(1, K7, _xlfn.LAMBDA(_xlpm.r,_xlpm.c, IF(_xlpm.c = K7, -BE7, 0)))),0) -> 0 | X7: =IF(B7,NPV(J7,_xlfn.MAKEARRAY(K7,1,_xlfn.LAMBDA(_xlpm.r,_xlpm.c,O7))),0) -> 0 | Y7: =IF(B7,NPV(J7,_xlfn.MAKEARRAY(K7,1,_xlfn.LAMBDA(_xlpm.r,_xlpm.c,N7))),0) -> 0 | Z7: =IF(B7,'2. Eingaben Fahrzeug-Ebene'!S7*'2. Eingaben Fahrzeug-Ebene'!$X7,0) -> 0 | AA7: =IF(B7,I7*'1b. Corrected Inputs Segment'!$J$18,0) -> 0 | AB7: =IF(B7,INDEX('2d. Annahmen'!$D$22:$D$25,'2. Eingaben Fahrzeug-Ebene'!G7),0) -> 0 | AC7: =IF(B7,INDEX('2d. Annahmen'!$C$22:$C$25,'2. Eingaben Fahrzeug-Ebene'!G7),0) -> 0 | AD7: =IF(B7,INDEX('2d. Annahmen'!I15:I18,'2. Eingaben Fahrzeug-Ebene'!G7),0) -> 0 | AE7: =IF(B7,'2. Eingaben Fahrzeug-Ebene'!P7,0) -> 0 | AF7: =IF(B7,NPV(J7, _xlfn.MAKEARRAY(1, K7, _xlfn.LAMBDA(_xlpm.r,_xlpm.c, IF(_xlpm.c = K7, -'2. Eingaben Fahrzeug-Ebene'!R7, 0)))),0) -> 0 | AG7: 0 | AH7: =IF(B7,NPV(J7,_xlfn.MAKEARRAY(K7,1,_xlfn.LAMBDA(_xlpm.r,_xlpm.c,Z7))),0) -> 0 | AI7: =IF(B7,NPV(J7,_xlfn.MAKEARRAY(K7,1,_xlfn.LAMBDA(_xlpm.r,_xlpm.c,AD7))),0) -> 0 | AJ7: =IF(B7,NPV(J7,_xlfn.MAKEARRAY(K7,1,_xlfn.LAMBDA(_xlpm.r,_xlpm.c,AA7))),0) -> 0 | AK7: =0 -> 0 | AL7: =IF(B7,NPV(J7,_xlfn.MAKEARRAY(K7,1,_xlfn.LAMBDA(_xlpm.r,_xlpm.c,AC7))),0) -> 0 | AM7: =IF(B7,NPV(J7,_xlfn.MAKEARRAY(K7,1,_xlfn.LAMBDA(_xlpm.r,_xlpm.c,AB7))),0) -> 0 | AN7: =IF('2a. Ladekonzept'!V7>0,'2a. Ladekonzept'!V7&" x "&_xlfn.TEXTJOIN(" ",TRUE,'1b. Corrected Inputs Segment'!$J$24:$K$24),"") ->  | AO7: =_xlfn.TEXTJOIN(", ",TRUE,IF('2a. Ladekonzept'!X7>0,'2a. Ladekonzept'!X7&" x "&_xlfn.TEXTJOIN(" ",TRUE,'1b. Corrected Inputs Segment'!$J$25:$K$25),""),IF('2a. Ladekonzept'!AD7>0,'2a. Ladekonzept'!AD7&" x "&'2a. Ladekonzept'!AF7&" kW","")) ->  | AP7: ='2a. Ladekonzept'!V7*'1b. Corrected Inputs Segment'!$J$24 -> 0 | AQ7: ='2a. Ladekonzept'!X7*'1b. Corrected Inputs Segment'!$J$25+'2a. Ladekonzept'!AD7*'2a. Ladekonzept'!AF7 -> 0 | AR7: =MAX('2a. Ladekonzept'!AI7,'2a. Ladekonzept'!AB7) -> 0 | AS7: ='2a. Ladekonzept'!V7*'3a. Detailierte Ergebnisse'!$B$28 -> 0 | AT7: =IF(B7,'2a. Ladekonzept'!X7*IF('2a. Ladekonzept'!Z7>0,INDEX('3a. Detailierte Ergebnisse'!$T$28:$AE$28,MATCH('2a. Ladekonzept'!Z7,Ladeleistung,0)),0),0) -> 0 | AU7: =IF(B7,'2a. Ladekonzept'!AD7*IF('2a. Ladekonzept'!AF7>0,INDEX('3a. Detailierte Ergebnisse'!$T$28:$AE$28,MATCH('2a. Ladekonzept'!AF7,Ladeleistung,0)),0),0) -> 0 | AV7: 0 | AW7: =AV7*('2d. Annahmen'!$B$54-K7)/'2d. Annahmen'!$B$54 -> 0 | AX7: ='2d. Annahmen'!$B$55*AV7 -> 0 | AY7: =IF(AQ7>0,'2d. Annahmen'!$B$69*AQ7,0)*12 -> 0 | AZ7: =IF(AP7>0,'3a. Detailierte Ergebnisse'!$B$41*AP7,0) -> 0 | BA7: ='2a. Ladekonzept'!V7*'3a. Detailierte Ergebnisse'!$F$39 -> 0 | BB7: =IF(AR7>0,'3a. Detailierte Ergebnisse'!$C$41*AR7,0) -> 0 | BC7: =SUM('2a. Ladekonzept'!X7,'2a. Ladekonzept'!AD7)*'3a. Detailierte Ergebnisse'!$J$39 -> 0 | BD7: 0 | BE7: =BD7*('2d. Annahmen'!$B$62-K7)/'2d. Annahmen'!$B$62 -> 0
A8: Segment 4 | B8: =SUM('2. Eingaben Fahrzeug-Ebene'!$D8:$E8) -> 0 | C8: ='2. Eingaben Fahrzeug-Ebene'!C8 -> 0 | D8: ='2. Eingaben Fahrzeug-Ebene'!X8*'2. Eingaben Fahrzeug-Ebene'!J8/100/'2d. Annahmen'!$B$56 -> 0 | E8: =IF(B8,'2a. Ladekonzept'!S8/'2a. Ladekonzept'!D8,0) -> 0% | F8: =IF(B8,SUM('2a. Ladekonzept'!U8,'2a. Ladekonzept'!T8)/'2a. Ladekonzept'!D8,0) -> 0% | G8: =IF(B8,'2a. Ladekonzept'!Q8/'2a. Ladekonzept'!D8,0) -> 0% | H8: ='2. Eingaben Fahrzeug-Ebene'!V8*'2. Eingaben Fahrzeug-Ebene'!O8/100 -> 0.00 | I8: ='2. Eingaben Fahrzeug-Ebene'!X8*'2. Eingaben Fahrzeug-Ebene'!O8/100 -> 0 | J8: =IF(B8,'1c. Inputs Segment Summary'!Z5,0) -> 0.00% | K8: =IF(B8,'1c. Inputs Segment Summary'!AA5/12,0) -> 0 | L8: =IF(B8,'2. Eingaben Fahrzeug-Ebene'!N8*'2. Eingaben Fahrzeug-Ebene'!$X8,0) -> 0 | M8: =IF(B8,D8*(SUMPRODUCT('1b. Corrected Inputs Segment'!$J$19:$J$21,TRANSPOSE('2b. Kosten'!E8:G8)))+AY8,0) -> 0 | N8: =IF(B8,INDEX('2d. Annahmen'!$D$22:$D$25,'2. Eingaben Fahrzeug-Ebene'!G8),0) -> 0 | O8: =IF(B8,INDEX('2d. Annahmen'!$C$22:$C$25,'2. Eingaben Fahrzeug-Ebene'!G8),0) -> 0 | P8: =IF(B8,INDEX('2d. Annahmen'!$L$4:$L$7,'2. Eingaben Fahrzeug-Ebene'!G8),0) -> 0 | Q8: =IF(B8,'2. Eingaben Fahrzeug-Ebene'!K8,0) -> 0 | R8: =IF(B8,NPV(J8, _xlfn.MAKEARRAY(1, K8, _xlfn.LAMBDA(_xlpm.r,_xlpm.c, IF(_xlpm.c = K8, -'2. Eingaben Fahrzeug-Ebene'!M8, 0)))),0) -> 0 | S8: 0 | T8: =IF(B8,NPV(J8,_xlfn.MAKEARRAY(K8,1,_xlfn.LAMBDA(_xlpm.r,_xlpm.c,L8))),0) -> 0 | U8: =IF(B8,NPV(J8,_xlfn.MAKEARRAY(K8,1,_xlfn.LAMBDA(_xlpm.r,_xlpm.c,P8))),0) -> 0 | V8: =IF(B8,NPV(J8,_xlfn.MAKEARRAY(K8,1,_xlfn.LAMBDA(_xlpm.r,_xlpm.c,M8))),0) -> 0 | W8: =IF(B8,AV8+NPV(J8,_xlfn.MAKEARRAY(K8,1,_xlfn.LAMBDA(_xlpm.r,_xlpm.c,AX8)))+NPV(J8, _xlfn.MAKEARRAY(1, K8, _xlfn.LAMBDA(_xlpm.r,_xlpm.c, IF(_xlpm.c = K8, -AW8, 0))))+BD8+NPV(J8, _xlfn.MAKEARRAY(1, K8, _xlfn.LAMBDA(_xlpm.r,_xlpm.c, IF(_xlpm.c = K8, -BE8, 0)))),0) -> 0 | X8: =IF(B8,NPV(J8,_xlfn.MAKEARRAY(K8,1,_xlfn.LAMBDA(_xlpm.r,_xlpm.c,O8))),0) -> 0 | Y8: =IF(B8,NPV(J8,_xlfn.MAKEARRAY(K8,1,_xlfn.LAMBDA(_xlpm.r,_xlpm.c,N8))),0) -> 0 | Z8: =IF(B8,'2. Eingaben Fahrzeug-Ebene'!S8*'2. Eingaben Fahrzeug-Ebene'!$X8,0) -> 0 | AA8: =IF(B8,I8*'1b. Corrected Inputs Segment'!$J$18,0) -> 0 | AB8: =IF(B8,INDEX('2d. Annahmen'!$D$22:$D$25,'2. Eingaben Fahrzeug-Ebene'!G8),0) -> 0 | AC8: =IF(B8,INDEX('2d. Annahmen'!$C$22:$C$25,'2. Eingaben Fahrzeug-Ebene'!G8),0) -> 0 | AD8: =IF(B8,INDEX('2d. Annahmen'!I16:I19,'2. Eingaben Fahrzeug-Ebene'!G8),0) -> 0 | AE8: =IF(B8,'2. Eingaben Fahrzeug-Ebene'!P8,0) -> 0 | AF8: =IF(B8,NPV(J8, _xlfn.MAKEARRAY(1, K8, _xlfn.LAMBDA(_xlpm.r,_xlpm.c, IF(_xlpm.c = K8, -'2. Eingaben Fahrzeug-Ebene'!R8, 0)))),0) -> 0 | AG8: 0 | AH8: =IF(B8,NPV(J8,_xlfn.MAKEARRAY(K8,1,_xlfn.LAMBDA(_xlpm.r,_xlpm.c,Z8))),0) -> 0 | AI8: =IF(B8,NPV(J8,_xlfn.MAKEARRAY(K8,1,_xlfn.LAMBDA(_xlpm.r,_xlpm.c,AD8))),0) -> 0 | AJ8: =IF(B8,NPV(J8,_xlfn.MAKEARRAY(K8,1,_xlfn.LAMBDA(_xlpm.r,_xlpm.c,AA8))),0) -> 0 | AK8: =0 -> 0 | AL8: =IF(B8,NPV(J8,_xlfn.MAKEARRAY(K8,1,_xlfn.LAMBDA(_xlpm.r,_xlpm.c,AC8))),0) -> 0 | AM8: =IF(B8,NPV(J8,_xlfn.MAKEARRAY(K8,1,_xlfn.LAMBDA(_xlpm.r,_xlpm.c,AB8))),0) -> 0 | AN8: =IF('2a. Ladekonzept'!V8>0,'2a. Ladekonzept'!V8&" x "&_xlfn.TEXTJOIN(" ",TRUE,'1b. Corrected Inputs Segment'!$J$24:$K$24),"") ->  | AO8: =_xlfn.TEXTJOIN(", ",TRUE,IF('2a. Ladekonzept'!X8>0,'2a. Ladekonzept'!X8&" x "&_xlfn.TEXTJOIN(" ",TRUE,'1b. Corrected Inputs Segment'!$J$25:$K$25),""),IF('2a. Ladekonzept'!AD8>0,'2a. Ladekonzept'!AD8&" x "&'2a. Ladekonzept'!AF8&" kW","")) ->  | AP8: ='2a. Ladekonzept'!V8*'1b. Corrected Inputs Segment'!$J$24 -> 0 | AQ8: ='2a. Ladekonzept'!X8*'1b. Corrected Inputs Segment'!$J$25+'2a. Ladekonzept'!AD8*'2a. Ladekonzept'!AF8 -> 0 | AR8: =MAX('2a. Ladekonzept'!AI8,'2a. Ladekonzept'!AB8) -> 0 | AS8: ='2a. Ladekonzept'!V8*'3a. Detailierte Ergebnisse'!$B$28 -> 0 | AT8: =IF(B8,'2a. Ladekonzept'!X8*IF('2a. Ladekonzept'!Z8>0,INDEX('3a. Detailierte Ergebnisse'!$T$28:$AE$28,MATCH('2a. Ladekonzept'!Z8,Ladeleistung,0)),0),0) -> 0 | AU8: =IF(B8,'2a. Ladekonzept'!AD8*IF('2a. Ladekonzept'!AF8>0,INDEX('3a. Detailierte Ergebnisse'!$T$28:$AE$28,MATCH('2a. Ladekonzept'!AF8,Ladeleistung,0)),0),0) -> 0 | AV8: 0 | AW8: =AV8*('2d. Annahmen'!$B$54-K8)/'2d. Annahmen'!$B$54 -> 0 | AX8: ='2d. Annahmen'!$B$55*AV8 -> 0 | AY8: =IF(AQ8>0,'2d. Annahmen'!$B$69*AQ8,0)*12 -> 0 | AZ8: =IF(AP8>0,'3a. Detailierte Ergebnisse'!$B$41*AP8,0) -> 0 | BA8: ='2a. Ladekonzept'!V8*'3a. Detailierte Ergebnisse'!$F$39 -> 0 | BB8: =IF(AR8>0,'3a. Detailierte Ergebnisse'!$C$41*AR8,0) -> 0 | BC8: =SUM('2a. Ladekonzept'!X8,'2a. Ladekonzept'!AD8)*'3a. Detailierte Ergebnisse'!$J$39 -> 0 | BD8: 0 | BE8: =BD8*('2d. Annahmen'!$B$62-K8)/'2d. Annahmen'!$B$62 -> 0
A9: Segment 5 | B9: =SUM('2. Eingaben Fahrzeug-Ebene'!$D9:$E9) -> 0 | C9: ='2. Eingaben Fahrzeug-Ebene'!C9 -> 0 | D9: ='2. Eingaben Fahrzeug-Ebene'!X9*'2. Eingaben Fahrzeug-Ebene'!J9/100/'2d. Annahmen'!$B$56 -> 0 | E9: =IF(B9,'2a. Ladekonzept'!S9/'2a. Ladekonzept'!D9,0) -> 0% | F9: =IF(B9,SUM('2a. Ladekonzept'!U9,'2a. Ladekonzept'!T9)/'2a. Ladekonzept'!D9,0) -> 0% | G9: =IF(B9,'2a. Ladekonzept'!Q9/'2a. Ladekonzept'!D9,0) -> 0% | H9: ='2. Eingaben Fahrzeug-Ebene'!V9*'2. Eingaben Fahrzeug-Ebene'!O9/100 -> 0.00 | I9: ='2. Eingaben Fahrzeug-Ebene'!X9*'2. Eingaben Fahrzeug-Ebene'!O9/100 -> 0 | J9: =IF(B9,'1c. Inputs Segment Summary'!Z6,0) -> 0.00% | K9: =IF(B9,'1c. Inputs Segment Summary'!AA6/12,0) -> 0 | L9: =IF(B9,'2. Eingaben Fahrzeug-Ebene'!N9*'2. Eingaben Fahrzeug-Ebene'!$X9,0) -> 0 | M9: =IF(B9,D9*(SUMPRODUCT('1b. Corrected Inputs Segment'!$J$19:$J$21,TRANSPOSE('2b. Kosten'!E9:G9)))+AY9,0) -> 0 | N9: =IF(B9,INDEX('2d. Annahmen'!$D$22:$D$25,'2. Eingaben Fahrzeug-Ebene'!G9),0) -> 0 | O9: =IF(B9,INDEX('2d. Annahmen'!$C$22:$C$25,'2. Eingaben Fahrzeug-Ebene'!G9),0) -> 0 | P9: =IF(B9,INDEX('2d. Annahmen'!$L$4:$L$7,'2. Eingaben Fahrzeug-Ebene'!G9),0) -> 0 | Q9: =IF(B9,'2. Eingaben Fahrzeug-Ebene'!K9,0) -> 0 | R9: =IF(B9,NPV(J9, _xlfn.MAKEARRAY(1, K9, _xlfn.LAMBDA(_xlpm.r,_xlpm.c, IF(_xlpm.c = K9, -'2. Eingaben Fahrzeug-Ebene'!M9, 0)))),0) -> 0 | S9: 0 | T9: =IF(B9,NPV(J9,_xlfn.MAKEARRAY(K9,1,_xlfn.LAMBDA(_xlpm.r,_xlpm.c,L9))),0) -> 0 | U9: =IF(B9,NPV(J9,_xlfn.MAKEARRAY(K9,1,_xlfn.LAMBDA(_xlpm.r,_xlpm.c,P9))),0) -> 0 | V9: =IF(B9,NPV(J9,_xlfn.MAKEARRAY(K9,1,_xlfn.LAMBDA(_xlpm.r,_xlpm.c,M9))),0) -> 0 | W9: =IF(B9,AV9+NPV(J9,_xlfn.MAKEARRAY(K9,1,_xlfn.LAMBDA(_xlpm.r,_xlpm.c,AX9)))+NPV(J9, _xlfn.MAKEARRAY(1, K9, _xlfn.LAMBDA(_xlpm.r,_xlpm.c, IF(_xlpm.c = K9, -AW9, 0))))+BD9+NPV(J9, _xlfn.MAKEARRAY(1, K9, _xlfn.LAMBDA(_xlpm.r,_xlpm.c, IF(_xlpm.c = K9, -BE9, 0)))),0) -> 0 | X9: =IF(B9,NPV(J9,_xlfn.MAKEARRAY(K9,1,_xlfn.LAMBDA(_xlpm.r,_xlpm.c,O9))),0) -> 0 | Y9: =IF(B9,NPV(J9,_xlfn.MAKEARRAY(K9,1,_xlfn.LAMBDA(_xlpm.r,_xlpm.c,N9))),0) -> 0 | Z9: =IF(B9,'2. Eingaben Fahrzeug-Ebene'!S9*'2. Eingaben Fahrzeug-Ebene'!$X9,0) -> 0 | AA9: =IF(B9,I9*'1b. Corrected Inputs Segment'!$J$18,0) -> 0 | AB9: =IF(B9,INDEX('2d. Annahmen'!$D$22:$D$25,'2. Eingaben Fahrzeug-Ebene'!G9),0) -> 0 | AC9: =IF(B9,INDEX('2d. Annahmen'!$C$22:$C$25,'2. Eingaben Fahrzeug-Ebene'!G9),0) -> 0 | AD9: =IF(B9,INDEX('2d. Annahmen'!I17:I20,'2. Eingaben Fahrzeug-Ebene'!G9),0) -> 0 | AE9: =IF(B9,'2. Eingaben Fahrzeug-Ebene'!P9,0) -> 0 | AF9: =IF(B9,NPV(J9, _xlfn.MAKEARRAY(1, K9, _xlfn.LAMBDA(_xlpm.r,_xlpm.c, IF(_xlpm.c = K9, -'2. Eingaben Fahrzeug-Ebene'!R9, 0)))),0) -> 0 | AG9: 0 | AH9: =IF(B9,NPV(J9,_xlfn.MAKEARRAY(K9,1,_xlfn.LAMBDA(_xlpm.r,_xlpm.c,Z9))),0) -> 0 | AI9: =IF(B9,NPV(J9,_xlfn.MAKEARRAY(K9,1,_xlfn.LAMBDA(_xlpm.r,_xlpm.c,AD9))),0) -> 0 | AJ9: =IF(B9,NPV(J9,_xlfn.MAKEARRAY(K9,1,_xlfn.LAMBDA(_xlpm.r,_xlpm.c,AA9))),0) -> 0 | AK9: =0 -> 0 | AL9: =IF(B9,NPV(J9,_xlfn.MAKEARRAY(K9,1,_xlfn.LAMBDA(_xlpm.r,_xlpm.c,AC9))),0) -> 0 | AM9: =IF(B9,NPV(J9,_xlfn.MAKEARRAY(K9,1,_xlfn.LAMBDA(_xlpm.r,_xlpm.c,AB9))),0) -> 0 | AN9: =IF('2a. Ladekonzept'!V9>0,'2a. Ladekonzept'!V9&" x "&_xlfn.TEXTJOIN(" ",TRUE,'1b. Corrected Inputs Segment'!$J$24:$K$24),"") ->  | AO9: =_xlfn.TEXTJOIN(", ",TRUE,IF('2a. Ladekonzept'!X9>0,'2a. Ladekonzept'!X9&" x "&_xlfn.TEXTJOIN(" ",TRUE,'1b. Corrected Inputs Segment'!$J$25:$K$25),""),IF('2a. Ladekonzept'!AD9>0,'2a. Ladekonzept'!AD9&" x "&'2a. Ladekonzept'!AF9&" kW","")) ->  | AP9: ='2a. Ladekonzept'!V9*'1b. Corrected Inputs Segment'!$J$24 -> 0 | AQ9: ='2a. Ladekonzept'!X9*'1b. Corrected Inputs Segment'!$J$25+'2a. Ladekonzept'!AD9*'2a. Ladekonzept'!AF9 -> 0 | AR9: =MAX('2a. Ladekonzept'!AI9,'2a. Ladekonzept'!AB9) -> 0 | AS9: ='2a. Ladekonzept'!V9*'3a. Detailierte Ergebnisse'!$B$28 -> 0 | AT9: =IF(B9,'2a. Ladekonzept'!X9*IF('2a. Ladekonzept'!Z9>0,INDEX('3a. Detailierte Ergebnisse'!$T$28:$AE$28,MATCH('2a. Ladekonzept'!Z9,Ladeleistung,0)),0),0) -> 0 | AU9: =IF(B9,'2a. Ladekonzept'!AD9*IF('2a. Ladekonzept'!AF9>0,INDEX('3a. Detailierte Ergebnisse'!$T$28:$AE$28,MATCH('2a. Ladekonzept'!AF9,Ladeleistung,0)),0),0) -> 0 | AV9: 0 | AW9: =AV9*('2d. Annahmen'!$B$54-K9)/'2d. Annahmen'!$B$54 -> 0 | AX9: ='2d. Annahmen'!$B$55*AV9 -> 0 | AY9: =IF(AQ9>0,'2d. Annahmen'!$B$69*AQ9,0)*12 -> 0 | AZ9: =IF(AP9>0,'3a. Detailierte Ergebnisse'!$B$41*AP9,0) -> 0 | BA9: ='2a. Ladekonzept'!V9*'3a. Detailierte Ergebnisse'!$F$39 -> 0 | BB9: =IF(AR9>0,'3a. Detailierte Ergebnisse'!$C$41*AR9,0) -> 0 | BC9: =SUM('2a. Ladekonzept'!X9,'2a. Ladekonzept'!AD9)*'3a. Detailierte Ergebnisse'!$J$39 -> 0 | BD9: 0 | BE9: =BD9*('2d. Annahmen'!$B$62-K9)/'2d. Annahmen'!$B$62 -> 0
A10: Segment 6 | B10: =SUM('2. Eingaben Fahrzeug-Ebene'!$D10:$E10) -> 0 | C10: ='2. Eingaben Fahrzeug-Ebene'!C10 -> 0 | D10: ='2. Eingaben Fahrzeug-Ebene'!X10*'2. Eingaben Fahrzeug-Ebene'!J10/100/'2d. Annahmen'!$B$56 -> 0 | E10: =IF(B10,'2a. Ladekonzept'!S10/'2a. Ladekonzept'!D10,0) -> 0% | F10: =IF(B10,SUM('2a. Ladekonzept'!U10,'2a. Ladekonzept'!T10)/'2a. Ladekonzept'!D10,0) -> 0% | G10: =IF(B10,'2a. Ladekonzept'!Q10/'2a. Ladekonzept'!D10,0) -> 0% | H10: ='2. Eingaben Fahrzeug-Ebene'!V10*'2. Eingaben Fahrzeug-Ebene'!O10/100 -> 0.00 | I10: ='2. Eingaben Fahrzeug-Ebene'!X10*'2. Eingaben Fahrzeug-Ebene'!O10/100 -> 0 | J10: =IF(B10,'1c. Inputs Segment Summary'!Z7,0) -> 0.00% | K10: =IF(B10,'1c. Inputs Segment Summary'!AA7/12,0) -> 0 | L10: =IF(B10,'2. Eingaben Fahrzeug-Ebene'!N10*'2. Eingaben Fahrzeug-Ebene'!$X10,0) -> 0 | M10: =IF(B10,D10*(SUMPRODUCT('1b. Corrected Inputs Segment'!$J$19:$J$21,TRANSPOSE('2b. Kosten'!E10:G10)))+AY10,0) -> 0 | N10: =IF(B10,INDEX('2d. Annahmen'!$D$22:$D$25,'2. Eingaben Fahrzeug-Ebene'!G10),0) -> 0 | O10: =IF(B10,INDEX('2d. Annahmen'!$C$22:$C$25,'2. Eingaben Fahrzeug-Ebene'!G10),0) -> 0 | P10: =IF(B10,INDEX('2d. Annahmen'!$L$4:$L$7,'2. Eingaben Fahrzeug-Ebene'!G10),0) -> 0 | Q10: =IF(B10,'2. Eingaben Fahrzeug-Ebene'!K10,0) -> 0 | R10: =IF(B10,NPV(J10, _xlfn.MAKEARRAY(1, K10, _xlfn.LAMBDA(_xlpm.r,_xlpm.c, IF(_xlpm.c = K10, -'2. Eingaben Fahrzeug-Ebene'!M10, 0)))),0) -> 0 | S10: 0 | T10: =IF(B10,NPV(J10,_xlfn.MAKEARRAY(K10,1,_xlfn.LAMBDA(_xlpm.r,_xlpm.c,L10))),0) -> 0 | U10: =IF(B10,NPV(J10,_xlfn.MAKEARRAY(K10,1,_xlfn.LAMBDA(_xlpm.r,_xlpm.c,P10))),0) -> 0 | V10: =IF(B10,NPV(J10,_xlfn.MAKEARRAY(K10,1,_xlfn.LAMBDA(_xlpm.r,_xlpm.c,M10))),0) -> 0 | W10: =IF(B10,AV10+NPV(J10,_xlfn.MAKEARRAY(K10,1,_xlfn.LAMBDA(_xlpm.r,_xlpm.c,AX10)))+NPV(J10, _xlfn.MAKEARRAY(1, K10, _xlfn.LAMBDA(_xlpm.r,_xlpm.c, IF(_xlpm.c = K10, -AW10, 0))))+BD10+NPV(J10, _xlfn.MAKEARRAY(1, K10, _xlfn.LAMBDA(_xlpm.r,_xlpm.c, IF(_xlpm.c = K10, -BE10, 0)))),0) -> 0 | X10: =IF(B10,NPV(J10,_xlfn.MAKEARRAY(K10,1,_xlfn.LAMBDA(_xlpm.r,_xlpm.c,O10))),0) -> 0 | Y10: =IF(B10,NPV(J10,_xlfn.MAKEARRAY(K10,1,_xlfn.LAMBDA(_xlpm.r,_xlpm.c,N10))),0) -> 0 | Z10: =IF(B10,'2. Eingaben Fahrzeug-Ebene'!S10*'2. Eingaben Fahrzeug-Ebene'!$X10,0) -> 0 | AA10: =IF(B10,I10*'1b. Corrected Inputs Segment'!$J$18,0) -> 0 | AB10: =IF(B10,INDEX('2d. Annahmen'!$D$22:$D$25,'2. Eingaben Fahrzeug-Ebene'!G10),0) -> 0 | AC10: =IF(B10,INDEX('2d. Annahmen'!$C$22:$C$25,'2. Eingaben Fahrzeug-Ebene'!G10),0) -> 0 | AD10: =IF(B10,INDEX('2d. Annahmen'!I18:I21,'2. Eingaben Fahrzeug-Ebene'!G10),0) -> 0 | AE10: =IF(B10,'2. Eingaben Fahrzeug-Ebene'!P10,0) -> 0 | AF10: =IF(B10,NPV(J10, _xlfn.MAKEARRAY(1, K10, _xlfn.LAMBDA(_xlpm.r,_xlpm.c, IF(_xlpm.c = K10, -'2. Eingaben Fahrzeug-Ebene'!R10, 0)))),0) -> 0 | AG10: 0 | AH10: =IF(B10,NPV(J10,_xlfn.MAKEARRAY(K10,1,_xlfn.LAMBDA(_xlpm.r,_xlpm.c,Z10))),0) -> 0 | AI10: =IF(B10,NPV(J10,_xlfn.MAKEARRAY(K10,1,_xlfn.LAMBDA(_xlpm.r,_xlpm.c,AD10))),0) -> 0 | AJ10: =IF(B10,NPV(J10,_xlfn.MAKEARRAY(K10,1,_xlfn.LAMBDA(_xlpm.r,_xlpm.c,AA10))),0) -> 0 | AK10: =0 -> 0 | AL10: =IF(B10,NPV(J10,_xlfn.MAKEARRAY(K10,1,_xlfn.LAMBDA(_xlpm.r,_xlpm.c,AC10))),0) -> 0 | AM10: =IF(B10,NPV(J10,_xlfn.MAKEARRAY(K10,1,_xlfn.LAMBDA(_xlpm.r,_xlpm.c,AB10))),0) -> 0 | AN10: =IF('2a. Ladekonzept'!V10>0,'2a. Ladekonzept'!V10&" x "&_xlfn.TEXTJOIN(" ",TRUE,'1b. Corrected Inputs Segment'!$J$24:$K$24),"") ->  | AO10: =_xlfn.TEXTJOIN(", ",TRUE,IF('2a. Ladekonzept'!X10>0,'2a. Ladekonzept'!X10&" x "&_xlfn.TEXTJOIN(" ",TRUE,'1b. Corrected Inputs Segment'!$J$25:$K$25),""),IF('2a. Ladekonzept'!AD10>0,'2a. Ladekonzept'!AD10&" x "&'2a. Ladekonzept'!AF10&" kW","")) ->  | AP10: ='2a. Ladekonzept'!V10*'1b. Corrected Inputs Segment'!$J$24 -> 0 | AQ10: ='2a. Ladekonzept'!X10*'1b. Corrected Inputs Segment'!$J$25+'2a. Ladekonzept'!AD10*'2a. Ladekonzept'!AF10 -> 0 | AR10: =MAX('2a. Ladekonzept'!AI10,'2a. Ladekonzept'!AB10) -> 0 | AS10: ='2a. Ladekonzept'!V10*'3a. Detailierte Ergebnisse'!$B$28 -> 0 | AT10: =IF(B10,'2a. Ladekonzept'!X10*IF('2a. Ladekonzept'!Z10>0,INDEX('3a. Detailierte Ergebnisse'!$T$28:$AE$28,MATCH('2a. Ladekonzept'!Z10,Ladeleistung,0)),0),0) -> 0 | AU10: =IF(B10,'2a. Ladekonzept'!AD10*IF('2a. Ladekonzept'!AF10>0,INDEX('3a. Detailierte Ergebnisse'!$T$28:$AE$28,MATCH('2a. Ladekonzept'!AF10,Ladeleistung,0)),0),0) -> 0 | AV10: 0 | AW10: =AV10*('2d. Annahmen'!$B$54-K10)/'2d. Annahmen'!$B$54 -> 0 | AX10: ='2d. Annahmen'!$B$55*AV10 -> 0 | AY10: =IF(AQ10>0,'2d. Annahmen'!$B$69*AQ10,0)*12 -> 0 | AZ10: =IF(AP10>0,'3a. Detailierte Ergebnisse'!$B$41*AP10,0) -> 0 | BA10: ='2a. Ladekonzept'!V10*'3a. Detailierte Ergebnisse'!$F$39 -> 0 | BB10: =IF(AR10>0,'3a. Detailierte Ergebnisse'!$C$41*AR10,0) -> 0 | BC10: =SUM('2a. Ladekonzept'!X10,'2a. Ladekonzept'!AD10)*'3a. Detailierte Ergebnisse'!$J$39 -> 0 | BD10: 0 | BE10: =BD10*('2d. Annahmen'!$B$62-K10)/'2d. Annahmen'!$B$62 -> 0
A11: Segment 7 | B11: =SUM('2. Eingaben Fahrzeug-Ebene'!$D11:$E11) -> 0 | C11: ='2. Eingaben Fahrzeug-Ebene'!C11 -> 0 | D11: ='2. Eingaben Fahrzeug-Ebene'!X11*'2. Eingaben Fahrzeug-Ebene'!J11/100/'2d. Annahmen'!$B$56 -> 0 | E11: =IF(B11,'2a. Ladekonzept'!S11/'2a. Ladekonzept'!D11,0) -> 0% | F11: =IF(B11,SUM('2a. Ladekonzept'!U11,'2a. Ladekonzept'!T11)/'2a. Ladekonzept'!D11,0) -> 0% | G11: =IF(B11,'2a. Ladekonzept'!Q11/'2a. Ladekonzept'!D11,0) -> 0% | H11: ='2. Eingaben Fahrzeug-Ebene'!V11*'2. Eingaben Fahrzeug-Ebene'!O11/100 -> 0.00 | I11: ='2. Eingaben Fahrzeug-Ebene'!X11*'2. Eingaben Fahrzeug-Ebene'!O11/100 -> 0 | J11: =IF(B11,'1c. Inputs Segment Summary'!Z8,0) -> 0.00% | K11: =IF(B11,'1c. Inputs Segment Summary'!AA8/12,0) -> 0 | L11: =IF(B11,'2. Eingaben Fahrzeug-Ebene'!N11*'2. Eingaben Fahrzeug-Ebene'!$X11,0) -> 0 | M11: =IF(B11,D11*(SUMPRODUCT('1b. Corrected Inputs Segment'!$J$19:$J$21,TRANSPOSE('2b. Kosten'!E11:G11)))+AY11,0) -> 0 | N11: =IF(B11,INDEX('2d. Annahmen'!$D$22:$D$25,'2. Eingaben Fahrzeug-Ebene'!G11),0) -> 0 | O11: =IF(B11,INDEX('2d. Annahmen'!$C$22:$C$25,'2. Eingaben Fahrzeug-Ebene'!G11),0) -> 0 | P11: =IF(B11,INDEX('2d. Annahmen'!$L$4:$L$7,'2. Eingaben Fahrzeug-Ebene'!G11),0) -> 0 | Q11: =IF(B11,'2. Eingaben Fahrzeug-Ebene'!K11,0) -> 0 | R11: =IF(B11,NPV(J11, _xlfn.MAKEARRAY(1, K11, _xlfn.LAMBDA(_xlpm.r,_xlpm.c, IF(_xlpm.c = K11, -'2. Eingaben Fahrzeug-Ebene'!M11, 0)))),0) -> 0 | S11: 0 | T11: =IF(B11,NPV(J11,_xlfn.MAKEARRAY(K11,1,_xlfn.LAMBDA(_xlpm.r,_xlpm.c,L11))),0) -> 0 | U11: =IF(B11,NPV(J11,_xlfn.MAKEARRAY(K11,1,_xlfn.LAMBDA(_xlpm.r,_xlpm.c,P11))),0) -> 0 | V11: =IF(B11,NPV(J11,_xlfn.MAKEARRAY(K11,1,_xlfn.LAMBDA(_xlpm.r,_xlpm.c,M11))),0) -> 0 | W11: =IF(B11,AV11+NPV(J11,_xlfn.MAKEARRAY(K11,1,_xlfn.LAMBDA(_xlpm.r,_xlpm.c,AX11)))+NPV(J11, _xlfn.MAKEARRAY(1, K11, _xlfn.LAMBDA(_xlpm.r,_xlpm.c, IF(_xlpm.c = K11, -AW11, 0))))+BD11+NPV(J11, _xlfn.MAKEARRAY(1, K11, _xlfn.LAMBDA(_xlpm.r,_xlpm.c, IF(_xlpm.c = K11, -BE11, 0)))),0) -> 0 | X11: =IF(B11,NPV(J11,_xlfn.MAKEARRAY(K11,1,_xlfn.LAMBDA(_xlpm.r,_xlpm.c,O11))),0) -> 0 | Y11: =IF(B11,NPV(J11,_xlfn.MAKEARRAY(K11,1,_xlfn.LAMBDA(_xlpm.r,_xlpm.c,N11))),0) -> 0 | Z11: =IF(B11,'2. Eingaben Fahrzeug-Ebene'!S11*'2. Eingaben Fahrzeug-Ebene'!$X11,0) -> 0 | AA11: =IF(B11,I11*'1b. Corrected Inputs Segment'!$J$18,0) -> 0 | AB11: =IF(B11,INDEX('2d. Annahmen'!$D$22:$D$25,'2. Eingaben Fahrzeug-Ebene'!G11),0) -> 0 | AC11: =IF(B11,INDEX('2d. Annahmen'!$C$22:$C$25,'2. Eingaben Fahrzeug-Ebene'!G11),0) -> 0 | AD11: =IF(B11,INDEX('2d. Annahmen'!I19:I22,'2. Eingaben Fahrzeug-Ebene'!G11),0) -> 0 | AE11: =IF(B11,'2. Eingaben Fahrzeug-Ebene'!P11,0) -> 0 | AF11: =IF(B11,NPV(J11, _xlfn.MAKEARRAY(1, K11, _xlfn.LAMBDA(_xlpm.r,_xlpm.c, IF(_xlpm.c = K11, -'2. Eingaben Fahrzeug-Ebene'!R11, 0)))),0) -> 0 | AG11: 0 | AH11: =IF(B11,NPV(J11,_xlfn.MAKEARRAY(K11,1,_xlfn.LAMBDA(_xlpm.r,_xlpm.c,Z11))),0) -> 0 | AI11: =IF(B11,NPV(J11,_xlfn.MAKEARRAY(K11,1,_xlfn.LAMBDA(_xlpm.r,_xlpm.c,AD11))),0) -> 0 | AJ11: =IF(B11,NPV(J11,_xlfn.MAKEARRAY(K11,1,_xlfn.LAMBDA(_xlpm.r,_xlpm.c,AA11))),0) -> 0 | AK11: =0 -> 0 | AL11: =IF(B11,NPV(J11,_xlfn.MAKEARRAY(K11,1,_xlfn.LAMBDA(_xlpm.r,_xlpm.c,AC11))),0) -> 0 | AM11: =IF(B11,NPV(J11,_xlfn.MAKEARRAY(K11,1,_xlfn.LAMBDA(_xlpm.r,_xlpm.c,AB11))),0) -> 0 | AN11: =IF('2a. Ladekonzept'!V11>0,'2a. Ladekonzept'!V11&" x "&_xlfn.TEXTJOIN(" ",TRUE,'1b. Corrected Inputs Segment'!$J$24:$K$24),"") ->  | AO11: =_xlfn.TEXTJOIN(", ",TRUE,IF('2a. Ladekonzept'!X11>0,'2a. Ladekonzept'!X11&" x "&_xlfn.TEXTJOIN(" ",TRUE,'1b. Corrected Inputs Segment'!$J$25:$K$25),""),IF('2a. Ladekonzept'!AD11>0,'2a. Ladekonzept'!AD11&" x "&'2a. Ladekonzept'!AF11&" kW","")) ->  | AP11: ='2a. Ladekonzept'!V11*'1b. Corrected Inputs Segment'!$J$24 -> 0 | AQ11: ='2a. Ladekonzept'!X11*'1b. Corrected Inputs Segment'!$J$25+'2a. Ladekonzept'!AD11*'2a. Ladekonzept'!AF11 -> 0 | AR11: =MAX('2a. Ladekonzept'!AI11,'2a. Ladekonzept'!AB11) -> 0 | AS11: ='2a. Ladekonzept'!V11*'3a. Detailierte Ergebnisse'!$B$28 -> 0 | AT11: =IF(B11,'2a. Ladekonzept'!X11*IF('2a. Ladekonzept'!Z11>0,INDEX('3a. Detailierte Ergebnisse'!$T$28:$AE$28,MATCH('2a. Ladekonzept'!Z11,Ladeleistung,0)),0),0) -> 0 | AU11: =IF(B11,'2a. Ladekonzept'!AD11*IF('2a. Ladekonzept'!AF11>0,INDEX('3a. Detailierte Ergebnisse'!$T$28:$AE$28,MATCH('2a. Ladekonzept'!AF11,Ladeleistung,0)),0),0) -> 0 | AV11: 0 | AW11: =AV11*('2d. Annahmen'!$B$54-K11)/'2d. Annahmen'!$B$54 -> 0 | AX11: ='2d. Annahmen'!$B$55*AV11 -> 0 | AY11: =IF(AQ11>0,'2d. Annahmen'!$B$69*AQ11,0)*12 -> 0 | AZ11: =IF(AP11>0,'3a. Detailierte Ergebnisse'!$B$41*AP11,0) -> 0 | BA11: ='2a. Ladekonzept'!V11*'3a. Detailierte Ergebnisse'!$F$39 -> 0 | BB11: =IF(AR11>0,'3a. Detailierte Ergebnisse'!$C$41*AR11,0) -> 0 | BC11: =SUM('2a. Ladekonzept'!X11,'2a. Ladekonzept'!AD11)*'3a. Detailierte Ergebnisse'!$J$39 -> 0 | BD11: 0 | BE11: =BD11*('2d. Annahmen'!$B$62-K11)/'2d. Annahmen'!$B$62 -> 0
A12: Segment 8 | B12: =SUM('2. Eingaben Fahrzeug-Ebene'!$D12:$E12) -> 0 | C12: ='2. Eingaben Fahrzeug-Ebene'!C12 -> 0 | D12: ='2. Eingaben Fahrzeug-Ebene'!X12*'2. Eingaben Fahrzeug-Ebene'!J12/100/'2d. Annahmen'!$B$56 -> 0 | E12: =IF(B12,'2a. Ladekonzept'!S12/'2a. Ladekonzept'!D12,0) -> 0% | F12: =IF(B12,SUM('2a. Ladekonzept'!U12,'2a. Ladekonzept'!T12)/'2a. Ladekonzept'!D12,0) -> 0% | G12: =IF(B12,'2a. Ladekonzept'!Q12/'2a. Ladekonzept'!D12,0) -> 0% | H12: ='2. Eingaben Fahrzeug-Ebene'!V12*'2. Eingaben Fahrzeug-Ebene'!O12/100 -> 0.00 | I12: ='2. Eingaben Fahrzeug-Ebene'!X12*'2. Eingaben Fahrzeug-Ebene'!O12/100 -> 0 | J12: =IF(B12,'1c. Inputs Segment Summary'!Z9,0) -> 0.00% | K12: =IF(B12,'1c. Inputs Segment Summary'!AA9/12,0) -> 0 | L12: =IF(B12,'2. Eingaben Fahrzeug-Ebene'!N12*'2. Eingaben Fahrzeug-Ebene'!$X12,0) -> 0 | M12: =IF(B12,D12*(SUMPRODUCT('1b. Corrected Inputs Segment'!$J$19:$J$21,TRANSPOSE('2b. Kosten'!E12:G12)))+AY12,0) -> 0 | N12: =IF(B12,INDEX('2d. Annahmen'!$D$22:$D$25,'2. Eingaben Fahrzeug-Ebene'!G12),0) -> 0 | O12: =IF(B12,INDEX('2d. Annahmen'!$C$22:$C$25,'2. Eingaben Fahrzeug-Ebene'!G12),0) -> 0 | P12: =IF(B12,INDEX('2d. Annahmen'!$L$4:$L$7,'2. Eingaben Fahrzeug-Ebene'!G12),0) -> 0 | Q12: =IF(B12,'2. Eingaben Fahrzeug-Ebene'!K12,0) -> 0 | R12: =IF(B12,NPV(J12, _xlfn.MAKEARRAY(1, K12, _xlfn.LAMBDA(_xlpm.r,_xlpm.c, IF(_xlpm.c = K12, -'2. Eingaben Fahrzeug-Ebene'!M12, 0)))),0) -> 0 | S12: 0 | T12: =IF(B12,NPV(J12,_xlfn.MAKEARRAY(K12,1,_xlfn.LAMBDA(_xlpm.r,_xlpm.c,L12))),0) -> 0 | U12: =IF(B12,NPV(J12,_xlfn.MAKEARRAY(K12,1,_xlfn.LAMBDA(_xlpm.r,_xlpm.c,P12))),0) -> 0 | V12: =IF(B12,NPV(J12,_xlfn.MAKEARRAY(K12,1,_xlfn.LAMBDA(_xlpm.r,_xlpm.c,M12))),0) -> 0 | W12: =IF(B12,AV12+NPV(J12,_xlfn.MAKEARRAY(K12,1,_xlfn.LAMBDA(_xlpm.r,_xlpm.c,AX12)))+NPV(J12, _xlfn.MAKEARRAY(1, K12, _xlfn.LAMBDA(_xlpm.r,_xlpm.c, IF(_xlpm.c = K12, -AW12, 0))))+BD12+NPV(J12, _xlfn.MAKEARRAY(1, K12, _xlfn.LAMBDA(_xlpm.r,_xlpm.c, IF(_xlpm.c = K12, -BE12, 0)))),0) -> 0 | X12: =IF(B12,NPV(J12,_xlfn.MAKEARRAY(K12,1,_xlfn.LAMBDA(_xlpm.r,_xlpm.c,O12))),0) -> 0 | Y12: =IF(B12,NPV(J12,_xlfn.MAKEARRAY(K12,1,_xlfn.LAMBDA(_xlpm.r,_xlpm.c,N12))),0) -> 0 | Z12: =IF(B12,'2. Eingaben Fahrzeug-Ebene'!S12*'2. Eingaben Fahrzeug-Ebene'!$X12,0) -> 0 | AA12: =IF(B12,I12*'1b. Corrected Inputs Segment'!$J$18,0) -> 0 | AB12: =IF(B12,INDEX('2d. Annahmen'!$D$22:$D$25,'2. Eingaben Fahrzeug-Ebene'!G12),0) -> 0 | AC12: =IF(B12,INDEX('2d. Annahmen'!$C$22:$C$25,'2. Eingaben Fahrzeug-Ebene'!G12),0) -> 0 | AD12: =IF(B12,INDEX('2d. Annahmen'!I20:I23,'2. Eingaben Fahrzeug-Ebene'!G12),0) -> 0 | AE12: =IF(B12,'2. Eingaben Fahrzeug-Ebene'!P12,0) -> 0 | AF12: =IF(B12,NPV(J12, _xlfn.MAKEARRAY(1, K12, _xlfn.LAMBDA(_xlpm.r,_xlpm.c, IF(_xlpm.c = K12, -'2. Eingaben Fahrzeug-Ebene'!R12, 0)))),0) -> 0 | AG12: 0 | AH12: =IF(B12,NPV(J12,_xlfn.MAKEARRAY(K12,1,_xlfn.LAMBDA(_xlpm.r,_xlpm.c,Z12))),0) -> 0 | AI12: =IF(B12,NPV(J12,_xlfn.MAKEARRAY(K12,1,_xlfn.LAMBDA(_xlpm.r,_xlpm.c,AD12))),0) -> 0 | AJ12: =IF(B12,NPV(J12,_xlfn.MAKEARRAY(K12,1,_xlfn.LAMBDA(_xlpm.r,_xlpm.c,AA12))),0) -> 0 | AK12: =0 -> 0 | AL12: =IF(B12,NPV(J12,_xlfn.MAKEARRAY(K12,1,_xlfn.LAMBDA(_xlpm.r,_xlpm.c,AC12))),0) -> 0 | AM12: =IF(B12,NPV(J12,_xlfn.MAKEARRAY(K12,1,_xlfn.LAMBDA(_xlpm.r,_xlpm.c,AB12))),0) -> 0 | AN12: =IF('2a. Ladekonzept'!V12>0,'2a. Ladekonzept'!V12&" x "&_xlfn.TEXTJOIN(" ",TRUE,'1b. Corrected Inputs Segment'!$J$24:$K$24),"") ->  | AO12: =_xlfn.TEXTJOIN(", ",TRUE,IF('2a. Ladekonzept'!X12>0,'2a. Ladekonzept'!X12&" x "&_xlfn.TEXTJOIN(" ",TRUE,'1b. Corrected Inputs Segment'!$J$25:$K$25),""),IF('2a. Ladekonzept'!AD12>0,'2a. Ladekonzept'!AD12&" x "&'2a. Ladekonzept'!AF12&" kW","")) ->  | AP12: ='2a. Ladekonzept'!V12*'1b. Corrected Inputs Segment'!$J$24 -> 0 | AQ12: ='2a. Ladekonzept'!X12*'1b. Corrected Inputs Segment'!$J$25+'2a. Ladekonzept'!AD12*'2a. Ladekonzept'!AF12 -> 0 | AR12: =MAX('2a. Ladekonzept'!AI12,'2a. Ladekonzept'!AB12) -> 0 | AS12: ='2a. Ladekonzept'!V12*'3a. Detailierte Ergebnisse'!$B$28 -> 0 | AT12: =IF(B12,'2a. Ladekonzept'!X12*IF('2a. Ladekonzept'!Z12>0,INDEX('3a. Detailierte Ergebnisse'!$T$28:$AE$28,MATCH('2a. Ladekonzept'!Z12,Ladeleistung,0)),0),0) -> 0 | AU12: =IF(B12,'2a. Ladekonzept'!AD12*IF('2a. Ladekonzept'!AF12>0,INDEX('3a. Detailierte Ergebnisse'!$T$28:$AE$28,MATCH('2a. Ladekonzept'!AF12,Ladeleistung,0)),0),0) -> 0 | AV12: 0 | AW12: =AV12*('2d. Annahmen'!$B$54-K12)/'2d. Annahmen'!$B$54 -> 0 | AX12: ='2d. Annahmen'!$B$55*AV12 -> 0 | AY12: =IF(AQ12>0,'2d. Annahmen'!$B$69*AQ12,0)*12 -> 0 | AZ12: =IF(AP12>0,'3a. Detailierte Ergebnisse'!$B$41*AP12,0) -> 0 | BA12: ='2a. Ladekonzept'!V12*'3a. Detailierte Ergebnisse'!$F$39 -> 0 | BB12: =IF(AR12>0,'3a. Detailierte Ergebnisse'!$C$41*AR12,0) -> 0 | BC12: =SUM('2a. Ladekonzept'!X12,'2a. Ladekonzept'!AD12)*'3a. Detailierte Ergebnisse'!$J$39 -> 0 | BD12: 0 | BE12: =BD12*('2d. Annahmen'!$B$62-K12)/'2d. Annahmen'!$B$62 -> 0
A13: Segment 9 | B13: =SUM('2. Eingaben Fahrzeug-Ebene'!$D13:$E13) -> 0 | C13: ='2. Eingaben Fahrzeug-Ebene'!C13 -> 0 | D13: ='2. Eingaben Fahrzeug-Ebene'!X13*'2. Eingaben Fahrzeug-Ebene'!J13/100/'2d. Annahmen'!$B$56 -> 0 | E13: =IF(B13,'2a. Ladekonzept'!S13/'2a. Ladekonzept'!D13,0) -> 0% | F13: =IF(B13,SUM('2a. Ladekonzept'!U13,'2a. Ladekonzept'!T13)/'2a. Ladekonzept'!D13,0) -> 0% | G13: =IF(B13,'2a. Ladekonzept'!Q13/'2a. Ladekonzept'!D13,0) -> 0% | H13: ='2. Eingaben Fahrzeug-Ebene'!V13*'2. Eingaben Fahrzeug-Ebene'!O13/100 -> 0.00 | I13: ='2. Eingaben Fahrzeug-Ebene'!X13*'2. Eingaben Fahrzeug-Ebene'!O13/100 -> 0 | J13: =IF(B13,'1c. Inputs Segment Summary'!Z10,0) -> 0.00% | K13: =IF(B13,'1c. Inputs Segment Summary'!AA10/12,0) -> 0 | L13: =IF(B13,'2. Eingaben Fahrzeug-Ebene'!N13*'2. Eingaben Fahrzeug-Ebene'!$X13,0) -> 0 | M13: =IF(B13,D13*(SUMPRODUCT('1b. Corrected Inputs Segment'!$J$19:$J$21,TRANSPOSE('2b. Kosten'!E13:G13)))+AY13,0) -> 0 | N13: =IF(B13,INDEX('2d. Annahmen'!$D$22:$D$25,'2. Eingaben Fahrzeug-Ebene'!G13),0) -> 0 | O13: =IF(B13,INDEX('2d. Annahmen'!$C$22:$C$25,'2. Eingaben Fahrzeug-Ebene'!G13),0) -> 0 | P13: =IF(B13,INDEX('2d. Annahmen'!$L$4:$L$7,'2. Eingaben Fahrzeug-Ebene'!G13),0) -> 0 | Q13: =IF(B13,'2. Eingaben Fahrzeug-Ebene'!K13,0) -> 0 | R13: =IF(B13,NPV(J13, _xlfn.MAKEARRAY(1, K13, _xlfn.LAMBDA(_xlpm.r,_xlpm.c, IF(_xlpm.c = K13, -'2. Eingaben Fahrzeug-Ebene'!M13, 0)))),0) -> 0 | S13: 0 | T13: =IF(B13,NPV(J13,_xlfn.MAKEARRAY(K13,1,_xlfn.LAMBDA(_xlpm.r,_xlpm.c,L13))),0) -> 0 | U13: =IF(B13,NPV(J13,_xlfn.MAKEARRAY(K13,1,_xlfn.LAMBDA(_xlpm.r,_xlpm.c,P13))),0) -> 0 | V13: =IF(B13,NPV(J13,_xlfn.MAKEARRAY(K13,1,_xlfn.LAMBDA(_xlpm.r,_xlpm.c,M13))),0) -> 0 | W13: =IF(B13,AV13+NPV(J13,_xlfn.MAKEARRAY(K13,1,_xlfn.LAMBDA(_xlpm.r,_xlpm.c,AX13)))+NPV(J13, _xlfn.MAKEARRAY(1, K13, _xlfn.LAMBDA(_xlpm.r,_xlpm.c, IF(_xlpm.c = K13, -AW13, 0))))+BD13+NPV(J13, _xlfn.MAKEARRAY(1, K13, _xlfn.LAMBDA(_xlpm.r,_xlpm.c, IF(_xlpm.c = K13, -BE13, 0)))),0) -> 0 | X13: =IF(B13,NPV(J13,_xlfn.MAKEARRAY(K13,1,_xlfn.LAMBDA(_xlpm.r,_xlpm.c,O13))),0) -> 0 | Y13: =IF(B13,NPV(J13,_xlfn.MAKEARRAY(K13,1,_xlfn.LAMBDA(_xlpm.r,_xlpm.c,N13))),0) -> 0 | Z13: =IF(B13,'2. Eingaben Fahrzeug-Ebene'!S13*'2. Eingaben Fahrzeug-Ebene'!$X13,0) -> 0 | AA13: =IF(B13,I13*'1b. Corrected Inputs Segment'!$J$18,0) -> 0 | AB13: =IF(B13,INDEX('2d. Annahmen'!$D$22:$D$25,'2. Eingaben Fahrzeug-Ebene'!G13),0) -> 0 | AC13: =IF(B13,INDEX('2d. Annahmen'!$C$22:$C$25,'2. Eingaben Fahrzeug-Ebene'!G13),0) -> 0 | AD13: =IF(B13,INDEX('2d. Annahmen'!I21:I24,'2. Eingaben Fahrzeug-Ebene'!G13),0) -> 0 | AE13: =IF(B13,'2. Eingaben Fahrzeug-Ebene'!P13,0) -> 0 | AF13: =IF(B13,NPV(J13, _xlfn.MAKEARRAY(1, K13, _xlfn.LAMBDA(_xlpm.r,_xlpm.c, IF(_xlpm.c = K13, -'2. Eingaben Fahrzeug-Ebene'!R13, 0)))),0) -> 0 | AG13: 0 | AH13: =IF(B13,NPV(J13,_xlfn.MAKEARRAY(K13,1,_xlfn.LAMBDA(_xlpm.r,_xlpm.c,Z13))),0) -> 0 | AI13: =IF(B13,NPV(J13,_xlfn.MAKEARRAY(K13,1,_xlfn.LAMBDA(_xlpm.r,_xlpm.c,AD13))),0) -> 0 | AJ13: =IF(B13,NPV(J13,_xlfn.MAKEARRAY(K13,1,_xlfn.LAMBDA(_xlpm.r,_xlpm.c,AA13))),0) -> 0 | AK13: =0 -> 0 | AL13: =IF(B13,NPV(J13,_xlfn.MAKEARRAY(K13,1,_xlfn.LAMBDA(_xlpm.r,_xlpm.c,AC13))),0) -> 0 | AM13: =IF(B13,NPV(J13,_xlfn.MAKEARRAY(K13,1,_xlfn.LAMBDA(_xlpm.r,_xlpm.c,AB13))),0) -> 0 | AN13: =IF('2a. Ladekonzept'!V13>0,'2a. Ladekonzept'!V13&" x "&_xlfn.TEXTJOIN(" ",TRUE,'1b. Corrected Inputs Segment'!$J$24:$K$24),"") ->  | AO13: =_xlfn.TEXTJOIN(", ",TRUE,IF('2a. Ladekonzept'!X13>0,'2a. Ladekonzept'!X13&" x "&_xlfn.TEXTJOIN(" ",TRUE,'1b. Corrected Inputs Segment'!$J$25:$K$25),""),IF('2a. Ladekonzept'!AD13>0,'2a. Ladekonzept'!AD13&" x "&'2a. Ladekonzept'!AF13&" kW","")) ->  | AP13: ='2a. Ladekonzept'!V13*'1b. Corrected Inputs Segment'!$J$24 -> 0 | AQ13: ='2a. Ladekonzept'!X13*'1b. Corrected Inputs Segment'!$J$25+'2a. Ladekonzept'!AD13*'2a. Ladekonzept'!AF13 -> 0 | AR13: =MAX('2a. Ladekonzept'!AI13,'2a. Ladekonzept'!AB13) -> 0 | AS13: ='2a. Ladekonzept'!V13*'3a. Detailierte Ergebnisse'!$B$28 -> 0 | AT13: =IF(B13,'2a. Ladekonzept'!X13*IF('2a. Ladekonzept'!Z13>0,INDEX('3a. Detailierte Ergebnisse'!$T$28:$AE$28,MATCH('2a. Ladekonzept'!Z13,Ladeleistung,0)),0),0) -> 0 | AU13: =IF(B13,'2a. Ladekonzept'!AD13*IF('2a. Ladekonzept'!AF13>0,INDEX('3a. Detailierte Ergebnisse'!$T$28:$AE$28,MATCH('2a. Ladekonzept'!AF13,Ladeleistung,0)),0),0) -> 0 | AV13: 0 | AW13: =AV13*('2d. Annahmen'!$B$54-K13)/'2d. Annahmen'!$B$54 -> 0 | AX13: ='2d. Annahmen'!$B$55*AV13 -> 0 | AY13: =IF(AQ13>0,'2d. Annahmen'!$B$69*AQ13,0)*12 -> 0 | AZ13: =IF(AP13>0,'3a. Detailierte Ergebnisse'!$B$41*AP13,0) -> 0 | BA13: ='2a. Ladekonzept'!V13*'3a. Detailierte Ergebnisse'!$F$39 -> 0 | BB13: =IF(AR13>0,'3a. Detailierte Ergebnisse'!$C$41*AR13,0) -> 0 | BC13: =SUM('2a. Ladekonzept'!X13,'2a. Ladekonzept'!AD13)*'3a. Detailierte Ergebnisse'!$J$39 -> 0 | BD13: 0 | BE13: =BD13*('2d. Annahmen'!$B$62-K13)/'2d. Annahmen'!$B$62 -> 0
A14: Segment 10 | B14: =SUM('2. Eingaben Fahrzeug-Ebene'!$D14:$E14) -> 0 | C14: ='2. Eingaben Fahrzeug-Ebene'!C14 -> 0 | D14: ='2. Eingaben Fahrzeug-Ebene'!X14*'2. Eingaben Fahrzeug-Ebene'!J14/100/'2d. Annahmen'!$B$56 -> 0 | E14: =IF(B14,'2a. Ladekonzept'!S14/'2a. Ladekonzept'!D14,0) -> 0% | F14: =IF(B14,SUM('2a. Ladekonzept'!U14,'2a. Ladekonzept'!T14)/'2a. Ladekonzept'!D14,0) -> 0% | G14: =IF(B14,'2a. Ladekonzept'!Q14/'2a. Ladekonzept'!D14,0) -> 0% | H14: ='2. Eingaben Fahrzeug-Ebene'!V14*'2. Eingaben Fahrzeug-Ebene'!O14/100 -> 0.00 | I14: ='2. Eingaben Fahrzeug-Ebene'!X14*'2. Eingaben Fahrzeug-Ebene'!O14/100 -> 0 | J14: =IF(B14,'1c. Inputs Segment Summary'!Z11,0) -> 0.00% | K14: =IF(B14,'1c. Inputs Segment Summary'!AA11/12,0) -> 0 | L14: =IF(B14,'2. Eingaben Fahrzeug-Ebene'!N14*'2. Eingaben Fahrzeug-Ebene'!$X14,0) -> 0 | M14: =IF(B14,D14*(SUMPRODUCT('1b. Corrected Inputs Segment'!$J$19:$J$21,TRANSPOSE('2b. Kosten'!E14:G14)))+AY14,0) -> 0 | N14: =IF(B14,INDEX('2d. Annahmen'!$D$22:$D$25,'2. Eingaben Fahrzeug-Ebene'!G14),0) -> 0 | O14: =IF(B14,INDEX('2d. Annahmen'!$C$22:$C$25,'2. Eingaben Fahrzeug-Ebene'!G14),0) -> 0 | P14: =IF(B14,INDEX('2d. Annahmen'!$L$4:$L$7,'2. Eingaben Fahrzeug-Ebene'!G14),0) -> 0 | Q14: =IF(B14,'2. Eingaben Fahrzeug-Ebene'!K14,0) -> 0 | R14: =IF(B14,NPV(J14, _xlfn.MAKEARRAY(1, K14, _xlfn.LAMBDA(_xlpm.r,_xlpm.c, IF(_xlpm.c = K14, -'2. Eingaben Fahrzeug-Ebene'!M14, 0)))),0) -> 0 | S14: 0 | T14: =IF(B14,NPV(J14,_xlfn.MAKEARRAY(K14,1,_xlfn.LAMBDA(_xlpm.r,_xlpm.c,L14))),0) -> 0 | U14: =IF(B14,NPV(J14,_xlfn.MAKEARRAY(K14,1,_xlfn.LAMBDA(_xlpm.r,_xlpm.c,P14))),0) -> 0 | V14: =IF(B14,NPV(J14,_xlfn.MAKEARRAY(K14,1,_xlfn.LAMBDA(_xlpm.r,_xlpm.c,M14))),0) -> 0 | W14: =IF(B14,AV14+NPV(J14,_xlfn.MAKEARRAY(K14,1,_xlfn.LAMBDA(_xlpm.r,_xlpm.c,AX14)))+NPV(J14, _xlfn.MAKEARRAY(1, K14, _xlfn.LAMBDA(_xlpm.r,_xlpm.c, IF(_xlpm.c = K14, -AW14, 0))))+BD14+NPV(J14, _xlfn.MAKEARRAY(1, K14, _xlfn.LAMBDA(_xlpm.r,_xlpm.c, IF(_xlpm.c = K14, -BE14, 0)))),0) -> 0 | X14: =IF(B14,NPV(J14,_xlfn.MAKEARRAY(K14,1,_xlfn.LAMBDA(_xlpm.r,_xlpm.c,O14))),0) -> 0 | Y14: =IF(B14,NPV(J14,_xlfn.MAKEARRAY(K14,1,_xlfn.LAMBDA(_xlpm.r,_xlpm.c,N14))),0) -> 0 | Z14: =IF(B14,'2. Eingaben Fahrzeug-Ebene'!S14*'2. Eingaben Fahrzeug-Ebene'!$X14,0) -> 0 | AA14: =IF(B14,I14*'1b. Corrected Inputs Segment'!$J$18,0) -> 0 | AB14: =IF(B14,INDEX('2d. Annahmen'!$D$22:$D$25,'2. Eingaben Fahrzeug-Ebene'!G14),0) -> 0 | AC14: =IF(B14,INDEX('2d. Annahmen'!$C$22:$C$25,'2. Eingaben Fahrzeug-Ebene'!G14),0) -> 0 | AD14: =IF(B14,INDEX('2d. Annahmen'!I22:I25,'2. Eingaben Fahrzeug-Ebene'!G14),0) -> 0 | AE14: =IF(B14,'2. Eingaben Fahrzeug-Ebene'!P14,0) -> 0 | AF14: =IF(B14,NPV(J14, _xlfn.MAKEARRAY(1, K14, _xlfn.LAMBDA(_xlpm.r,_xlpm.c, IF(_xlpm.c = K14, -'2. Eingaben Fahrzeug-Ebene'!R14, 0)))),0) -> 0 | AG14: 0 | AH14: =IF(B14,NPV(J14,_xlfn.MAKEARRAY(K14,1,_xlfn.LAMBDA(_xlpm.r,_xlpm.c,Z14))),0) -> 0 | AI14: =IF(B14,NPV(J14,_xlfn.MAKEARRAY(K14,1,_xlfn.LAMBDA(_xlpm.r,_xlpm.c,AD14))),0) -> 0 | AJ14: =IF(B14,NPV(J14,_xlfn.MAKEARRAY(K14,1,_xlfn.LAMBDA(_xlpm.r,_xlpm.c,AA14))),0) -> 0 | AK14: =0 -> 0 | AL14: =IF(B14,NPV(J14,_xlfn.MAKEARRAY(K14,1,_xlfn.LAMBDA(_xlpm.r,_xlpm.c,AC14))),0) -> 0 | AM14: =IF(B14,NPV(J14,_xlfn.MAKEARRAY(K14,1,_xlfn.LAMBDA(_xlpm.r,_xlpm.c,AB14))),0) -> 0 | AN14: =IF('2a. Ladekonzept'!V14>0,'2a. Ladekonzept'!V14&" x "&_xlfn.TEXTJOIN(" ",TRUE,'1b. Corrected Inputs Segment'!$J$24:$K$24),"") ->  | AO14: =_xlfn.TEXTJOIN(", ",TRUE,IF('2a. Ladekonzept'!X14>0,'2a. Ladekonzept'!X14&" x "&_xlfn.TEXTJOIN(" ",TRUE,'1b. Corrected Inputs Segment'!$J$25:$K$25),""),IF('2a. Ladekonzept'!AD14>0,'2a. Ladekonzept'!AD14&" x "&'2a. Ladekonzept'!AF14&" kW","")) ->  | AP14: ='2a. Ladekonzept'!V14*'1b. Corrected Inputs Segment'!$J$24 -> 0 | AQ14: ='2a. Ladekonzept'!X14*'1b. Corrected Inputs Segment'!$J$25+'2a. Ladekonzept'!AD14*'2a. Ladekonzept'!AF14 -> 0 | AR14: =MAX('2a. Ladekonzept'!AI14,'2a. Ladekonzept'!AB14) -> 0 | AS14: ='2a. Ladekonzept'!V14*'3a. Detailierte Ergebnisse'!$B$28 -> 0 | AT14: =IF(B14,'2a. Ladekonzept'!X14*IF('2a. Ladekonzept'!Z14>0,INDEX('3a. Detailierte Ergebnisse'!$T$28:$AE$28,MATCH('2a. Ladekonzept'!Z14,Ladeleistung,0)),0),0) -> 0 | AU14: =IF(B14,'2a. Ladekonzept'!AD14*IF('2a. Ladekonzept'!AF14>0,INDEX('3a. Detailierte Ergebnisse'!$T$28:$AE$28,MATCH('2a. Ladekonzept'!AF14,Ladeleistung,0)),0),0) -> 0 | AV14: 0 | AW14: =AV14*('2d. Annahmen'!$B$54-K14)/'2d. Annahmen'!$B$54 -> 0 | AX14: ='2d. Annahmen'!$B$55*AV14 -> 0 | AY14: =IF(AQ14>0,'2d. Annahmen'!$B$69*AQ14,0)*12 -> 0 | AZ14: =IF(AP14>0,'3a. Detailierte Ergebnisse'!$B$41*AP14,0) -> 0 | BA14: ='2a. Ladekonzept'!V14*'3a. Detailierte Ergebnisse'!$F$39 -> 0 | BB14: =IF(AR14>0,'3a. Detailierte Ergebnisse'!$C$41*AR14,0) -> 0 | BC14: =SUM('2a. Ladekonzept'!X14,'2a. Ladekonzept'!AD14)*'3a. Detailierte Ergebnisse'!$J$39 -> 0 | BD14: =SUM(AZ14:BC14) -> 0 | BE14: =BD14*('2d. Annahmen'!$B$62-K14)/'2d. Annahmen'!$B$62 -> 0

Sheet 2c. LCA (hidden)
A1: Arbeitsblatt wird ausgeblendet | F1: Lebensdauer | N1: Verbrauch
B2: In Use? | C2: Anzahl Fahrzeug | F2: E-Fzg | J2: Verbrenner | N2: E-Fzg | V2: Verbrenner
H3: Lebensfahrleistung | I3: Correction Factor | L3: Lebensfahrleistung | M3: Correction Factor | N3: Direct | O3: Direct NonExhaust | P3: Energy Chain | Q3: Maintenance | R3: Vehicle | S3: End-Of-Life | T3: Infrastructure | U3: Sum | V3: Direct | W3: Direct NonExhaust | X3: Energy Chain | Y3: Maintenance | Z3: Vehicle | AA3: End-Of-Life | AB3: Infrastructure | AC3: Sum
H4: km | L4: km | N4: g CO2-eq./vkm | O4: g CO2-eq./vkm | P4: g CO2-eq./vkm | Q4: g CO2-eq./vkm | R4: g CO2-eq./vkm | S4: g CO2-eq./vkm | T4: g CO2-eq./vkm | U4: g CO2-eq./vkm | V4: g CO2-eq./vkm | W4: g CO2-eq./vkm | X4: g CO2-eq./vkm | Y4: g CO2-eq./vkm | Z4: g CO2-eq./vkm | AA4: g CO2-eq./vkm | AB4: g CO2-eq./vkm | AC4: g CO2-eq./vkm
A5: Segment 1 | B5: =SUM('2. Eingaben Fahrzeug-Ebene'!$D5:$E5) -> 1 | C5: ='2. Eingaben Fahrzeug-Ebene'!C5 -> 1 | D5: ="Passenger car" -> Passenger car | E5: =IF(B5,INDEX(OFFSET(Grösse,0,1),'2. Eingaben Fahrzeug-Ebene'!G5),"") -> Medium | F5: =IF(B5,D5&"BEV"&E5,"") -> Passenger carBEVMedium | G5: =IF(B5,MATCH(F5,'2e. Umweltrechner Verkehr'!C:C&'2e. Umweltrechner Verkehr'!D:D&'2e. Umweltrechner Verkehr'!I:I,0),0) -> 3 | H5: =IF(B5,INDEX('2e. Umweltrechner Verkehr'!Q$1:Q$91,$G5),0) -> 200000 | I5: =IF(B5,MIN(H5/'2. Eingaben Fahrzeug-Ebene'!Y5,1),0) -> 1.00 | J5: =IF(B5,D5&"ICEV-p"&E5,"") -> Passenger carICEV-pMedium | K5: =IF(B5,MATCH(J5,'2e. Umweltrechner Verkehr'!C:C&'2e. Umweltrechner Verkehr'!D:D&'2e. Umweltrechner Verkehr'!I:I,0),0) -> 7 | L5: =IF(B5,INDEX('2e. Umweltrechner Verkehr'!Q$1:Q$91,$K5),0) -> 200000 | M5: =IF(B5,MIN(L5/'2. Eingaben Fahrzeug-Ebene'!Y5,1),0) -> 1.00 | N5: =IF(B5,INDEX('2e. Umweltrechner Verkehr'!AC$1:AC$91,$G5)*$B5,0) -> 0.0 | O5: =IF(B5,INDEX('2e. Umweltrechner Verkehr'!AD$1:AD$91,$G5)*$B5,0) -> 0.0 | P5: =IF(B5,INDEX('2e. Umweltrechner Verkehr'!AE$1:AE$91,$G5)*$B5,0) -> 22.2 | Q5: =IF(B5,INDEX('2e. Umweltrechner Verkehr'!AF$1:AF$91,$G5)*$B5,0) -> 6.7 | R5: =IF(B5,INDEX('2e. Umweltrechner Verkehr'!AG$1:AG$91,$G5)*I5*$B5,0) -> 59.5 | S5: =IF(B5,INDEX('2e. Umweltrechner Verkehr'!AH$1:AH$91,$G5)*I5*$B5,0) -> 6.8 | T5: =IF(B5,INDEX('2e. Umweltrechner Verkehr'!AI$1:AI$91,$G5)*$B5,0) -> 19.2 | U5: =SUM(N5:T5) -> 114.4 | V5: =IF(B5,INDEX('2e. Umweltrechner Verkehr'!AC$1:AC$91,$K5)*$B5,0) -> 133.2 | W5: =IF(B5,INDEX('2e. Umweltrechner Verkehr'!AD$1:AD$91,$K5)*$B5,0) -> 0.0 | X5: =IF(B5,INDEX('2e. Umweltrechner Verkehr'!AE$1:AE$91,$K5)*$B5,0) -> 36.2 | Y5: =IF(B5,INDEX('2e. Umweltrechner Verkehr'!AF$1:AF$91,$K5)*$B5,0) -> 5.4 | Z5: =IF(B5,INDEX('2e. Umweltrechner Verkehr'!AG$1:AG$91,$K5)*M5*$B5,0) -> 33.5 | AA5: =IF(B5,INDEX('2e. Umweltrechner Verkehr'!AH$1:AH$91,$K5)*M5*$B5,0) -> 5.5 | AB5: =IF(B5,INDEX('2e. Umweltrechner Verkehr'!AI$1:AI$91,$K5)*$B5,0) -> 17.0 | AC5: =SUM(V5:AB5) -> 230.8
A6: Segment 2 | B6: =SUM('2. Eingaben Fahrzeug-Ebene'!$D6:$E6) -> 0 | C6: ='2. Eingaben Fahrzeug-Ebene'!C6 -> 0 | D6: ="Passenger car" -> Passenger car | E6: =IF(B6,INDEX(OFFSET(Grösse,0,1),'2. Eingaben Fahrzeug-Ebene'!G6),"") ->  | F6: =IF(B6,D6&"BEV"&E6,"") ->  | G6: =IF(B6,MATCH(F6,'2e. Umweltrechner Verkehr'!C:C&'2e. Umweltrechner Verkehr'!D:D&'2e. Umweltrechner Verkehr'!I:I,0),0) -> 0 | H6: =IF(B6,INDEX('2e. Umweltrechner Verkehr'!Q$1:Q$91,$G6),0) -> 0 | I6: =IF(B6,MIN(H6/'2. Eingaben Fahrzeug-Ebene'!Y6,1),0) -> 0.00 | J6: =IF(B6,D6&"ICEV-p"&E6,"") ->  | K6: =IF(B6,MATCH(J6,'2e. Umweltrechner Verkehr'!C:C&'2e. Umweltrechner Verkehr'!D:D&'2e. Umweltrechner Verkehr'!I:I,0),0) -> 0 | L6: =IF(B6,INDEX('2e. Umweltrechner Verkehr'!Q$1:Q$91,$K6),0) -> 0 | M6: =IF(B6,MIN(L6/'2. Eingaben Fahrzeug-Ebene'!Y6,1),0) -> 0.00 | N6: =IF(B6,INDEX('2e. Umweltrechner Verkehr'!AC$1:AC$91,$G6)*$B6,0) -> 0.0 | O6: =IF(B6,INDEX('2e. Umweltrechner Verkehr'!AD$1:AD$91,$G6)*$B6,0) -> 0.0 | P6: =IF(B6,INDEX('2e. Umweltrechner Verkehr'!AE$1:AE$91,$G6)*$B6,0) -> 0.0 | Q6: =IF(B6,INDEX('2e. Umweltrechner Verkehr'!AF$1:AF$91,$G6)*$B6,0) -> 0.0 | R6: =IF(B6,INDEX('2e. Umweltrechner Verkehr'!AG$1:AG$91,$G6)*I6*$B6,0) -> 0.0 | S6: =IF(B6,INDEX('2e. Umweltrechner Verkehr'!AH$1:AH$91,$G6)*I6*$B6,0) -> 0.0 | T6: =IF(B6,INDEX('2e. Umweltrechner Verkehr'!AI$1:AI$91,$G6)*$B6,0) -> 0.0 | U6: =SUM(N6:T6) -> 0.0 | V6: =IF(B6,INDEX('2e. Umweltrechner Verkehr'!AC$1:AC$91,$K6)*$B6,0) -> 0.0 | W6: =IF(B6,INDEX('2e. Umweltrechner Verkehr'!AD$1:AD$91,$K6)*$B6,0) -> 0.0 | X6: =IF(B6,INDEX('2e. Umweltrechner Verkehr'!AE$1:AE$91,$K6)*$B6,0) -> 0.0 | Y6: =IF(B6,INDEX('2e. Umweltrechner Verkehr'!AF$1:AF$91,$K6)*$B6,0) -> 0.0 | Z6: =IF(B6,INDEX('2e. Umweltrechner Verkehr'!AG$1:AG$91,$K6)*M6*$B6,0) -> 0.0 | AA6: =IF(B6,INDEX('2e. Umweltrechner Verkehr'!AH$1:AH$91,$K6)*M6*$B6,0) -> 0.0 | AB6: =IF(B6,INDEX('2e. Umweltrechner Verkehr'!AI$1:AI$91,$K6)*$B6,0) -> 0.0 | AC6: =SUM(V6:AB6) -> 0.0
A7: Segment 3 | B7: =SUM('2. Eingaben Fahrzeug-Ebene'!$D7:$E7) -> 0 | C7: ='2. Eingaben Fahrzeug-Ebene'!C7 -> 0 | D7: Passenger car | E7: =IF(B7,INDEX(OFFSET(Grösse,0,1),'2. Eingaben Fahrzeug-Ebene'!G7),"") ->  | G7: =IF(B7,MATCH(F7,'2e. Umweltrechner Verkehr'!C:C&'2e. Umweltrechner Verkehr'!D:D&'2e. Umweltrechner Verkehr'!I:I,0),0) -> 0 | H7: =IF(B7,INDEX('2e. Umweltrechner Verkehr'!Q$1:Q$91,$G7),0) -> 0 | I7: =IF(B7,MIN(H7/'2. Eingaben Fahrzeug-Ebene'!Y7,1),0) -> 0.00 | K7: =IF(B7,MATCH(J7,'2e. Umweltrechner Verkehr'!C:C&'2e. Umweltrechner Verkehr'!D:D&'2e. Umweltrechner Verkehr'!I:I,0),0) -> 0 | L7: =IF(B7,INDEX('2e. Umweltrechner Verkehr'!Q$1:Q$91,$K7),0) -> 0 | M7: =IF(B7,MIN(L7/'2. Eingaben Fahrzeug-Ebene'!Y7,1),0) -> 0.00 | N7: =IF(B7,INDEX('2e. Umweltrechner Verkehr'!AC$1:AC$91,$G7)*$B7,0) -> 0.0 | O7: =IF(B7,INDEX('2e. Umweltrechner Verkehr'!AD$1:AD$91,$G7)*$B7,0) -> 0.0 | P7: =IF(B7,INDEX('2e. Umweltrechner Verkehr'!AE$1:AE$91,$G7)*$B7,0) -> 0.0 | Q7: =IF(B7,INDEX('2e. Umweltrechner Verkehr'!AF$1:AF$91,$G7)*$B7,0) -> 0.0 | R7: =IF(B7,INDEX('2e. Umweltrechner Verkehr'!AG$1:AG$91,$G7)*I7*$B7,0) -> 0.0 | S7: =IF(B7,INDEX('2e. Umweltrechner Verkehr'!AH$1:AH$91,$G7)*I7*$B7,0) -> 0.0 | T7: =IF(B7,INDEX('2e. Umweltrechner Verkehr'!AI$1:AI$91,$G7)*$B7,0) -> 0.0 | U7: 0.0 | V7: =IF(B7,INDEX('2e. Umweltrechner Verkehr'!AC$1:AC$91,$K7)*$B7,0) -> 0.0 | W7: =IF(B7,INDEX('2e. Umweltrechner Verkehr'!AD$1:AD$91,$K7)*$B7,0) -> 0.0 | X7: =IF(B7,INDEX('2e. Umweltrechner Verkehr'!AE$1:AE$91,$K7)*$B7,0) -> 0.0 | Y7: =IF(B7,INDEX('2e. Umweltrechner Verkehr'!AF$1:AF$91,$K7)*$B7,0) -> 0.0 | Z7: =IF(B7,INDEX('2e. Umweltrechner Verkehr'!AG$1:AG$91,$K7)*M7*$B7,0) -> 0.0 | AA7: =IF(B7,INDEX('2e. Umweltrechner Verkehr'!AH$1:AH$91,$K7)*M7*$B7,0) -> 0.0 | AB7: =IF(B7,INDEX('2e. Umweltrechner Verkehr'!AI$1:AI$91,$K7)*$B7,0) -> 0.0 | AC7: 0.0
A8: Segment 4 | B8: =SUM('2. Eingaben Fahrzeug-Ebene'!$D8:$E8) -> 0 | C8: ='2. Eingaben Fahrzeug-Ebene'!C8 -> 0 | D8: Passenger car | E8: =IF(B8,INDEX(OFFSET(Grösse,0,1),'2. Eingaben Fahrzeug-Ebene'!G8),"") ->  | G8: =IF(B8,MATCH(F8,'2e. Umweltrechner Verkehr'!C:C&'2e. Umweltrechner Verkehr'!D:D&'2e. Umweltrechner Verkehr'!I:I,0),0) -> 0 | H8: =IF(B8,INDEX('2e. Umweltrechner Verkehr'!Q$1:Q$91,$G8),0) -> 0 | I8: =IF(B8,MIN(H8/'2. Eingaben Fahrzeug-Ebene'!Y8,1),0) -> 0.00 | K8: =IF(B8,MATCH(J8,'2e. Umweltrechner Verkehr'!C:C&'2e. Umweltrechner Verkehr'!D:D&'2e. Umweltrechner Verkehr'!I:I,0),0) -> 0 | L8: =IF(B8,INDEX('2e. Umweltrechner Verkehr'!Q$1:Q$91,$K8),0) -> 0 | M8: =IF(B8,MIN(L8/'2. Eingaben Fahrzeug-Ebene'!Y8,1),0) -> 0.00 | N8: =IF(B8,INDEX('2e. Umweltrechner Verkehr'!AC$1:AC$91,$G8)*$B8,0) -> 0.0 | O8: =IF(B8,INDEX('2e. Umweltrechner Verkehr'!AD$1:AD$91,$G8)*$B8,0) -> 0.0 | P8: =IF(B8,INDEX('2e. Umweltrechner Verkehr'!AE$1:AE$91,$G8)*$B8,0) -> 0.0 | Q8: =IF(B8,INDEX('2e. Umweltrechner Verkehr'!AF$1:AF$91,$G8)*$B8,0) -> 0.0 | R8: =IF(B8,INDEX('2e. Umweltrechner Verkehr'!AG$1:AG$91,$G8)*I8*$B8,0) -> 0.0 | S8: =IF(B8,INDEX('2e. Umweltrechner Verkehr'!AH$1:AH$91,$G8)*I8*$B8,0) -> 0.0 | T8: =IF(B8,INDEX('2e. Umweltrechner Verkehr'!AI$1:AI$91,$G8)*$B8,0) -> 0.0 | U8: 0.0 | V8: =IF(B8,INDEX('2e. Umweltrechner Verkehr'!AC$1:AC$91,$K8)*$B8,0) -> 0.0 | W8: =IF(B8,INDEX('2e. Umweltrechner Verkehr'!AD$1:AD$91,$K8)*$B8,0) -> 0.0 | X8: =IF(B8,INDEX('2e. Umweltrechner Verkehr'!AE$1:AE$91,$K8)*$B8,0) -> 0.0 | Y8: =IF(B8,INDEX('2e. Umweltrechner Verkehr'!AF$1:AF$91,$K8)*$B8,0) -> 0.0 | Z8: =IF(B8,INDEX('2e. Umweltrechner Verkehr'!AG$1:AG$91,$K8)*M8*$B8,0) -> 0.0 | AA8: =IF(B8,INDEX('2e. Umweltrechner Verkehr'!AH$1:AH$91,$K8)*M8*$B8,0) -> 0.0 | AB8: =IF(B8,INDEX('2e. Umweltrechner Verkehr'!AI$1:AI$91,$K8)*$B8,0) -> 0.0 | AC8: 0.0
A9: Segment 5 | B9: =SUM('2. Eingaben Fahrzeug-Ebene'!$D9:$E9) -> 0 | C9: ='2. Eingaben Fahrzeug-Ebene'!C9 -> 0 | D9: Passenger car | E9: =IF(B9,INDEX(OFFSET(Grösse,0,1),'2. Eingaben Fahrzeug-Ebene'!G9),"") ->  | G9: =IF(B9,MATCH(F9,'2e. Umweltrechner Verkehr'!C:C&'2e. Umweltrechner Verkehr'!D:D&'2e. Umweltrechner Verkehr'!I:I,0),0) -> 0 | H9: =IF(B9,INDEX('2e. Umweltrechner Verkehr'!Q$1:Q$91,$G9),0) -> 0 | I9: =IF(B9,MIN(H9/'2. Eingaben Fahrzeug-Ebene'!Y9,1),0) -> 0.00 | K9: =IF(B9,MATCH(J9,'2e. Umweltrechner Verkehr'!C:C&'2e. Umweltrechner Verkehr'!D:D&'2e. Umweltrechner Verkehr'!I:I,0),0) -> 0 | L9: =IF(B9,INDEX('2e. Umweltrechner Verkehr'!Q$1:Q$91,$K9),0) -> 0 | M9: =IF(B9,MIN(L9/'2. Eingaben Fahrzeug-Ebene'!Y9,1),0) -> 0.00 | N9: =IF(B9,INDEX('2e. Umweltrechner Verkehr'!AC$1:AC$91,$G9)*$B9,0) -> 0.0 | O9: =IF(B9,INDEX('2e. Umweltrechner Verkehr'!AD$1:AD$91,$G9)*$B9,0) -> 0.0 | P9: =IF(B9,INDEX('2e. Umweltrechner Verkehr'!AE$1:AE$91,$G9)*$B9,0) -> 0.0 | Q9: =IF(B9,INDEX('2e. Umweltrechner Verkehr'!AF$1:AF$91,$G9)*$B9,0) -> 0.0 | R9: =IF(B9,INDEX('2e. Umweltrechner Verkehr'!AG$1:AG$91,$G9)*I9*$B9,0) -> 0.0 | S9: =IF(B9,INDEX('2e. Umweltrechner Verkehr'!AH$1:AH$91,$G9)*I9*$B9,0) -> 0.0 | T9: =IF(B9,INDEX('2e. Umweltrechner Verkehr'!AI$1:AI$91,$G9)*$B9,0) -> 0.0 | U9: 0.0 | V9: =IF(B9,INDEX('2e. Umweltrechner Verkehr'!AC$1:AC$91,$K9)*$B9,0) -> 0.0 | W9: =IF(B9,INDEX('2e. Umweltrechner Verkehr'!AD$1:AD$91,$K9)*$B9,0) -> 0.0 | X9: =IF(B9,INDEX('2e. Umweltrechner Verkehr'!AE$1:AE$91,$K9)*$B9,0) -> 0.0 | Y9: =IF(B9,INDEX('2e. Umweltrechner Verkehr'!AF$1:AF$91,$K9)*$B9,0) -> 0.0 | Z9: =IF(B9,INDEX('2e. Umweltrechner Verkehr'!AG$1:AG$91,$K9)*M9*$B9,0) -> 0.0 | AA9: =IF(B9,INDEX('2e. Umweltrechner Verkehr'!AH$1:AH$91,$K9)*M9*$B9,0) -> 0.0 | AB9: =IF(B9,INDEX('2e. Umweltrechner Verkehr'!AI$1:AI$91,$K9)*$B9,0) -> 0.0 | AC9: 0.0
A10: Segment 6 | B10: =SUM('2. Eingaben Fahrzeug-Ebene'!$D10:$E10) -> 0 | C10: ='2. Eingaben Fahrzeug-Ebene'!C10 -> 0 | D10: Passenger car | E10: =IF(B10,INDEX(OFFSET(Grösse,0,1),'2. Eingaben Fahrzeug-Ebene'!G10),"") ->  | G10: =IF(B10,MATCH(F10,'2e. Umweltrechner Verkehr'!C:C&'2e. Umweltrechner Verkehr'!D:D&'2e. Umweltrechner Verkehr'!I:I,0),0) -> 0 | H10: =IF(B10,INDEX('2e. Umweltrechner Verkehr'!Q$1:Q$91,$G10),0) -> 0 | I10: =IF(B10,MIN(H10/'2. Eingaben Fahrzeug-Ebene'!Y10,1),0) -> 0.00 | K10: =IF(B10,MATCH(J10,'2e. Umweltrechner Verkehr'!C:C&'2e. Umweltrechner Verkehr'!D:D&'2e. Umweltrechner Verkehr'!I:I,0),0) -> 0 | L10: =IF(B10,INDEX('2e. Umweltrechner Verkehr'!Q$1:Q$91,$K10),0) -> 0 | M10: =IF(B10,MIN(L10/'2. Eingaben Fahrzeug-Ebene'!Y10,1),0) -> 0.00 | N10: =IF(B10,INDEX('2e. Umweltrechner Verkehr'!AC$1:AC$91,$G10)*$B10,0) -> 0.0 | O10: =IF(B10,INDEX('2e. Umweltrechner Verkehr'!AD$1:AD$91,$G10)*$B10,0) -> 0.0 | P10: =IF(B10,INDEX('2e. Umweltrechner Verkehr'!AE$1:AE$91,$G10)*$B10,0) -> 0.0 | Q10: =IF(B10,INDEX('2e. Umweltrechner Verkehr'!AF$1:AF$91,$G10)*$B10,0) -> 0.0 | R10: =IF(B10,INDEX('2e. Umweltrechner Verkehr'!AG$1:AG$91,$G10)*I10*$B10,0) -> 0.0 | S10: =IF(B10,INDEX('2e. Umweltrechner Verkehr'!AH$1:AH$91,$G10)*I10*$B10,0) -> 0.0 | T10: =IF(B10,INDEX('2e. Umweltrechner Verkehr'!AI$1:AI$91,$G10)*$B10,0) -> 0.0 | U10: 0.0 | V10: =IF(B10,INDEX('2e. Umweltrechner Verkehr'!AC$1:AC$91,$K10)*$B10,0) -> 0.0 | W10: =IF(B10,INDEX('2e. Umweltrechner Verkehr'!AD$1:AD$91,$K10)*$B10,0) -> 0.0 | X10: =IF(B10,INDEX('2e. Umweltrechner Verkehr'!AE$1:AE$91,$K10)*$B10,0) -> 0.0 | Y10: =IF(B10,INDEX('2e. Umweltrechner Verkehr'!AF$1:AF$91,$K10)*$B10,0) -> 0.0 | Z10: =IF(B10,INDEX('2e. Umweltrechner Verkehr'!AG$1:AG$91,$K10)*M10*$B10,0) -> 0.0 | AA10: =IF(B10,INDEX('2e. Umweltrechner Verkehr'!AH$1:AH$91,$K10)*M10*$B10,0) -> 0.0 | AB10: =IF(B10,INDEX('2e. Umweltrechner Verkehr'!AI$1:AI$91,$K10)*$B10,0) -> 0.0 | AC10: 0.0
A11: Segment 7 | B11: =SUM('2. Eingaben Fahrzeug-Ebene'!$D11:$E11) -> 0 | C11: ='2. Eingaben Fahrzeug-Ebene'!C11 -> 0 | D11: Passenger car | E11: =IF(B11,INDEX(OFFSET(Grösse,0,1),'2. Eingaben Fahrzeug-Ebene'!G11),"") ->  | G11: =IF(B11,MATCH(F11,'2e. Umweltrechner Verkehr'!C:C&'2e. Umweltrechner Verkehr'!D:D&'2e. Umweltrechner Verkehr'!I:I,0),0) -> 0 | H11: =IF(B11,INDEX('2e. Umweltrechner Verkehr'!Q$1:Q$91,$G11),0) -> 0 | I11: =IF(B11,MIN(H11/'2. Eingaben Fahrzeug-Ebene'!Y11,1),0) -> 0.00 | K11: =IF(B11,MATCH(J11,'2e. Umweltrechner Verkehr'!C:C&'2e. Umweltrechner Verkehr'!D:D&'2e. Umweltrechner Verkehr'!I:I,0),0) -> 0 | L11: =IF(B11,INDEX('2e. Umweltrechner Verkehr'!Q$1:Q$91,$K11),0) -> 0 | M11: =IF(B11,MIN(L11/'2. Eingaben Fahrzeug-Ebene'!Y11,1),0) -> 0.00 | N11: =IF(B11,INDEX('2e. Umweltrechner Verkehr'!AC$1:AC$91,$G11)*$B11,0) -> 0.0 | O11: =IF(B11,INDEX('2e. Umweltrechner Verkehr'!AD$1:AD$91,$G11)*$B11,0) -> 0.0 | P11: =IF(B11,INDEX('2e. Umweltrechner Verkehr'!AE$1:AE$91,$G11)*$B11,0) -> 0.0 | Q11: =IF(B11,INDEX('2e. Umweltrechner Verkehr'!AF$1:AF$91,$G11)*$B11,0) -> 0.0 | R11: =IF(B11,INDEX('2e. Umweltrechner Verkehr'!AG$1:AG$91,$G11)*I11*$B11,0) -> 0.0 | S11: =IF(B11,INDEX('2e. Umweltrechner Verkehr'!AH$1:AH$91,$G11)*I11*$B11,0) -> 0.0 | T11: =IF(B11,INDEX('2e. Umweltrechner Verkehr'!AI$1:AI$91,$G11)*$B11,0) -> 0.0 | U11: 0.0 | V11: =IF(B11,INDEX('2e. Umweltrechner Verkehr'!AC$1:AC$91,$K11)*$B11,0) -> 0.0 | W11: =IF(B11,INDEX('2e. Umweltrechner Verkehr'!AD$1:AD$91,$K11)*$B11,0) -> 0.0 | X11: =IF(B11,INDEX('2e. Umweltrechner Verkehr'!AE$1:AE$91,$K11)*$B11,0) -> 0.0 | Y11: =IF(B11,INDEX('2e. Umweltrechner Verkehr'!AF$1:AF$91,$K11)*$B11,0) -> 0.0 | Z11: =IF(B11,INDEX('2e. Umweltrechner Verkehr'!AG$1:AG$91,$K11)*M11*$B11,0) -> 0.0 | AA11: =IF(B11,INDEX('2e. Umweltrechner Verkehr'!AH$1:AH$91,$K11)*M11*$B11,0) -> 0.0 | AB11: =IF(B11,INDEX('2e. Umweltrechner Verkehr'!AI$1:AI$91,$K11)*$B11,0) -> 0.0 | AC11: 0.0
A12: Segment 8 | B12: =SUM('2. Eingaben Fahrzeug-Ebene'!$D12:$E12) -> 0 | C12: ='2. Eingaben Fahrzeug-Ebene'!C12 -> 0 | D12: Passenger car | E12: =IF(B12,INDEX(OFFSET(Grösse,0,1),'2. Eingaben Fahrzeug-Ebene'!G12),"") ->  | G12: =IF(B12,MATCH(F12,'2e. Umweltrechner Verkehr'!C:C&'2e. Umweltrechner Verkehr'!D:D&'2e. Umweltrechner Verkehr'!I:I,0),0) -> 0 | H12: =IF(B12,INDEX('2e. Umweltrechner Verkehr'!Q$1:Q$91,$G12),0) -> 0 | I12: =IF(B12,MIN(H12/'2. Eingaben Fahrzeug-Ebene'!Y12,1),0) -> 0.00 | K12: =IF(B12,MATCH(J12,'2e. Umweltrechner Verkehr'!C:C&'2e. Umweltrechner Verkehr'!D:D&'2e. Umweltrechner Verkehr'!I:I,0),0) -> 0 | L12: =IF(B12,INDEX('2e. Umweltrechner Verkehr'!Q$1:Q$91,$K12),0) -> 0 | M12: =IF(B12,MIN(L12/'2. Eingaben Fahrzeug-Ebene'!Y12,1),0) -> 0.00 | N12: =IF(B12,INDEX('2e. Umweltrechner Verkehr'!AC$1:AC$91,$G12)*$B12,0) -> 0.0 | O12: =IF(B12,INDEX('2e. Umweltrechner Verkehr'!AD$1:AD$91,$G12)*$B12,0) -> 0.0 | P12: =IF(B12,INDEX('2e. Umweltrechner Verkehr'!AE$1:AE$91,$G12)*$B12,0) -> 0.0 | Q12: =IF(B12,INDEX('2e. Umweltrechner Verkehr'!AF$1:AF$91,$G12)*$B12,0) -> 0.0 | R12: =IF(B12,INDEX('2e. Umweltrechner Verkehr'!AG$1:AG$91,$G12)*I12*$B12,0) -> 0.0 | S12: =IF(B12,INDEX('2e. Umweltrechner Verkehr'!AH$1:AH$91,$G12)*I12*$B12,0) -> 0.0 | T12: =IF(B12,INDEX('2e. Umweltrechner Verkehr'!AI$1:AI$91,$G12)*$B12,0) -> 0.0 | U12: 0.0 | V12: =IF(B12,INDEX('2e. Umweltrechner Verkehr'!AC$1:AC$91,$K12)*$B12,0) -> 0.0 | W12: =IF(B12,INDEX('2e. Umweltrechner Verkehr'!AD$1:AD$91,$K12)*$B12,0) -> 0.0 | X12: =IF(B12,INDEX('2e. Umweltrechner Verkehr'!AE$1:AE$91,$K12)*$B12,0) -> 0.0 | Y12: =IF(B12,INDEX('2e. Umweltrechner Verkehr'!AF$1:AF$91,$K12)*$B12,0) -> 0.0 | Z12: =IF(B12,INDEX('2e. Umweltrechner Verkehr'!AG$1:AG$91,$K12)*M12*$B12,0) -> 0.0 | AA12: =IF(B12,INDEX('2e. Umweltrechner Verkehr'!AH$1:AH$91,$K12)*M12*$B12,0) -> 0.0 | AB12: =IF(B12,INDEX('2e. Umweltrechner Verkehr'!AI$1:AI$91,$K12)*$B12,0) -> 0.0 | AC12: 0.0
A13: Segment 9 | B13: =SUM('2. Eingaben Fahrzeug-Ebene'!$D13:$E13) -> 0 | C13: ='2. Eingaben Fahrzeug-Ebene'!C13 -> 0 | D13: Passenger car | E13: =IF(B13,INDEX(OFFSET(Grösse,0,1),'2. Eingaben Fahrzeug-Ebene'!G13),"") ->  | G13: =IF(B13,MATCH(F13,'2e. Umweltrechner Verkehr'!C:C&'2e. Umweltrechner Verkehr'!D:D&'2e. Umweltrechner Verkehr'!I:I,0),0) -> 0 | H13: =IF(B13,INDEX('2e. Umweltrechner Verkehr'!Q$1:Q$91,$G13),0) -> 0 | I13: =IF(B13,MIN(H13/'2. Eingaben Fahrzeug-Ebene'!Y13,1),0) -> 0.00 | K13: =IF(B13,MATCH(J13,'2e. Umweltrechner Verkehr'!C:C&'2e. Umweltrechner Verkehr'!D:D&'2e. Umweltrechner Verkehr'!I:I,0),0) -> 0 | L13: =IF(B13,INDEX('2e. Umweltrechner Verkehr'!Q$1:Q$91,$K13),0) -> 0 | M13: =IF(B13,MIN(L13/'2. Eingaben Fahrzeug-Ebene'!Y13,1),0) -> 0.00 | N13: =IF(B13,INDEX('2e. Umweltrechner Verkehr'!AC$1:AC$91,$G13)*$B13,0) -> 0.0 | O13: =IF(B13,INDEX('2e. Umweltrechner Verkehr'!AD$1:AD$91,$G13)*$B13,0) -> 0.0 | P13: =IF(B13,INDEX('2e. Umweltrechner Verkehr'!AE$1:AE$91,$G13)*$B13,0) -> 0.0 | Q13: =IF(B13,INDEX('2e. Umweltrechner Verkehr'!AF$1:AF$91,$G13)*$B13,0) -> 0.0 | R13: =IF(B13,INDEX('2e. Umweltrechner Verkehr'!AG$1:AG$91,$G13)*I13*$B13,0) -> 0.0 | S13: =IF(B13,INDEX('2e. Umweltrechner Verkehr'!AH$1:AH$91,$G13)*I13*$B13,0) -> 0.0 | T13: =IF(B13,INDEX('2e. Umweltrechner Verkehr'!AI$1:AI$91,$G13)*$B13,0) -> 0.0 | U13: 0.0 | V13: =IF(B13,INDEX('2e. Umweltrechner Verkehr'!AC$1:AC$91,$K13)*$B13,0) -> 0.0 | W13: =IF(B13,INDEX('2e. Umweltrechner Verkehr'!AD$1:AD$91,$K13)*$B13,0) -> 0.0 | X13: =IF(B13,INDEX('2e. Umweltrechner Verkehr'!AE$1:AE$91,$K13)*$B13,0) -> 0.0 | Y13: =IF(B13,INDEX('2e. Umweltrechner Verkehr'!AF$1:AF$91,$K13)*$B13,0) -> 0.0 | Z13: =IF(B13,INDEX('2e. Umweltrechner Verkehr'!AG$1:AG$91,$K13)*M13*$B13,0) -> 0.0 | AA13: =IF(B13,INDEX('2e. Umweltrechner Verkehr'!AH$1:AH$91,$K13)*M13*$B13,0) -> 0.0 | AB13: =IF(B13,INDEX('2e. Umweltrechner Verkehr'!AI$1:AI$91,$K13)*$B13,0) -> 0.0 | AC13: 0.0
A14: Segment 10 | B14: =SUM('2. Eingaben Fahrzeug-Ebene'!$D14:$E14) -> 0 | C14: ='2. Eingaben Fahrzeug-Ebene'!C14 -> 0 | D14: Passenger car | E14: =IF(B14,INDEX(OFFSET(Grösse,0,1),'2. Eingaben Fahrzeug-Ebene'!G14),"") ->  | G14: =IF(B14,MATCH(F14,'2e. Umweltrechner Verkehr'!C:C&'2e. Umweltrechner Verkehr'!D:D&'2e. Umweltrechner Verkehr'!I:I,0),0) -> 0 | H14: =IF(B14,INDEX('2e. Umweltrechner Verkehr'!Q$1:Q$91,$G14),0) -> 0 | I14: =IF(B14,MIN(H14/'2. Eingaben Fahrzeug-Ebene'!Y14,1),0) -> 0.00 | K14: =IF(B14,MATCH(J14,'2e. Umweltrechner Verkehr'!C:C&'2e. Umweltrechner Verkehr'!D:D&'2e. Umweltrechner Verkehr'!I:I,0),0) -> 0 | L14: =IF(B14,INDEX('2e. Umweltrechner Verkehr'!Q$1:Q$91,$K14),0) -> 0 | M14: =IF(B14,MIN(L14/'2. Eingaben Fahrzeug-Ebene'!Y14,1),0) -> 0.00 | N14: =IF(B14,INDEX('2e. Umweltrechner Verkehr'!AC$1:AC$91,$G14)*$B14,0) -> 0.0 | O14: =IF(B14,INDEX('2e. Umweltrechner Verkehr'!AD$1:AD$91,$G14)*$B14,0) -> 0.0 | P14: =IF(B14,INDEX('2e. Umweltrechner Verkehr'!AE$1:AE$91,$G14)*$B14,0) -> 0.0 | Q14: =IF(B14,INDEX('2e. Umweltrechner Verkehr'!AF$1:AF$91,$G14)*$B14,0) -> 0.0 | R14: =IF(B14,INDEX('2e. Umweltrechner Verkehr'!AG$1:AG$91,$G14)*I14*$B14,0) -> 0.0 | S14: =IF(B14,INDEX('2e. Umweltrechner Verkehr'!AH$1:AH$91,$G14)*I14*$B14,0) -> 0.0 | T14: =IF(B14,INDEX('2e. Umweltrechner Verkehr'!AI$1:AI$91,$G14)*$B14,0) -> 0.0 | U14: 0.0 | V14: =IF(B14,INDEX('2e. Umweltrechner Verkehr'!AC$1:AC$91,$K14)*$B14,0) -> 0.0 | W14: =IF(B14,INDEX('2e. Umweltrechner Verkehr'!AD$1:AD$91,$K14)*$B14,0) -> 0.0 | X14: =IF(B14,INDEX('2e. Umweltrechner Verkehr'!AE$1:AE$91,$K14)*$B14,0) -> 0.0 | Y14: =IF(B14,INDEX('2e. Umweltrechner Verkehr'!AF$1:AF$91,$K14)*$B14,0) -> 0.0 | Z14: =IF(B14,INDEX('2e. Umweltrechner Verkehr'!AG$1:AG$91,$K14)*M14*$B14,0) -> 0.0 | AA14: =IF(B14,INDEX('2e. Umweltrechner Verkehr'!AH$1:AH$91,$K14)*M14*$B14,0) -> 0.0 | AB14: =IF(B14,INDEX('2e. Umweltrechner Verkehr'!AI$1:AI$91,$K14)*$B14,0) -> 0.0 | AC14: 0.0

Sheet 2d. Annahmen (hidden)
A1: Fahrzeug Annahmen
A2: *Umweltrechner Verkehr | F2: E-Fahrzeug | G2: 80%
F3: Batteriekapazität, netto (kWh) | G3: Batteriekapazität, nutzbar (kWh) | H3: Verbrauch (kWh/100 km) | I3: Lebensfahrleistung (km) | J3: Anschaffungskosten Faktor | K3: Anschaffungskosten (CHF) | L3: Reifen (CHF/Jahr) | M3: Service/Unterhalt (CHF/Jahr) | N3: Δ Restwert
A4: Personenwagen | B4: =Grösse -> Kleinwagen | C4: BEV | D4: Passenger carBEVCompact | E4: =MATCH(D4,'2e. Umweltrechner Verkehr'!C:C&'2e. Umweltrechner Verkehr'!D:D&'2e. Umweltrechner Verkehr'!I:I,0) -> 2 | F4: 46.5 | G4: =F4*$G$2 -> 37.2 | H4: =INDEX('2e. Umweltrechner Verkehr'!V:V,$E4) -> 14.9 | I4: =INDEX('2e. Umweltrechner Verkehr'!Q:Q,$E4) -> 200000 | J4: =K4/H13-1 -> 34% | K4: =28668*(1-$B$29) -> 25,801 | L4: 350 | M4: 455 | N4: -2.0%
A5: Personenwagen | B5: Mittelklasse | C5: BEV | D5: Passenger carBEVMedium | E5: =MATCH(D5,'2e. Umweltrechner Verkehr'!C:C&'2e. Umweltrechner Verkehr'!D:D&'2e. Umweltrechner Verkehr'!I:I,0) -> 3 | F5: 58.6 | G5: =F5*$G$2 -> 46.9 | H5: =INDEX('2e. Umweltrechner Verkehr'!V:V,$E5) -> 15.1 | I5: =INDEX('2e. Umweltrechner Verkehr'!Q:Q,$E5) -> 200000 | J5: =K5/H14-1 -> -0% | K5: =35569*(1-$B$29) -> 32,012 | L5: 470 | M5: 650 | N5: -3.0%
A6: Personenwagen | B6: Oberklasse | C6: BEV | D6: Passenger carBEVLarge | E6: =MATCH(D6,'2e. Umweltrechner Verkehr'!C:C&'2e. Umweltrechner Verkehr'!D:D&'2e. Umweltrechner Verkehr'!I:I,0) -> 4 | F6: 99.7 | G6: 79.7 | H6: =INDEX('2e. Umweltrechner Verkehr'!V:V,$E6) -> 16.3 | I6: =INDEX('2e. Umweltrechner Verkehr'!Q:Q,$E6) -> 200000 | J6: 2% | K6: =83428*(1-$B$29) -> 75,085 | L6: 750 | M6: 1,000 | N6: -4.0%
A7: Personenwagen | B7: SUV | C7: BEV | D7: Passenger carBEVSUV | E7: =MATCH(D7,'2e. Umweltrechner Verkehr'!C:C&'2e. Umweltrechner Verkehr'!D:D&'2e. Umweltrechner Verkehr'!I:I,0) -> 5 | F7: 71.8 | G7: 57.4 | H7: =INDEX('2e. Umweltrechner Verkehr'!V:V,$E7) -> 16.4 | I7: =INDEX('2e. Umweltrechner Verkehr'!Q:Q,$E7) -> 200000 | J7: 18% | K7: =49566*(1-$B$29) -> 44,609 | L7: 590 | M7: 850 | N7: -3.5%
F9: Verbrauchskatalog | G9: Verbrauchskatalog | H9: Verbrauchskatalog | I9: Umweltrechner Verkehr | J9: sffv | K9: BFE TCO Studie | L9: sffv | M9: sffv
K10: news.admin.ch/de/nsb?id=93890 | M10: Bsp. 20‘000km/p.a. 48 Mt. LZ
F11: Verbrenner
F12: Verbrauch (l/100 km) | G12: Lebensfahrleistung (km) | H12: Anschaffungskosten (CHF) | I12: Reifen (CHF/Jahr) | J12: Service/Unterhalt (CHF/Jahr) | K12: Δ Restwert
A13: Personenwagen | B13: =Grösse -> Kleinwagen | C13: ICEV-p | D13: Passenger carICEV-pCompact | E13: =MATCH(D13,'2e. Umweltrechner Verkehr'!C:C&'2e. Umweltrechner Verkehr'!D:D&'2e. Umweltrechner Verkehr'!I:I,0) -> 6 | F13: =INDEX('2e. Umweltrechner Verkehr'!U:U,$E13) -> 5.4 | G13: =INDEX('2e. Umweltrechner Verkehr'!Q:Q,$E13) -> 200000 | H13: =22593*(1-$B$30) -> 19,204 | I13: 300 | J13: 700 | K13: 1.5%
A14: Personenwagen | B14: Mittelklasse | C14: ICEV-p | D14: Passenger carICEV-pMedium | E14: =MATCH(D14,'2e. Umweltrechner Verkehr'!C:C&'2e. Umweltrechner Verkehr'!D:D&'2e. Umweltrechner Verkehr'!I:I,0) -> 7 | F14: =INDEX('2e. Umweltrechner Verkehr'!U:U,$E14) -> 5.8 | G14: =INDEX('2e. Umweltrechner Verkehr'!Q:Q,$E14) -> 200000 | H14: =37674*(1-$B$30) -> 32,023 | I14: 400 | J14: 1,000 | K14: 0.0%
A15: Personenwagen | B15: Oberklasse | C15: ICEV-p | D15: Passenger carICEV-pLarge | E15: =MATCH(D15,'2e. Umweltrechner Verkehr'!C:C&'2e. Umweltrechner Verkehr'!D:D&'2e. Umweltrechner Verkehr'!I:I,0) -> 8 | F15: =INDEX('2e. Umweltrechner Verkehr'!U:U,$E15) -> 8.0 | G15: =INDEX('2e. Umweltrechner Verkehr'!Q:Q,$E15) -> 200000 | H15: =86771*(1-$B$30) -> 73,755 | I15: 650 | J15: 1,500 | K15: -2.0%
A16: Personenwagen | B16: SUV | C16: ICEV-p | D16: Passenger carICEV-pSUV | E16: =MATCH(D16,'2e. Umweltrechner Verkehr'!C:C&'2e. Umweltrechner Verkehr'!D:D&'2e. Umweltrechner Verkehr'!I:I,0) -> 9 | F16: =INDEX('2e. Umweltrechner Verkehr'!U:U,$E16) -> 6.7 | G16: =INDEX('2e. Umweltrechner Verkehr'!Q:Q,$E16) -> 200000 | H16: =44442*(1-$B$30) -> 37,776 | I16: 500 | J16: 1,300 | K16: -1.0%
F18: Verbrauchskatalog | G18: Umweltrechner Verkehr | H18: BFE TCO Studie | I18: sffv | J18: sffv
H19: news.admin.ch/de/nsb?id=93890 | J19: Bsp. 20‘000km/p.a. 48 Mt. LZ
C20: E-Fahrzeug & Verbrenner
C21: Versicherung (CHF/Jahr) | D21: Flottenverwaltung (CHF/Jahr)
A22: Personenwagen | B22: =Grösse -> Kleinwagen | C22: 900 | D22: 400
A23: Personenwagen | B23: Mittelklasse | C23: 1,200 | D23: 400
A24: Personenwagen | B24: Oberklasse | C24: 2,000 | D24: 400
A25: Personenwagen | B25: SUV | C25: 1,500 | D25: 400
C27: sffv | D27: sffv
A29: Rabatt E-Fzg | B29: 10%
A30: Rabatt Verbrenner | B30: 15%
A32: Ladeinfrastruktur Annahmen
A33: Ladepunkte
A35: Kosten pro Ladepunkt | D35: *Basisdaten (aus 4018a) | G35: Annahme 2x LP pro LS
A36: Ladepunkt Leistung | B36: Kosten pro LP | E36: Ladestation Leistung | F36: Typ | G36: Ladepunkt Leistung | H36: Kosten
A37: [kW] | B37: CHF | H37: Ladestation mit 2 LP | I37: Installation pro LS | J37: Gesamttotal | K37: Gesamttotal pro LP
A38: =Ladeleistung -> 11 | B38: =$K$38*0.8*1.2 -> 1,632 | E38: 22 | F38: AC | G38: =E38 -> 22 | H38: 1,400 | I38: 300 | J38: =SUM(H38:I38) -> 1,700 | K38: =J38 -> 1,700
A39: 22 | B39: =$K$38*1.2 -> 2,040 | E39: 75 | F39: DC | G39: =E39/2 -> 37.5 | H39: 31,500 | I39: 1,600 | J39: =SUM(H39:I39) -> 33,100 | K39: =J39/2 -> 16,550
A40: 50 | B40: =(7726+253.32*A40-0.3599*(A40)^2)*1.2 -> 23,391 | E40: 150 | F40: DC | G40: 75 | H40: 48,000 | I40: 2,000 | J40: =SUM(H40:I40) -> 50,000 | K40: =J40/2 -> 25,000
A41: 66 | B41: =(7726+253.32*A41-0.3599*(A41)^2)*1.2 -> 27,453 | E41: 180 | F41: DC | G41: 90 | H41: 53,500 | I41: 2,000 | J41: 55,500 | K41: 27,750
A42: 75 | B42: 29,641 | E42: 225 | F42: DC | G42: 112.5 | H42: 61,000 | I42: 2,000 | J42: 63,000 | K42: 31,500
A43: 100 | B43: 35,351 | E43: 250 | F43: DC | G43: 125 | H43: 66,000 | I43: 2,000 | J43: 68,000 | K43: 34,000
A44: 120 | B44: 39,530 | E44: 275 | F44: DC | G44: 137.5 | H44: 68,500 | I44: 2,000 | J44: 70,500 | K44: 35,250
